{"text_format":"1","workbook":"xlsx","n_sheets":19,"sheets":["Результаты","Команды","Дети","палатка","газета","визитка","стрельба-пневматика","стрельба-АК","подтягивание","сборка разборка АК","полоса воен","полоса Штурм","ролики","стрельба-лук","ПДД","рисунок","плавание","ориентирование","Эстафета"],"not_rendered":{"charts":0,"images":0,"macros":1,"external_links":0,"defined_names":0,"comments":13,"pivot_tables":0},"unopened":[],"bounds":{"document_bytes":16777216,"sheet_cells":100000,"rows_first":2000,"rows_last":500,"rows_between":2000,"halvings":0,"cell_chars":16384,"cell_head_chars":4096},"cells_cut":0,"cells_raw":0,"read":"whole","date_system":"1900"}

{"sheet":"Результаты","index":0,"n_rows":32,"n_cols":31,"rows_kept":32,"cut":false,"hidden":false,"merged":[[0,1,0,30]]}
[null,"Командное первенство"]
[null,"ЦПП ГИБДД ГУ МВД по Московской обл.",null,null,null,null,null,null,null,null,null,null,null,null,null,null,null,null,null,null,null,null,null,null,null,null,null,null,null,null,"5 июня 2011, 17:08"]
["id","Команда","палатка сумма","палатка","стрельба-пневматика сумма","стрельба-пневматика","стрельба-лук сумма","стрельба-лук","стрельба-АК сумма","стрельба-АК","сборка/разборка АК сумма","сборка/разборка АК","полоса военная сумма","полоса военная ","полоса военная","полоса Штурм сумма","полоса Штурм","плавание сумма","плавание","подтягивание сумма","подтягивание","ролики сумма","ролики","ориентирование сумма","ориентирование","ПДД сумма","ПДД","эстафета сумма","эстафета","Сумма","Место"]
[16,{"$f":"LOOKUP([id],Команды[id],Команды[Коротко])","v":"Тверь"},{"$f":"SUMIF(палатка[team_id],[id],палатка[Сумма])","v":"00:01:51.750"},1,{"$f":"SUMIF(стрельба_пневматика[team_id],Результаты[[#This Row],[id]],стрельба_пневматика[Очки])","v":216},2,{"$f":"SUMIF(стрельба_лук[team_id],Результаты[[#This Row],[id]],стрельба_лук[результат])","v":37},11,{"$f":"SUMIF(стрельба_АК[team_id],Результаты[[#This Row],[id]],стрельба_АК[Результат])","v":67},7,{"$f":"SUMIF(сборка_разборка_АК[team_id],Результаты[[#This Row],[id]],сборка_разборка_АК[Сумма])","v":"00:01:05.300"},1,{"$f":"SUMIF(полоса_воен[team_id],[id],полоса_воен[Время])","v":"00:01:17.950"},null,8,{"$f":"SUMIF(полоса_Штурм[team_id],Результаты[[#This Row],[id]],полоса_Штурм[Время])","v":"00:01:23.320"},4,{"$f":"SUMIF(плавание[team_id],Результаты[[#This Row],[id]],плавание[Время])","v":"00:03:21.440"},12,{"$f":"SUMIF(подтягивание[team_id],Результаты[[#This Row],[id]],подтягивание[результат])","v":48},3,{"$f":"SUMIF(ролики[team_id],Результаты[[#This Row],[id]],ролики[Сумма])","v":"00:00:25.100"},2,{"$f":"SUMIF(ориентирование[team_id],Результаты[[#This Row],[id]],ориентирование[Сумма])","v":1.1504629629629559E-2},1,{"$f":"SUMIF(ПДД[team_id],Результаты[[#This Row],[id]],ПДД[Сумма])","v":"00:18:23"},11,{"$f":"SUMIF(Эстафета[team_id],Результаты[[#This Row],[id]],Эстафета[Сумма])","v":"00:04:51.980"},6,{"$f":"[палатка]+[стрельба-пневматика]+[стрельба-лук]+[стрельба-АК]+[сборка/разборка АК]+[полоса военная]+[полоса Штурм]+[плавание]+[подтягивание]+[ролики]+[ПДД]+[эстафета]","v":68},1]
[22,{"$f":"LOOKUP([id],Команды[id],Команды[Коротко])","v":"Киров"},{"$f":"SUMIF(палатка[team_id],[id],палатка[Сумма])","v":"00:03:37.120"},14,{"$f":"SUMIF(стрельба_пневматика[team_id],Результаты[[#This Row],[id]],стрельба_пневматика[Очки])","v":161},8,{"$f":"SUMIF(стрельба_лук[team_id],Результаты[[#This Row],[id]],стрельба_лук[результат])","v":60},4,{"$f":"SUMIF(стрельба_АК[team_id],Результаты[[#This Row],[id]],стрельба_АК[Результат])","v":77},2,{"$f":"SUMIF(сборка_разборка_АК[team_id],Результаты[[#This Row],[id]],сборка_разборка_АК[Сумма])","v":"00:02:23.030"},14,{"$f":"SUMIF(полоса_воен[team_id],[id],полоса_воен[Время])","v":"00:01:14.620"},null,3,{"$f":"SUMIF(полоса_Штурм[team_id],Результаты[[#This Row],[id]],полоса_Штурм[Время])","v":"00:01:35.920"},11,{"$f":"SUMIF(плавание[team_id],Результаты[[#This Row],[id]],плавание[Время])","v":"00:02:39.420"},3,{"$f":"SUMIF(подтягивание[team_id],Результаты[[#This Row],[id]],подтягивание[результат])","v":34},10,{"$f":"SUMIF(ролики[team_id],Результаты[[#This Row],[id]],ролики[Сумма])","v":"00:00:32.930"},6,{"$f":"SUMIF(ориентирование[team_id],Результаты[[#This Row],[id]],ориентирование[Сумма])","v":1.4236111111111116E-2},9,{"$f":"SUMIF(ПДД[team_id],Результаты[[#This Row],[id]],ПДД[Сумма])","v":"00:13:43"},11,{"$f":"SUMIF(Эстафета[team_id],Результаты[[#This Row],[id]],Эстафета[Сумма])","v":"00:05:02.820"},12,{"$f":"[палатка]+[стрельба-пневматика]+[стрельба-лук]+[стрельба-АК]+[сборка/разборка АК]+[полоса военная]+[полоса Штурм]+[плавание]+[подтягивание]+[ролики]+[ПДД]+[эстафета]","v":98},2]
[20,{"$f":"LOOKUP([id],Команды[id],Команды[Коротко])","v":"Татарстан"},{"$f":"SUMIF(палатка[team_id],[id],палатка[Сумма])","v":"00:03:59.440"},17,{"$f":"SUMIF(стрельба_пневматика[team_id],Результаты[[#This Row],[id]],стрельба_пневматика[Очки])","v":133},15,{"$f":"SUMIF(стрельба_лук[team_id],Результаты[[#This Row],[id]],стрельба_лук[результат])","v":104},1,{"$f":"SUMIF(стрельба_АК[team_id],Результаты[[#This Row],[id]],стрельба_АК[Результат])","v":25},15,{"$f":"SUMIF(сборка_разборка_АК[team_id],Результаты[[#This Row],[id]],сборка_разборка_АК[Сумма])","v":"00:02:50.950"},18,{"$f":"SUMIF(полоса_воен[team_id],[id],полоса_воен[Время])","v":"00:01:16.270"},null,5,{"$f":"SUMIF(полоса_Штурм[team_id],Результаты[[#This Row],[id]],полоса_Штурм[Время])","v":"00:01:20.630"},3,{"$f":"SUMIF(плавание[team_id],Результаты[[#This Row],[id]],плавание[Время])","v":"00:02:31.630"},2,{"$f":"SUMIF(подтягивание[team_id],Результаты[[#This Row],[id]],подтягивание[результат])","v":82},1,{"$f":"SUMIF(ролики[team_id],Результаты[[#This Row],[id]],ролики[Сумма])","v":"00:00:42.960"},18,{"$f":"SUMIF(ориентирование[team_id],Результаты[[#This Row],[id]],ориентирование[Сумма])","v":1.2847222222222232E-2},4,{"$f":"SUMIF(ПДД[team_id],Результаты[[#This Row],[id]],ПДД[Сумма])","v":"00:08:05"},11,{"$f":"SUMIF(Эстафета[team_id],Результаты[[#This Row],[id]],Эстафета[Сумма])","v":"00:04:40.750"},2,{"$f":"[палатка]+[стрельба-пневматика]+[стрельба-лук]+[стрельба-АК]+[сборка/разборка АК]+[полоса военная]+[полоса Штурм]+[плавание]+[подтягивание]+[ролики]+[ПДД]+[эстафета]","v":108},3]
[17,{"$f":"LOOKUP([id],Команды[id],Команды[Коротко])","v":"Смоленск"},{"$f":"SUMIF(палатка[team_id],[id],палатка[Сумма])","v":"00:03:08.540"},9,{"$f":"SUMIF(стрельба_пневматика[team_id],Результаты[[#This Row],[id]],стрельба_пневматика[Очки])","v":160},9,{"$f":"SUMIF(стрельба_лук[team_id],Результаты[[#This Row],[id]],стрельба_лук[результат])","v":49},8,{"$f":"SUMIF(стрельба_АК[team_id],Результаты[[#This Row],[id]],стрельба_АК[Результат])","v":15},19,{"$f":"SUMIF(сборка_разборка_АК[team_id],Результаты[[#This Row],[id]],сборка_разборка_АК[Сумма])","v":"00:01:32.390"},4,{"$f":"SUMIF(полоса_воен[team_id],[id],полоса_воен[Время])","v":"00:01:17.340"},null,7,{"$f":"SUMIF(полоса_Штурм[team_id],Результаты[[#This Row],[id]],полоса_Штурм[Время])","v":"00:01:11.210"},1,{"$f":"SUMIF(плавание[team_id],Результаты[[#This Row],[id]],плавание[Время])","v":"00:03:15.510"},11,{"$f":"SUMIF(подтягивание[team_id],Результаты[[#This Row],[id]],подтягивание[результат])","v":44},5,{"$f":"SUMIF(ролики[team_id],Результаты[[#This Row],[id]],ролики[Сумма])","v":"00:00:40.610"},16,{"$f":"SUMIF(ориентирование[team_id],Результаты[[#This Row],[id]],ориентирование[Сумма])","v":1.3784722222222157E-2},6,{"$f":"SUMIF(ПДД[team_id],Результаты[[#This Row],[id]],ПДД[Сумма])","v":"00:15:15"},11,{"$f":"SUMIF(Эстафета[team_id],Результаты[[#This Row],[id]],Эстафета[Сумма])","v":"00:04:55.520"},9,{"$f":"[палатка]+[стрельба-пневматика]+[стрельба-лук]+[стрельба-АК]+[сборка/разборка АК]+[полоса военная]+[полоса Штурм]+[плавание]+[подтягивание]+[ролики]+[ПДД]+[эстафета]","v":109},4]
[9,{"$f":"LOOKUP([id],Команды[id],Команды[Коротко])","v":"Курск"},{"$f":"SUMIF(палатка[team_id],[id],палатка[Сумма])","v":"00:04:15.410"},20,{"$f":"SUMIF(стрельба_пневматика[team_id],Результаты[[#This Row],[id]],стрельба_пневматика[Очки])","v":227},1,{"$f":"SUMIF(стрельба_лук[team_id],Результаты[[#This Row],[id]],стрельба_лук[результат])","v":58},5,{"$f":"SUMIF(стрельба_АК[team_id],Результаты[[#This Row],[id]],стрельба_АК[Результат])","v":31},14,{"$f":"SUMIF(сборка_разборка_АК[team_id],Результаты[[#This Row],[id]],сборка_разборка_АК[Сумма])","v":"00:04:00.040"},23,{"$f":"SUMIF(полоса_воен[team_id],[id],полоса_воен[Время])","v":"00:01:18.810"},null,13,{"$f":"SUMIF(полоса_Штурм[team_id],Результаты[[#This Row],[id]],полоса_Штурм[Время])","v":"00:01:19.550"},2,{"$f":"SUMIF(плавание[team_id],Результаты[[#This Row],[id]],плавание[Время])","v":"00:02:45.590"},4,{"$f":"SUMIF(подтягивание[team_id],Результаты[[#This Row],[id]],подтягивание[результат])","v":30},15,{"$f":"SUMIF(ролики[team_id],Результаты[[#This Row],[id]],ролики[Сумма])","v":"00:00:29.890"},3,{"$f":"SUMIF(ориентирование[team_id],Результаты[[#This Row],[id]],ориентирование[Сумма])","v":4.2037037037036984E-2},25,{"$f":"SUMIF(ПДД[team_id],Результаты[[#This Row],[id]],ПДД[Сумма])","v":"00:10:17"},4,{"$f":"SUMIF(Эстафета[team_id],Результаты[[#This Row],[id]],Эстафета[Сумма])","v":"00:04:53.010"},7,{"$f":"[палатка]+[стрельба-пневматика]+[стрельба-лук]+[стрельба-АК]+[сборка/разборка АК]+[полоса военная]+[полоса Штурм]+[плавание]+[подтягивание]+[ролики]+[ПДД]+[эстафета]","v":111},5]
[3,{"$f":"LOOKUP([id],Команды[id],Команды[Коротко])","v":"Дмитров"},{"$f":"SUMIF(палатка[team_id],[id],палатка[Сумма])","v":"00:03:37.210"},15,{"$f":"SUMIF(стрельба_пневматика[team_id],Результаты[[#This Row],[id]],стрельба_пневматика[Очки])","v":191},7,{"$f":"SUMIF(стрельба_лук[team_id],Результаты[[#This Row],[id]],стрельба_лук[результат])","v":43},10,{"$f":"SUMIF(стрельба_АК[team_id],Результаты[[#This Row],[id]],стрельба_АК[Результат])","v":68},6,{"$f":"SUMIF(сборка_разборка_АК[team_id],Результаты[[#This Row],[id]],сборка_разборка_АК[Сумма])","v":"00:01:53.910"},9,{"$f":"SUMIF(полоса_воен[team_id],[id],полоса_воен[Время])","v":"00:01:26.780"},null,19,{"$f":"SUMIF(полоса_Штурм[team_id],Результаты[[#This Row],[id]],полоса_Штурм[Время])","v":"00:01:30.550"},7,{"$f":"SUMIF(плавание[team_id],Результаты[[#This Row],[id]],плавание[Время])","v":"00:03:21.780"},13,{"$f":"SUMIF(подтягивание[team_id],Результаты[[#This Row],[id]],подтягивание[результат])","v":40},6,{"$f":"SUMIF(ролики[team_id],Результаты[[#This Row],[id]],ролики[Сумма])","v":"00:00:33.910"},7,{"$f":"SUMIF(ориентирование[team_id],Результаты[[#This Row],[id]],ориентирование[Сумма])","v":1.0157060185185187},26,{"$f":"SUMIF(ПДД[team_id],Результаты[[#This Row],[id]],ПДД[Сумма])","v":"00:22:16"},11,{"$f":"SUMIF(Эстафета[team_id],Результаты[[#This Row],[id]],Эстафета[Сумма])","v":"00:04:43.820"},3,{"$f":"[палатка]+[стрельба-пневматика]+[стрельба-лук]+[стрельба-АК]+[сборка/разборка АК]+[полоса военная]+[полоса Штурм]+[плавание]+[подтягивание]+[ролики]+[ПДД]+[эстафета]","v":113},6]
[11,{"$f":"LOOKUP([id],Команды[id],Команды[Коротко])","v":"Москва"},{"$f":"SUMIF(палатка[team_id],[id],палатка[Сумма])","v":"00:02:25.580"},2,{"$f":"SUMIF(стрельба_пневматика[team_id],Результаты[[#This Row],[id]],стрельба_пневматика[Очки])","v":150},12,{"$f":"SUMIF(стрельба_лук[team_id],Результаты[[#This Row],[id]],стрельба_лук[результат])","v":14},25,{"$f":"SUMIF(стрельба_АК[team_id],Результаты[[#This Row],[id]],стрельба_АК[Результат])","v":77},3,{"$f":"SUMIF(сборка_разборка_АК[team_id],Результаты[[#This Row],[id]],сборка_разборка_АК[Сумма])","v":"00:01:36.460"},6,{"$f":"SUMIF(полоса_воен[team_id],[id],полоса_воен[Время])","v":"00:01:11.110"},null,1,{"$f":"SUMIF(полоса_Штурм[team_id],Результаты[[#This Row],[id]],полоса_Штурм[Время])","v":"00:01:39.620"},13,{"$f":"SUMIF(плавание[team_id],Результаты[[#This Row],[id]],плавание[Время])","v":"00:02:58.310"},8,{"$f":"SUMIF(подтягивание[team_id],Результаты[[#This Row],[id]],подтягивание[результат])","v":25},20,{"$f":"SUMIF(ролики[team_id],Результаты[[#This Row],[id]],ролики[Сумма])","v":"00:00:33.960"},8,{"$f":"SUMIF(ориентирование[team_id],Результаты[[#This Row],[id]],ориентирование[Сумма])","v":1.975694444444448E-2},21,{"$f":"SUMIF(ПДД[team_id],Результаты[[#This Row],[id]],ПДД[Сумма])","v":"00:13:22"},11,{"$f":"SUMIF(Эстафета[team_id],Результаты[[#This Row],[id]],Эстафета[Сумма])","v":"00:04:46.520"},5,{"$f":"[палатка]+[стрельба-пневматика]+[стрельба-лук]+[стрельба-АК]+[сборка/разборка АК]+[полоса военная]+[полоса Штурм]+[плавание]+[подтягивание]+[ролики]+[ПДД]+[эстафета]","v":114},7]
[13,{"$f":"LOOKUP([id],Команды[id],Команды[Коротко])","v":"Владимир"},{"$f":"SUMIF(палатка[team_id],[id],палатка[Сумма])","v":"00:02:43.720"},8,{"$f":"SUMIF(стрельба_пневматика[team_id],Результаты[[#This Row],[id]],стрельба_пневматика[Очки])","v":128},18,{"$f":"SUMIF(стрельба_лук[team_id],Результаты[[#This Row],[id]],стрельба_лук[результат])","v":62},3,{"$f":"SUMIF(стрельба_АК[team_id],Результаты[[#This Row],[id]],стрельба_АК[Результат])","v":14},20,{"$f":"SUMIF(сборка_разборка_АК[team_id],Результаты[[#This Row],[id]],сборка_разборка_АК[Сумма])","v":"00:01:36.940"},7,{"$f":"SUMIF(полоса_воен[team_id],[id],полоса_воен[Время])","v":"00:01:14.700"},null,4,{"$f":"SUMIF(полоса_Штурм[team_id],Результаты[[#This Row],[id]],полоса_Штурм[Время])","v":"00:01:52.560"},18,{"$f":"SUMIF(плавание[team_id],Результаты[[#This Row],[id]],плавание[Время])","v":"00:04:38.610"},15,{"$f":"SUMIF(подтягивание[team_id],Результаты[[#This Row],[id]],подтягивание[результат])","v":40},7,{"$f":"SUMIF(ролики[team_id],Результаты[[#This Row],[id]],ролики[Сумма])","v":"00:00:38.140"},11,{"$f":"SUMIF(ориентирование[team_id],Результаты[[#This Row],[id]],ориентирование[Сумма])","v":1.8171296296296324E-2},19,{"$f":"SUMIF(ПДД[team_id],Результаты[[#This Row],[id]],ПДД[Сумма])","v":"00:16:21"},11,{"$f":"SUMIF(Эстафета[team_id],Результаты[[#This Row],[id]],Эстафета[Сумма])","v":"00:04:23.370"},1,{"$f":"[палатка]+[стрельба-пневматика]+[стрельба-лук]+[стрельба-АК]+[сборка/разборка АК]+[полоса военная]+[полоса Штурм]+[плавание]+[подтягивание]+[ролики]+[ПДД]+[эстафета]","v":123},8]
[15,{"$f":"LOOKUP([id],Команды[id],Команды[Коротко])","v":"Воронеж"},{"$f":"SUMIF(палатка[team_id],[id],палатка[Сумма])","v":"00:04:05.970"},18,{"$f":"SUMIF(стрельба_пневматика[team_id],Результаты[[#This Row],[id]],стрельба_пневматика[Очки])","v":198},6,{"$f":"SUMIF(стрельба_лук[team_id],Результаты[[#This Row],[id]],стрельба_лук[результат])","v":70},2,{"$f":"SUMIF(стрельба_АК[team_id],Результаты[[#This Row],[id]],стрельба_АК[Результат])","v":7},23,{"$f":"SUMIF(сборка_разборка_АК[team_id],Результаты[[#This Row],[id]],сборка_разборка_АК[Сумма])","v":"00:01:19.250"},2,{"$f":"SUMIF(полоса_воен[team_id],[id],полоса_воен[Время])","v":"00:01:22.990"},null,17,{"$f":"SUMIF(полоса_Штурм[team_id],Результаты[[#This Row],[id]],полоса_Штурм[Время])","v":"00:01:27.650"},6,{"$f":"SUMIF(плавание[team_id],Результаты[[#This Row],[id]],плавание[Время])","v":"00:02:56.360"},7,{"$f":"SUMIF(подтягивание[team_id],Результаты[[#This Row],[id]],подтягивание[результат])","v":26},19,{"$f":"SUMIF(ролики[team_id],Результаты[[#This Row],[id]],ролики[Сумма])","v":"00:00:38.950"},13,{"$f":"SUMIF(ориентирование[team_id],Результаты[[#This Row],[id]],ориентирование[Сумма])","v":1.8541666666666679E-2},20,{"$f":"SUMIF(ПДД[team_id],Результаты[[#This Row],[id]],ПДД[Сумма])","v":"00:06:51"},3,{"$f":"SUMIF(Эстафета[team_id],Результаты[[#This Row],[id]],Эстафета[Сумма])","v":"00:04:58.400"},10,{"$f":"[палатка]+[стрельба-пневматика]+[стрельба-лук]+[стрельба-АК]+[сборка/разборка АК]+[полоса военная]+[полоса Штурм]+[плавание]+[подтягивание]+[ролики]+[ПДД]+[эстафета]","v":126},9]
[19,{"$f":"LOOKUP([id],Команды[id],Команды[Коротко])","v":"Тамбов"},{"$f":"SUMIF(палатка[team_id],[id],палатка[Сумма])","v":"00:03:17.210"},12,{"$f":"SUMIF(стрельба_пневматика[team_id],Результаты[[#This Row],[id]],стрельба_пневматика[Очки])","v":201},5,{"$f":"SUMIF(стрельба_лук[team_id],Результаты[[#This Row],[id]],стрельба_лук[результат])","v":31},14,{"$f":"SUMIF(стрельба_АК[team_id],Результаты[[#This Row],[id]],стрельба_АК[Результат])","v":49},13,{"$f":"SUMIF(сборка_разборка_АК[team_id],Результаты[[#This Row],[id]],сборка_разборка_АК[Сумма])","v":"00:03:04.150"},19,{"$f":"SUMIF(полоса_воен[team_id],[id],полоса_воен[Время])","v":"00:01:16.830"},null,6,{"$f":"SUMIF(полоса_Штурм[team_id],Результаты[[#This Row],[id]],полоса_Штурм[Время])","v":"00:01:34.450"},9,{"$f":"SUMIF(плавание[team_id],Результаты[[#This Row],[id]],плавание[Время])","v":"00:02:48.460"},5,{"$f":"SUMIF(подтягивание[team_id],Результаты[[#This Row],[id]],подтягивание[результат])","v":47},4,{"$f":"SUMIF(ролики[team_id],Результаты[[#This Row],[id]],ролики[Сумма])","v":"00:00:52.100"},25,{"$f":"SUMIF(ориентирование[team_id],Результаты[[#This Row],[id]],ориентирование[Сумма])","v":1.194444444444448E-2},2,{"$f":"SUMIF(ПДД[team_id],Результаты[[#This Row],[id]],ПДД[Сумма])","v":"00:18:08"},11,{"$f":"SUMIF(Эстафета[team_id],Результаты[[#This Row],[id]],Эстафета[Сумма])","v":"00:05:05.340"},14,{"$f":"[палатка]+[стрельба-пневматика]+[стрельба-лук]+[стрельба-АК]+[сборка/разборка АК]+[полоса военная]+[полоса Штурм]+[плавание]+[подтягивание]+[ролики]+[ПДД]+[эстафета]","v":137},10]
[26,{"$f":"LOOKUP([id],Команды[id],Команды[Коротко])","v":"Олимп, Шатура"},{"$f":"SUMIF(палатка[team_id],[id],палатка[Сумма])","v":"00:02:26.750"},3,{"$f":"SUMIF(стрельба_пневматика[team_id],Результаты[[#This Row],[id]],стрельба_пневматика[Очки])","v":147},13,{"$f":"SUMIF(стрельба_лук[team_id],Результаты[[#This Row],[id]],стрельба_лук[результат])","v":19},23,{"$f":"SUMIF(стрельба_АК[team_id],Результаты[[#This Row],[id]],стрельба_АК[Результат])","v":64},9,{"$f":"SUMIF(сборка_разборка_АК[team_id],Результаты[[#This Row],[id]],сборка_разборка_АК[Сумма])","v":"00:02:28.720"},16,{"$f":"SUMIF(полоса_воен[team_id],[id],полоса_воен[Время])","v":"00:01:18.430"},null,11,{"$f":"SUMIF(полоса_Штурм[team_id],Результаты[[#This Row],[id]],полоса_Штурм[Время])","v":"00:01:26.330"},5,{"$f":"SUMIF(плавание[team_id],Результаты[[#This Row],[id]],плавание[Время])","v":"00:04:13.190"},14,{"$f":"SUMIF(подтягивание[team_id],Результаты[[#This Row],[id]],подтягивание[результат])","v":50},2,{"$f":"SUMIF(ролики[team_id],Результаты[[#This Row],[id]],ролики[Сумма])","v":"00:00:43.350"},20,{"$f":"SUMIF(ориентирование[team_id],Результаты[[#This Row],[id]],ориентирование[Сумма])","v":2.3344907407407411E-2},23,{"$f":"SUMIF(ПДД[team_id],Результаты[[#This Row],[id]],ПДД[Сумма])","v":"00:20:45"},11,{"$f":"SUMIF(Эстафета[team_id],Результаты[[#This Row],[id]],Эстафета[Сумма])","v":"00:05:06.070"},15,{"$f":"[палатка]+[стрельба-пневматика]+[стрельба-лук]+[стрельба-АК]+[сборка/разборка АК]+[полоса военная]+[полоса Штурм]+[плавание]+[подтягивание]+[ролики]+[ПДД]+[эстафета]","v":142},11]
[21,{"$f":"LOOKUP([id],Команды[id],Команды[Коротко])","v":"Ступино"},{"$f":"SUMIF(палатка[team_id],[id],палатка[Сумма])","v":"00:04:28.060"},21,{"$f":"SUMIF(стрельба_пневматика[team_id],Результаты[[#This Row],[id]],стрельба_пневматика[Очки])","v":208},3,{"$f":"SUMIF(стрельба_лук[team_id],Результаты[[#This Row],[id]],стрельба_лук[результат])","v":17},24,{"$f":"SUMIF(стрельба_АК[team_id],Результаты[[#This Row],[id]],стрельба_АК[Результат])","v":74},4,{"$f":"SUMIF(сборка_разборка_АК[team_id],Результаты[[#This Row],[id]],сборка_разборка_АК[Сумма])","v":"00:01:24.370"},3,{"$f":"SUMIF(полоса_воен[team_id],[id],полоса_воен[Время])","v":"00:01:21.050"},null,15,{"$f":"SUMIF(полоса_Штурм[team_id],Результаты[[#This Row],[id]],полоса_Штурм[Время])","v":"00:02:05.660"},23,{"$f":"SUMIF(плавание[team_id],Результаты[[#This Row],[id]],плавание[Время])","v":"00:02:51.750"},6,{"$f":"SUMIF(подтягивание[team_id],Результаты[[#This Row],[id]],подтягивание[результат])","v":34},11,{"$f":"SUMIF(ролики[team_id],Результаты[[#This Row],[id]],ролики[Сумма])","v":"00:00:43.860"},21,{"$f":"SUMIF(ориентирование[team_id],Результаты[[#This Row],[id]],ориентирование[Сумма])","v":1.3888888888888895E-2},7,{"$f":"SUMIF(ПДД[team_id],Результаты[[#This Row],[id]],ПДД[Сумма])","v":"00:13:28"},11,{"$f":"SUMIF(Эстафета[team_id],Результаты[[#This Row],[id]],Эстафета[Сумма])","v":"00:04:44.940"},4,{"$f":"[палатка]+[стрельба-пневматика]+[стрельба-лук]+[стрельба-АК]+[сборка/разборка АК]+[полоса военная]+[полоса Штурм]+[плавание]+[подтягивание]+[ролики]+[ПДД]+[эстафета]","v":146},12]
[8,{"$f":"LOOKUP([id],Команды[id],Команды[Коротко])","v":"Руза"},{"$f":"SUMIF(палатка[team_id],[id],палатка[Сумма])","v":"00:03:09.240"},10,{"$f":"SUMIF(стрельба_пневматика[team_id],Результаты[[#This Row],[id]],стрельба_пневматика[Очки])","v":132},16,{"$f":"SUMIF(стрельба_лук[team_id],Результаты[[#This Row],[id]],стрельба_лук[результат])","v":33},12,{"$f":"SUMIF(стрельба_АК[team_id],Результаты[[#This Row],[id]],стрельба_АК[Результат])","v":64},10,{"$f":"SUMIF(сборка_разборка_АК[team_id],Результаты[[#This Row],[id]],сборка_разборка_АК[Сумма])","v":"00:02:02.860"},11,{"$f":"SUMIF(полоса_воен[team_id],[id],полоса_воен[Время])","v":"00:01:18.530"},null,12,{"$f":"SUMIF(полоса_Штурм[team_id],Результаты[[#This Row],[id]],полоса_Штурм[Время])","v":"00:01:48.540"},17,{"$f":"SUMIF(плавание[team_id],Результаты[[#This Row],[id]],плавание[Время])","v":"00:02:30.520"},1,{"$f":"SUMIF(подтягивание[team_id],Результаты[[#This Row],[id]],подтягивание[результат])","v":29},17,{"$f":"SUMIF(ролики[team_id],Результаты[[#This Row],[id]],ролики[Сумма])","v":"00:00:38.940"},12,{"$f":"SUMIF(ориентирование[team_id],Результаты[[#This Row],[id]],ориентирование[Сумма])","v":1.7060185185185095E-2},16,{"$f":"SUMIF(ПДД[team_id],Результаты[[#This Row],[id]],ПДД[Сумма])","v":"00:10:51"},11,{"$f":"SUMIF(Эстафета[team_id],Результаты[[#This Row],[id]],Эстафета[Сумма])","v":"00:05:32.650"},19,{"$f":"[палатка]+[стрельба-пневматика]+[стрельба-лук]+[стрельба-АК]+[сборка/разборка АК]+[полоса военная]+[полоса Штурм]+[плавание]+[подтягивание]+[ролики]+[ПДД]+[эстафета]","v":148},13]
[25,{"$f":"LOOKUP([id],Команды[id],Команды[Коротко])","v":"Ярославль"},{"$f":"SUMIF(палатка[team_id],[id],палатка[Сумма])","v":"00:04:55.720"},23,{"$f":"SUMIF(стрельба_пневматика[team_id],Результаты[[#This Row],[id]],стрельба_пневматика[Очки])","v":207},4,{"$f":"SUMIF(стрельба_лук[team_id],Результаты[[#This Row],[id]],стрельба_лук[результат])","v":44},9,{"$f":"SUMIF(стрельба_АК[team_id],Результаты[[#This Row],[id]],стрельба_АК[Результат])","v":19},18,{"$f":"SUMIF(сборка_разборка_АК[team_id],Результаты[[#This Row],[id]],сборка_разборка_АК[Сумма])","v":"00:02:02.430"},10,{"$f":"SUMIF(полоса_воен[team_id],[id],полоса_воен[Время])","v":"00:01:17.980"},null,9,{"$f":"SUMIF(полоса_Штурм[team_id],Результаты[[#This Row],[id]],полоса_Штурм[Время])","v":"00:01:41.450"},14,{"$f":"SUMIF(плавание[team_id],Результаты[[#This Row],[id]],плавание[Время])","v":"00:05:02.150"},20,{"$f":"SUMIF(подтягивание[team_id],Результаты[[#This Row],[id]],подтягивание[результат])","v":35},9,{"$f":"SUMIF(ролики[team_id],Результаты[[#This Row],[id]],ролики[Сумма])","v":"00:00:43.030"},19,{"$f":"SUMIF(ориентирование[team_id],Результаты[[#This Row],[id]],ориентирование[Сумма])","v":2.0972222222222225E-2},22,{"$f":"SUMIF(ПДД[team_id],Результаты[[#This Row],[id]],ПДД[Сумма])","v":"00:10:22"},5,{"$f":"SUMIF(Эстафета[team_id],Результаты[[#This Row],[id]],Эстафета[Сумма])","v":"00:05:04.820"},13,{"$f":"[палатка]+[стрельба-пневматика]+[стрельба-лук]+[стрельба-АК]+[сборка/разборка АК]+[полоса военная]+[полоса Штурм]+[плавание]+[подтягивание]+[ролики]+[ПДД]+[эстафета]","v":153},14]
[5,{"$f":"LOOKUP([id],Команды[id],Команды[Коротко])","v":"Краснодар"},{"$f":"SUMIF(палатка[team_id],[id],палатка[Сумма])","v":"00:02:37.980"},7,{"$f":"SUMIF(стрельба_пневматика[team_id],Результаты[[#This Row],[id]],стрельба_пневматика[Очки])","v":111},24,{"$f":"SUMIF(стрельба_лук[team_id],Результаты[[#This Row],[id]],стрельба_лук[результат])","v":27},15,{"$f":"SUMIF(стрельба_АК[team_id],Результаты[[#This Row],[id]],стрельба_АК[Результат])","v":59},11,{"$f":"SUMIF(сборка_разборка_АК[team_id],Результаты[[#This Row],[id]],сборка_разборка_АК[Сумма])","v":"00:04:53.240"},25,{"$f":"SUMIF(полоса_воен[team_id],[id],полоса_воен[Время])","v":"00:01:11.370"},null,2,{"$f":"SUMIF(полоса_Штурм[team_id],Результаты[[#This Row],[id]],полоса_Штурм[Время])","v":"00:01:38.020"},12,{"$f":"SUMIF(плавание[team_id],Результаты[[#This Row],[id]],плавание[Время])","v":"00:04:45.970"},16,{"$f":"SUMIF(подтягивание[team_id],Результаты[[#This Row],[id]],подтягивание[результат])","v":39},8,{"$f":"SUMIF(ролики[team_id],Результаты[[#This Row],[id]],ролики[Сумма])","v":"00:00:36.020"},9,{"$f":"SUMIF(ориентирование[team_id],Результаты[[#This Row],[id]],ориентирование[Сумма])","v":1.2349537037037006E-2},3,{"$f":"SUMIF(ПДД[team_id],Результаты[[#This Row],[id]],ПДД[Сумма])","v":"00:13:52"},11,{"$f":"SUMIF(Эстафета[team_id],Результаты[[#This Row],[id]],Эстафета[Сумма])","v":"00:05:23.700"},18,{"$f":"[палатка]+[стрельба-пневматика]+[стрельба-лук]+[стрельба-АК]+[сборка/разборка АК]+[полоса военная]+[полоса Штурм]+[плавание]+[подтягивание]+[ролики]+[ПДД]+[эстафета]","v":158},15]
[10,{"$f":"LOOKUP([id],Команды[id],Команды[Коротко])","v":"Кашира"},{"$f":"SUMIF(палатка[team_id],[id],палатка[Сумма])","v":"00:02:32.410"},5,{"$f":"SUMIF(стрельба_пневматика[team_id],Результаты[[#This Row],[id]],стрельба_пневматика[Очки])","v":160},10,{"$f":"SUMIF(стрельба_лук[team_id],Результаты[[#This Row],[id]],стрельба_лук[результат])","v":26},17,{"$f":"SUMIF(стрельба_АК[team_id],Результаты[[#This Row],[id]],стрельба_АК[Результат])","v":0},24,{"$f":"SUMIF(сборка_разборка_АК[team_id],Результаты[[#This Row],[id]],сборка_разборка_АК[Сумма])","v":"00:02:13.900"},12,{"$f":"SUMIF(полоса_воен[team_id],[id],полоса_воен[Время])","v":"00:01:27.910"},null,20,{"$f":"SUMIF(полоса_Штурм[team_id],Результаты[[#This Row],[id]],полоса_Штурм[Время])","v":"00:02:06.210"},24,{"$f":"SUMIF(плавание[team_id],Результаты[[#This Row],[id]],плавание[Время])","v":"00:04:50.450"},17,{"$f":"SUMIF(подтягивание[team_id],Результаты[[#This Row],[id]],подтягивание[результат])","v":32},12,{"$f":"SUMIF(ролики[team_id],Результаты[[#This Row],[id]],ролики[Сумма])","v":"00:00:24.300"},1,{"$f":"SUMIF(ориентирование[team_id],Результаты[[#This Row],[id]],ориентирование[Сумма])","v":1.432870370370376E-2},10,{"$f":"SUMIF(ПДД[team_id],Результаты[[#This Row],[id]],ПДД[Сумма])","v":"00:09:28"},11,{"$f":"SUMIF(Эстафета[team_id],Результаты[[#This Row],[id]],Эстафета[Сумма])","v":"00:04:54.670"},8,{"$f":"[палатка]+[стрельба-пневматика]+[стрельба-лук]+[стрельба-АК]+[сборка/разборка АК]+[полоса военная]+[полоса Штурм]+[плавание]+[подтягивание]+[ролики]+[ПДД]+[эстафета]","v":161},16]
[12,{"$f":"LOOKUP([id],Команды[id],Команды[Коротко])","v":"Истра"},{"$f":"SUMIF(палатка[team_id],[id],палатка[Сумма])","v":"00:02:37.440"},6,{"$f":"SUMIF(стрельба_пневматика[team_id],Результаты[[#This Row],[id]],стрельба_пневматика[Очки])","v":103},25,{"$f":"SUMIF(стрельба_лук[team_id],Результаты[[#This Row],[id]],стрельба_лук[результат])","v":23},20,{"$f":"SUMIF(стрельба_АК[team_id],Результаты[[#This Row],[id]],стрельба_АК[Результат])","v":24},16,{"$f":"SUMIF(сборка_разборка_АК[team_id],Результаты[[#This Row],[id]],сборка_разборка_АК[Сумма])","v":"00:01:42.430"},8,{"$f":"SUMIF(полоса_воен[team_id],[id],полоса_воен[Время])","v":"00:01:34.510"},null,26,{"$f":"SUMIF(полоса_Штурм[team_id],Результаты[[#This Row],[id]],полоса_Штурм[Время])","v":"00:01:32.730"},8,{"$f":"SUMIF(плавание[team_id],Результаты[[#This Row],[id]],плавание[Время])","v":"00:20:57.260"},26,{"$f":"SUMIF(подтягивание[team_id],Результаты[[#This Row],[id]],подтягивание[результат])","v":30},14,{"$f":"SUMIF(ролики[team_id],Результаты[[#This Row],[id]],ролики[Сумма])","v":"00:00:30.070"},4,{"$f":"SUMIF(ориентирование[team_id],Результаты[[#This Row],[id]],ориентирование[Сумма])","v":1.3194444444444453E-2},5,{"$f":"SUMIF(ПДД[team_id],Результаты[[#This Row],[id]],ПДД[Сумма])","v":"00:17:51"},11,{"$f":"SUMIF(Эстафета[team_id],Результаты[[#This Row],[id]],Эстафета[Сумма])","v":"00:05:00.190"},11,{"$f":"[палатка]+[стрельба-пневматика]+[стрельба-лук]+[стрельба-АК]+[сборка/разборка АК]+[полоса военная]+[полоса Штурм]+[плавание]+[подтягивание]+[ролики]+[ПДД]+[эстафета]","v":175},17]
[27,{"$f":"LOOKUP([id],Команды[id],Команды[Коротко])","v":"ОМСН"},{"$f":"SUMIF(палатка[team_id],[id],палатка[Сумма])","v":"00:05:12.820"},24,{"$f":"SUMIF(стрельба_пневматика[team_id],Результаты[[#This Row],[id]],стрельба_пневматика[Очки])","v":125},20,{"$f":"SUMIF(стрельба_лук[team_id],Результаты[[#This Row],[id]],стрельба_лук[результат])","v":51},7,{"$f":"SUMIF(стрельба_АК[team_id],Результаты[[#This Row],[id]],стрельба_АК[Результат])","v":78},1,{"$f":"SUMIF(сборка_разборка_АК[team_id],Результаты[[#This Row],[id]],сборка_разборка_АК[Сумма])","v":"00:02:18.170"},13,{"$f":"SUMIF(полоса_воен[team_id],[id],полоса_воен[Время])","v":"00:01:29.460"},null,22,{"$f":"SUMIF(полоса_Штурм[team_id],Результаты[[#This Row],[id]],полоса_Штурм[Время])","v":"00:02:36.630"},26,{"$f":"SUMIF(плавание[team_id],Результаты[[#This Row],[id]],плавание[Время])","v":"00:04:55.060"},19,{"$f":"SUMIF(подтягивание[team_id],Результаты[[#This Row],[id]],подтягивание[результат])","v":29},18,{"$f":"SUMIF(ролики[team_id],Результаты[[#This Row],[id]],ролики[Сумма])","v":"00:00:31.690"},5,{"$f":"SUMIF(ориентирование[team_id],Результаты[[#This Row],[id]],ориентирование[Сумма])","v":1.5162037037037002E-2},14,{"$f":"SUMIF(ПДД[team_id],Результаты[[#This Row],[id]],ПДД[Сумма])","v":"00:09:33"},11,{"$f":"SUMIF(Эстафета[team_id],Результаты[[#This Row],[id]],Эстафета[Сумма])","v":"00:05:18.010"},17,{"$f":"[палатка]+[стрельба-пневматика]+[стрельба-лук]+[стрельба-АК]+[сборка/разборка АК]+[полоса военная]+[полоса Штурм]+[плавание]+[подтягивание]+[ролики]+[ПДД]+[эстафета]","v":183},18]
[6,{"$f":"LOOKUP([id],Команды[id],Команды[Коротко])","v":"Энергия, Шатура"},{"$f":"SUMIF(палатка[team_id],[id],палатка[Сумма])","v":"00:03:58.440"},16,{"$f":"SUMIF(стрельба_пневматика[team_id],Результаты[[#This Row],[id]],стрельба_пневматика[Очки])","v":116},22,{"$f":"SUMIF(стрельба_лук[team_id],Результаты[[#This Row],[id]],стрельба_лук[результат])","v":27},16,{"$f":"SUMIF(стрельба_АК[team_id],Результаты[[#This Row],[id]],стрельба_АК[Результат])","v":70},5,{"$f":"SUMIF(сборка_разборка_АК[team_id],Результаты[[#This Row],[id]],сборка_разборка_АК[Сумма])","v":"00:03:19.810"},20,{"$f":"SUMIF(полоса_воен[team_id],[id],полоса_воен[Время])","v":"00:01:18.390"},null,10,{"$f":"SUMIF(полоса_Штурм[team_id],Результаты[[#This Row],[id]],полоса_Штурм[Время])","v":"00:01:47.480"},16,{"$f":"SUMIF(плавание[team_id],Результаты[[#This Row],[id]],плавание[Время])","v":"00:03:03.330"},9,{"$f":"SUMIF(подтягивание[team_id],Результаты[[#This Row],[id]],подтягивание[результат])","v":31},13,{"$f":"SUMIF(ролики[team_id],Результаты[[#This Row],[id]],ролики[Сумма])","v":"00:00:46.920"},24,{"$f":"SUMIF(ориентирование[team_id],Результаты[[#This Row],[id]],ориентирование[Сумма])","v":1.5011574074074108E-2},13,{"$f":"SUMIF(ПДД[team_id],Результаты[[#This Row],[id]],ПДД[Сумма])","v":"00:19:18"},11,{"$f":"SUMIF(Эстафета[team_id],Результаты[[#This Row],[id]],Эстафета[Сумма])","v":"00:06:17.090"},23,{"$f":"[палатка]+[стрельба-пневматика]+[стрельба-лук]+[стрельба-АК]+[сборка/разборка АК]+[полоса военная]+[полоса Штурм]+[плавание]+[подтягивание]+[ролики]+[ПДД]+[эстафета]","v":185},19]
[2,{"$f":"LOOKUP([id],Команды[id],Команды[Коротко])","v":"Липецк"},{"$f":"SUMIF(палатка[team_id],[id],палатка[Сумма])","v":"00:03:13.620"},11,{"$f":"SUMIF(стрельба_пневматика[team_id],Результаты[[#This Row],[id]],стрельба_пневматика[Очки])","v":85},26,{"$f":"SUMIF(стрельба_лук[team_id],Результаты[[#This Row],[id]],стрельба_лук[результат])","v":32},13,{"$f":"SUMIF(стрельба_АК[team_id],Результаты[[#This Row],[id]],стрельба_АК[Результат])","v":0},26,{"$f":"SUMIF(сборка_разборка_АК[team_id],Результаты[[#This Row],[id]],сборка_разборка_АК[Сумма])","v":"00:02:27.140"},15,{"$f":"SUMIF(полоса_воен[team_id],[id],полоса_воен[Время])","v":"00:01:31.320"},null,24,{"$f":"SUMIF(полоса_Штурм[team_id],Результаты[[#This Row],[id]],полоса_Штурм[Время])","v":"00:01:45.220"},15,{"$f":"SUMIF(плавание[team_id],Результаты[[#This Row],[id]],плавание[Время])","v":"00:03:09.480"},10,{"$f":"SUMIF(подтягивание[team_id],Результаты[[#This Row],[id]],подтягивание[результат])","v":29},16,{"$f":"SUMIF(ролики[team_id],Результаты[[#This Row],[id]],ролики[Сумма])","v":"00:00:41.160"},17,{"$f":"SUMIF(ориентирование[team_id],Результаты[[#This Row],[id]],ориентирование[Сумма])","v":1.8090277777777775E-2},18,{"$f":"SUMIF(ПДД[team_id],Результаты[[#This Row],[id]],ПДД[Сумма])","v":"00:04:58"},1,{"$f":"SUMIF(Эстафета[team_id],Результаты[[#This Row],[id]],Эстафета[Сумма])","v":"00:05:12.590"},16,{"$f":"[палатка]+[стрельба-пневматика]+[стрельба-лук]+[стрельба-АК]+[сборка/разборка АК]+[полоса военная]+[полоса Штурм]+[плавание]+[подтягивание]+[ролики]+[ПДД]+[эстафета]","v":190},20]
[18,{"$f":"LOOKUP([id],Команды[id],Команды[Коротко])","v":"Одинцово"},{"$f":"SUMIF(палатка[team_id],[id],палатка[Сумма])","v":"00:05:14.840"},25,{"$f":"SUMIF(стрельба_пневматика[team_id],Результаты[[#This Row],[id]],стрельба_пневматика[Очки])","v":154},11,{"$f":"SUMIF(стрельба_лук[team_id],Результаты[[#This Row],[id]],стрельба_лук[результат])","v":55},6,{"$f":"SUMIF(стрельба_АК[team_id],Результаты[[#This Row],[id]],стрельба_АК[Результат])","v":66},8,{"$f":"SUMIF(сборка_разборка_АК[team_id],Результаты[[#This Row],[id]],сборка_разборка_АК[Сумма])","v":"00:04:10.940"},24,{"$f":"SUMIF(полоса_воен[team_id],[id],полоса_воен[Время])","v":"00:01:28.730"},null,21,{"$f":"SUMIF(полоса_Штурм[team_id],Результаты[[#This Row],[id]],полоса_Штурм[Время])","v":"00:02:04.340"},22,{"$f":"SUMIF(плавание[team_id],Результаты[[#This Row],[id]],плавание[Время])","v":"00:05:53.360"},25,{"$f":"SUMIF(подтягивание[team_id],Результаты[[#This Row],[id]],подтягивание[результат])","v":22},22,{"$f":"SUMIF(ролики[team_id],Результаты[[#This Row],[id]],ролики[Сумма])","v":"00:00:37.430"},10,{"$f":"SUMIF(ориентирование[team_id],Результаты[[#This Row],[id]],ориентирование[Сумма])","v":2.7824074074074057E-2},24,{"$f":"SUMIF(ПДД[team_id],Результаты[[#This Row],[id]],ПДД[Сумма])","v":"00:09:12"},11,{"$f":"SUMIF(Эстафета[team_id],Результаты[[#This Row],[id]],Эстафета[Сумма])","v":"00:06:48.440"},25,{"$f":"[палатка]+[стрельба-пневматика]+[стрельба-лук]+[стрельба-АК]+[сборка/разборка АК]+[полоса военная]+[полоса Штурм]+[плавание]+[подтягивание]+[ролики]+[ПДД]+[эстафета]","v":210},21]
[7,{"$f":"LOOKUP([id],Команды[id],Команды[Коротко])","v":"Клин"},{"$f":"SUMIF(палатка[team_id],[id],палатка[Сумма])","v":"00:02:29.110"},4,{"$f":"SUMIF(стрельба_пневматика[team_id],Результаты[[#This Row],[id]],стрельба_пневматика[Очки])","v":130},17,{"$f":"SUMIF(стрельба_лук[team_id],Результаты[[#This Row],[id]],стрельба_лук[результат])","v":26},18,{"$f":"SUMIF(стрельба_АК[team_id],Результаты[[#This Row],[id]],стрельба_АК[Результат])","v":57},12,{"$f":"SUMIF(сборка_разборка_АК[team_id],Результаты[[#This Row],[id]],сборка_разборка_АК[Сумма])","v":"00:02:43.160"},17,{"$f":"SUMIF(полоса_воен[team_id],[id],полоса_воен[Время])","v":"00:01:32.210"},null,25,{"$f":"SUMIF(полоса_Штурм[team_id],Результаты[[#This Row],[id]],полоса_Штурм[Время])","v":"00:02:18.220"},25,{"$f":"SUMIF(плавание[team_id],Результаты[[#This Row],[id]],плавание[Время])","v":"00:05:24.150"},22,{"$f":"SUMIF(подтягивание[team_id],Результаты[[#This Row],[id]],подтягивание[результат])","v":13},26,{"$f":"SUMIF(ролики[team_id],Результаты[[#This Row],[id]],ролики[Сумма])","v":"00:00:39.300"},15,{"$f":"SUMIF(ориентирование[team_id],Результаты[[#This Row],[id]],ориентирование[Сумма])","v":1.40393518518519E-2},8,{"$f":"SUMIF(ПДД[team_id],Результаты[[#This Row],[id]],ПДД[Сумма])","v":"00:20:51"},11,{"$f":"SUMIF(Эстафета[team_id],Результаты[[#This Row],[id]],Эстафета[Сумма])","v":"00:06:49.030"},26,{"$f":"[палатка]+[стрельба-пневматика]+[стрельба-лук]+[стрельба-АК]+[сборка/разборка АК]+[полоса военная]+[полоса Штурм]+[плавание]+[подтягивание]+[ролики]+[ПДД]+[эстафета]","v":218},22]
[1,{"$f":"LOOKUP([id],Команды[id],Команды[Коротко])","v":"ОМОН"},{"$f":"SUMIF(палатка[team_id],[id],палатка[Сумма])","v":"00:03:23.820"},13,{"$f":"SUMIF(стрельба_пневматика[team_id],Результаты[[#This Row],[id]],стрельба_пневматика[Очки])","v":147},14,{"$f":"SUMIF(стрельба_лук[team_id],Результаты[[#This Row],[id]],стрельба_лук[результат])","v":25},19,{"$f":"SUMIF(стрельба_АК[team_id],Результаты[[#This Row],[id]],стрельба_АК[Результат])","v":21},17,{"$f":"SUMIF(сборка_разборка_АК[team_id],Результаты[[#This Row],[id]],сборка_разборка_АК[Сумма])","v":"00:03:39.460"},22,{"$f":"SUMIF(полоса_воен[team_id],[id],полоса_воен[Время])","v":"00:01:30.150"},null,23,{"$f":"SUMIF(полоса_Штурм[team_id],Результаты[[#This Row],[id]],полоса_Штурм[Время])","v":"00:02:01.360"},20,{"$f":"SUMIF(плавание[team_id],Результаты[[#This Row],[id]],плавание[Время])","v":"00:04:54.380"},18,{"$f":"SUMIF(подтягивание[team_id],Результаты[[#This Row],[id]],подтягивание[результат])","v":19},24,{"$f":"SUMIF(ролики[team_id],Результаты[[#This Row],[id]],ролики[Сумма])","v":"00:00:43.980"},22,{"$f":"SUMIF(ориентирование[team_id],Результаты[[#This Row],[id]],ориентирование[Сумма])","v":1.4664351851851887E-2},12,{"$f":"SUMIF(ПДД[team_id],Результаты[[#This Row],[id]],ПДД[Сумма])","v":"00:23:11"},11,{"$f":"SUMIF(Эстафета[team_id],Результаты[[#This Row],[id]],Эстафета[Сумма])","v":"00:05:33.800"},21,{"$f":"[палатка]+[стрельба-пневматика]+[стрельба-лук]+[стрельба-АК]+[сборка/разборка АК]+[полоса военная]+[полоса Штурм]+[плавание]+[подтягивание]+[ролики]+[ПДД]+[эстафета]","v":224},23]
[23,{"$f":"LOOKUP([id],Команды[id],Команды[Коротко])","v":"Иваново"},{"$f":"SUMIF(палатка[team_id],[id],палатка[Сумма])","v":"00:05:55.520"},26,{"$f":"SUMIF(стрельба_пневматика[team_id],Результаты[[#This Row],[id]],стрельба_пневматика[Очки])","v":119},21,{"$f":"SUMIF(стрельба_лук[team_id],Результаты[[#This Row],[id]],стрельба_лук[результат])","v":23},21,{"$f":"SUMIF(стрельба_АК[team_id],Результаты[[#This Row],[id]],стрельба_АК[Результат])","v":8},22,{"$f":"SUMIF(сборка_разборка_АК[team_id],Результаты[[#This Row],[id]],сборка_разборка_АК[Сумма])","v":"00:01:36.170"},5,{"$f":"SUMIF(полоса_воен[team_id],[id],полоса_воен[Время])","v":"00:01:24.920"},null,18,{"$f":"SUMIF(полоса_Штурм[team_id],Результаты[[#This Row],[id]],полоса_Штурм[Время])","v":"00:01:53.750"},19,{"$f":"SUMIF(плавание[team_id],Результаты[[#This Row],[id]],плавание[Время])","v":"00:05:51.030"},24,{"$f":"SUMIF(подтягивание[team_id],Результаты[[#This Row],[id]],подтягивание[результат])","v":20},23,{"$f":"SUMIF(ролики[team_id],Результаты[[#This Row],[id]],ролики[Сумма])","v":"00:00:52.550"},26,{"$f":"SUMIF(ориентирование[team_id],Результаты[[#This Row],[id]],ориентирование[Сумма])","v":1.4340277777777743E-2},11,{"$f":"SUMIF(ПДД[team_id],Результаты[[#This Row],[id]],ПДД[Сумма])","v":"00:05:36"},2,{"$f":"SUMIF(Эстафета[team_id],Результаты[[#This Row],[id]],Эстафета[Сумма])","v":"00:05:47.220"},22,{"$f":"[палатка]+[стрельба-пневматика]+[стрельба-лук]+[стрельба-АК]+[сборка/разборка АК]+[полоса военная]+[полоса Штурм]+[плавание]+[подтягивание]+[ролики]+[ПДД]+[эстафета]","v":229},24]
[14,{"$f":"LOOKUP([id],Команды[id],Команды[Коротко])","v":"Воскресенск"},{"$f":"SUMIF(палатка[team_id],[id],палатка[Сумма])","v":"00:04:29.570"},22,{"$f":"SUMIF(стрельба_пневматика[team_id],Результаты[[#This Row],[id]],стрельба_пневматика[Очки])","v":127},19,{"$f":"SUMIF(стрельба_лук[team_id],Результаты[[#This Row],[id]],стрельба_лук[результат])","v":20},22,{"$f":"SUMIF(стрельба_АК[team_id],Результаты[[#This Row],[id]],стрельба_АК[Результат])","v":0},25,{"$f":"SUMIF(сборка_разборка_АК[team_id],Результаты[[#This Row],[id]],сборка_разборка_АК[Сумма])","v":"00:03:32.520"},21,{"$f":"SUMIF(полоса_воен[team_id],[id],полоса_воен[Время])","v":"00:01:22.890"},null,16,{"$f":"SUMIF(полоса_Штурм[team_id],Результаты[[#This Row],[id]],полоса_Штурм[Время])","v":"00:01:34.590"},10,{"$f":"SUMIF(плавание[team_id],Результаты[[#This Row],[id]],плавание[Время])","v":"00:05:06.790"},21,{"$f":"SUMIF(подтягивание[team_id],Результаты[[#This Row],[id]],подтягивание[результат])","v":24},21,{"$f":"SUMIF(ролики[team_id],Результаты[[#This Row],[id]],ролики[Сумма])","v":"00:00:44.820"},23,{"$f":"SUMIF(ориентирование[team_id],Результаты[[#This Row],[id]],ориентирование[Сумма])","v":1.5868055555555538E-2},15,{"$f":"SUMIF(ПДД[team_id],Результаты[[#This Row],[id]],ПДД[Сумма])","v":"00:13:17"},11,{"$f":"SUMIF(Эстафета[team_id],Результаты[[#This Row],[id]],Эстафета[Сумма])","v":"00:05:32.790"},20,{"$f":"[палатка]+[стрельба-пневматика]+[стрельба-лук]+[стрельба-АК]+[сборка/разборка АК]+[полоса военная]+[полоса Штурм]+[плавание]+[подтягивание]+[ролики]+[ПДД]+[эстафета]","v":231},25]
[24,{"$f":"LOOKUP([id],Команды[id],Команды[Коротко])","v":"Пушкино"},{"$f":"SUMIF(палатка[team_id],[id],палатка[Сумма])","v":"00:04:11.860"},19,{"$f":"SUMIF(стрельба_пневматика[team_id],Результаты[[#This Row],[id]],стрельба_пневматика[Очки])","v":115},23,{"$f":"SUMIF(стрельба_лук[team_id],Результаты[[#This Row],[id]],стрельба_лук[результат])","v":13},26,{"$f":"SUMIF(стрельба_АК[team_id],Результаты[[#This Row],[id]],стрельба_АК[Результат])","v":14},21,{"$f":"SUMIF(сборка_разборка_АК[team_id],Результаты[[#This Row],[id]],сборка_разборка_АК[Сумма])","v":"00:07:57.360"},26,{"$f":"SUMIF(полоса_воен[team_id],[id],полоса_воен[Время])","v":"00:01:21.030"},null,14,{"$f":"SUMIF(полоса_Штурм[team_id],Результаты[[#This Row],[id]],полоса_Штурм[Время])","v":"00:02:04.070"},21,{"$f":"SUMIF(плавание[team_id],Результаты[[#This Row],[id]],плавание[Время])","v":"00:05:45.770"},23,{"$f":"SUMIF(подтягивание[team_id],Результаты[[#This Row],[id]],подтягивание[результат])","v":18},25,{"$f":"SUMIF(ролики[team_id],Результаты[[#This Row],[id]],ролики[Сумма])","v":"00:00:39.240"},14,{"$f":"SUMIF(ориентирование[team_id],Результаты[[#This Row],[id]],ориентирование[Сумма])","v":1.7430555555555508E-2},17,{"$f":"SUMIF(ПДД[team_id],Результаты[[#This Row],[id]],ПДД[Сумма])","v":"00:12:48"},11,{"$f":"SUMIF(Эстафета[team_id],Результаты[[#This Row],[id]],Эстафета[Сумма])","v":"00:06:30.320"},24,{"$f":"[палатка]+[стрельба-пневматика]+[стрельба-лук]+[стрельба-АК]+[сборка/разборка АК]+[полоса военная]+[полоса Штурм]+[плавание]+[подтягивание]+[ролики]+[ПДД]+[эстафета]","v":247},26]
[]
[]
[null,"Председатель оргкомитета                                  /Громов А.Г./"]

{"sheet":"Команды","index":1,"n_rows":29,"n_cols":4,"rows_kept":29,"cut":false,"hidden":false,"merged":[]}
[null,"Команды"]
["id","Команда","Коротко","Комментарий"]
[1,"ОМОН ГУВД по Московской области (г. Сергиев Посад)","ОМОН","зарегистрирован"]
[2,"Липецкая область","Липецк","зарегистрирован"]
[3,"Гимназия \"Дмитров\" Московской области","Дмитров","зарегистрирован"]
[4,"Клуб \"Добрыня\" ОДОН ВВ МВД России","Добрыня","не будет"]
[5,"Краснодарский край","Краснодар","зарегистрирован"]
[6,"Клуб \"Энергия\" Шатурского района Московской области","Энергия, Шатура","зарегистрирован"]
[7,"Клинский район Московской области","Клин","зарегистрирован"]
[8,"Рузский район Московской области","Руза","зарегистрирован"]
[9,"Курская область","Курск","зарегистрирован"]
[10,"Клуб \"Патриот\" Каширского района Московской области","Кашира","зарегистрирован"]
[11,"\"Кадеты-Жуковцы\" г.Москва","Москва","зарегистрирован"]
[12,"Клуб \"Юные друзья милиции\" Истринского района Московской области","Истра","зарегистрирован"]
[13,"Владимирская область","Владимир","зарегистрирован"]
[14,"Воскресенский район Московской области","Воскресенск","зарегистрирован"]
[15,"Воронежская область","Воронеж","зарегистрирован"]
[16,"Клуб \"Сокол\" Тверской области","Тверь","зарегистрирован"]
[17,"Смоленская область","Смоленск","зарегистрирован"]
[18,"Одинцовский район Московской области","Одинцово","зарегистрирован"]
[19,"Тамбовская область","Тамбов","зарегистрирован"]
[20,"Республика Татарстан","Татарстан","зарегистрирован"]
[21,"Ступинский район Московской области","Ступино","зарегистрирован"]
[22,"Кировская область","Киров","зарегистрирован"]
[23,"Ивановская область","Иваново","зарегистрирован"]
[24,"Пушкинский район Московской области","Пушкино","зарегистрирован"]
[25,"Ярославская область","Ярославль","зарегистрирован"]
[26,"Клуб \"Олимп\" Шатурского района Московской области","Олимп, Шатура","зарегистрирован"]
[27,"Военно-спортивный клуб ОМСН ГУВД по Московской области","ОМСН","зарегистрирован"]

{"sheet":"Дети","index":2,"n_rows":523,"n_cols":20,"rows_kept":523,"cut":false,"hidden":false,"merged":[]}
["id","team_id","Команда","ФИО","пол","Дата рождения","Размер ","Рост ","      стрельба-пневматика ","      стрельба-лук ","      стрельба-АК ","      сборка/разборка АК ","      полоса военная ","      полоса Штурм ","      плавание ","      подтягивание ","      ролики ","      ориентирование ","      рисунок ","      ПДД"]
[2,1,{"$f":"LOOKUP([team_id],Команды[id],Команды[Коротко])","v":"ОМОН"},"Шеин Сергей Дмитриевич","м","2000-05-29",null,null,null,null,null,null,null,1]
[3,1,{"$f":"LOOKUP([team_id],Команды[id],Команды[Коротко])","v":"ОМОН"},"Дугин Федор Васильевич","м","1998-02-18",null,null,null,null,null,null,null,null,1]
[4,1,{"$f":"LOOKUP([team_id],Команды[id],Команды[Коротко])","v":"ОМОН"},"Юрасов Николай Сергеевич","м","2000-05-29",null,null,null,null,null,null,null,1,null,null,1]
[5,1,{"$f":"LOOKUP([team_id],Команды[id],Команды[Коротко])","v":"ОМОН"},"Заварихин Семен Александрович","м","1997-12-16",null,null,null,null,1,1,null,null,null,1,null,1]
[6,1,{"$f":"LOOKUP([team_id],Команды[id],Команды[Коротко])","v":"ОМОН"},"Платонов Александр Александрович","м","1999-01-05",null,null,1]
[7,1,{"$f":"LOOKUP([team_id],Команды[id],Команды[Коротко])","v":"ОМОН"},"Великанов Александр Сергеевич","м","1997-08-20",null,null,null,1,null,null,1]
[11,1,{"$f":"LOOKUP([team_id],Команды[id],Команды[Коротко])","v":"ОМОН"},"Архипов Сергей Алексеевич","м","1999-06-17"]
[12,1,{"$f":"LOOKUP([team_id],Команды[id],Команды[Коротко])","v":"ОМОН"},"Калашникова Анна Александровна","д","1997-06-27",42,165]
[13,1,{"$f":"LOOKUP([team_id],Команды[id],Команды[Коротко])","v":"ОМОН"},"Шаронова Катя Александровна","д","1999-05-03",40,155]
[14,1,{"$f":"LOOKUP([team_id],Команды[id],Команды[Коротко])","v":"ОМОН"},"Крашенинникова Анна Андреевна","д","1997-11-03",42,160,null,null,null,null,null,1,null,null,null,null,null,1]
[15,1,{"$f":"LOOKUP([team_id],Команды[id],Команды[Коротко])","v":"ОМОН"},"Уварова Екатерина Андреевна","д","1997-04-30",42,155,null,null,null,null,null,1,null,null,1,null,1]
[16,1,{"$f":"LOOKUP([team_id],Команды[id],Команды[Коротко])","v":"ОМОН"},"Копытова Варвара Андреевна","д","2000-08-30",null,null,1,null,null,1]
[17,1,{"$f":"LOOKUP([team_id],Команды[id],Команды[Коротко])","v":"ОМОН"},"Зарх Елизавета Дмитриевна","д","1997-11-08",42,160,null,null,null,null,null,null,1,null,null,1]
[18,1,{"$f":"LOOKUP([team_id],Команды[id],Команды[Коротко])","v":"ОМОН"},"Евтюхова Анастасия Евгеньевна","д","1998-02-26",40,155,null,1]
[19,1,{"$f":"LOOKUP([team_id],Команды[id],Команды[Коротко])","v":"ОМОН"},"Амплеев Кирилл Олегович","м","1998-06-05",null,null,null,null,null,null,1,null,null,1]
[20,1,{"$f":"LOOKUP([team_id],Команды[id],Команды[Коротко])","v":"ОМОН"},"Новикова Александра Сергеевна","д","2004-05-13",38,150]
[21,2,{"$f":"LOOKUP([team_id],Команды[id],Команды[Коротко])","v":"Липецк"},"Бибиков Вадим Викторович","м","1997-05-20",46,180,null,null,null,null,null,null,1]
[22,2,{"$f":"LOOKUP([team_id],Команды[id],Команды[Коротко])","v":"Липецк"},"Боганова Анастасия Александровна","д","1998-05-21",38,170,null,null,null,null,null,null,null,null,null,1]
[23,2,{"$f":"LOOKUP([team_id],Команды[id],Команды[Коротко])","v":"Липецк"},"Филлипова Марина Владимировна","д","1998-05-07",40,160]
[24,2,{"$f":"LOOKUP([team_id],Команды[id],Команды[Коротко])","v":"Липецк"},"Матвиенко Даниил Николаевич","м","1999-07-30",38,160,null,null,1]
[25,2,{"$f":"LOOKUP([team_id],Команды[id],Команды[Коротко])","v":"Липецк"},"Кузин Александр Владимирович","м","1998-06-21",36,145,null,null,null,null,null,1]
[26,2,{"$f":"LOOKUP([team_id],Команды[id],Команды[Коротко])","v":"Липецк"},"Бабкина Людмила Алексеевна","д","1997-10-27",42,165,null,null,null,null,null,1,1]
[27,2,{"$f":"LOOKUP([team_id],Команды[id],Команды[Коротко])","v":"Липецк"},"Филатов Павел Юрьевич","м","1998-06-21",38,150,null,null,null,1]
[28,2,{"$f":"LOOKUP([team_id],Команды[id],Команды[Коротко])","v":"Липецк"},"Шмыгалев Евгений Геннадьевич","м","1998-05-03",40,165,null,null,null,null,1,null,null,1]
[29,2,{"$f":"LOOKUP([team_id],Команды[id],Команды[Коротко])","v":"Липецк"},"Ерохина Евгения Андреевна","д","1997-01-15",42,165,null,null,null,1]
[30,2,{"$f":"LOOKUP([team_id],Команды[id],Команды[Коротко])","v":"Липецк"},"Феклин Алексей Юрьевич","м","1998-06-30",38,150,null,null,null,null,1,null,null,1]
[31,2,{"$f":"LOOKUP([team_id],Команды[id],Команды[Коротко])","v":"Липецк"},"Савин Иван Александрович","м","1997-01-11",46,165,null,null,null,null,null,null,null,null,null,null,null,1]
[32,2,{"$f":"LOOKUP([team_id],Команды[id],Команды[Коротко])","v":"Липецк"},"Алтухов Дмитрий Александрович","м","1997-04-22",38,150,1]
[33,2,{"$f":"LOOKUP([team_id],Команды[id],Команды[Коротко])","v":"Липецк"},"Исаев Максим Михайлович","м","1997-07-20",42,155,null,null,null,null,null,null,null,null,null,null,1]
[34,2,{"$f":"LOOKUP([team_id],Команды[id],Команды[Коротко])","v":"Липецк"},"Фролов Александр Евгеньевич","м","2000-06-11",null,null,null,1,null,null,null,1]
[35,2,{"$f":"LOOKUP([team_id],Команды[id],Команды[Коротко])","v":"Липецк"},"Пашенцева Екатерина Сергеевна","д","1998-01-30",38,155,null,null,null,null,null,1]
[36,2,{"$f":"LOOKUP([team_id],Команды[id],Команды[Коротко])","v":"Липецк"},"Белицкая Анастасия Николаевна","д","2000-02-20"]
[37,2,{"$f":"LOOKUP([team_id],Команды[id],Команды[Коротко])","v":"Липецк"},"Нестерова Анастасия Сергеевна","д","1997-04-17",42,160,1]
[38,2,{"$f":"LOOKUP([team_id],Команды[id],Команды[Коротко])","v":"Липецк"},"Полякова Валерия Владимировна","д","1999-07-12",38,155]
[39,2,{"$f":"LOOKUP([team_id],Команды[id],Команды[Коротко])","v":"Липецк"},"Королькова Валерия Викторовна","д","1998-05-23",46,165,null,1]
[40,2,{"$f":"LOOKUP([team_id],Команды[id],Команды[Коротко])","v":"Липецк"},"Руднева Софья Дмитриевна","д","1998-12-30",null,null,null,null,null,null,null,null,null,null,null,null,1]
[41,3,{"$f":"LOOKUP([team_id],Команды[id],Команды[Коротко])","v":"Дмитров"},"Тагасов Семен Павлович","м","1997-04-17",44,175,null,null,1,1,1]
[42,3,{"$f":"LOOKUP([team_id],Команды[id],Команды[Коротко])","v":"Дмитров"},"Севрюков Валерий Юрьевич","м","1999-09-29",null,null,null,null,null,null,null,1,null,1]
[43,3,{"$f":"LOOKUP([team_id],Команды[id],Команды[Коротко])","v":"Дмитров"},"Сарафанов Михаил Алекссевич","м","1997-11-12",42,160,null,null,null,null,null,null,null,1]
[44,3,{"$f":"LOOKUP([team_id],Команды[id],Команды[Коротко])","v":"Дмитров"},"Платонов Александр Сергеевич","м","2000-05-15",null,null,null,null,null,null,null,null,1]
[45,3,{"$f":"LOOKUP([team_id],Команды[id],Команды[Коротко])","v":"Дмитров"},"Богомолова Ольга Юрьевна","д","1998-07-06",null,null,1]
[46,3,{"$f":"LOOKUP([team_id],Команды[id],Команды[Коротко])","v":"Дмитров"},"Елисеев Евгений Вячеславович","м","1997-02-24",44,175,1]
[47,3,{"$f":"LOOKUP([team_id],Команды[id],Команды[Коротко])","v":"Дмитров"},"Цигану Денис Николаевич","м","1998-08-29",42,160]
[48,3,{"$f":"LOOKUP([team_id],Команды[id],Команды[Коротко])","v":"Дмитров"},"Исмаков Семен Сергеевич","м","1999-06-12"]
[49,3,{"$f":"LOOKUP([team_id],Команды[id],Команды[Коротко])","v":"Дмитров"},"Коновалов Александр Сергеевич","м","1998-02-25",44,165,null,null,null,null,1]
[50,3,{"$f":"LOOKUP([team_id],Команды[id],Команды[Коротко])","v":"Дмитров"},"Сехниашвили Василий Георгиевич","м","1999-09-09",null,null,null,null,null,null,1,1]
[51,3,{"$f":"LOOKUP([team_id],Команды[id],Команды[Коротко])","v":"Дмитров"},"Кулакова Милена Германовна","д","1998-10-19",44,160,null,null,null,1,null,null,null,null,1,null,null,1]
[52,3,{"$f":"LOOKUP([team_id],Команды[id],Команды[Коротко])","v":"Дмитров"},"Руженцева Дарья Дмитриевна","д","1999-01-11",42,160,null,1,null,null,null,1]
[53,3,{"$f":"LOOKUP([team_id],Команды[id],Команды[Коротко])","v":"Дмитров"},"Коровайко Марита Дмитриевна","д","1998-07-22",42,160,null,null,null,null,null,1]
[54,3,{"$f":"LOOKUP([team_id],Команды[id],Команды[Коротко])","v":"Дмитров"},"Мансурова Татьяна Романовна","д","1998-04-24",44,160,null,null,null,null,1]
[55,3,{"$f":"LOOKUP([team_id],Команды[id],Команды[Коротко])","v":"Дмитров"},"Швецова Аида Дмитриевна","д","1998-12-04",44,175,null,null,null,null,null,null,null,null,null,null,1]
[56,3,{"$f":"LOOKUP([team_id],Команды[id],Команды[Коротко])","v":"Дмитров"},"Демидова Юлия Александровна","д","1997-04-30",46,165]
[57,3,{"$f":"LOOKUP([team_id],Команды[id],Команды[Коротко])","v":"Дмитров"},"Мозалев Никита Павлович","м","1998-08-18",null,null,null,1]
[58,3,{"$f":"LOOKUP([team_id],Команды[id],Команды[Коротко])","v":"Дмитров"},"Капитонова Алена Алексеевна","д","1998-06-11",null,null,null,null,null,null,1]
[59,3,{"$f":"LOOKUP([team_id],Команды[id],Команды[Коротко])","v":"Дмитров"},"Коныжева Софья Константиновна","д","1998-01-03",42,165,null,null,null,null,1,null,1,null,null,1]
[60,3,{"$f":"LOOKUP([team_id],Команды[id],Команды[Коротко])","v":"Дмитров"},"Коныжева Дарья Константиновна","д","1998-01-03",42,165]
[61,4,{"$f":"LOOKUP([team_id],Команды[id],Команды[Коротко])","v":"Добрыня"},"Джалалов Ибрагим Эльчин оглы","м","1997-09-05",46,165,0,0,0,0,1,0,0,1,0,0,0,0]
[62,4,{"$f":"LOOKUP([team_id],Команды[id],Команды[Коротко])","v":"Добрыня"},"Курочкин Андрей Николаевич","м","1999-05-08",42,160,0,0,0,0,1,1,0,0,0,0,0,0]
[63,4,{"$f":"LOOKUP([team_id],Команды[id],Команды[Коротко])","v":"Добрыня"},"Абдулов Насриддин Хайруддинович","м","1997-10-18",46,160,0,1,0,0,1,0,0,0,0,0,0,0]
[64,4,{"$f":"LOOKUP([team_id],Команды[id],Команды[Коротко])","v":"Добрыня"},"Урюпин Платон Олегович","м","1999-04-13",46,160,0,0,0,0,1,0,0,0,0,0,0,0]
[65,4,{"$f":"LOOKUP([team_id],Команды[id],Команды[Коротко])","v":"Добрыня"},"Чернега Михаил Юрьевич","м","1997-05-16",46,165,0,0,0,0,1,0,1,0,0,0,0,0]
[66,4,{"$f":"LOOKUP([team_id],Команды[id],Команды[Коротко])","v":"Добрыня"},"Навасардян Тигран Каренович","м","1997-01-08",48,175,1,0,0,0,1,0,0,0,0,0,0,0]
[67,4,{"$f":"LOOKUP([team_id],Команды[id],Команды[Коротко])","v":"Добрыня"},"Щербаков Никита Вадимович","м","1998-08-18",42,165,0,0,0,0,1,0,0,0,0,0,0,0]
[68,4,{"$f":"LOOKUP([team_id],Команды[id],Команды[Коротко])","v":"Добрыня"},"Кайчакаев Рашид Магомедрасулович","м","1997-09-08",46,165,0,0,1,0,1,0,0,0,0,0,0,0]
[69,4,{"$f":"LOOKUP([team_id],Команды[id],Команды[Коротко])","v":"Добрыня"},"Кожухов Данил Евгеньевич","м","1997-01-10",46,175,0,0,0,0,0,1,0,0,0,1,0,0]
[70,4,{"$f":"LOOKUP([team_id],Команды[id],Команды[Коротко])","v":"Добрыня"},"Левит Егор Сергеевич","м","1997-09-17",52,180,0,0,0,1,0,0,0,0,0,0,0,0]
[71,4,{"$f":"LOOKUP([team_id],Команды[id],Команды[Коротко])","v":"Добрыня"},"Ерёменко Анастасия Андреевна","д","1997-02-06",52,165,1,0,0,0,0,0,0,0,0,0,0,0]
[72,4,{"$f":"LOOKUP([team_id],Команды[id],Команды[Коротко])","v":"Добрыня"},"Ерёменко Дарья Андреевна","д","1998-04-14",46,155,0,0,0,1,0,0,0,0,0,0,0,0]
[73,4,{"$f":"LOOKUP([team_id],Команды[id],Команды[Коротко])","v":"Добрыня"},"Селивёрстова Елизавета Евгеньевна","д","1997-06-06",40,155,0,0,0,0,0,0,0,0,0,0,1,0]
[74,4,{"$f":"LOOKUP([team_id],Команды[id],Команды[Коротко])","v":"Добрыня"},"Глушакова Анна Алексеевна","д","1997-02-12",46,165,0,0,0,0,0,0,1,0,0,0,0,0]
[75,4,{"$f":"LOOKUP([team_id],Команды[id],Команды[Коротко])","v":"Добрыня"},"Корытник Юлия Сергеевна","д","1999-01-12",38,160,0,0,0,0,1,0,0,0,0,0,0,0]
[76,4,{"$f":"LOOKUP([team_id],Команды[id],Команды[Коротко])","v":"Добрыня"},"Мишина Кристина Сергеевна","д","1997-09-28",44,160,0,0,0,0,1,0,0,0,0,0,0,0]
[77,4,{"$f":"LOOKUP([team_id],Команды[id],Команды[Коротко])","v":"Добрыня"},"Айрапетян Маргарита Арменовна","д","1997-12-18",42,155,0,0,0,0,0,0,0,0,1,0,0,0]
[78,4,{"$f":"LOOKUP([team_id],Команды[id],Команды[Коротко])","v":"Добрыня"},"Митронова Екатерина Сергеевна","д","1997-07-25",44,165,0,0,0,0,0,0,0,0,0,0,0,1]
[79,4,{"$f":"LOOKUP([team_id],Команды[id],Команды[Коротко])","v":"Добрыня"},"Автухова Кристина Сергеевна","д","1997-04-23",46,170,0,0,0,0,0,1,0,0,0,0,0,0]
[80,4,{"$f":"LOOKUP([team_id],Команды[id],Команды[Коротко])","v":"Добрыня"},"Шершнева Елена Сергеевна","д","1998-05-18",42,155,0,0,0,0,1,0,0,0,0,0,0,0]
[81,5,{"$f":"LOOKUP([team_id],Команды[id],Команды[Коротко])","v":"Краснодар"},"Ханануев Аким Дмитриевич","м","1997-06-13",44,165,null,null,null,null,1,1,null,1]
[82,5,{"$f":"LOOKUP([team_id],Команды[id],Команды[Коротко])","v":"Краснодар"},"Сметанин Алекс Эдуардович","м","1997-02-13",42,160,1,null,1,1]
[83,5,{"$f":"LOOKUP([team_id],Команды[id],Команды[Коротко])","v":"Краснодар"},"Кисляков Александр Александрович","м","1997-11-06",42,160,null,null,null,null,null,null,null,null,1]
[84,5,{"$f":"LOOKUP([team_id],Команды[id],Команды[Коротко])","v":"Краснодар"},"Галимов Юрий Андреевич","м","1997-08-20",38,155,null,null,null,null,null,null,null,null,null,1]
[85,5,{"$f":"LOOKUP([team_id],Команды[id],Команды[Коротко])","v":"Краснодар"},"Аукин Александр Владимирович","м","1997-02-12",36,150]
[86,5,{"$f":"LOOKUP([team_id],Команды[id],Команды[Коротко])","v":"Краснодар"},"Постник Александр Вячеславович","м","1999-03-23",40,155]
[87,5,{"$f":"LOOKUP([team_id],Команды[id],Команды[Коротко])","v":"Краснодар"},"Артюхова Екатерина Александровна","д","1998-12-13"]
[88,5,{"$f":"LOOKUP([team_id],Команды[id],Команды[Коротко])","v":"Краснодар"},"Черников Александр Владимирович","м","1998-03-22",38,150,null,null,null,null,null,null,null,1]
[89,5,{"$f":"LOOKUP([team_id],Команды[id],Команды[Коротко])","v":"Краснодар"},"Косенко Владимир Андреевич","м","1998-11-15",34,145,null,null,null,null,null,null,null,null,null,null,null,1]
[90,5,{"$f":"LOOKUP([team_id],Команды[id],Команды[Коротко])","v":"Краснодар"},"Андреев Евгений Валерьевич","м","1998-10-07",36,150]
[91,5,{"$f":"LOOKUP([team_id],Команды[id],Команды[Коротко])","v":"Краснодар"},"Григорьева Вероника Александровна","д","1998-04-13",42,155,1,1,null,1,null,1]
[92,5,{"$f":"LOOKUP([team_id],Команды[id],Команды[Коротко])","v":"Краснодар"},"Якименко Инна Юрьевна","д","1997-06-22",38,155]
[93,5,{"$f":"LOOKUP([team_id],Команды[id],Команды[Коротко])","v":"Краснодар"},"Попова Дарья Юрьевна","д","1997-06-25",38,155,null,null,null,null,null,1,null,null,1]
[94,5,{"$f":"LOOKUP([team_id],Команды[id],Команды[Коротко])","v":"Краснодар"},"Конева Екатерина Сергеевна","д","1998-12-28",36,145]
[95,5,{"$f":"LOOKUP([team_id],Команды[id],Команды[Коротко])","v":"Краснодар"},"Мельникова Екатерина Викторовна","д","2001-01-30",38,150,null,null,null,null,null,null,1]
[96,5,{"$f":"LOOKUP([team_id],Команды[id],Команды[Коротко])","v":"Краснодар"},"Петухова Надежда Владимировна","д","1997-08-25",38,155]
[97,5,{"$f":"LOOKUP([team_id],Команды[id],Команды[Коротко])","v":"Краснодар"},"Адлер Александр Владимирович","м","1997-04-04",null,null,null,1,null,null,1,1]
[98,5,{"$f":"LOOKUP([team_id],Команды[id],Команды[Коротко])","v":"Краснодар"},"Рязанцева Елена Сергеевна","д","1997-06-16",null,null,null,null,null,null,null,null,null,null,null,null,1]
[99,5,{"$f":"LOOKUP([team_id],Команды[id],Команды[Коротко])","v":"Краснодар"},"Чернышева Алена Анатольевна","д","1997-07-15",38,155]
[100,5,{"$f":"LOOKUP([team_id],Команды[id],Команды[Коротко])","v":"Краснодар"},"Коноваленко Софья Дмитриевна","д","1997-11-14",38,155]
[101,6,{"$f":"LOOKUP([team_id],Команды[id],Команды[Коротко])","v":"Энергия, Шатура"}]
[102,6,{"$f":"LOOKUP([team_id],Команды[id],Команды[Коротко])","v":"Энергия, Шатура"}]
[103,6,{"$f":"LOOKUP([team_id],Команды[id],Команды[Коротко])","v":"Энергия, Шатура"},"Забабуркин Константин Юрьевич","м","1997-09-28",44,165,null,null,null,null,1,null,null,1]
[104,6,{"$f":"LOOKUP([team_id],Команды[id],Команды[Коротко])","v":"Энергия, Шатура"},"Аристархов Георгий Алексеевич","м","1997-04-14",42,155,null,null,null,1,null,null,1,null,1]
[105,6,{"$f":"LOOKUP([team_id],Команды[id],Команды[Коротко])","v":"Энергия, Шатура"},"Щепкин Валерий Витальевич","м","1997-04-18",46,175,null,null,null,null,1,1,null,1]
[106,6,{"$f":"LOOKUP([team_id],Команды[id],Команды[Коротко])","v":"Энергия, Шатура"},"Давыдов Георгий Витальевич","м","1997-10-12",48,175,null,1,null,null,null,null,null,null,null,1,null,1]
[107,6,{"$f":"LOOKUP([team_id],Команды[id],Команды[Коротко])","v":"Энергия, Шатура"},"Чадаев Дмитрий Вадимович","м","1997-08-21",46,170,null,null,null,null,null,1]
[108,6,{"$f":"LOOKUP([team_id],Команды[id],Команды[Коротко])","v":"Энергия, Шатура"},"Тремаскин Никита Александрович","м","1999-07-15",38,150]
[109,6,{"$f":"LOOKUP([team_id],Команды[id],Команды[Коротко])","v":"Энергия, Шатура"}]
[110,6,{"$f":"LOOKUP([team_id],Команды[id],Команды[Коротко])","v":"Энергия, Шатура"},"Лапшин Андрей Евгеньевич","м","2000-12-22",36,140]
[111,6,{"$f":"LOOKUP([team_id],Команды[id],Команды[Коротко])","v":"Энергия, Шатура"},"Нестерова Валерия Евгеньевна","д","1997-07-11",42,155,null,null,null,null,null,1,null,null,null,null,1]
[112,6,{"$f":"LOOKUP([team_id],Команды[id],Команды[Коротко])","v":"Энергия, Шатура"},"Баранова Юлия Игоревна","д","1997-04-25",46,160]
[113,6,{"$f":"LOOKUP([team_id],Команды[id],Команды[Коротко])","v":"Энергия, Шатура"},"Мысина Дарья Сергеевна","д","1997-05-17",44,160]
[114,6,{"$f":"LOOKUP([team_id],Команды[id],Команды[Коротко])","v":"Энергия, Шатура"},"Бурканова Юлия Владимировна","д","1997-03-21",46,160,1,1,1,null,null,null,1]
[115,6,{"$f":"LOOKUP([team_id],Команды[id],Команды[Коротко])","v":"Энергия, Шатура"},"Горячева Виктория Евгеньевна","д","1997-08-25",40,155]
[116,6,{"$f":"LOOKUP([team_id],Команды[id],Команды[Коротко])","v":"Энергия, Шатура"},"Ионова Светлана Олеговна","д","1997-09-23",38,155,null,null,null,1,null,1]
[117,6,{"$f":"LOOKUP([team_id],Команды[id],Команды[Коротко])","v":"Энергия, Шатура"},"Нечаева Оксана Дмитриевна","д","1997-08-13",40,155]
[118,6,{"$f":"LOOKUP([team_id],Команды[id],Команды[Коротко])","v":"Энергия, Шатура"},"Лосев Дмитрий Александрович","м","1997-12-29"]
[119,6,{"$f":"LOOKUP([team_id],Команды[id],Команды[Коротко])","v":"Энергия, Шатура"},"Морозова Вероника Павловна","д","1997-10-16",40,165]
[120,6,{"$f":"LOOKUP([team_id],Команды[id],Команды[Коротко])","v":"Энергия, Шатура"},"Иванова Кристина Евгеньена","д","1997-08-06",44,165]
[121,7,{"$f":"LOOKUP([team_id],Команды[id],Команды[Коротко])","v":"Клин"},"Сергеев Павел Вячеславович","м","1998-01-17",46,160,null,null,null,null,1,null,1,1]
[122,7,{"$f":"LOOKUP([team_id],Команды[id],Команды[Коротко])","v":"Клин"},"Кучин Артем Игоревич","м","2000-01-25"]
[123,7,{"$f":"LOOKUP([team_id],Команды[id],Команды[Коротко])","v":"Клин"},"Соколов Никита Сергеевич","м","1998-10-10",48,175,1,null,null,null,1]
[124,7,{"$f":"LOOKUP([team_id],Команды[id],Команды[Коротко])","v":"Клин"},"Елькина Марина Анатольевна","д","1998-01-08",null,null,null,null,null,null,1]
[125,7,{"$f":"LOOKUP([team_id],Команды[id],Команды[Коротко])","v":"Клин"},"Данков Алексей Сергеевич","м","1998-03-27",42,160,null,1,null,null,null,1]
[126,7,{"$f":"LOOKUP([team_id],Команды[id],Команды[Коротко])","v":"Клин"},"Леонов Антон Михайлович","м","1997-09-19",42,155]
[127,7,{"$f":"LOOKUP([team_id],Команды[id],Команды[Коротко])","v":"Клин"},"Козлов Федор Дмитриевич","м","1998-05-15",44,165,null,null,1,1,null,null,null,null,1]
[128,7,{"$f":"LOOKUP([team_id],Команды[id],Команды[Коротко])","v":"Клин"},"Долбиков Дмитрий Михайлович","м","1997-08-22",44,165,null,null,null,null,null,1]
[129,7,{"$f":"LOOKUP([team_id],Команды[id],Команды[Коротко])","v":"Клин"},"Быков Дмитрий Игорьевич","м","1997-01-26",48,160,null,null,null,null,null,null,null,1,null,1]
[130,7,{"$f":"LOOKUP([team_id],Команды[id],Команды[Коротко])","v":"Клин"},"Бахвалова Анастасия Сергеевна","д","1997-10-09"]
[131,7,{"$f":"LOOKUP([team_id],Команды[id],Команды[Коротко])","v":"Клин"},"Мешкова Виктория Алексеевна","д","1998-02-02",44,155,null,null,null,null,null,1]
[132,7,{"$f":"LOOKUP([team_id],Команды[id],Команды[Коротко])","v":"Клин"},"Волкова Анна Сергеевна","д","1997-04-21",null,null,null,null,null,1,null,null,1]
[133,7,{"$f":"LOOKUP([team_id],Команды[id],Команды[Коротко])","v":"Клин"},"Черникова Дарья Андреевна","д","1997-07-28",40,155,null,null,null,null,null,1]
[134,7,{"$f":"LOOKUP([team_id],Команды[id],Команды[Коротко])","v":"Клин"},"Апрятнина Анна Валентиновна","д","1998-08-15",46,155]
[135,7,{"$f":"LOOKUP([team_id],Команды[id],Команды[Коротко])","v":"Клин"},"Крутов Илья Владимирович","м","2003-01-03"]
[137,7,{"$f":"LOOKUP([team_id],Команды[id],Команды[Коротко])","v":"Клин"},"Кучина Елена Игоревна","д","2000-01-25"]
[138,7,{"$f":"LOOKUP([team_id],Команды[id],Команды[Коротко])","v":"Клин"},"Пугач Екатерина Андреевна","д","1997-05-12",46,160,null,null,null,null,null,null,null,null,null,null,1]
[139,7,{"$f":"LOOKUP([team_id],Команды[id],Команды[Коротко])","v":"Клин"},"Дрегалина Алина Сергеевна","д","1998-02-20",46,160,null,1,null,null,null,null,null,null,null,null,null,1]
[140,7,{"$f":"LOOKUP([team_id],Команды[id],Команды[Коротко])","v":"Клин"},"Снеткова Диана Дмитриевна","д","1998-07-25",42,160,1]
[141,8,{"$f":"LOOKUP([team_id],Команды[id],Команды[Коротко])","v":"Руза"},"Кузьмин Максим","м","1997-09-12",40,160,null,null,null,null,null,null,null,1]
[142,8,{"$f":"LOOKUP([team_id],Команды[id],Команды[Коротко])","v":"Руза"},"Губарев Андрей","м","1999-02-18"]
[143,8,{"$f":"LOOKUP([team_id],Команды[id],Команды[Коротко])","v":"Руза"},"Филимонов Александр","м","1997-08-24",38,170,null,null,null,null,null,null,null,1]
[144,8,{"$f":"LOOKUP([team_id],Команды[id],Команды[Коротко])","v":"Руза"},"Волнистов Сергей","м","1997-03-20",38,150,null,null,null,null,1]
[145,8,{"$f":"LOOKUP([team_id],Команды[id],Команды[Коротко])","v":"Руза"},"Сорокин Алексей","м","1998-01-28",38,165,1,1,null,null,null,null,null,null,null,null,null,1]
[146,8,{"$f":"LOOKUP([team_id],Команды[id],Команды[Коротко])","v":"Руза"},"Ганичев Николай","м","1997-12-19",42,155]
[147,8,{"$f":"LOOKUP([team_id],Команды[id],Команды[Коротко])","v":"Руза"},"Ченкивский Андрей","м","1997-11-06",38,155]
[148,8,{"$f":"LOOKUP([team_id],Команды[id],Команды[Коротко])","v":"Руза"},"Мирошниченко Юлия","д","1998-08-28"]
[149,8,{"$f":"LOOKUP([team_id],Команды[id],Команды[Коротко])","v":"Руза"},"Журавлев Никита","м","1997-11-10",42,160]
[150,8,{"$f":"LOOKUP([team_id],Команды[id],Команды[Коротко])","v":"Руза"},"Кузнецов Виталий","м","1998-02-05",46,165,null,null,null,null,null,null,1]
[151,8,{"$f":"LOOKUP([team_id],Команды[id],Команды[Коротко])","v":"Руза"},"Ковач Валерия","д","1998-04-05",46,165,null,null,1]
[152,8,{"$f":"LOOKUP([team_id],Команды[id],Команды[Коротко])","v":"Руза"},"Сребный Андрей","м","1998-11-27"]
[153,8,{"$f":"LOOKUP([team_id],Команды[id],Команды[Коротко])","v":"Руза"},"Шабакаева Арина","д","1997-07-05",42,165]
[154,8,{"$f":"LOOKUP([team_id],Команды[id],Команды[Коротко])","v":"Руза"},"Камышанова Юлия","д","1998-12-02",41,155]
[155,8,{"$f":"LOOKUP([team_id],Команды[id],Команды[Коротко])","v":"Руза"},"Галатова Ангелина","д","1999-07-05",36,145]
[156,8,{"$f":"LOOKUP([team_id],Команды[id],Команды[Коротко])","v":"Руза"},"Дмитроченко Светлана","д","1997-05-07",44,165,null,null,null,null,null,null,null,null,null,1]
[157,8,{"$f":"LOOKUP([team_id],Команды[id],Команды[Коротко])","v":"Руза"},"Воронка Татьяна","д","1998-12-01",48,165]
[158,8,{"$f":"LOOKUP([team_id],Команды[id],Команды[Коротко])","v":"Руза"},"Гущина Екатерина","д","1997-12-08",41,160,null,null,null,null,null,null,null,null,null,null,1]
[159,8,{"$f":"LOOKUP([team_id],Команды[id],Команды[Коротко])","v":"Руза"},"Страпко Алина","д","1998-08-30",36,165]
[160,8,{"$f":"LOOKUP([team_id],Команды[id],Команды[Коротко])","v":"Руза"},"Безбородова Дарья","д","1997-09-18",42,170,null,null,null,null,null,null,1]
[161,9,{"$f":"LOOKUP([team_id],Команды[id],Команды[Коротко])","v":"Курск"},"Власов Денис","м","1997-10-03",null,null,null,null,1]
[162,9,{"$f":"LOOKUP([team_id],Команды[id],Команды[Коротко])","v":"Курск"},"Вовченко Елена","д","1997-04-29",46,160,null,null,null,null,null,null,null,null,null,null,1]
[164,9,{"$f":"LOOKUP([team_id],Команды[id],Команды[Коротко])","v":"Курск"},"Башкатова Татьяна","д","1997-09-20",36,140,null,null,null,null,null,1]
[165,9,{"$f":"LOOKUP([team_id],Команды[id],Команды[Коротко])","v":"Курск"},"Гильмутдинова Диана","д","1998-10-11",36,140,null,null,null,null,null,1]
[166,9,{"$f":"LOOKUP([team_id],Команды[id],Команды[Коротко])","v":"Курск"},"Ефремова Анастасия","д","1997-04-01",null,null,null,null,null,null,null,null,null,null,null,null,null,1]
[167,9,{"$f":"LOOKUP([team_id],Команды[id],Команды[Коротко])","v":"Курск"},"Сташевская Татьяна","д","1997-05-06",44,160,null,null,null,1]
[168,9,{"$f":"LOOKUP([team_id],Команды[id],Команды[Коротко])","v":"Курск"},"Авдеева Анна","д","1998-06-20",null,null,null,null,null,null,null,null,null,null,null,1]
[170,9,{"$f":"LOOKUP([team_id],Команды[id],Команды[Коротко])","v":"Курск"},"Бочарова Елизавета","д","1997-06-25",null,null,1]
[171,9,{"$f":"LOOKUP([team_id],Команды[id],Команды[Коротко])","v":"Курск"},"Щербинин Денис","м","1997-03-08",46,165,null,null,null,null,1]
[172,9,{"$f":"LOOKUP([team_id],Команды[id],Команды[Коротко])","v":"Курск"},"Вертакова Анастасия","д","1997-03-28",null,null,null,null,null,null,null,null,1]
[173,9,{"$f":"LOOKUP([team_id],Команды[id],Команды[Коротко])","v":"Курск"},"Мосолов Валерий","м","1997-06-10",46,165,1]
[174,9,{"$f":"LOOKUP([team_id],Команды[id],Команды[Коротко])","v":"Курск"},"Агафонов Алексей","м","1997-08-04",null,null,null,null,null,null,null,1]
[175,9,{"$f":"LOOKUP([team_id],Команды[id],Команды[Коротко])","v":"Курск"},"Безугольников Михаил","м","1997-04-07",null,null,null,null,null,null,null,1]
[176,9,{"$f":"LOOKUP([team_id],Команды[id],Команды[Коротко])","v":"Курск"},"Старосельцев Александр","м","1997-11-03",46,170,null,null,null,null,null,null,null,null,1]
[177,9,{"$f":"LOOKUP([team_id],Команды[id],Команды[Коротко])","v":"Курск"},"Дюкарев Игорь","м","1997-06-25",null,null,null,null,null,null,null,null,null,1]
[178,9,{"$f":"LOOKUP([team_id],Команды[id],Команды[Коротко])","v":"Курск"},"Стебленко Владислав","м","1997-04-01",null,null,null,null,null,null,null,null,1]
[179,9,{"$f":"LOOKUP([team_id],Команды[id],Команды[Коротко])","v":"Курск"},"Исаев Ахмед","м","1997-01-22",null,null,null,null,null,null,null,null,null,1]
[180,9,{"$f":"LOOKUP([team_id],Команды[id],Команды[Коротко])","v":"Курск"},"Силенин Александр","м","1997-04-22",null,null,null,null,null,null,null,1]
[181,10,{"$f":"LOOKUP([team_id],Команды[id],Команды[Коротко])","v":"Кашира"},"Агранат Алёна Александровна","д","1998-06-19",44,165,1]
[182,10,{"$f":"LOOKUP([team_id],Команды[id],Команды[Коротко])","v":"Кашира"},"Белянина Виктория Игоревна","д","1998-05-26",42,160,null,1]
[183,10,{"$f":"LOOKUP([team_id],Команды[id],Команды[Коротко])","v":"Кашира"},"Зенкина Мария Сергеевна","д","1998-04-21",44,160,null,null,null,null,null,null,null,null,null,null,1]
[184,10,{"$f":"LOOKUP([team_id],Команды[id],Команды[Коротко])","v":"Кашира"},"Леонгард Анна Анатольевна","д","1998-08-13",40,150,null,null,null,null,null,1]
[185,10,{"$f":"LOOKUP([team_id],Команды[id],Команды[Коротко])","v":"Кашира"},"Кочкина Ольга Вячеславовна","д","1999-08-17",38,145,null,null,null,null,null,null,null,null,1]
[186,10,{"$f":"LOOKUP([team_id],Команды[id],Команды[Коротко])","v":"Кашира"},"Кузина Лидия Эдуардовна","д","1998-11-21",42,150,null,null,1]
[187,10,{"$f":"LOOKUP([team_id],Команды[id],Команды[Коротко])","v":"Кашира"},"Куликова Александра Сергеевна","д","1998-07-14",40,155,null,null,null,null,null,null,null,null,null,1]
[188,10,{"$f":"LOOKUP([team_id],Команды[id],Команды[Коротко])","v":"Кашира"},"Афанасьева Ольга Александровна","д","1997-02-08",46,175,null,null,null,1]
[189,10,{"$f":"LOOKUP([team_id],Команды[id],Команды[Коротко])","v":"Кашира"},"Ильина Александра Сергеевна","д","1997-07-29",44,160,null,null,null,null,null,null,1]
[190,10,{"$f":"LOOKUP([team_id],Команды[id],Команды[Коротко])","v":"Кашира"},"Сергеева Светлана Сергеевна","д","1998-02-12",42,160,null,null,null,null,null,1]
[191,10,{"$f":"LOOKUP([team_id],Команды[id],Команды[Коротко])","v":"Кашира"},"Федотов Александр Юрьевич","м","1998-06-27",44,155,1,1]
[192,10,{"$f":"LOOKUP([team_id],Команды[id],Команды[Коротко])","v":"Кашира"},"Жариков Евгений Михайлович","м","1998-01-16",42,155,null,null,null,null,null,null,null,null,null,null,null,1]
[193,10,{"$f":"LOOKUP([team_id],Команды[id],Команды[Коротко])","v":"Кашира"},"Фомичёв Виктор Андреевич","м","1997-10-11",44,160,null,null,null,1]
[194,10,{"$f":"LOOKUP([team_id],Команды[id],Команды[Коротко])","v":"Кашира"},"Толкачёв Сергей Алексеевич","м","1998-07-17",42,160,null,null,null,null,1]
[195,10,{"$f":"LOOKUP([team_id],Команды[id],Команды[Коротко])","v":"Кашира"},"Пахомов Ярослав Николаевич","м","1997-05-06",42,160,null,null,null,null,null,null,null,1]
[196,10,{"$f":"LOOKUP([team_id],Команды[id],Команды[Коротко])","v":"Кашира"},"Гусев Сергей Евгеньевич","м","1998-08-09",46,165,null,null,null,null,null,1]
[197,10,{"$f":"LOOKUP([team_id],Команды[id],Команды[Коротко])","v":"Кашира"},"Денисов Илья Игоревич","м","1998-12-03",42,155,null,null,null,null,null,1]
[198,10,{"$f":"LOOKUP([team_id],Команды[id],Команды[Коротко])","v":"Кашира"},"Белехов Виталий Дмитриевич","м","1997-09-20",46,170,null,null,null,null,null,null,1]
[199,10,{"$f":"LOOKUP([team_id],Команды[id],Команды[Коротко])","v":"Кашира"},"Комаров Дмитрий Александрович","м","1998-11-15",46,175,null,null,null,null,null,null,null,1]
[200,10,{"$f":"LOOKUP([team_id],Команды[id],Команды[Коротко])","v":"Кашира"},"Леонов Михаил Михайлович","м","1997-06-03",null,null,null,null,null,null,1]
[201,11,{"$f":"LOOKUP([team_id],Команды[id],Команды[Коротко])","v":"Москва"},"Алипова Мария","д","1997-12-21",44,160,null,1]
[202,11,{"$f":"LOOKUP([team_id],Команды[id],Команды[Коротко])","v":"Москва"},"Васюченко Екатерина","д","1997-04-16"]
[203,11,{"$f":"LOOKUP([team_id],Команды[id],Команды[Коротко])","v":"Москва"},"Васюченко Елизавета","д","1997-04-16"]
[204,11,{"$f":"LOOKUP([team_id],Команды[id],Команды[Коротко])","v":"Москва"},"Буфеев Константин","м","1998-09-03",null,null,null,null,null,null,1]
[205,11,{"$f":"LOOKUP([team_id],Команды[id],Команды[Коротко])","v":"Москва"},"Гусев Даниил","м","1998-01-08",null,null,null,null,null,null,1,null,null,1,null,1]
[206,11,{"$f":"LOOKUP([team_id],Команды[id],Команды[Коротко])","v":"Москва"},"Васильев Семен","м","1998-05-14"]
[207,11,{"$f":"LOOKUP([team_id],Команды[id],Команды[Коротко])","v":"Москва"},"Гусева Элина","д","2001-08-21"]
[208,11,{"$f":"LOOKUP([team_id],Команды[id],Команды[Коротко])","v":"Москва"},"Кизилов Алексей","м","1998-03-05",null,null,null,1]
[209,11,{"$f":"LOOKUP([team_id],Команды[id],Команды[Коротко])","v":"Москва"},"Кохраидзе Алина","д","2000-06-20",null,null,null,null,1,null,null,1]
[210,11,{"$f":"LOOKUP([team_id],Команды[id],Команды[Коротко])","v":"Москва"},"Кудряева Анна","д","1997-02-27",42,155]
[211,11,{"$f":"LOOKUP([team_id],Команды[id],Команды[Коротко])","v":"Москва"},"Кожаева Екатерина","д","1997-12-03",42,155,null,null,null,null,null,null,1,null,1]
[212,11,{"$f":"LOOKUP([team_id],Команды[id],Команды[Коротко])","v":"Москва"},"Оганисян Гайк","м","1997-10-04"]
[213,11,{"$f":"LOOKUP([team_id],Команды[id],Команды[Коротко])","v":"Москва"},"Рыжакина Павла","д","1998-11-15",null,null,null,null,null,null,null,1]
[214,11,{"$f":"LOOKUP([team_id],Команды[id],Команды[Коротко])","v":"Москва"},"Огородников Богдан","м","1997-07-12",44,170,null,null,null,null,null,null,1]
[215,11,{"$f":"LOOKUP([team_id],Команды[id],Команды[Коротко])","v":"Москва"},"Синицина Дарья","д","1997-06-14",44,160]
[216,11,{"$f":"LOOKUP([team_id],Команды[id],Команды[Коротко])","v":"Москва"},"Сысоева Александра","д","1999-03-07",40,155,1,null,null,1,null,null,null,null,null,1]
[217,11,{"$f":"LOOKUP([team_id],Команды[id],Команды[Коротко])","v":"Москва"},"Щербенко Олег","м","1998-11-11",44,170]
[218,11,{"$f":"LOOKUP([team_id],Команды[id],Команды[Коротко])","v":"Москва"},"Сыч Глеб","м","1999-09-13"]
[219,11,{"$f":"LOOKUP([team_id],Команды[id],Команды[Коротко])","v":"Москва"},"Степин Георгий","м","2000-06-15",null,null,null,null,null,1,null,null,null,null,1]
[220,11,{"$f":"LOOKUP([team_id],Команды[id],Команды[Коротко])","v":"Москва"},"Шутков Алексей","м","1998-06-16",40,150,1,null,1,null,null,null,null,1]
[221,12,{"$f":"LOOKUP([team_id],Команды[id],Команды[Коротко])","v":"Истра"},"Тельбух Степан Сергеевич","м","1996-07-15",46,175,null,null,1]
[222,12,{"$f":"LOOKUP([team_id],Команды[id],Команды[Коротко])","v":"Истра"},"Ковалева Алина Аркадьевна","д","1997-08-21"]
[223,12,{"$f":"LOOKUP([team_id],Команды[id],Команды[Коротко])","v":"Истра"},"Ануфриева Софья Владимировна","д","2000-01-10"]
[224,12,{"$f":"LOOKUP([team_id],Команды[id],Команды[Коротко])","v":"Истра"},"Кузнецова Татьяна Алексеевна","д","1997-02-16",null,null,null,1,null,null,null,null,null,null,null,null,null,1]
[225,12,{"$f":"LOOKUP([team_id],Команды[id],Команды[Коротко])","v":"Истра"},"Горичев Илья Максимович","м","2000-06-19",34,140,null,null,null,null,null,1]
[226,12,{"$f":"LOOKUP([team_id],Команды[id],Команды[Коротко])","v":"Истра"},"Емельянова Алена Михайловна","д","1998-07-15",null,null,null,null,null,1]
[227,12,{"$f":"LOOKUP([team_id],Команды[id],Команды[Коротко])","v":"Истра"},"Бунаев Александр Денисович","м","1997-09-13",null,null,1,null,null,null,1]
[228,12,{"$f":"LOOKUP([team_id],Команды[id],Команды[Коротко])","v":"Истра"},"Арчаков Николай Владимирович","м","1997-05-25",null,null,null,null,1,null,null,null,null,null,null,1]
[229,12,{"$f":"LOOKUP([team_id],Команды[id],Команды[Коротко])","v":"Истра"},"Мазов Алексей Дмитриевич","м","1997-05-30",46,170,null,null,null,null,null,null,null,null,1]
[230,12,{"$f":"LOOKUP([team_id],Команды[id],Команды[Коротко])","v":"Истра"},"Трушин Алексей Дмитриевич","м","1997-08-22",46,165,null,null,null,null,1]
[231,12,{"$f":"LOOKUP([team_id],Команды[id],Команды[Коротко])","v":"Истра"},"Абрамов Михаил Алексеевич","м","1998-06-16",46,165]
[232,12,{"$f":"LOOKUP([team_id],Команды[id],Команды[Коротко])","v":"Истра"},"Трофимов Иван Александрович","м","1998-10-15"]
[233,12,{"$f":"LOOKUP([team_id],Команды[id],Команды[Коротко])","v":"Истра"},"Трубачёва Ольга Сергеевна","д","1998-02-27",44,160]
[234,12,{"$f":"LOOKUP([team_id],Команды[id],Команды[Коротко])","v":"Истра"},"Копцева Анна Сергеевна","д","1998-07-08",40,155,null,null,null,null,null,1]
[235,12,{"$f":"LOOKUP([team_id],Команды[id],Команды[Коротко])","v":"Истра"},"Волосевич Альбина Сергеевна","д","1998-04-29",46,160]
[236,12,{"$f":"LOOKUP([team_id],Команды[id],Команды[Коротко])","v":"Истра"},"Талыбов Орхан","м","1998-03-24",null,null,null,null,null,null,null,null,1]
[237,12,{"$f":"LOOKUP([team_id],Команды[id],Команды[Коротко])","v":"Истра"},"Петровская Евгения Владимирона","д","1998-03-01",null,null,null,null,null,null,null,1]
[238,12,{"$f":"LOOKUP([team_id],Команды[id],Команды[Коротко])","v":"Истра"},"Скрицкая Алла Михайловна","д","1997-01-21",52,170]
[239,12,{"$f":"LOOKUP([team_id],Команды[id],Команды[Коротко])","v":"Истра"},"Пылаев Дмитрий Евгеньевич","м","1999-06-16",null,null,null,null,null,null,null,1,null,1]
[240,12,{"$f":"LOOKUP([team_id],Команды[id],Команды[Коротко])","v":"Истра"},"Туровская Анна Владимирона","д","1997-08-22",null,null,null,null,null,null,null,null,1]
[241,13,{"$f":"LOOKUP([team_id],Команды[id],Команды[Коротко])","v":"Владимир"},"Садаков Анатолий Сергеевич","м","1999-05-19",38,130,null,null,null,null,null,null,null,1,1]
[242,13,{"$f":"LOOKUP([team_id],Команды[id],Команды[Коротко])","v":"Владимир"},"Зачесова Алена Сергеевна","д","2003-03-01"]
[243,13,{"$f":"LOOKUP([team_id],Команды[id],Команды[Коротко])","v":"Владимир"},"Седов Владимир Алексеевич","м","1997-02-05",42,140]
[244,13,{"$f":"LOOKUP([team_id],Команды[id],Команды[Коротко])","v":"Владимир"},"Слепов Денис Игоревич","м","1997-01-31",46,170,null,1,null,null,null,null,null,null,null,null,null,1]
[245,13,{"$f":"LOOKUP([team_id],Команды[id],Команды[Коротко])","v":"Владимир"},"Петров Арслан Михайлович","м","1997-01-05",46,170,null,null,null,null,null,null,null,null,1]
[246,13,{"$f":"LOOKUP([team_id],Команды[id],Команды[Коротко])","v":"Владимир"},"Бобринев Иван Алексеевич","м","1998-01-14",null,null,null,null,null,null,null,null,null,null,null,1]
[247,13,{"$f":"LOOKUP([team_id],Команды[id],Команды[Коротко])","v":"Владимир"},"Бисерова Елизавета Ивановна","д","1997-05-24",null,null,null,null,null,1]
[248,13,{"$f":"LOOKUP([team_id],Команды[id],Команды[Коротко])","v":"Владимир"},"Желобов Иван Алексеевич","м","1998-01-03"]
[249,13,{"$f":"LOOKUP([team_id],Команды[id],Команды[Коротко])","v":"Владимир"},"Феофанов Петр Игоревич","м","1997-03-31",46,160,null,null,null,null,1,null,1]
[250,13,{"$f":"LOOKUP([team_id],Команды[id],Команды[Коротко])","v":"Владимир"},"Моисеев Артем Владимирович","м","1998-04-03",null,null,null,null,null,null,null,null,null,1]
[251,13,{"$f":"LOOKUP([team_id],Команды[id],Команды[Коротко])","v":"Владимир"},"Зарченко Анна Сергеевна","д","1997-03-07",44,160]
[252,13,{"$f":"LOOKUP([team_id],Команды[id],Команды[Коротко])","v":"Владимир"},"Мамбетова Бахте Гул Уразбаевна","д","1998-07-20",44,160]
[253,13,{"$f":"LOOKUP([team_id],Команды[id],Команды[Коротко])","v":"Владимир"},"Сухарников Александр Александрович","м","1998-01-04",null,null,null,null,null,1]
[254,13,{"$f":"LOOKUP([team_id],Команды[id],Команды[Коротко])","v":"Владимир"},"Орлова Татьяна Сергеевна","д","1997-12-09",46,160]
[255,13,{"$f":"LOOKUP([team_id],Команды[id],Команды[Коротко])","v":"Владимир"},"Яковлева Александра Александровна","д","1997-12-05",46,160]
[256,13,{"$f":"LOOKUP([team_id],Команды[id],Команды[Коротко])","v":"Владимир"},"Орлова Ирина Андреевна","д","1997-01-17",null,null,null,null,null,null,null,null,1,null,null,null,1]
[257,13,{"$f":"LOOKUP([team_id],Команды[id],Команды[Коротко])","v":"Владимир"},"Шацков Владимир Александрович","м","1997-06-16"]
[258,13,{"$f":"LOOKUP([team_id],Команды[id],Команды[Коротко])","v":"Владимир"},"Феофанова Алена Игоревна","д","1997-05-26",null,null,1]
[259,13,{"$f":"LOOKUP([team_id],Команды[id],Команды[Коротко])","v":"Владимир"},"Лунева Юлия Александровна","д","2000-09-28"]
[261,14,{"$f":"LOOKUP([team_id],Команды[id],Команды[Коротко])","v":"Воскресенск"},"Рыбакова Юлия","д","1998-09-11",null,null,1]
[263,14,{"$f":"LOOKUP([team_id],Команды[id],Команды[Коротко])","v":"Воскресенск"},"Степанов Евгений Александрович","м","1997-04-17",44,165,null,null,null,null,1,1]
[264,14,{"$f":"LOOKUP([team_id],Команды[id],Команды[Коротко])","v":"Воскресенск"},"Портная Дарья Сергеевна","д","1998-08-17",42,165,null,null,null,null,null,null,null,null,null,null,null,1]
[265,14,{"$f":"LOOKUP([team_id],Команды[id],Команды[Коротко])","v":"Воскресенск"},"Андреянченко Иван Александрович","м","1998-07-03",42,155,null,null,null,null,null,null,1,1]
[266,14,{"$f":"LOOKUP([team_id],Команды[id],Команды[Коротко])","v":"Воскресенск"},"Бондалетов Николай Алексеевич","м","1999-02-17",40,150,null,null,null,null,1]
[267,14,{"$f":"LOOKUP([team_id],Команды[id],Команды[Коротко])","v":"Воскресенск"},"Бортников Александр Олегович","м","1998-12-25",41,155,null,null,null,1,null,null,null,1]
[268,14,{"$f":"LOOKUP([team_id],Команды[id],Команды[Коротко])","v":"Воскресенск"},"Курков Антон Эдуардович","м","1998-04-17",42,160,1]
[269,14,{"$f":"LOOKUP([team_id],Команды[id],Команды[Коротко])","v":"Воскресенск"},"Мурашов Максим Александрович","м","1999-02-23",40,155]
[270,14,{"$f":"LOOKUP([team_id],Команды[id],Команды[Коротко])","v":"Воскресенск"},"Проскуряков Михаил Алексеевич","м","1998-04-24",44,165,null,1]
[271,14,{"$f":"LOOKUP([team_id],Команды[id],Команды[Коротко])","v":"Воскресенск"},"Титков Алексей Михайлович","м","1998-11-29",42,155,null,null,null,null,1]
[272,14,{"$f":"LOOKUP([team_id],Команды[id],Команды[Коротко])","v":"Воскресенск"},"Толстов Евгений Андреевич","м","1998-03-20",42,160,null,null,null,null,null,1]
[273,14,{"$f":"LOOKUP([team_id],Команды[id],Команды[Коротко])","v":"Воскресенск"},"Борисова Кристина Алексеевна","д","1998-03-18",40,155,null,null,null,null,null,null,null,null,1]
[274,14,{"$f":"LOOKUP([team_id],Команды[id],Команды[Коротко])","v":"Воскресенск"},"Волкова Мария Александровна","д","1998-08-07",40,155,null,null,null,1,null,null,null,null,null,1]
[275,14,{"$f":"LOOKUP([team_id],Команды[id],Команды[Коротко])","v":"Воскресенск"},"Зыкова Анна Петровна","д","1998-08-29",40,150]
[276,14,{"$f":"LOOKUP([team_id],Команды[id],Команды[Коротко])","v":"Воскресенск"},"Кудряшова Анна Александровна","д","1998-08-07",40,150,null,1]
[277,14,{"$f":"LOOKUP([team_id],Команды[id],Команды[Коротко])","v":"Воскресенск"},"Николаева Юлия Вячеславовна","д","1998-10-08",42,160,null,null,null,null,null,1]
[278,14,{"$f":"LOOKUP([team_id],Команды[id],Команды[Коротко])","v":"Воскресенск"},"Пищухина Маргарита Сергеевна","д","1998-09-02",39,150,null,null,null,null,null,null,1]
[279,14,{"$f":"LOOKUP([team_id],Команды[id],Команды[Коротко])","v":"Воскресенск"},"Половых Александра Николаевна","д","1997-11-22",40,155,null,null,null,null,null,null,null,null,null,null,1]
[280,14,{"$f":"LOOKUP([team_id],Команды[id],Команды[Коротко])","v":"Воскресенск"},"Прокопишина Любовь Григорьевна","д","1998-06-17",40,155,null,null,null,null,null,1]
[281,15,{"$f":"LOOKUP([team_id],Команды[id],Команды[Коротко])","v":"Воронеж"},"Авраменко Юлия Александровна","д","1997-06-18",42,155,1]
[282,15,{"$f":"LOOKUP([team_id],Команды[id],Команды[Коротко])","v":"Воронеж"},"Богданова Кристина Сергеевна","д","1997-01-16",42,165,null,null,null,null,null,1,null,null,null,null,1]
[283,15,{"$f":"LOOKUP([team_id],Команды[id],Команды[Коротко])","v":"Воронеж"},"Долгалев Владислав Сергеевич","м","1997-07-07",null,null,null,null,null,null,1,1,null,1]
[284,15,{"$f":"LOOKUP([team_id],Команды[id],Команды[Коротко])","v":"Воронеж"},"Бубликова Марина Александровна","д","1997-11-20",44,165,null,null,null,null,null,1,null,null,null,1]
[285,15,{"$f":"LOOKUP([team_id],Команды[id],Команды[Коротко])","v":"Воронеж"},"Бугаева Софья Александровна","д","2000-11-21",40,145]
[286,15,{"$f":"LOOKUP([team_id],Команды[id],Команды[Коротко])","v":"Воронеж"},"Величко Мария Александровна","д","1997-06-04",46,165,null,1,null,1]
[287,15,{"$f":"LOOKUP([team_id],Команды[id],Команды[Коротко])","v":"Воронеж"},"Зражевский Сергей Анатольевич","м","1999-04-19",null,null,null,null,null,null,1]
[288,15,{"$f":"LOOKUP([team_id],Команды[id],Команды[Коротко])","v":"Воронеж"},"Якшина Евгения Валерьевна","д","1998-07-29",null,null,null,null,null,null,null,null,1]
[289,15,{"$f":"LOOKUP([team_id],Команды[id],Команды[Коротко])","v":"Воронеж"},"Гончаров Александр Сергеевич","м","1997-12-03",42,150,null,1,null,null,null,null,null,null,null,null,null,1]
[290,15,{"$f":"LOOKUP([team_id],Команды[id],Команды[Коротко])","v":"Воронеж"},"Жукова Ксения Владимировна","д","1997-06-08",42,150]
[291,15,{"$f":"LOOKUP([team_id],Команды[id],Команды[Коротко])","v":"Воронеж"},"Самхорадзе Коба Кабаевич","м","1997-03-19",null,null,null,null,null,1]
[292,15,{"$f":"LOOKUP([team_id],Команды[id],Команды[Коротко])","v":"Воронеж"},"Кальченко Никита Сергеевич","м","1997-06-26",42,165,null,null,1]
[293,15,{"$f":"LOOKUP([team_id],Команды[id],Команды[Коротко])","v":"Воронеж"},"Лыкова Мария Алексеевна","д","1997-09-21",42,115]
[294,15,{"$f":"LOOKUP([team_id],Команды[id],Команды[Коротко])","v":"Воронеж"},"Шегунова Наталия","д","1998-05-12",null,null,null,null,null,null,null,null,null,null,1]
[295,15,{"$f":"LOOKUP([team_id],Команды[id],Команды[Коротко])","v":"Воронеж"},"Пехов Виталий Дмитриевич","м","1998-02-02",46,165,null,null,null,null,null,null,1]
[296,15,{"$f":"LOOKUP([team_id],Команды[id],Команды[Коротко])","v":"Воронеж"},"Свет Ксения Николаевна","д","1997-04-10",44,150]
[297,15,{"$f":"LOOKUP([team_id],Команды[id],Команды[Коротко])","v":"Воронеж"},"Хамидов Всеволод Александрович","м","1998-02-03",42,150,1]
[298,15,{"$f":"LOOKUP([team_id],Команды[id],Команды[Коротко])","v":"Воронеж"},"Котов Максим Анатольевич","м","2000-05-15"]
[299,15,{"$f":"LOOKUP([team_id],Команды[id],Команды[Коротко])","v":"Воронеж"},"Чумаков Евгений Андреевич","м","2000-10-10",38,150,null,null,null,null,null,null,null,1]
[300,15,{"$f":"LOOKUP([team_id],Команды[id],Команды[Коротко])","v":"Воронеж"},"Яуфман Григорий Владимирович","м","1999-07-21",40,150,null,null,null,null,null,1]
[301,16,{"$f":"LOOKUP([team_id],Команды[id],Команды[Коротко])","v":"Тверь"},"Фролова Виктория Игоревна","д","1997-01-25"]
[302,16,{"$f":"LOOKUP([team_id],Команды[id],Команды[Коротко])","v":"Тверь"},"Нестерович Станислав Константинович","м","1997-05-18",null,null,null,null,null,null,null,null,null,1]
[303,16,{"$f":"LOOKUP([team_id],Команды[id],Команды[Коротко])","v":"Тверь"},"Телешев Алексей Игоревич","м","1999-01-13",38,150,1]
[304,16,{"$f":"LOOKUP([team_id],Команды[id],Команды[Коротко])","v":"Тверь"},"Веселова Юлия Сергеевна","д","1997-03-06"]
[305,16,{"$f":"LOOKUP([team_id],Команды[id],Команды[Коротко])","v":"Тверь"},"Лебедева Анастасия Юрьевна","д","1997-03-19",null,null,null,1]
[306,16,{"$f":"LOOKUP([team_id],Команды[id],Команды[Коротко])","v":"Тверь"},"Эхтерева Елена Константиновна","д","1997-01-05"]
[307,16,{"$f":"LOOKUP([team_id],Команды[id],Команды[Коротко])","v":"Тверь"},"Смирнов Константин Александрович","м","1997-02-17",null,null,null,null,1]
[308,16,{"$f":"LOOKUP([team_id],Команды[id],Команды[Коротко])","v":"Тверь"},"Золотова Вера Васильевна","д","1997-06-15"]
[309,16,{"$f":"LOOKUP([team_id],Команды[id],Команды[Коротко])","v":"Тверь"},"Прусова Анастасия Андреевна","д","1997-12-19",null,null,1,null,null,null,null,1]
[310,16,{"$f":"LOOKUP([team_id],Команды[id],Команды[Коротко])","v":"Тверь"},"Александров Григорий Александрович","м","2001-04-25",32,120]
[311,16,{"$f":"LOOKUP([team_id],Команды[id],Команды[Коротко])","v":"Тверь"},"Сергеева Анастасия Андреевна","д","2001-04-08",34,140,null,null,null,null,null,null,null,null,null,null,1]
[312,16,{"$f":"LOOKUP([team_id],Команды[id],Команды[Коротко])","v":"Тверь"},"Ли Оливия","д","1998-09-10",null,null,null,null,null,null,null,1,1,null,1]
[313,16,{"$f":"LOOKUP([team_id],Команды[id],Команды[Коротко])","v":"Тверь"},"Лаврентьев Олег Вадимович","м","1997-09-17",null,null,null,null,null,null,null,null,1,null,null,null,null,1]
[314,16,{"$f":"LOOKUP([team_id],Команды[id],Команды[Коротко])","v":"Тверь"},"Помозов Алексей Александрович","м","1999-12-30",null,null,null,1,null,1]
[315,16,{"$f":"LOOKUP([team_id],Команды[id],Команды[Коротко])","v":"Тверь"},"Кулаченко Ярослав Евгеньевич","м","1997-04-06",null,null,null,null,null,null,null,null,null,null,null,1]
[316,16,{"$f":"LOOKUP([team_id],Команды[id],Команды[Коротко])","v":"Тверь"},"Пустынникова Ирина Евгеньевна","д","1997-05-27",null,null,null,null,null,1]
[317,16,{"$f":"LOOKUP([team_id],Команды[id],Команды[Коротко])","v":"Тверь"},"Иванов Максим Сергеевич","м","1997-08-14",null,null,null,null,null,null,null,1,null,1]
[318,16,{"$f":"LOOKUP([team_id],Команды[id],Команды[Коротко])","v":"Тверь"},"Владимиров Дмитрий Сергеевич","м","1997-05-09",null,null,null,null,null,null,1,1]
[319,16,{"$f":"LOOKUP([team_id],Команды[id],Команды[Коротко])","v":"Тверь"},"Ханина Валерия Дмитриевна","д","1998-03-26",42,170]
[320,16,{"$f":"LOOKUP([team_id],Команды[id],Команды[Коротко])","v":"Тверь"},"Гамоюн Даниил Сергеевич","м","1999-02-09",null,null,null,null,null,null,1]
[321,17,{"$f":"LOOKUP([team_id],Команды[id],Команды[Коротко])","v":"Смоленск"},"Гультяев Илья Алексеевич","м","1997-10-29",46,170,null,1,null,null,1]
[322,17,{"$f":"LOOKUP([team_id],Команды[id],Команды[Коротко])","v":"Смоленск"},"Путилин Захар Алексеевич","м","1997-04-02",46,170,null,null,1,null,1]
[323,17,{"$f":"LOOKUP([team_id],Команды[id],Команды[Коротко])","v":"Смоленск"},"Останков Артем Александрович","м","1997-11-27",44,160,null,null,null,null,null,null,null,1]
[324,17,{"$f":"LOOKUP([team_id],Команды[id],Команды[Коротко])","v":"Смоленск"},"Дедова Дарья Юрьевна","д","1997-06-08",null,null,null,null,null,null,null,1,null,null,1]
[325,17,{"$f":"LOOKUP([team_id],Команды[id],Команды[Коротко])","v":"Смоленск"},"Сухинин Артур Алексеевич","м","1997-04-28",44,160,null,null,null,null,null,1]
[326,17,{"$f":"LOOKUP([team_id],Команды[id],Команды[Коротко])","v":"Смоленск"},"Белов Алексей Александрович","м","1998-12-27",null,null,null,null,null,null,null,null,null,null,null,1]
[327,17,{"$f":"LOOKUP([team_id],Команды[id],Команды[Коротко])","v":"Смоленск"},"Мозальков Олег Михайлович","м","1998-12-28",46,165,null,null,null,null,null,null,1]
[328,17,{"$f":"LOOKUP([team_id],Команды[id],Команды[Коротко])","v":"Смоленск"},"Молокоедов Дмитрий Владимирович","м","1998-07-11",44,155,1,null,null,null,null,null,null,1]
[329,17,{"$f":"LOOKUP([team_id],Команды[id],Команды[Коротко])","v":"Смоленск"},"Васильев Виталий Сергеевич","м","1998-03-10",44,160,null,null,null,null,null,null,null,null,null,null,null,1]
[330,17,{"$f":"LOOKUP([team_id],Команды[id],Команды[Коротко])","v":"Смоленск"},"Колесник Николай Александрович","м","1998-04-08",null,null,null,null,null,null,null,1]
[331,17,{"$f":"LOOKUP([team_id],Команды[id],Команды[Коротко])","v":"Смоленск"},"Трущенков Кирилл Геннадьевич","м","1997-01-31",null,null,null,null,null,1]
[332,17,{"$f":"LOOKUP([team_id],Команды[id],Команды[Коротко])","v":"Смоленск"},"Горбунова Анастасия Николаевна","д","2000-04-08",null,null,null,null,null,null,null,null,1]
[333,17,{"$f":"LOOKUP([team_id],Команды[id],Команды[Коротко])","v":"Смоленск"},"Филиппова Дарья Сергеевна","д","1998-01-28",44,155,null,null,null,null,null,null,null,null,null,null,1]
[334,17,{"$f":"LOOKUP([team_id],Команды[id],Команды[Коротко])","v":"Смоленск"},"Шикина Глория Владимировна","д","1998-05-13",44,155]
[335,17,{"$f":"LOOKUP([team_id],Команды[id],Команды[Коротко])","v":"Смоленск"},"Боданогова Ирина Анастасовна","д","1998-07-25",44,160,null,1]
[336,17,{"$f":"LOOKUP([team_id],Команды[id],Команды[Коротко])","v":"Смоленск"},"Петроченкова Марина Евгеньевна","д","1997-05-08",null,null,null,null,null,1]
[337,17,{"$f":"LOOKUP([team_id],Команды[id],Команды[Коротко])","v":"Смоленск"},"Малахова Яна Александровна","д","1998-07-28",42,150]
[338,17,{"$f":"LOOKUP([team_id],Команды[id],Команды[Коротко])","v":"Смоленск"},"Филиппенкова Мария Владимировна","д","1998-04-09",44,155,null,null,1]
[339,17,{"$f":"LOOKUP([team_id],Команды[id],Команды[Коротко])","v":"Смоленск"},"Шалабодина Ангелина Константиновна","д","1999-06-15",44,160,1]
[340,17,{"$f":"LOOKUP([team_id],Команды[id],Команды[Коротко])","v":"Смоленск"},"Курсакова Дарья Сергеевна","д","1999-04-01",42,155,null,null,null,null,null,1]
[341,18,{"$f":"LOOKUP([team_id],Команды[id],Команды[Коротко])","v":"Одинцово"},"Акимов Олег Денисович","м","1999-07-21",null,null,null,null,null,1]
[342,18,{"$f":"LOOKUP([team_id],Команды[id],Команды[Коротко])","v":"Одинцово"},"Граб Федор Васильевич","м","1997-03-04",null,null,null,null,null,null,null,null,1,1]
[343,18,{"$f":"LOOKUP([team_id],Команды[id],Команды[Коротко])","v":"Одинцово"},"Любинецкая Виктория Сергеевна","д","1999-02-17",null,null,null,null,null,null,null,null,null,null,1]
[344,18,{"$f":"LOOKUP([team_id],Команды[id],Команды[Коротко])","v":"Одинцово"},"Гынилов Базыр Баирович","м","1998-02-07",null,null,null,1]
[345,18,{"$f":"LOOKUP([team_id],Команды[id],Команды[Коротко])","v":"Одинцово"},"Шабалин Артем Филиппович","м","1997-08-04"]
[346,18,{"$f":"LOOKUP([team_id],Команды[id],Команды[Коротко])","v":"Одинцово"},"Жильцова Виктория Константиновна","д","1999-07-06",null,null,null,1]
[347,18,{"$f":"LOOKUP([team_id],Команды[id],Команды[Коротко])","v":"Одинцово"},"Тюряков Андрей Александрович","м","1997-12-05",null,null,1]
[348,18,{"$f":"LOOKUP([team_id],Команды[id],Команды[Коротко])","v":"Одинцово"},"Еремичева Мирия Руслановна","д","1998-08-10",null,null,null,null,null,null,null,null,null,null,null,1]
[349,18,{"$f":"LOOKUP([team_id],Команды[id],Команды[Коротко])","v":"Одинцово"},"Савчина Карина Васильевна","д","1999-02-15"]
[350,18,{"$f":"LOOKUP([team_id],Команды[id],Команды[Коротко])","v":"Одинцово"},"Федотова Татьяна Владимировна","д","1997-06-12",null,null,null,null,null,null,null,null,null,null,null,null,1]
[351,18,{"$f":"LOOKUP([team_id],Команды[id],Команды[Коротко])","v":"Одинцово"},"Грек София Павловна","д","1998-10-05",null,null,null,null,null,null,null,null,1]
[352,18,{"$f":"LOOKUP([team_id],Команды[id],Команды[Коротко])","v":"Одинцово"},"Алексеенко Андрей Юрьевич","м","1998-06-23",null,null,null,null,null,null,1]
[353,18,{"$f":"LOOKUP([team_id],Команды[id],Команды[Коротко])","v":"Одинцово"},"Горьков Егор Сергеевич","м","1999-10-06",null,null,null,null,null,null,null,null,null,null,null,null,null,1]
[354,18,{"$f":"LOOKUP([team_id],Команды[id],Команды[Коротко])","v":"Одинцово"},"Игнатов Никита Владиславович","м","1997-04-17",null,null,null,null,null,null,null,null,null,null,1]
[355,18,{"$f":"LOOKUP([team_id],Команды[id],Команды[Коротко])","v":"Одинцово"},"Зыкова Мария Антоновна","д","1998-04-21",null,null,1]
[356,18,{"$f":"LOOKUP([team_id],Команды[id],Команды[Коротко])","v":"Одинцово"},"Вейница Дарья Дмитриевна","д","1998-07-25"]
[357,18,{"$f":"LOOKUP([team_id],Команды[id],Команды[Коротко])","v":"Одинцово"},"Суворкин Илья Константинович","м","1997-06-07",null,null,null,null,null,null,null,null,null,1]
[358,18,{"$f":"LOOKUP([team_id],Команды[id],Команды[Коротко])","v":"Одинцово"},"Гутынина Надежда Сергеевна","д","1999-10-06"]
[359,18,{"$f":"LOOKUP([team_id],Команды[id],Команды[Коротко])","v":"Одинцово"},"Фетисова Дарья Андреевна","д","1998-10-18",null,null,null,null,null,1]
[360,18,{"$f":"LOOKUP([team_id],Команды[id],Команды[Коротко])","v":"Одинцово"},"Ника Тудор Илие","м","1999-02-27"]
[361,19,{"$f":"LOOKUP([team_id],Команды[id],Команды[Коротко])","v":"Тамбов"},"Михалев Константин","м","1997-10-29",null,null,null,null,null,null,null,null,null,1]
[362,19,{"$f":"LOOKUP([team_id],Команды[id],Команды[Коротко])","v":"Тамбов"},"Шишкина Дарья","д","1997-11-11",44,165,null,null,null,null,null,1]
[363,19,{"$f":"LOOKUP([team_id],Команды[id],Команды[Коротко])","v":"Тамбов"},"Винник Павел","м","1997-07-28",null,null,null,null,null,null,null,1]
[364,19,{"$f":"LOOKUP([team_id],Команды[id],Команды[Коротко])","v":"Тамбов"},"Чербаев Денис","м","1997-05-22",null,null,null,null,null,null,1]
[365,19,{"$f":"LOOKUP([team_id],Команды[id],Команды[Коротко])","v":"Тамбов"},"Рюмин Илья","м","1997-07-25",null,null,null,null,null,null,null,null,null,null,null,1]
[366,19,{"$f":"LOOKUP([team_id],Команды[id],Команды[Коротко])","v":"Тамбов"},"Самородов Владислав","м","1997-01-05",null,null,null,null,null,null,null,null,1]
[367,19,{"$f":"LOOKUP([team_id],Команды[id],Команды[Коротко])","v":"Тамбов"},"Трушкина Наталия","д","1998-01-10",44,170,null,1]
[368,19,{"$f":"LOOKUP([team_id],Команды[id],Команды[Коротко])","v":"Тамбов"},"Сафронова Дарья","д","1997-11-27",null,null,1,null,null,null,null,1,null,null,1]
[369,19,{"$f":"LOOKUP([team_id],Команды[id],Команды[Коротко])","v":"Тамбов"},"Кобрин Александр","м","1997-05-28",null,null,null,null,null,null,null,1]
[370,19,{"$f":"LOOKUP([team_id],Команды[id],Команды[Коротко])","v":"Тамбов"},"Захарова Наталия","д","1998-05-19",44,165,null,null,null,null,null,null,1]
[371,19,{"$f":"LOOKUP([team_id],Команды[id],Команды[Коротко])","v":"Тамбов"},"Куров Алексей","м","1997-05-12",46,160,1]
[372,19,{"$f":"LOOKUP([team_id],Команды[id],Команды[Коротко])","v":"Тамбов"},"Щербаков Станислав","м","1997-07-11",null,null,null,1]
[373,19,{"$f":"LOOKUP([team_id],Команды[id],Команды[Коротко])","v":"Тамбов"},"Конырев Дмитрий","м","1997-01-05",null,null,null,null,null,null,1]
[374,19,{"$f":"LOOKUP([team_id],Команды[id],Команды[Коротко])","v":"Тамбов"},"Рябов Антон","м","1997-01-28",46,170,null,null,1]
[375,19,{"$f":"LOOKUP([team_id],Команды[id],Команды[Коротко])","v":"Тамбов"},"Пустограев Григорий","м","1997-10-21",null,null,null,null,null,null,null,null,null,1]
[376,19,{"$f":"LOOKUP([team_id],Команды[id],Команды[Коротко])","v":"Тамбов"},"Крюченков Никита","м","1997-09-29",null,null,null,null,null,1]
[377,19,{"$f":"LOOKUP([team_id],Команды[id],Команды[Коротко])","v":"Тамбов"},"Черемисина Ксения","д","1997-09-29",null,null,null,null,null,1]
[378,19,{"$f":"LOOKUP([team_id],Команды[id],Команды[Коротко])","v":"Тамбов"},"Шарапов Станислав","м","1999-03-14",null,null,null,null,null,null,null,null,null,null,null,null,null,1]
[379,19,{"$f":"LOOKUP([team_id],Команды[id],Команды[Коротко])","v":"Тамбов"},"Мащенко Дарья","д","1997-04-12",null,null,null,null,null,null,null,null,null,null,null,null,1]
[380,19,{"$f":"LOOKUP([team_id],Команды[id],Команды[Коротко])","v":"Тамбов"},"Буданцев Артем","м","1997-03-03"]
[381,20,{"$f":"LOOKUP([team_id],Команды[id],Команды[Коротко])","v":"Татарстан"},"Петров Евгений Александрович","м","1997-02-14",44,170,null,null,null,null,1,1]
[382,20,{"$f":"LOOKUP([team_id],Команды[id],Команды[Коротко])","v":"Татарстан"},"Маников Карим Искандерович","м","1997-02-26",44,165,null,null,null,1,1]
[383,20,{"$f":"LOOKUP([team_id],Команды[id],Команды[Коротко])","v":"Татарстан"},"Хасанов Руслан Рамилевич","м","1997-02-23",44,170,null,null,null,null,1,1]
[384,20,{"$f":"LOOKUP([team_id],Команды[id],Команды[Коротко])","v":"Татарстан"},"Кварталов Евгений Евгеньевич","м","1997-08-30",42,160,null,null,null,null,null,null,null,null,1]
[385,20,{"$f":"LOOKUP([team_id],Команды[id],Команды[Коротко])","v":"Татарстан"},"Хамидуллин Тимур Маратович","м","1997-12-11",46,160,1,1,1]
[386,20,{"$f":"LOOKUP([team_id],Команды[id],Команды[Коротко])","v":"Татарстан"},"Волков Данил Дмитриевич","м","1997-04-28",46,175,null,null,null,null,1,1,1]
[387,20,{"$f":"LOOKUP([team_id],Команды[id],Команды[Коротко])","v":"Татарстан"},"Колмогорцев Максим Юрьевич","м","1997-05-25",46,170,null,null,null,null,1,1]
[388,20,{"$f":"LOOKUP([team_id],Команды[id],Команды[Коротко])","v":"Татарстан"},"Паранин Николай Александрович","м","2000-11-18",null,null,null,null,null,null,1,1,null,1]
[389,20,{"$f":"LOOKUP([team_id],Команды[id],Команды[Коротко])","v":"Татарстан"},"Шакиров Наиль Алмазович","м","1997-07-30",null,null,1,null,1,1,1,1]
[390,20,{"$f":"LOOKUP([team_id],Команды[id],Команды[Коротко])","v":"Татарстан"},"Мищенко Елизавета Владимировна","д","1997-01-21",null,null,null,null,null,null,1,1,null,null,null,1]
[391,20,{"$f":"LOOKUP([team_id],Команды[id],Команды[Коротко])","v":"Татарстан"},"Степанова Светлана Викторовна","д","1997-06-04",42,160,null,null,null,null,null,1]
[392,20,{"$f":"LOOKUP([team_id],Команды[id],Команды[Коротко])","v":"Татарстан"},"Чалая Наталия Валерьевна","д","1997-06-13",44,170,1,null,1,1,null,null,null,null,null,null,1]
[393,20,{"$f":"LOOKUP([team_id],Команды[id],Команды[Коротко])","v":"Татарстан"},"Паранина Александра Владимировна","д","1997-11-02",42,160,1,null,1,1]
[394,20,{"$f":"LOOKUP([team_id],Команды[id],Команды[Коротко])","v":"Татарстан"},"Орешникова Дарья Андреевна","д","1999-07-27",38,150,1,1,1]
[395,20,{"$f":"LOOKUP([team_id],Команды[id],Команды[Коротко])","v":"Татарстан"},"Гимадеева Алина Фаридовна","д","1997-02-27",42,165,null,null,null,null,1,1,1]
[396,20,{"$f":"LOOKUP([team_id],Команды[id],Команды[Коротко])","v":"Татарстан"},"Бешенцева Анастасия Юрьевна","д","1997-02-04",null,null,null,null,null,null,1,1]
[397,20,{"$f":"LOOKUP([team_id],Команды[id],Команды[Коротко])","v":"Татарстан"},"Калашкина Анна Павловна","д","1999-10-23",38,150,null,null,null,null,1,1]
[398,20,{"$f":"LOOKUP([team_id],Команды[id],Команды[Коротко])","v":"Татарстан"},"Галиуллина Лиана Рафисовна","д","1998-07-07",42,155,null,null,null,null,1,1,null,null,null,null,null,1]
[399,20,{"$f":"LOOKUP([team_id],Команды[id],Команды[Коротко])","v":"Татарстан"},"Идрисов Амир Рустамович","м","1999-05-06",null,null,null,null,null,null,1,1,null,1]
[400,20,{"$f":"LOOKUP([team_id],Команды[id],Команды[Коротко])","v":"Татарстан"},"Паранина Анастасия Владимировна","д","1997-11-02",42,160,1,null,1,1]
[401,21,{"$f":"LOOKUP([team_id],Команды[id],Команды[Коротко])","v":"Ступино"},"Осипова Ирина Александровна","д","1997-04-08",46,170]
[402,21,{"$f":"LOOKUP([team_id],Команды[id],Команды[Коротко])","v":"Ступино"},"Сельденков Никита Алексеевич","м","1998-03-16",48,170,null,null,1]
[403,21,{"$f":"LOOKUP([team_id],Команды[id],Команды[Коротко])","v":"Ступино"},"Беляева Мария Михайловна","д","1997-02-18",46,170,null,null,null,1]
[404,21,{"$f":"LOOKUP([team_id],Команды[id],Команды[Коротко])","v":"Ступино"},"Ненашев Виктор Сергеевич","м","1997-01-06",44,170,null,null,null,null,null,1]
[405,21,{"$f":"LOOKUP([team_id],Команды[id],Команды[Коротко])","v":"Ступино"},"Карпова Дарья Алексеевна","д","1999-01-09",46,170,null,null,null,null,null,1]
[406,21,{"$f":"LOOKUP([team_id],Команды[id],Команды[Коротко])","v":"Ступино"},"Поляков Виктор Александрович","м","1997-10-24",46,170,null,null,null,null,1]
[407,21,{"$f":"LOOKUP([team_id],Команды[id],Команды[Коротко])","v":"Ступино"},"Куклин  Александр Николаевич ","м","1997-12-02",46,170,1]
[408,21,{"$f":"LOOKUP([team_id],Команды[id],Команды[Коротко])","v":"Ступино"},"Трубникова Юлия Константиновна","д","1997-04-18",46,170,null,null,null,null,null,null,null,null,null,1]
[409,21,{"$f":"LOOKUP([team_id],Команды[id],Команды[Коротко])","v":"Ступино"},"Панфилова Анастасия Сергеевна","д","1997-10-29",46,170]
[410,21,{"$f":"LOOKUP([team_id],Команды[id],Команды[Коротко])","v":"Ступино"},"Ерыгин Виталий Сергеевич","м","1997-05-25",46,170,null,null,null,null,null,null,null,null,null,null,1]
[411,21,{"$f":"LOOKUP([team_id],Команды[id],Команды[Коротко])","v":"Ступино"},"Конаков Денис Олегович","м","1997-02-17",44,165,null,null,null,1]
[412,21,{"$f":"LOOKUP([team_id],Команды[id],Команды[Коротко])","v":"Ступино"},"Волков  Иван Федорович","м","1997-04-04",44,165,null,null,null,null,null,1]
[413,21,{"$f":"LOOKUP([team_id],Команды[id],Команды[Коротко])","v":"Ступино"},"Смелова Татьяна Викторовна","д","1998-09-04",44,165,null,null,null,null,null,null,null,null,null,null,1]
[414,21,{"$f":"LOOKUP([team_id],Команды[id],Команды[Коротко])","v":"Ступино"},"Чебуракова Анастасия Олеговна","д","1997-02-22",44,180,null,1]
[415,21,{"$f":"LOOKUP([team_id],Команды[id],Команды[Коротко])","v":"Ступино"},"Валуев Кирилл Вячеславович","м","1997-02-17",44,165,null,null,null,null,null,null,1]
[416,21,{"$f":"LOOKUP([team_id],Команды[id],Команды[Коротко])","v":"Ступино"},"Китова Екатерина Владимировна","д","1997-01-29",44,165,null,null,null,null,null,null,1]
[417,21,{"$f":"LOOKUP([team_id],Команды[id],Команды[Коротко])","v":"Ступино"},"Озерова Екатерина Алексеевна","д","1997-11-23",44,165]
[418,21,{"$f":"LOOKUP([team_id],Команды[id],Команды[Коротко])","v":"Ступино"},"Добычин Антон Владиславович","м","1997-07-10",46,165,null,null,null,null,null,null,null,1]
[419,21,{"$f":"LOOKUP([team_id],Команды[id],Команды[Коротко])","v":"Ступино"},"Локтионов Даниил Евгеньевич","м","1997-01-08",46,165,null,null,null,null,null,null,null,null,null,null,null,1]
[420,21,{"$f":"LOOKUP([team_id],Команды[id],Команды[Коротко])","v":"Ступино"},"Перегудова  Татьяна Алексеевна","д","1997-01-25",42,160,1]
[421,22,{"$f":"LOOKUP([team_id],Команды[id],Команды[Коротко])","v":"Киров"},"Безродных Елизавета","д","1997-05-03",46,165,1,1,1,1]
[422,22,{"$f":"LOOKUP([team_id],Команды[id],Команды[Коротко])","v":"Киров"},"Устюжанина Алиса","д","1997-07-18",46,170]
[423,22,{"$f":"LOOKUP([team_id],Команды[id],Команды[Коротко])","v":"Киров"},"Бырканова Яна","д","1997-07-24",44,165,null,null,null,null,null,1]
[424,22,{"$f":"LOOKUP([team_id],Команды[id],Команды[Коротко])","v":"Киров"},"Бырканова Мария","д","1997-07-27",46,165,null,null,null,null,null,1]
[425,22,{"$f":"LOOKUP([team_id],Команды[id],Команды[Коротко])","v":"Киров"},"Лыскова Валерия","д","1999-07-09",44,165,1]
[426,22,{"$f":"LOOKUP([team_id],Команды[id],Команды[Коротко])","v":"Киров"},"Елгешина Елизавета","д","1997-05-07",42,165,null,null,null,null,null,null,1]
[427,22,{"$f":"LOOKUP([team_id],Команды[id],Команды[Коротко])","v":"Киров"},"Бельтюков Кирилл","м","1997-12-05",null,null,null,null,null,null,null,null,null,null,null,1]
[428,22,{"$f":"LOOKUP([team_id],Команды[id],Команды[Коротко])","v":"Киров"},"Пермякова Карина","д","2001-08-29",40,155]
[429,22,{"$f":"LOOKUP([team_id],Команды[id],Команды[Коротко])","v":"Киров"},"Корманова Валерия","д","1998-12-23",40,150]
[430,22,{"$f":"LOOKUP([team_id],Команды[id],Команды[Коротко])","v":"Киров"},"Поташева Надежда","д","1997-05-27"]
[431,22,{"$f":"LOOKUP([team_id],Команды[id],Команды[Коротко])","v":"Киров"},"Бледных Виталий","м","1997-06-23",46,175,1]
[432,22,{"$f":"LOOKUP([team_id],Команды[id],Команды[Коротко])","v":"Киров"},"Кутявин Илья","м","1998-04-20",44,175]
[433,22,{"$f":"LOOKUP([team_id],Команды[id],Команды[Коротко])","v":"Киров"},"Созин Станислав","м","1997-11-03",42,165,null,null,null,null,null,null,null,null,1]
[434,22,{"$f":"LOOKUP([team_id],Команды[id],Команды[Коротко])","v":"Киров"},"Дорофеев Александр","м","1997-11-17",42,165,null,null,null,1]
[435,22,{"$f":"LOOKUP([team_id],Команды[id],Команды[Коротко])","v":"Киров"},"Медведев Никита","м","1997-10-24",46,175]
[436,22,{"$f":"LOOKUP([team_id],Команды[id],Команды[Коротко])","v":"Киров"},"Филип Никита","м","1998-02-14",null,null,null,null,null,null,1,1,null,1]
[437,22,{"$f":"LOOKUP([team_id],Команды[id],Команды[Коротко])","v":"Киров"},"Сидоров Даниил","м","1999-04-06",44,170,null,null,null,null,null,null,null,null,null,null,null,1]
[438,22,{"$f":"LOOKUP([team_id],Команды[id],Команды[Коротко])","v":"Киров"},"Мовсесян Рофаэл","м","1997-05-04",42,155,null,null,null,null,1,1,null,1]
[439,22,{"$f":"LOOKUP([team_id],Команды[id],Команды[Коротко])","v":"Киров"},"Калетин Никита","м","1997-07-26",42,165,null,null,null,null,null,null,1]
[440,22,{"$f":"LOOKUP([team_id],Команды[id],Команды[Коротко])","v":"Киров"},"Худякова Юлия","д","1997-01-17",null,null,null,null,null,null,null,null,null,null,null,null,1]
[441,23,{"$f":"LOOKUP([team_id],Команды[id],Команды[Коротко])","v":"Иваново"},"Джафаров Рамир Тихирович","м","2001-05-05"]
[442,23,{"$f":"LOOKUP([team_id],Команды[id],Команды[Коротко])","v":"Иваново"},"Киселева Анастасия Андреевна","д","1997-03-14",null,null,1,null,null,1,null,1]
[443,23,{"$f":"LOOKUP([team_id],Команды[id],Команды[Коротко])","v":"Иваново"},"Среднев Егор Васильевич","м","1999-04-27",null,null,null,null,null,null,null,null,null,null,1]
[444,23,{"$f":"LOOKUP([team_id],Команды[id],Команды[Коротко])","v":"Иваново"},"Назаров Антон Владимирович","м","1998-07-20",null,null,null,1]
[445,23,{"$f":"LOOKUP([team_id],Команды[id],Команды[Коротко])","v":"Иваново"},"Исаков Ярослав Олегович","м","1997-10-29",null,null,null,null,null,1,1,null,null,null,null,1]
[447,23,{"$f":"LOOKUP([team_id],Команды[id],Команды[Коротко])","v":"Иваново"},"Данько Артем Александрович","м","1997-09-27",null,null,null,null,1,null,null,1]
[448,23,{"$f":"LOOKUP([team_id],Команды[id],Команды[Коротко])","v":"Иваново"},"Орлова Виктория Андреевна","д","1997-09-01",null,null,null,1,null,null,null,1,null,null,null,1,1]
[452,23,{"$f":"LOOKUP([team_id],Команды[id],Команды[Коротко])","v":"Иваново"},"Крылов Вениамин Владимирович","м","2000-01-29"]
[453,23,{"$f":"LOOKUP([team_id],Команды[id],Команды[Коротко])","v":"Иваново"},"Муратов Владислав Александрович","м","1997-09-02",null,null,null,null,null,null,1,1,null,1]
[454,23,{"$f":"LOOKUP([team_id],Команды[id],Команды[Коротко])","v":"Иваново"},"Ликин Максим Сергеевич","м","1999-12-07",null,null,null,null,null,null,null,null,null,null,null,null,null,1]
[455,23,{"$f":"LOOKUP([team_id],Команды[id],Команды[Коротко])","v":"Иваново"},"Демичев Сергей Владимирович","м","1997-09-01",null,null,1,null,null,null,null,null,null,1]
[456,23,{"$f":"LOOKUP([team_id],Команды[id],Команды[Коротко])","v":"Иваново"},"Рогов Владимир Викторович","м","1997-07-16"]
[457,23,{"$f":"LOOKUP([team_id],Команды[id],Команды[Коротко])","v":"Иваново"},"Кушинский Алексей Викторович","м","2000-03-03",null,null,null,null,null,null,null,null,1]
[460,23,{"$f":"LOOKUP([team_id],Команды[id],Команды[Коротко])","v":"Иваново"},"Колпакова Надежда Михайловна","д","2000-01-25",null,null,null,null,null,null,null,null,1]
[461,24,{"$f":"LOOKUP([team_id],Команды[id],Команды[Коротко])","v":"Пушкино"},"Боталова Валерия Алексеевна","д","1997-08-07",44,160,null,1]
[462,24,{"$f":"LOOKUP([team_id],Команды[id],Команды[Коротко])","v":"Пушкино"},"Бобожанова Кумринисо Солоховна","д","1997-10-24",null,null,null,null,null,null,null,1]
[463,24,{"$f":"LOOKUP([team_id],Команды[id],Команды[Коротко])","v":"Пушкино"},"Жуков Вячеслав Викторович","м","1997-07-16",44,165,null,null,1,null,null,null,1,null,1]
[464,24,{"$f":"LOOKUP([team_id],Команды[id],Команды[Коротко])","v":"Пушкино"},"Соколова Оксана Анатольевна","д","1997-09-18",44,150,1,null,null,null,null,1]
[465,24,{"$f":"LOOKUP([team_id],Команды[id],Команды[Коротко])","v":"Пушкино"},"Скворцова Алена Игоревна","д","1997-09-11",44,165]
[466,24,{"$f":"LOOKUP([team_id],Команды[id],Команды[Коротко])","v":"Пушкино"},"Ковалева Юлия Александровна","д","1997-07-24",44,155]
[467,24,{"$f":"LOOKUP([team_id],Команды[id],Команды[Коротко])","v":"Пушкино"},"Рябчиков Владислав Игоревич","м","1997-03-21",44,170,null,null,null,1,null,null,null,null,null,1]
[468,24,{"$f":"LOOKUP([team_id],Команды[id],Команды[Коротко])","v":"Пушкино"},"Афанасьев Александр Борисович","м","1997-06-11",44,185,null,null,null,null,null,null,null,1]
[469,24,{"$f":"LOOKUP([team_id],Команды[id],Команды[Коротко])","v":"Пушкино"},"Глухов Евгений Анатольевич","м","1997-01-18",44,155]
[470,24,{"$f":"LOOKUP([team_id],Команды[id],Команды[Коротко])","v":"Пушкино"},"Айнутдинов Камиль Борисович","м","1997-02-22",42,165,null,null,null,null,1,1]
[471,24,{"$f":"LOOKUP([team_id],Команды[id],Команды[Коротко])","v":"Пушкино"},"Юшкова Алина Александровна","д","1997-02-26",44,160,null,null,null,1,null,null,1]
[472,24,{"$f":"LOOKUP([team_id],Команды[id],Команды[Коротко])","v":"Пушкино"},"Иванова Анастасия Андреевна","д","1997-03-16",44,160]
[473,24,{"$f":"LOOKUP([team_id],Команды[id],Команды[Коротко])","v":"Пушкино"},"Лисивцов Максим Игоревич","м","1997-06-05",46,175]
[474,24,{"$f":"LOOKUP([team_id],Команды[id],Команды[Коротко])","v":"Пушкино"},"Козицкий Сергей Сергеевич","м","1997-11-23",46,175,null,null,null,null,null,1]
[475,24,{"$f":"LOOKUP([team_id],Команды[id],Команды[Коротко])","v":"Пушкино"},"Крейзе Павел Андреевич","м","1997-03-30",46,165]
[476,24,{"$f":"LOOKUP([team_id],Команды[id],Команды[Коротко])","v":"Пушкино"},"Вакарин Сергей Сергеевич","м","1997-02-12",46,175,1,null,null,null,1,null,null,1]
[477,24,{"$f":"LOOKUP([team_id],Команды[id],Команды[Коротко])","v":"Пушкино"},"Лукина Валерия Сергеевна","д","1997-03-04"]
[478,24,{"$f":"LOOKUP([team_id],Команды[id],Команды[Коротко])","v":"Пушкино"},"Панов Антон Вячеславович","м","1997-03-15"]
[479,24,{"$f":"LOOKUP([team_id],Команды[id],Команды[Коротко])","v":"Пушкино"},"Сабенина Светлана Вячеславовна","д","1997-02-08",48,185,null,null,null,null,null,null,null,null,null,null,null,1]
[480,24,{"$f":"LOOKUP([team_id],Команды[id],Команды[Коротко])","v":"Пушкино"},"Перебиковская Оксана Эдуардовна","д","1997-12-13"]
[481,25,{"$f":"LOOKUP([team_id],Команды[id],Команды[Коротко])","v":"Ярославль"},"Румянцев Артем Николаевич","м","1997-01-20",46,170,null,null,null,1]
[482,25,{"$f":"LOOKUP([team_id],Команды[id],Команды[Коротко])","v":"Ярославль"},"Соболев Сергей Олегович","м","1997-06-25",46,170,null,1]
[483,25,{"$f":"LOOKUP([team_id],Команды[id],Команды[Коротко])","v":"Ярославль"},"Фомичев Родион","м","1997-12-01",null,null,1,null,null,null,null,null,1]
[484,25,{"$f":"LOOKUP([team_id],Команды[id],Команды[Коротко])","v":"Ярославль"},"Заварухин Алексей","м","1997-11-28",null,null,null,null,null,null,null,1]
[485,25,{"$f":"LOOKUP([team_id],Команды[id],Команды[Коротко])","v":"Ярославль"},"Антропова Валерия","д","1998-02-02",null,null,null,null,null,null,null,null,null,null,null,1]
[486,25,{"$f":"LOOKUP([team_id],Команды[id],Команды[Коротко])","v":"Ярославль"},"Никитин Данил Сергеевич","м","1999-05-08",46,160,null,null,null,null,1]
[487,25,{"$f":"LOOKUP([team_id],Команды[id],Команды[Коротко])","v":"Ярославль"},"Моторнов Денис Алексеевич","м","1999-03-24",46,155,null,null,null,null,1]
[488,25,{"$f":"LOOKUP([team_id],Команды[id],Команды[Коротко])","v":"Ярославль"},"Журавлев Александр","м","1998-12-26",null,null,null,null,null,null,null,1]
[489,25,{"$f":"LOOKUP([team_id],Команды[id],Команды[Коротко])","v":"Ярославль"},"Вьюшин Евгений Вячеславович","м","1997-12-16",48,170,null,null,1,null,null,null,null,1]
[490,25,{"$f":"LOOKUP([team_id],Команды[id],Команды[Коротко])","v":"Ярославль"},"Духновская Мария","д","1998-03-21"]
[491,25,{"$f":"LOOKUP([team_id],Команды[id],Команды[Коротко])","v":"Ярославль"},"Зыкова Ирина Андреевна","д","1998-10-05",44,150,null,null,null,null,1]
[492,25,{"$f":"LOOKUP([team_id],Команды[id],Команды[Коротко])","v":"Ярославль"},"Грушина Ирина Валерьевна","д","1998-06-11",48,160,null,1,null,null,null,null,null,null,null,null,1]
[493,25,{"$f":"LOOKUP([team_id],Команды[id],Команды[Коротко])","v":"Ярославль"},"Аббуталипова Яна Исмаиловна","д","1999-01-27",42,150,null,null,null,1]
[494,25,{"$f":"LOOKUP([team_id],Команды[id],Команды[Коротко])","v":"Ярославль"},"Муратова Любовь Сергеевна","д","1998-08-24",42,150,null,null,null,null,null,null,null,null,null,null,null,1]
[495,25,{"$f":"LOOKUP([team_id],Команды[id],Команды[Коротко])","v":"Ярославль"},"Веселов Влад","м","1998-04-08",null,null,null,null,null,null,null,null,null,null,1]
[496,25,{"$f":"LOOKUP([team_id],Команды[id],Команды[Коротко])","v":"Ярославль"},"Серова Татьяна Валерьевна","д","1997-10-07",46,170,1]
[497,25,{"$f":"LOOKUP([team_id],Команды[id],Команды[Коротко])","v":"Ярославль"},"Салтыков Владимир","м","1997-12-10",null,null,null,null,null,null,null,null,null,1]
[498,25,{"$f":"LOOKUP([team_id],Команды[id],Команды[Коротко])","v":"Ярославль"},"Фирсова Алина Сергеевна","д","1997-12-24",46,170,null,null,null,null,null,null,1]
[499,25,{"$f":"LOOKUP([team_id],Команды[id],Команды[Коротко])","v":"Ярославль"},"Курбатова Татьяна Андреевна","д","1998-01-27",46,170,null,null,null,null,null,1]
[500,25,{"$f":"LOOKUP([team_id],Команды[id],Команды[Коротко])","v":"Ярославль"},"Биндюкова Виктория Владимировна","д","1997-09-16",44,170,null,null,null,null,1]
[501,26,{"$f":"LOOKUP([team_id],Команды[id],Команды[Коротко])","v":"Олимп, Шатура"},"Косова Анастасия Андреевна","д","1999-01-19",38,140,1]
[502,26,{"$f":"LOOKUP([team_id],Команды[id],Команды[Коротко])","v":"Олимп, Шатура"},"Кудряшов Сергей Сергеевич","м","2000-02-15",36,120,1]
[503,26,{"$f":"LOOKUP([team_id],Команды[id],Команды[Коротко])","v":"Олимп, Шатура"},"Ермилов Илья Андреевич","м","1997-02-06",40,150]
[504,26,{"$f":"LOOKUP([team_id],Команды[id],Команды[Коротко])","v":"Олимп, Шатура"},"Бужин Александр Павлович","м","1999-07-19",38,140]
[505,26,{"$f":"LOOKUP([team_id],Команды[id],Команды[Коротко])","v":"Олимп, Шатура"},"Давыдова Анастасия Сергеевна","д","1998-06-24",null,null,null,null,null,null,null,null,1]
[506,26,{"$f":"LOOKUP([team_id],Команды[id],Команды[Коротко])","v":"Олимп, Шатура"},"Козлова Вера Сергеевна","д","1999-05-28"]
[507,26,{"$f":"LOOKUP([team_id],Команды[id],Команды[Коротко])","v":"Олимп, Шатура"},"Майорский Владислав Альбертович","м","1997-09-01",42,165,null,1,null,null,1]
[508,26,{"$f":"LOOKUP([team_id],Команды[id],Команды[Коротко])","v":"Олимп, Шатура"},"Чабанова Кристина Васильевна","д","1998-01-15",38,145,null,null,null,1]
[509,26,{"$f":"LOOKUP([team_id],Команды[id],Команды[Коротко])","v":"Олимп, Шатура"},"Кожина Светлана Викторовна","д","1998-01-03",38,160,null,null,null,null,null,1,null,null,1]
[510,26,{"$f":"LOOKUP([team_id],Команды[id],Команды[Коротко])","v":"Олимп, Шатура"},"Фролова Юлия Васильевна","д","1997-05-19",40,160,null,null,null,null,null,1]
[511,26,{"$f":"LOOKUP([team_id],Команды[id],Команды[Коротко])","v":"Олимп, Шатура"},"Рогачев Виктор Вадимович","м","1998-02-09",null,null,null,null,null,null,1]
[512,26,{"$f":"LOOKUP([team_id],Команды[id],Команды[Коротко])","v":"Олимп, Шатура"},"Шорин Илья павлович","м","1997-07-11",42,165,null,null,null,null,null,1,1]
[513,26,{"$f":"LOOKUP([team_id],Команды[id],Команды[Коротко])","v":"Олимп, Шатура"},"Комарова Оксана Алексеевна","д","1998-02-05",null,null,null,null,null,null,null,null,null,null,null,null,1]
[514,26,{"$f":"LOOKUP([team_id],Команды[id],Команды[Коротко])","v":"Олимп, Шатура"},"Филиппов Матвей Сергеевич","м","2000-01-06",36,120,null,null,1,null,null,null,null,null,null,null,null,1]
[515,26,{"$f":"LOOKUP([team_id],Команды[id],Команды[Коротко])","v":"Олимп, Шатура"},"Лосюгина Ульяна Алексеевна","д","1997-10-03",42,165]
[516,26,{"$f":"LOOKUP([team_id],Команды[id],Команды[Коротко])","v":"Олимп, Шатура"},"Крутова Татьяна Вячеславовна","д","1999-01-19",40,140,null,null,null,null,null,null,null,null,null,1]
[517,26,{"$f":"LOOKUP([team_id],Команды[id],Команды[Коротко])","v":"Олимп, Шатура"},"Кузнецов Алексей Алексеевич","м","1998-03-18",40,140]
[518,26,{"$f":"LOOKUP([team_id],Команды[id],Команды[Коротко])","v":"Олимп, Шатура"},"Краснов Владислав Александрович","м","1997-08-09",null,null,null,null,null,null,null,1,null,1]
[519,26,{"$f":"LOOKUP([team_id],Команды[id],Команды[Коротко])","v":"Олимп, Шатура"},"Терехова Анастасия Дмитриевна","д","1999-09-28",38,140]
[520,26,{"$f":"LOOKUP([team_id],Команды[id],Команды[Коротко])","v":"Олимп, Шатура"},"Дубенец Евгений Эдуардович","м","1997-10-09",null,null,null,null,null,1]
[521,27,{"$f":"LOOKUP([team_id],Команды[id],Команды[Коротко])","v":"ОМСН"},"Рожнов Степан Александрович","м","1997-11-17",44,155,null,1,null,null,1,null,1,1,1]
[522,27,{"$f":"LOOKUP([team_id],Команды[id],Команды[Коротко])","v":"ОМСН"},"Леваков Илья Владимирович","м","1997-01-07",46,170,null,null,null,1,1,null,null,1]
[523,27,{"$f":"LOOKUP([team_id],Команды[id],Команды[Коротко])","v":"ОМСН"},"Саховский Михаил Владимирович","м","2001-04-22",42,150]
[524,27,{"$f":"LOOKUP([team_id],Команды[id],Команды[Коротко])","v":"ОМСН"},"Тимашков Максим Михайлович","м","1998-04-23",44,155,1]
[525,27,{"$f":"LOOKUP([team_id],Команды[id],Команды[Коротко])","v":"ОМСН"},"Конов Сергей Александрович","м","1998-01-19",42,155,null,null,null,null,1,1]
[527,27,{"$f":"LOOKUP([team_id],Команды[id],Команды[Коротко])","v":"ОМСН"},"Андреева Алина Олеговна","д","2000-02-10",null,null,null,null,null,null,null,null,null,null,null,null,1]
[528,27,{"$f":"LOOKUP([team_id],Команды[id],Команды[Коротко])","v":"ОМСН"},"Черепков Никита Николаевич","м","1998-09-21"]
[530,27,{"$f":"LOOKUP([team_id],Команды[id],Команды[Коротко])","v":"ОМСН"},"Новикова Елизавета Владимировна","д","1998-03-04",null,null,null,null,null,null,null,null,1]
[531,27,{"$f":"LOOKUP([team_id],Команды[id],Команды[Коротко])","v":"ОМСН"},"Артемьева Людмила Владимировна","д","1998-04-07",46,165,null,null,null,null,null,null,null,null,null,1]
[532,27,{"$f":"LOOKUP([team_id],Команды[id],Команды[Коротко])","v":"ОМСН"},"Малькова Анастасия Витальевна","д","1997-04-24",46,170]
[533,27,{"$f":"LOOKUP([team_id],Команды[id],Команды[Коротко])","v":"ОМСН"},"Зайцев Валентин Олегович","м","1999-06-12",null,null,null,null,null,null,null,1]
[534,27,{"$f":"LOOKUP([team_id],Команды[id],Команды[Коротко])","v":"ОМСН"},"Воробьев Алексей Дмитриевич","м","1998-04-24"]
[535,27,{"$f":"LOOKUP([team_id],Команды[id],Команды[Коротко])","v":"ОМСН"},"Преснякова Карина Александровна","д","1997-06-03",46,165,null,null,null,null,null,1]
[537,27,{"$f":"LOOKUP([team_id],Команды[id],Команды[Коротко])","v":"ОМСН"},"Степанова Анастасия Александровна","д","1998-09-12",44,165,null,null,null,null,null,1]
[538,27,{"$f":"LOOKUP([team_id],Команды[id],Команды[Коротко])","v":"ОМСН"},"Попова Анастасия Олеговна","д","1998-10-06"]
[539,27,{"$f":"LOOKUP([team_id],Команды[id],Команды[Коротко])","v":"ОМСН"},"Власенко Григорий Юрьевич","м","1997-02-12"]
[540,27,{"$f":"LOOKUP([team_id],Команды[id],Команды[Коротко])","v":"ОМСН"},"Целкова Валерия Дмитриевна","д","1997-01-06",46,170,1,1,1,1,null,null,null,null,null,null,null,1]

{"sheet":"палатка","index":3,"n_rows":32,"n_cols":6,"rows_kept":32,"cut":false,"hidden":false,"merged":[[0,1,0,5]]}
[null,"Протокол №1 (палатка)"]
[null,null,null,null,null,"4 июня 2011, 16:06"]
["team_id","Команда","время","штраф","Сумма","Место"]
[16,{"$f":"LOOKUP([team_id],Команды[id],Команды[Коротко])","v":"Тверь"},"00:01:51.750",null,{"$f":"палатка[[#This Row],[время]]+палатка[[#This Row],[штраф]]","v":"00:01:51.750"},1]
[11,{"$f":"LOOKUP([team_id],Команды[id],Команды[Коротко])","v":"Москва"},"00:02:25.580",null,{"$f":"палатка[[#This Row],[время]]+палатка[[#This Row],[штраф]]","v":"00:02:25.580"},2]
[26,{"$f":"LOOKUP([team_id],Команды[id],Команды[Коротко])","v":"Олимп, Шатура"},"00:02:26.750",null,{"$f":"палатка[[#This Row],[время]]+палатка[[#This Row],[штраф]]","v":"00:02:26.750"},3]
[7,{"$f":"LOOKUP([team_id],Команды[id],Команды[Коротко])","v":"Клин"},"00:02:29.110",null,{"$f":"палатка[[#This Row],[время]]+палатка[[#This Row],[штраф]]","v":"00:02:29.110"},4]
[10,{"$f":"LOOKUP([team_id],Команды[id],Команды[Коротко])","v":"Кашира"},"00:02:32.410",null,{"$f":"палатка[[#This Row],[время]]+палатка[[#This Row],[штраф]]","v":"00:02:32.410"},5]
[12,{"$f":"LOOKUP([team_id],Команды[id],Команды[Коротко])","v":"Истра"},"00:02:37.440",null,{"$f":"палатка[[#This Row],[время]]+палатка[[#This Row],[штраф]]","v":"00:02:37.440"},6]
[5,{"$f":"LOOKUP([team_id],Команды[id],Команды[Коротко])","v":"Краснодар"},"00:02:37.980",null,{"$f":"палатка[[#This Row],[время]]+палатка[[#This Row],[штраф]]","v":"00:02:37.980"},7]
[13,{"$f":"LOOKUP([team_id],Команды[id],Команды[Коротко])","v":"Владимир"},"00:02:43.720",null,{"$f":"палатка[[#This Row],[время]]+палатка[[#This Row],[штраф]]","v":"00:02:43.720"},8]
[17,{"$f":"LOOKUP([team_id],Команды[id],Команды[Коротко])","v":"Смоленск"},"00:03:08.540",null,{"$f":"палатка[[#This Row],[время]]+палатка[[#This Row],[штраф]]","v":"00:03:08.540"},9]
[8,{"$f":"LOOKUP([team_id],Команды[id],Команды[Коротко])","v":"Руза"},"00:03:09.240",null,{"$f":"палатка[[#This Row],[время]]+палатка[[#This Row],[штраф]]","v":"00:03:09.240"},10]
[2,{"$f":"LOOKUP([team_id],Команды[id],Команды[Коротко])","v":"Липецк"},"00:03:13.620",null,{"$f":"палатка[[#This Row],[время]]+палатка[[#This Row],[штраф]]","v":"00:03:13.620"},11]
[19,{"$f":"LOOKUP([team_id],Команды[id],Команды[Коротко])","v":"Тамбов"},"00:03:17.210",null,{"$f":"палатка[[#This Row],[время]]+палатка[[#This Row],[штраф]]","v":"00:03:17.210"},12]
[1,{"$f":"LOOKUP([team_id],Команды[id],Команды[Коротко])","v":"ОМОН"},"00:03:23.820",null,{"$f":"палатка[[#This Row],[время]]+палатка[[#This Row],[штраф]]","v":"00:03:23.820"},13]
[22,{"$f":"LOOKUP([team_id],Команды[id],Команды[Коротко])","v":"Киров"},"00:03:37.120",null,{"$f":"палатка[[#This Row],[время]]+палатка[[#This Row],[штраф]]","v":"00:03:37.120"},14]
[3,{"$f":"LOOKUP([team_id],Команды[id],Команды[Коротко])","v":"Дмитров"},"00:03:37.210",null,{"$f":"палатка[[#This Row],[время]]+палатка[[#This Row],[штраф]]","v":"00:03:37.210"},15]
[6,{"$f":"LOOKUP([team_id],Команды[id],Команды[Коротко])","v":"Энергия, Шатура"},"00:03:58.440",null,{"$f":"палатка[[#This Row],[время]]+палатка[[#This Row],[штраф]]","v":"00:03:58.440"},16]
[20,{"$f":"LOOKUP([team_id],Команды[id],Команды[Коротко])","v":"Татарстан"},"00:03:59.440",null,{"$f":"палатка[[#This Row],[время]]+палатка[[#This Row],[штраф]]","v":"00:03:59.440"},17]
[15,{"$f":"LOOKUP([team_id],Команды[id],Команды[Коротко])","v":"Воронеж"},"00:04:05.970",null,{"$f":"палатка[[#This Row],[время]]+палатка[[#This Row],[штраф]]","v":"00:04:05.970"},18]
[24,{"$f":"LOOKUP([team_id],Команды[id],Команды[Коротко])","v":"Пушкино"},"00:04:11.860",null,{"$f":"палатка[[#This Row],[время]]+палатка[[#This Row],[штраф]]","v":"00:04:11.860"},19]
[9,{"$f":"LOOKUP([team_id],Команды[id],Команды[Коротко])","v":"Курск"},"00:04:15.410",null,{"$f":"палатка[[#This Row],[время]]+палатка[[#This Row],[штраф]]","v":"00:04:15.410"},20]
[21,{"$f":"LOOKUP([team_id],Команды[id],Команды[Коротко])","v":"Ступино"},"00:04:28.060",null,{"$f":"палатка[[#This Row],[время]]+палатка[[#This Row],[штраф]]","v":"00:04:28.060"},21]
[14,{"$f":"LOOKUP([team_id],Команды[id],Команды[Коротко])","v":"Воскресенск"},"00:04:29.570",null,{"$f":"палатка[[#This Row],[время]]+палатка[[#This Row],[штраф]]","v":"00:04:29.570"},22]
[25,{"$f":"LOOKUP([team_id],Команды[id],Команды[Коротко])","v":"Ярославль"},"00:04:55.720",null,{"$f":"палатка[[#This Row],[время]]+палатка[[#This Row],[штраф]]","v":"00:04:55.720"},23]
[27,{"$f":"LOOKUP([team_id],Команды[id],Команды[Коротко])","v":"ОМСН"},"00:05:12.820",null,{"$f":"палатка[[#This Row],[время]]+палатка[[#This Row],[штраф]]","v":"00:05:12.820"},24]
[18,{"$f":"LOOKUP([team_id],Команды[id],Команды[Коротко])","v":"Одинцово"},"00:05:14.840",null,{"$f":"палатка[[#This Row],[время]]+палатка[[#This Row],[штраф]]","v":"00:05:14.840"},25]
[23,{"$f":"LOOKUP([team_id],Команды[id],Команды[Коротко])","v":"Иваново"},"00:05:55.520",null,{"$f":"палатка[[#This Row],[время]]+палатка[[#This Row],[штраф]]","v":"00:05:55.520"},26]
[]
[]
[null,"Председатель оргкомитета                                  /Громов А.Г./"]

{"sheet":"газета","index":4,"n_rows":9,"n_cols":3,"rows_kept":9,"cut":false,"hidden":false,"merged":[[0,0,0,5]]}
["Протокол №2 (стенгазета)"]
[null,null,"5 июня 2011, 19:33"]
["team_id","Команда","Место"]
[7,{"$f":"LOOKUP([team_id],Команды[id],Команды[Команда])","v":"Клинский район Московской области"},1]
[13,{"$f":"LOOKUP([team_id],Команды[id],Команды[Команда])","v":"Владимирская область"},2]
[11,{"$f":"LOOKUP([team_id],Команды[id],Команды[Команда])","v":"\"Кадеты-Жуковцы\" г.Москва"},3]
[]
["Председатель оргкомитета                                  /Громов А.Г./"]
[null,"Председатель оргкомитета                                  /Громов А.Г./"]

{"sheet":"визитка","index":5,"n_rows":32,"n_cols":11,"rows_kept":32,"cut":false,"hidden":false,"merged":[[0,1,0,10]]}
[null,"Протокол №3 (визитка)"]
[null,null,null,null,null,null,null,null,null,null,"4 июня 2011, 17:56"]
["team_id","Команда","1 судья","2 судья","3 судья","4 судья","5 судья","Время","Штраф","Сумма","Место"]
[12,{"$f":"LOOKUP([team_id],Команды[id],Команды[Коротко])","v":"Истра"},10,10,10,10,10,"00:06:40",null,{"$f":"SUM(визитка[[#This Row],[1 судья]:[5 судья]])-визитка[[#This Row],[Штраф]]","v":50},"1-2"]
[25,{"$f":"LOOKUP([team_id],Команды[id],Команды[Коротко])","v":"Ярославль"},10,10,10,10,10,"00:06:47",null,{"$f":"SUM(визитка[[#This Row],[1 судья]:[5 судья]])-визитка[[#This Row],[Штраф]]","v":50},"1-2"]
[13,{"$f":"LOOKUP([team_id],Команды[id],Команды[Коротко])","v":"Владимир"},9,9,10,10,9,"00:05:40",null,{"$f":"SUM(визитка[[#This Row],[1 судья]:[5 судья]])-визитка[[#This Row],[Штраф]]","v":47},"3"]
[20,{"$f":"LOOKUP([team_id],Команды[id],Команды[Коротко])","v":"Татарстан"},9,9,9,10,9,"00:07:00",null,{"$f":"SUM(визитка[[#This Row],[1 судья]:[5 судья]])-визитка[[#This Row],[Штраф]]","v":46},"4"]
[9,{"$f":"LOOKUP([team_id],Команды[id],Команды[Коротко])","v":"Курск"},9,9,8,8,8,"00:05:37",null,{"$f":"SUM(визитка[[#This Row],[1 судья]:[5 судья]])-визитка[[#This Row],[Штраф]]","v":42},"5"]
[17,{"$f":"LOOKUP([team_id],Команды[id],Команды[Коротко])","v":"Смоленск"},10,10,10,10,10,"00:08:59",10,{"$f":"SUM(визитка[[#This Row],[1 судья]:[5 судья]])-визитка[[#This Row],[Штраф]]","v":40},"6"]
[5,{"$f":"LOOKUP([team_id],Команды[id],Команды[Коротко])","v":"Краснодар"},9,9,8,7,7,"00:02:51",null,{"$f":"SUM(визитка[[#This Row],[1 судья]:[5 судья]])-визитка[[#This Row],[Штраф]]","v":40},"7-8"]
[8,{"$f":"LOOKUP([team_id],Команды[id],Команды[Коротко])","v":"Руза"},9,9,7,7,8,"00:04:01",null,{"$f":"SUM(визитка[[#This Row],[1 судья]:[5 судья]])-визитка[[#This Row],[Штраф]]","v":40},"7-8"]
[2,{"$f":"LOOKUP([team_id],Команды[id],Команды[Коротко])","v":"Липецк"},8,8,8,8,8,"00:05:21",null,{"$f":"SUM(визитка[[#This Row],[1 судья]:[5 судья]])-визитка[[#This Row],[Штраф]]","v":40},"9"]
[19,{"$f":"LOOKUP([team_id],Команды[id],Команды[Коротко])","v":"Тамбов"},10,10,7,6,6,"00:04:10",null,{"$f":"SUM(визитка[[#This Row],[1 судья]:[5 судья]])-визитка[[#This Row],[Штраф]]","v":39},"10"]
[6,{"$f":"LOOKUP([team_id],Команды[id],Команды[Коротко])","v":"Энергия, Шатура"},10,8,9,8,8,"00:07:49",5,{"$f":"SUM(визитка[[#This Row],[1 судья]:[5 судья]])-визитка[[#This Row],[Штраф]]","v":38},"11"]
[22,{"$f":"LOOKUP([team_id],Команды[id],Команды[Коротко])","v":"Киров"},9,9,8,9,8,"00:07:07",5,{"$f":"SUM(визитка[[#This Row],[1 судья]:[5 судья]])-визитка[[#This Row],[Штраф]]","v":38},"12"]
[15,{"$f":"LOOKUP([team_id],Команды[id],Команды[Коротко])","v":"Воронеж"},7,9,7,7,7,"00:06:32",null,{"$f":"SUM(визитка[[#This Row],[1 судья]:[5 судья]])-визитка[[#This Row],[Штраф]]","v":37},"13"]
[7,{"$f":"LOOKUP([team_id],Команды[id],Команды[Коротко])","v":"Клин"},7,7,7,8,8,"00:02:24",null,{"$f":"SUM(визитка[[#This Row],[1 судья]:[5 судья]])-визитка[[#This Row],[Штраф]]","v":37},"14"]
[23,{"$f":"LOOKUP([team_id],Команды[id],Команды[Коротко])","v":"Иваново"},8,8,7,6,7,"00:03:22",null,{"$f":"SUM(визитка[[#This Row],[1 судья]:[5 судья]])-визитка[[#This Row],[Штраф]]","v":36},"15"]
[11,{"$f":"LOOKUP([team_id],Команды[id],Команды[Коротко])","v":"Москва"},7,8,7,6,6,"00:02:44",null,{"$f":"SUM(визитка[[#This Row],[1 судья]:[5 судья]])-визитка[[#This Row],[Штраф]]","v":34},"16"]
[3,{"$f":"LOOKUP([team_id],Команды[id],Команды[Коротко])","v":"Дмитров"},8,8,7,7,7,"00:07:20",5,{"$f":"SUM(визитка[[#This Row],[1 судья]:[5 судья]])-визитка[[#This Row],[Штраф]]","v":32},"17"]
[10,{"$f":"LOOKUP([team_id],Команды[id],Команды[Коротко])","v":"Кашира"},9,9,10,9,9,"00:10:00",15,{"$f":"SUM(визитка[[#This Row],[1 судья]:[5 судья]])-визитка[[#This Row],[Штраф]]","v":31},"18"]
[27,{"$f":"LOOKUP([team_id],Команды[id],Команды[Коротко])","v":"ОМСН"},7,6,6,5,7,"00:05:53",null,{"$f":"SUM(визитка[[#This Row],[1 судья]:[5 судья]])-визитка[[#This Row],[Штраф]]","v":31},"19"]
[26,{"$f":"LOOKUP([team_id],Команды[id],Команды[Коротко])","v":"Олимп, Шатура"},8,8,7,5,7,"00:07:48",5,{"$f":"SUM(визитка[[#This Row],[1 судья]:[5 судья]])-визитка[[#This Row],[Штраф]]","v":30},"20"]
[16,{"$f":"LOOKUP([team_id],Команды[id],Команды[Коротко])","v":"Тверь"},6,7,6,5,6,"00:02:26",null,{"$f":"SUM(визитка[[#This Row],[1 судья]:[5 судья]])-визитка[[#This Row],[Штраф]]","v":30},"21-23"]
[14,{"$f":"LOOKUP([team_id],Команды[id],Команды[Коротко])","v":"Воскресенск"},6,7,6,5,6,"00:04:50",null,{"$f":"SUM(визитка[[#This Row],[1 судья]:[5 судья]])-визитка[[#This Row],[Штраф]]","v":30},"21-23"]
[18,{"$f":"LOOKUP([team_id],Команды[id],Команды[Коротко])","v":"Одинцово"},6,7,6,5,6,"00:05:10",null,{"$f":"SUM(визитка[[#This Row],[1 судья]:[5 судья]])-визитка[[#This Row],[Штраф]]","v":30},"21-23"]
[1,{"$f":"LOOKUP([team_id],Команды[id],Команды[Коротко])","v":"ОМОН"},6,6,6,5,6,"00:08:01",10,{"$f":"SUM(визитка[[#This Row],[1 судья]:[5 судья]])-визитка[[#This Row],[Штраф]]","v":19},"24"]
[21,{"$f":"LOOKUP([team_id],Команды[id],Команды[Коротко])","v":"Ступино"},9,7,7,9,9,"00:11:18",25,{"$f":"SUM(визитка[[#This Row],[1 судья]:[5 судья]])-визитка[[#This Row],[Штраф]]","v":16},"25"]
[24,{"$f":"LOOKUP([team_id],Команды[id],Команды[Коротко])","v":"Пушкино"},0,0,0,0,0,"00:00:00",null,{"$f":"SUM(визитка[[#This Row],[1 судья]:[5 судья]])-визитка[[#This Row],[Штраф]]","v":0}]
[]
[]
[null,"Председатель оргкомитета                                  /Громов А.Г./"]

{"sheet":"стрельба-пневматика","index":6,"n_rows":110,"n_cols":9,"rows_kept":110,"cut":false,"hidden":false,"merged":[[0,2,0,8]]}
[null,null,"Протокол №4 (стрельба-пневматика)"]
[null,null,null,null,null,null,null,null,"5 июня 2011, 15:16"]
["id","team_id","Команда","ФИО","пол","Дата рождения","оружие","Очки","Место"]
[170,{"$f":"LOOKUP([id],Дети[id],Дети[team_id])","v":9},{"$f":"LOOKUP([team_id],Команды[id],Команды[Коротко])","v":"Курск"},{"$f":"LOOKUP([id],Дети[id],Дети[ФИО])","v":"Бочарова Елизавета"},{"$f":"LOOKUP([id],Дети[id],Дети[пол])","v":"д"},{"$f":"LOOKUP([id],Дети[id],Дети[Дата рождения])","v":"1997-06-25"},"винтовка",81,1]
[308,{"$f":"LOOKUP([id],Дети[id],Дети[team_id])","v":16},{"$f":"LOOKUP([team_id],Команды[id],Команды[Коротко])","v":"Тверь"},{"$f":"LOOKUP([id],Дети[id],Дети[ФИО])","v":"Золотова Вера Васильевна"},{"$f":"LOOKUP([id],Дети[id],Дети[пол])","v":"д"},{"$f":"LOOKUP([id],Дети[id],Дети[Дата рождения])","v":"1997-06-15"},"винтовка",77,2]
[151,{"$f":"LOOKUP([id],Дети[id],Дети[team_id])","v":8},{"$f":"LOOKUP([team_id],Команды[id],Команды[Коротко])","v":"Руза"},{"$f":"LOOKUP([id],Дети[id],Дети[ФИО])","v":"Ковач Валерия"},{"$f":"LOOKUP([id],Дети[id],Дети[пол])","v":"д"},{"$f":"LOOKUP([id],Дети[id],Дети[Дата рождения])","v":"1998-04-05"},"винтовка",75,3]
[420,{"$f":"LOOKUP([id],Дети[id],Дети[team_id])","v":21},{"$f":"LOOKUP([team_id],Команды[id],Команды[Коротко])","v":"Ступино"},{"$f":"LOOKUP([id],Дети[id],Дети[ФИО])","v":"Перегудова  Татьяна Алексеевна"},{"$f":"LOOKUP([id],Дети[id],Дети[пол])","v":"д"},{"$f":"LOOKUP([id],Дети[id],Дети[Дата рождения])","v":"1997-01-25"},"винтовка",73,4]
[368,{"$f":"LOOKUP([id],Дети[id],Дети[team_id])","v":19},{"$f":"LOOKUP([team_id],Команды[id],Команды[Коротко])","v":"Тамбов"},{"$f":"LOOKUP([id],Дети[id],Дети[ФИО])","v":"Сафронова Дарья"},{"$f":"LOOKUP([id],Дети[id],Дети[пол])","v":"д"},{"$f":"LOOKUP([id],Дети[id],Дети[Дата рождения])","v":"1997-11-27"},"винтовка",73,5]
[501,{"$f":"LOOKUP([id],Дети[id],Дети[team_id])","v":26},{"$f":"LOOKUP([team_id],Команды[id],Команды[Коротко])","v":"Олимп, Шатура"},{"$f":"LOOKUP([id],Дети[id],Дети[ФИО])","v":"Косова Анастасия Андреевна"},{"$f":"LOOKUP([id],Дети[id],Дети[пол])","v":"д"},{"$f":"LOOKUP([id],Дети[id],Дети[Дата рождения])","v":"1999-01-19"},"винтовка",71,6]
[281,{"$f":"LOOKUP([id],Дети[id],Дети[team_id])","v":15},{"$f":"LOOKUP([team_id],Команды[id],Команды[Коротко])","v":"Воронеж"},{"$f":"LOOKUP([id],Дети[id],Дети[ФИО])","v":"Авраменко Юлия Александровна"},{"$f":"LOOKUP([id],Дети[id],Дети[пол])","v":"д"},{"$f":"LOOKUP([id],Дети[id],Дети[Дата рождения])","v":"1997-06-18"},"винтовка",70,7]
[45,{"$f":"LOOKUP([id],Дети[id],Дети[team_id])","v":3},{"$f":"LOOKUP([team_id],Команды[id],Команды[Коротко])","v":"Дмитров"},{"$f":"LOOKUP([id],Дети[id],Дети[ФИО])","v":"Богомолова Ольга Юрьевна"},{"$f":"LOOKUP([id],Дети[id],Дети[пол])","v":"д"},{"$f":"LOOKUP([id],Дети[id],Дети[Дата рождения])","v":"1998-07-06"},"винтовка",69,8]
[425,{"$f":"LOOKUP([id],Дети[id],Дети[team_id])","v":22},{"$f":"LOOKUP([team_id],Команды[id],Команды[Коротко])","v":"Киров"},{"$f":"LOOKUP([id],Дети[id],Дети[ФИО])","v":"Лыскова Валерия"},{"$f":"LOOKUP([id],Дети[id],Дети[пол])","v":"д"},{"$f":"LOOKUP([id],Дети[id],Дети[Дата рождения])","v":"1999-07-09"},"винтовка",67,9]
[496,{"$f":"LOOKUP([id],Дети[id],Дети[team_id])","v":25},{"$f":"LOOKUP([team_id],Команды[id],Команды[Коротко])","v":"Ярославль"},{"$f":"LOOKUP([id],Дети[id],Дети[ФИО])","v":"Серова Татьяна Валерьевна"},{"$f":"LOOKUP([id],Дети[id],Дети[пол])","v":"д"},{"$f":"LOOKUP([id],Дети[id],Дети[Дата рождения])","v":"1997-10-07"},"винтовка",66,10]
[540,{"$f":"LOOKUP([id],Дети[id],Дети[team_id])","v":27},{"$f":"LOOKUP([team_id],Команды[id],Команды[Коротко])","v":"ОМСН"},{"$f":"LOOKUP([id],Дети[id],Дети[ФИО])","v":"Целкова Валерия Дмитриевна"},{"$f":"LOOKUP([id],Дети[id],Дети[пол])","v":"д"},{"$f":"LOOKUP([id],Дети[id],Дети[Дата рождения])","v":"1997-01-06"},"винтовка",64,11]
[211,{"$f":"LOOKUP([id],Дети[id],Дети[team_id])","v":11},{"$f":"LOOKUP([team_id],Команды[id],Команды[Коротко])","v":"Москва"},{"$f":"LOOKUP([id],Дети[id],Дети[ФИО])","v":"Кожаева Екатерина"},{"$f":"LOOKUP([id],Дети[id],Дети[пол])","v":"д"},{"$f":"LOOKUP([id],Дети[id],Дети[Дата рождения])","v":"1997-12-03"},"винтовка",63,12]
[140,{"$f":"LOOKUP([id],Дети[id],Дети[team_id])","v":7},{"$f":"LOOKUP([team_id],Команды[id],Команды[Коротко])","v":"Клин"},{"$f":"LOOKUP([id],Дети[id],Дети[ФИО])","v":"Снеткова Диана Дмитриевна"},{"$f":"LOOKUP([id],Дети[id],Дети[пол])","v":"д"},{"$f":"LOOKUP([id],Дети[id],Дети[Дата рождения])","v":"1998-07-25"},"винтовка",59,13]
[442,{"$f":"LOOKUP([id],Дети[id],Дети[team_id])","v":23},{"$f":"LOOKUP([team_id],Команды[id],Команды[Коротко])","v":"Иваново"},{"$f":"LOOKUP([id],Дети[id],Дети[ФИО])","v":"Киселева Анастасия Андреевна"},{"$f":"LOOKUP([id],Дети[id],Дети[пол])","v":"д"},{"$f":"LOOKUP([id],Дети[id],Дети[Дата рождения])","v":"1997-03-14"},"винтовка",57,14]
[261,{"$f":"LOOKUP([id],Дети[id],Дети[team_id])","v":14},{"$f":"LOOKUP([team_id],Команды[id],Команды[Коротко])","v":"Воскресенск"},{"$f":"LOOKUP([id],Дети[id],Дети[ФИО])","v":"Рыбакова Юлия"},{"$f":"LOOKUP([id],Дети[id],Дети[пол])","v":"д"},{"$f":"LOOKUP([id],Дети[id],Дети[Дата рождения])","v":"1998-09-11"},"винтовка",57,15]
[181,{"$f":"LOOKUP([id],Дети[id],Дети[team_id])","v":10},{"$f":"LOOKUP([team_id],Команды[id],Команды[Коротко])","v":"Кашира"},{"$f":"LOOKUP([id],Дети[id],Дети[ФИО])","v":"Агранат Алёна Александровна"},{"$f":"LOOKUP([id],Дети[id],Дети[пол])","v":"д"},{"$f":"LOOKUP([id],Дети[id],Дети[Дата рождения])","v":"1998-06-19"},"винтовка",48,16]
[16,{"$f":"LOOKUP([id],Дети[id],Дети[team_id])","v":1},{"$f":"LOOKUP([team_id],Команды[id],Команды[Коротко])","v":"ОМОН"},{"$f":"LOOKUP([id],Дети[id],Дети[ФИО])","v":"Копытова Варвара Андреевна"},{"$f":"LOOKUP([id],Дети[id],Дети[пол])","v":"д"},{"$f":"LOOKUP([id],Дети[id],Дети[Дата рождения])","v":"2000-08-30"},"винтовка",43,17]
[339,{"$f":"LOOKUP([id],Дети[id],Дети[team_id])","v":17},{"$f":"LOOKUP([team_id],Команды[id],Команды[Коротко])","v":"Смоленск"},{"$f":"LOOKUP([id],Дети[id],Дети[ФИО])","v":"Шалабодина Ангелина Константиновна"},{"$f":"LOOKUP([id],Дети[id],Дети[пол])","v":"д"},{"$f":"LOOKUP([id],Дети[id],Дети[Дата рождения])","v":"1999-06-15"},"винтовка",42,18]
[471,{"$f":"LOOKUP([id],Дети[id],Дети[team_id])","v":24},{"$f":"LOOKUP([team_id],Команды[id],Команды[Коротко])","v":"Пушкино"},{"$f":"LOOKUP([id],Дети[id],Дети[ФИО])","v":"Юшкова Алина Александровна"},{"$f":"LOOKUP([id],Дети[id],Дети[пол])","v":"д"},{"$f":"LOOKUP([id],Дети[id],Дети[Дата рождения])","v":"1997-02-26"},"винтовка",41,19]
[258,{"$f":"LOOKUP([id],Дети[id],Дети[team_id])","v":13},{"$f":"LOOKUP([team_id],Команды[id],Команды[Коротко])","v":"Владимир"},{"$f":"LOOKUP([id],Дети[id],Дети[ФИО])","v":"Феофанова Алена Игоревна"},{"$f":"LOOKUP([id],Дети[id],Дети[пол])","v":"д"},{"$f":"LOOKUP([id],Дети[id],Дети[Дата рождения])","v":"1997-05-26"},"винтовка",41,20]
[355,{"$f":"LOOKUP([id],Дети[id],Дети[team_id])","v":18},{"$f":"LOOKUP([team_id],Команды[id],Команды[Коротко])","v":"Одинцово"},{"$f":"LOOKUP([id],Дети[id],Дети[ФИО])","v":"Зыкова Мария Антоновна"},{"$f":"LOOKUP([id],Дети[id],Дети[пол])","v":"д"},{"$f":"LOOKUP([id],Дети[id],Дети[Дата рождения])","v":"1998-04-21"},"винтовка",36,21]
[91,{"$f":"LOOKUP([id],Дети[id],Дети[team_id])","v":5},{"$f":"LOOKUP([team_id],Команды[id],Команды[Коротко])","v":"Краснодар"},{"$f":"LOOKUP([id],Дети[id],Дети[ФИО])","v":"Григорьева Вероника Александровна"},{"$f":"LOOKUP([id],Дети[id],Дети[пол])","v":"д"},{"$f":"LOOKUP([id],Дети[id],Дети[Дата рождения])","v":"1998-04-13"},"винтовка",35,22]
[237,{"$f":"LOOKUP([id],Дети[id],Дети[team_id])","v":12},{"$f":"LOOKUP([team_id],Команды[id],Команды[Коротко])","v":"Истра"},{"$f":"LOOKUP([id],Дети[id],Дети[ФИО])","v":"Петровская Евгения Владимирона"},{"$f":"LOOKUP([id],Дети[id],Дети[пол])","v":"д"},{"$f":"LOOKUP([id],Дети[id],Дети[Дата рождения])","v":"1998-03-01"},"винтовка",29,23]
[393,{"$f":"LOOKUP([id],Дети[id],Дети[team_id])","v":20},{"$f":"LOOKUP([team_id],Команды[id],Команды[Коротко])","v":"Татарстан"},{"$f":"LOOKUP([id],Дети[id],Дети[ФИО])","v":"Паранина Александра Владимировна"},{"$f":"LOOKUP([id],Дети[id],Дети[пол])","v":"д"},{"$f":"LOOKUP([id],Дети[id],Дети[Дата рождения])","v":"1997-11-02"},"винтовка",19,24]
[37,{"$f":"LOOKUP([id],Дети[id],Дети[team_id])","v":2},{"$f":"LOOKUP([team_id],Команды[id],Команды[Коротко])","v":"Липецк"},{"$f":"LOOKUP([id],Дети[id],Дети[ФИО])","v":"Нестерова Анастасия Сергеевна"},{"$f":"LOOKUP([id],Дети[id],Дети[пол])","v":"д"},{"$f":"LOOKUP([id],Дети[id],Дети[Дата рождения])","v":"1997-04-17"},"винтовка",5,25]
[114,{"$f":"LOOKUP([id],Дети[id],Дети[team_id])","v":6},{"$f":"LOOKUP([team_id],Команды[id],Команды[Коротко])","v":"Энергия, Шатура"},{"$f":"LOOKUP([id],Дети[id],Дети[ФИО])","v":"Бурканова Юлия Владимировна"},{"$f":"LOOKUP([id],Дети[id],Дети[пол])","v":"д"},{"$f":"LOOKUP([id],Дети[id],Дети[Дата рождения])","v":"1997-03-21"},"винтовка",0,26]
[173,{"$f":"LOOKUP([id],Дети[id],Дети[team_id])","v":9},{"$f":"LOOKUP([team_id],Команды[id],Команды[Коротко])","v":"Курск"},{"$f":"LOOKUP([id],Дети[id],Дети[ФИО])","v":"Мосолов Валерий"},{"$f":"LOOKUP([id],Дети[id],Дети[пол])","v":"м"},{"$f":"LOOKUP([id],Дети[id],Дети[Дата рождения])","v":"1997-06-10"},"винтовка",84,1]
[328,{"$f":"LOOKUP([id],Дети[id],Дети[team_id])","v":17},{"$f":"LOOKUP([team_id],Команды[id],Команды[Коротко])","v":"Смоленск"},{"$f":"LOOKUP([id],Дети[id],Дети[ФИО])","v":"Молокоедов Дмитрий Владимирович"},{"$f":"LOOKUP([id],Дети[id],Дети[пол])","v":"м"},{"$f":"LOOKUP([id],Дети[id],Дети[Дата рождения])","v":"1998-07-11"},"винтовка",82,2]
[371,{"$f":"LOOKUP([id],Дети[id],Дети[team_id])","v":19},{"$f":"LOOKUP([team_id],Команды[id],Команды[Коротко])","v":"Тамбов"},{"$f":"LOOKUP([id],Дети[id],Дети[ФИО])","v":"Куров Алексей"},{"$f":"LOOKUP([id],Дети[id],Дети[пол])","v":"м"},{"$f":"LOOKUP([id],Дети[id],Дети[Дата рождения])","v":"1997-05-12"},"винтовка",76,3]
[318,{"$f":"LOOKUP([id],Дети[id],Дети[team_id])","v":16},{"$f":"LOOKUP([team_id],Команды[id],Команды[Коротко])","v":"Тверь"},{"$f":"LOOKUP([id],Дети[id],Дети[ФИО])","v":"Владимиров Дмитрий Сергеевич"},{"$f":"LOOKUP([id],Дети[id],Дети[пол])","v":"м"},{"$f":"LOOKUP([id],Дети[id],Дети[Дата рождения])","v":"1997-05-09"},"винтовка",76,4]
[389,{"$f":"LOOKUP([id],Дети[id],Дети[team_id])","v":20},{"$f":"LOOKUP([team_id],Команды[id],Команды[Коротко])","v":"Татарстан"},{"$f":"LOOKUP([id],Дети[id],Дети[ФИО])","v":"Шакиров Наиль Алмазович"},{"$f":"LOOKUP([id],Дети[id],Дети[пол])","v":"м"},{"$f":"LOOKUP([id],Дети[id],Дети[Дата рождения])","v":"1997-07-30"},"винтовка",74,5]
[246,{"$f":"LOOKUP([id],Дети[id],Дети[team_id])","v":13},{"$f":"LOOKUP([team_id],Команды[id],Команды[Коротко])","v":"Владимир"},{"$f":"LOOKUP([id],Дети[id],Дети[ФИО])","v":"Бобринев Иван Алексеевич"},{"$f":"LOOKUP([id],Дети[id],Дети[пол])","v":"м"},{"$f":"LOOKUP([id],Дети[id],Дети[Дата рождения])","v":"1998-01-14"},"винтовка",72,6]
[483,{"$f":"LOOKUP([id],Дети[id],Дети[team_id])","v":25},{"$f":"LOOKUP([team_id],Команды[id],Команды[Коротко])","v":"Ярославль"},{"$f":"LOOKUP([id],Дети[id],Дети[ФИО])","v":"Фомичев Родион"},{"$f":"LOOKUP([id],Дети[id],Дети[пол])","v":"м"},{"$f":"LOOKUP([id],Дети[id],Дети[Дата рождения])","v":"1997-12-01"},"винтовка",70,7]
[347,{"$f":"LOOKUP([id],Дети[id],Дети[team_id])","v":18},{"$f":"LOOKUP([team_id],Команды[id],Команды[Коротко])","v":"Одинцово"},{"$f":"LOOKUP([id],Дети[id],Дети[ФИО])","v":"Тюряков Андрей Александрович"},{"$f":"LOOKUP([id],Дети[id],Дети[пол])","v":"м"},{"$f":"LOOKUP([id],Дети[id],Дети[Дата рождения])","v":"1997-12-05"},"винтовка",69,8]
[46,{"$f":"LOOKUP([id],Дети[id],Дети[team_id])","v":3},{"$f":"LOOKUP([team_id],Команды[id],Команды[Коротко])","v":"Дмитров"},{"$f":"LOOKUP([id],Дети[id],Дети[ФИО])","v":"Елисеев Евгений Вячеславович"},{"$f":"LOOKUP([id],Дети[id],Дети[пол])","v":"м"},{"$f":"LOOKUP([id],Дети[id],Дети[Дата рождения])","v":"1997-02-24"},"винтовка",67,9]
[407,{"$f":"LOOKUP([id],Дети[id],Дети[team_id])","v":21},{"$f":"LOOKUP([team_id],Команды[id],Команды[Коротко])","v":"Ступино"},{"$f":"LOOKUP([id],Дети[id],Дети[ФИО])","v":"Куклин  Александр Николаевич "},{"$f":"LOOKUP([id],Дети[id],Дети[пол])","v":"м"},{"$f":"LOOKUP([id],Дети[id],Дети[Дата рождения])","v":"1997-12-02"},"винтовка",63,10]
[297,{"$f":"LOOKUP([id],Дети[id],Дети[team_id])","v":15},{"$f":"LOOKUP([team_id],Команды[id],Команды[Коротко])","v":"Воронеж"},{"$f":"LOOKUP([id],Дети[id],Дети[ФИО])","v":"Хамидов Всеволод Александрович"},{"$f":"LOOKUP([id],Дети[id],Дети[пол])","v":"м"},{"$f":"LOOKUP([id],Дети[id],Дети[Дата рождения])","v":"1998-02-03"},"винтовка",62,11]
[6,{"$f":"LOOKUP([id],Дети[id],Дети[team_id])","v":1},{"$f":"LOOKUP([team_id],Команды[id],Команды[Коротко])","v":"ОМОН"},{"$f":"LOOKUP([id],Дети[id],Дети[ФИО])","v":"Платонов Александр Александрович"},{"$f":"LOOKUP([id],Дети[id],Дети[пол])","v":"м"},{"$f":"LOOKUP([id],Дети[id],Дети[Дата рождения])","v":"1999-01-05"},"винтовка",61,12]
[431,{"$f":"LOOKUP([id],Дети[id],Дети[team_id])","v":22},{"$f":"LOOKUP([team_id],Команды[id],Команды[Коротко])","v":"Киров"},{"$f":"LOOKUP([id],Дети[id],Дети[ФИО])","v":"Бледных Виталий"},{"$f":"LOOKUP([id],Дети[id],Дети[пол])","v":"м"},{"$f":"LOOKUP([id],Дети[id],Дети[Дата рождения])","v":"1997-06-23"},"винтовка",57,13]
[524,{"$f":"LOOKUP([id],Дети[id],Дети[team_id])","v":27},{"$f":"LOOKUP([team_id],Команды[id],Команды[Коротко])","v":"ОМСН"},{"$f":"LOOKUP([id],Дети[id],Дети[ФИО])","v":"Тимашков Максим Михайлович"},{"$f":"LOOKUP([id],Дети[id],Дети[пол])","v":"м"},{"$f":"LOOKUP([id],Дети[id],Дети[Дата рождения])","v":"1998-04-23"},"винтовка",56,14]
[502,{"$f":"LOOKUP([id],Дети[id],Дети[team_id])","v":26},{"$f":"LOOKUP([team_id],Команды[id],Команды[Коротко])","v":"Олимп, Шатура"},{"$f":"LOOKUP([id],Дети[id],Дети[ФИО])","v":"Кудряшов Сергей Сергеевич"},{"$f":"LOOKUP([id],Дети[id],Дети[пол])","v":"м"},{"$f":"LOOKUP([id],Дети[id],Дети[Дата рождения])","v":"2000-02-15"},"винтовка",56,15]
[118,{"$f":"LOOKUP([id],Дети[id],Дети[team_id])","v":6},{"$f":"LOOKUP([team_id],Команды[id],Команды[Коротко])","v":"Энергия, Шатура"},{"$f":"LOOKUP([id],Дети[id],Дети[ФИО])","v":"Лосев Дмитрий Александрович"},{"$f":"LOOKUP([id],Дети[id],Дети[пол])","v":"м"},{"$f":"LOOKUP([id],Дети[id],Дети[Дата рождения])","v":"1997-12-29"},"винтовка",55,16]
[30,{"$f":"LOOKUP([id],Дети[id],Дети[team_id])","v":2},{"$f":"LOOKUP([team_id],Команды[id],Команды[Коротко])","v":"Липецк"},{"$f":"LOOKUP([id],Дети[id],Дети[ФИО])","v":"Феклин Алексей Юрьевич"},{"$f":"LOOKUP([id],Дети[id],Дети[пол])","v":"м"},{"$f":"LOOKUP([id],Дети[id],Дети[Дата рождения])","v":"1998-06-30"},"винтовка",55,17]
[220,{"$f":"LOOKUP([id],Дети[id],Дети[team_id])","v":11},{"$f":"LOOKUP([team_id],Команды[id],Команды[Коротко])","v":"Москва"},{"$f":"LOOKUP([id],Дети[id],Дети[ФИО])","v":"Шутков Алексей"},{"$f":"LOOKUP([id],Дети[id],Дети[пол])","v":"м"},{"$f":"LOOKUP([id],Дети[id],Дети[Дата рождения])","v":"1998-06-16"},"винтовка",54,18]
[82,{"$f":"LOOKUP([id],Дети[id],Дети[team_id])","v":5},{"$f":"LOOKUP([team_id],Команды[id],Команды[Коротко])","v":"Краснодар"},{"$f":"LOOKUP([id],Дети[id],Дети[ФИО])","v":"Сметанин Алекс Эдуардович"},{"$f":"LOOKUP([id],Дети[id],Дети[пол])","v":"м"},{"$f":"LOOKUP([id],Дети[id],Дети[Дата рождения])","v":"1997-02-13"},"винтовка",49,19]
[123,{"$f":"LOOKUP([id],Дети[id],Дети[team_id])","v":7},{"$f":"LOOKUP([team_id],Команды[id],Команды[Коротко])","v":"Клин"},{"$f":"LOOKUP([id],Дети[id],Дети[ФИО])","v":"Соколов Никита Сергеевич"},{"$f":"LOOKUP([id],Дети[id],Дети[пол])","v":"м"},{"$f":"LOOKUP([id],Дети[id],Дети[Дата рождения])","v":"1998-10-10"},"винтовка",46,20]
[232,{"$f":"LOOKUP([id],Дети[id],Дети[team_id])","v":12},{"$f":"LOOKUP([team_id],Команды[id],Команды[Коротко])","v":"Истра"},{"$f":"LOOKUP([id],Дети[id],Дети[ФИО])","v":"Трофимов Иван Александрович"},{"$f":"LOOKUP([id],Дети[id],Дети[пол])","v":"м"},{"$f":"LOOKUP([id],Дети[id],Дети[Дата рождения])","v":"1998-10-15"},"винтовка",44,21]
[191,{"$f":"LOOKUP([id],Дети[id],Дети[team_id])","v":10},{"$f":"LOOKUP([team_id],Команды[id],Команды[Коротко])","v":"Кашира"},{"$f":"LOOKUP([id],Дети[id],Дети[ФИО])","v":"Федотов Александр Юрьевич"},{"$f":"LOOKUP([id],Дети[id],Дети[пол])","v":"м"},{"$f":"LOOKUP([id],Дети[id],Дети[Дата рождения])","v":"1998-06-27"},"винтовка",41,22]
[476,{"$f":"LOOKUP([id],Дети[id],Дети[team_id])","v":24},{"$f":"LOOKUP([team_id],Команды[id],Команды[Коротко])","v":"Пушкино"},{"$f":"LOOKUP([id],Дети[id],Дети[ФИО])","v":"Вакарин Сергей Сергеевич"},{"$f":"LOOKUP([id],Дети[id],Дети[пол])","v":"м"},{"$f":"LOOKUP([id],Дети[id],Дети[Дата рождения])","v":"1997-02-12"},"винтовка",32,23]
[268,{"$f":"LOOKUP([id],Дети[id],Дети[team_id])","v":14},{"$f":"LOOKUP([team_id],Команды[id],Команды[Коротко])","v":"Воскресенск"},{"$f":"LOOKUP([id],Дети[id],Дети[ФИО])","v":"Курков Антон Эдуардович"},{"$f":"LOOKUP([id],Дети[id],Дети[пол])","v":"м"},{"$f":"LOOKUP([id],Дети[id],Дети[Дата рождения])","v":"1998-04-17"},"винтовка",28,24]
[146,{"$f":"LOOKUP([id],Дети[id],Дети[team_id])","v":8},{"$f":"LOOKUP([team_id],Команды[id],Команды[Коротко])","v":"Руза"},{"$f":"LOOKUP([id],Дети[id],Дети[ФИО])","v":"Ганичев Николай"},{"$f":"LOOKUP([id],Дети[id],Дети[пол])","v":"м"},{"$f":"LOOKUP([id],Дети[id],Дети[Дата рождения])","v":"1997-12-19"},"винтовка",26,25]
[455,{"$f":"LOOKUP([id],Дети[id],Дети[team_id])","v":23},{"$f":"LOOKUP([team_id],Команды[id],Команды[Коротко])","v":"Иваново"},{"$f":"LOOKUP([id],Дети[id],Дети[ФИО])","v":"Демичев Сергей Владимирович"},{"$f":"LOOKUP([id],Дети[id],Дети[пол])","v":"м"},{"$f":"LOOKUP([id],Дети[id],Дети[Дата рождения])","v":"1997-09-01"},"винтовка",22,26]
[420,{"$f":"LOOKUP([id],Дети[id],Дети[team_id])","v":21},{"$f":"LOOKUP([team_id],Команды[id],Команды[Коротко])","v":"Ступино"},{"$f":"LOOKUP([id],Дети[id],Дети[ФИО])","v":"Перегудова  Татьяна Алексеевна"},{"$f":"LOOKUP([id],Дети[id],Дети[пол])","v":"д"},{"$f":"LOOKUP([id],Дети[id],Дети[Дата рождения])","v":"1997-01-25"},"пистолет",39,1]
[170,{"$f":"LOOKUP([id],Дети[id],Дети[team_id])","v":9},{"$f":"LOOKUP([team_id],Команды[id],Команды[Коротко])","v":"Курск"},{"$f":"LOOKUP([id],Дети[id],Дети[ФИО])","v":"Бочарова Елизавета"},{"$f":"LOOKUP([id],Дети[id],Дети[пол])","v":"д"},{"$f":"LOOKUP([id],Дети[id],Дети[Дата рождения])","v":"1997-06-25"},"пистолет",38,2]
[281,{"$f":"LOOKUP([id],Дети[id],Дети[team_id])","v":15},{"$f":"LOOKUP([team_id],Команды[id],Команды[Коротко])","v":"Воронеж"},{"$f":"LOOKUP([id],Дети[id],Дети[ФИО])","v":"Авраменко Юлия Александровна"},{"$f":"LOOKUP([id],Дети[id],Дети[пол])","v":"д"},{"$f":"LOOKUP([id],Дети[id],Дети[Дата рождения])","v":"1997-06-18"},"пистолет",36,3]
[308,{"$f":"LOOKUP([id],Дети[id],Дети[team_id])","v":16},{"$f":"LOOKUP([team_id],Команды[id],Команды[Коротко])","v":"Тверь"},{"$f":"LOOKUP([id],Дети[id],Дети[ФИО])","v":"Золотова Вера Васильевна"},{"$f":"LOOKUP([id],Дети[id],Дети[пол])","v":"д"},{"$f":"LOOKUP([id],Дети[id],Дети[Дата рождения])","v":"1997-06-15"},"пистолет",33,4]
[151,{"$f":"LOOKUP([id],Дети[id],Дети[team_id])","v":8},{"$f":"LOOKUP([team_id],Команды[id],Команды[Коротко])","v":"Руза"},{"$f":"LOOKUP([id],Дети[id],Дети[ФИО])","v":"Ковач Валерия"},{"$f":"LOOKUP([id],Дети[id],Дети[пол])","v":"д"},{"$f":"LOOKUP([id],Дети[id],Дети[Дата рождения])","v":"1998-04-05"},"пистолет",30,5]
[368,{"$f":"LOOKUP([id],Дети[id],Дети[team_id])","v":19},{"$f":"LOOKUP([team_id],Команды[id],Команды[Коротко])","v":"Тамбов"},{"$f":"LOOKUP([id],Дети[id],Дети[ФИО])","v":"Сафронова Дарья"},{"$f":"LOOKUP([id],Дети[id],Дети[пол])","v":"д"},{"$f":"LOOKUP([id],Дети[id],Дети[Дата рождения])","v":"1997-11-27"},"пистолет",30,6]
[211,{"$f":"LOOKUP([id],Дети[id],Дети[team_id])","v":11},{"$f":"LOOKUP([team_id],Команды[id],Команды[Коротко])","v":"Москва"},{"$f":"LOOKUP([id],Дети[id],Дети[ФИО])","v":"Кожаева Екатерина"},{"$f":"LOOKUP([id],Дети[id],Дети[пол])","v":"д"},{"$f":"LOOKUP([id],Дети[id],Дети[Дата рождения])","v":"1997-12-03"},"пистолет",29,7]
[442,{"$f":"LOOKUP([id],Дети[id],Дети[team_id])","v":23},{"$f":"LOOKUP([team_id],Команды[id],Команды[Коротко])","v":"Иваново"},{"$f":"LOOKUP([id],Дети[id],Дети[ФИО])","v":"Киселева Анастасия Андреевна"},{"$f":"LOOKUP([id],Дети[id],Дети[пол])","v":"д"},{"$f":"LOOKUP([id],Дети[id],Дети[Дата рождения])","v":"1997-03-14"},"пистолет",29,8]
[496,{"$f":"LOOKUP([id],Дети[id],Дети[team_id])","v":25},{"$f":"LOOKUP([team_id],Команды[id],Команды[Коротко])","v":"Ярославль"},{"$f":"LOOKUP([id],Дети[id],Дети[ФИО])","v":"Серова Татьяна Валерьевна"},{"$f":"LOOKUP([id],Дети[id],Дети[пол])","v":"д"},{"$f":"LOOKUP([id],Дети[id],Дети[Дата рождения])","v":"1997-10-07"},"пистолет",28,9]
[181,{"$f":"LOOKUP([id],Дети[id],Дети[team_id])","v":10},{"$f":"LOOKUP([team_id],Команды[id],Команды[Коротко])","v":"Кашира"},{"$f":"LOOKUP([id],Дети[id],Дети[ФИО])","v":"Агранат Алёна Александровна"},{"$f":"LOOKUP([id],Дети[id],Дети[пол])","v":"д"},{"$f":"LOOKUP([id],Дети[id],Дети[Дата рождения])","v":"1998-06-19"},"пистолет",26,10]
[393,{"$f":"LOOKUP([id],Дети[id],Дети[team_id])","v":20},{"$f":"LOOKUP([team_id],Команды[id],Команды[Коротко])","v":"Татарстан"},{"$f":"LOOKUP([id],Дети[id],Дети[ФИО])","v":"Паранина Александра Владимировна"},{"$f":"LOOKUP([id],Дети[id],Дети[пол])","v":"д"},{"$f":"LOOKUP([id],Дети[id],Дети[Дата рождения])","v":"1997-11-02"},"пистолет",26,11]
[16,{"$f":"LOOKUP([id],Дети[id],Дети[team_id])","v":1},{"$f":"LOOKUP([team_id],Команды[id],Команды[Коротко])","v":"ОМОН"},{"$f":"LOOKUP([id],Дети[id],Дети[ФИО])","v":"Копытова Варвара Андреевна"},{"$f":"LOOKUP([id],Дети[id],Дети[пол])","v":"д"},{"$f":"LOOKUP([id],Дети[id],Дети[Дата рождения])","v":"2000-08-30"},"пистолет",21,12]
[91,{"$f":"LOOKUP([id],Дети[id],Дети[team_id])","v":5},{"$f":"LOOKUP([team_id],Команды[id],Команды[Коротко])","v":"Краснодар"},{"$f":"LOOKUP([id],Дети[id],Дети[ФИО])","v":"Григорьева Вероника Александровна"},{"$f":"LOOKUP([id],Дети[id],Дети[пол])","v":"д"},{"$f":"LOOKUP([id],Дети[id],Дети[Дата рождения])","v":"1998-04-13"},"пистолет",16,13]
[421,{"$f":"LOOKUP([id],Дети[id],Дети[team_id])","v":22},{"$f":"LOOKUP([team_id],Команды[id],Команды[Коротко])","v":"Киров"},{"$f":"LOOKUP([id],Дети[id],Дети[ФИО])","v":"Безродных Елизавета"},{"$f":"LOOKUP([id],Дети[id],Дети[пол])","v":"д"},{"$f":"LOOKUP([id],Дети[id],Дети[Дата рождения])","v":"1997-05-03"},"пистолет",13,14]
[464,{"$f":"LOOKUP([id],Дети[id],Дети[team_id])","v":24},{"$f":"LOOKUP([team_id],Команды[id],Команды[Коротко])","v":"Пушкино"},{"$f":"LOOKUP([id],Дети[id],Дети[ФИО])","v":"Соколова Оксана Анатольевна"},{"$f":"LOOKUP([id],Дети[id],Дети[пол])","v":"д"},{"$f":"LOOKUP([id],Дети[id],Дети[Дата рождения])","v":"1997-09-18"},"пистолет",11,15]
[37,{"$f":"LOOKUP([id],Дети[id],Дети[team_id])","v":2},{"$f":"LOOKUP([team_id],Команды[id],Команды[Коротко])","v":"Липецк"},{"$f":"LOOKUP([id],Дети[id],Дети[ФИО])","v":"Нестерова Анастасия Сергеевна"},{"$f":"LOOKUP([id],Дети[id],Дети[пол])","v":"д"},{"$f":"LOOKUP([id],Дети[id],Дети[Дата рождения])","v":"1997-04-17"},"пистолет",10,16]
[339,{"$f":"LOOKUP([id],Дети[id],Дети[team_id])","v":17},{"$f":"LOOKUP([team_id],Команды[id],Команды[Коротко])","v":"Смоленск"},{"$f":"LOOKUP([id],Дети[id],Дети[ФИО])","v":"Шалабодина Ангелина Константиновна"},{"$f":"LOOKUP([id],Дети[id],Дети[пол])","v":"д"},{"$f":"LOOKUP([id],Дети[id],Дети[Дата рождения])","v":"1999-06-15"},"пистолет",8,17]
[501,{"$f":"LOOKUP([id],Дети[id],Дети[team_id])","v":26},{"$f":"LOOKUP([team_id],Команды[id],Команды[Коротко])","v":"Олимп, Шатура"},{"$f":"LOOKUP([id],Дети[id],Дети[ФИО])","v":"Косова Анастасия Андреевна"},{"$f":"LOOKUP([id],Дети[id],Дети[пол])","v":"д"},{"$f":"LOOKUP([id],Дети[id],Дети[Дата рождения])","v":"1999-01-19"},"пистолет",6,18]
[261,{"$f":"LOOKUP([id],Дети[id],Дети[team_id])","v":14},{"$f":"LOOKUP([team_id],Команды[id],Команды[Коротко])","v":"Воскресенск"},{"$f":"LOOKUP([id],Дети[id],Дети[ФИО])","v":"Рыбакова Юлия"},{"$f":"LOOKUP([id],Дети[id],Дети[пол])","v":"д"},{"$f":"LOOKUP([id],Дети[id],Дети[Дата рождения])","v":"1998-09-11"},"пистолет",3,19]
[140,{"$f":"LOOKUP([id],Дети[id],Дети[team_id])","v":7},{"$f":"LOOKUP([team_id],Команды[id],Команды[Коротко])","v":"Клин"},{"$f":"LOOKUP([id],Дети[id],Дети[ФИО])","v":"Снеткова Диана Дмитриевна"},{"$f":"LOOKUP([id],Дети[id],Дети[пол])","v":"д"},{"$f":"LOOKUP([id],Дети[id],Дети[Дата рождения])","v":"1998-07-25"},"пистолет",2,20]
[540,{"$f":"LOOKUP([id],Дети[id],Дети[team_id])","v":27},{"$f":"LOOKUP([team_id],Команды[id],Команды[Коротко])","v":"ОМСН"},{"$f":"LOOKUP([id],Дети[id],Дети[ФИО])","v":"Целкова Валерия Дмитриевна"},{"$f":"LOOKUP([id],Дети[id],Дети[пол])","v":"д"},{"$f":"LOOKUP([id],Дети[id],Дети[Дата рождения])","v":"1997-01-06"},"пистолет",1,21]
[254,{"$f":"LOOKUP([id],Дети[id],Дети[team_id])","v":13},{"$f":"LOOKUP([team_id],Команды[id],Команды[Коротко])","v":"Владимир"},{"$f":"LOOKUP([id],Дети[id],Дети[ФИО])","v":"Орлова Татьяна Сергеевна"},{"$f":"LOOKUP([id],Дети[id],Дети[пол])","v":"д"},{"$f":"LOOKUP([id],Дети[id],Дети[Дата рождения])","v":"1997-12-09"},"пистолет",1,22]
[346,{"$f":"LOOKUP([id],Дети[id],Дети[team_id])","v":18},{"$f":"LOOKUP([team_id],Команды[id],Команды[Коротко])","v":"Одинцово"},{"$f":"LOOKUP([id],Дети[id],Дети[ФИО])","v":"Жильцова Виктория Константиновна"},{"$f":"LOOKUP([id],Дети[id],Дети[пол])","v":"д"},{"$f":"LOOKUP([id],Дети[id],Дети[Дата рождения])","v":"1999-07-06"},"пистолет",1,23]
[114,{"$f":"LOOKUP([id],Дети[id],Дети[team_id])","v":6},{"$f":"LOOKUP([team_id],Команды[id],Команды[Коротко])","v":"Энергия, Шатура"},{"$f":"LOOKUP([id],Дети[id],Дети[ФИО])","v":"Бурканова Юлия Владимировна"},{"$f":"LOOKUP([id],Дети[id],Дети[пол])","v":"д"},{"$f":"LOOKUP([id],Дети[id],Дети[Дата рождения])","v":"1997-03-21"},"пистолет",0,24]
[45,{"$f":"LOOKUP([id],Дети[id],Дети[team_id])","v":3},{"$f":"LOOKUP([team_id],Команды[id],Команды[Коротко])","v":"Дмитров"},{"$f":"LOOKUP([id],Дети[id],Дети[ФИО])","v":"Богомолова Ольга Юрьевна"},{"$f":"LOOKUP([id],Дети[id],Дети[пол])","v":"д"},{"$f":"LOOKUP([id],Дети[id],Дети[Дата рождения])","v":"1998-07-06"},"пистолет",0,25]
[224,{"$f":"LOOKUP([id],Дети[id],Дети[team_id])","v":12},{"$f":"LOOKUP([team_id],Команды[id],Команды[Коротко])","v":"Истра"},{"$f":"LOOKUP([id],Дети[id],Дети[ФИО])","v":"Кузнецова Татьяна Алексеевна"},{"$f":"LOOKUP([id],Дети[id],Дети[пол])","v":"д"},{"$f":"LOOKUP([id],Дети[id],Дети[Дата рождения])","v":"1997-02-16"},"пистолет",0,26]
[118,{"$f":"LOOKUP([id],Дети[id],Дети[team_id])","v":6},{"$f":"LOOKUP([team_id],Команды[id],Команды[Коротко])","v":"Энергия, Шатура"},{"$f":"LOOKUP([id],Дети[id],Дети[ФИО])","v":"Лосев Дмитрий Александрович"},{"$f":"LOOKUP([id],Дети[id],Дети[пол])","v":"м"},{"$f":"LOOKUP([id],Дети[id],Дети[Дата рождения])","v":"1997-12-29"},"пистолет",61,1]
[46,{"$f":"LOOKUP([id],Дети[id],Дети[team_id])","v":3},{"$f":"LOOKUP([team_id],Команды[id],Команды[Коротко])","v":"Дмитров"},{"$f":"LOOKUP([id],Дети[id],Дети[ФИО])","v":"Елисеев Евгений Вячеславович"},{"$f":"LOOKUP([id],Дети[id],Дети[пол])","v":"м"},{"$f":"LOOKUP([id],Дети[id],Дети[Дата рождения])","v":"1997-02-24"},"пистолет",55,2]
[347,{"$f":"LOOKUP([id],Дети[id],Дети[team_id])","v":18},{"$f":"LOOKUP([team_id],Команды[id],Команды[Коротко])","v":"Одинцово"},{"$f":"LOOKUP([id],Дети[id],Дети[ФИО])","v":"Тюряков Андрей Александрович"},{"$f":"LOOKUP([id],Дети[id],Дети[пол])","v":"м"},{"$f":"LOOKUP([id],Дети[id],Дети[Дата рождения])","v":"1997-12-05"},"пистолет",48,3]
[191,{"$f":"LOOKUP([id],Дети[id],Дети[team_id])","v":10},{"$f":"LOOKUP([team_id],Команды[id],Команды[Коротко])","v":"Кашира"},{"$f":"LOOKUP([id],Дети[id],Дети[ФИО])","v":"Федотов Александр Юрьевич"},{"$f":"LOOKUP([id],Дети[id],Дети[пол])","v":"м"},{"$f":"LOOKUP([id],Дети[id],Дети[Дата рождения])","v":"1998-06-27"},"пистолет",45,4]
[483,{"$f":"LOOKUP([id],Дети[id],Дети[team_id])","v":25},{"$f":"LOOKUP([team_id],Команды[id],Команды[Коротко])","v":"Ярославль"},{"$f":"LOOKUP([id],Дети[id],Дети[ФИО])","v":"Фомичев Родион"},{"$f":"LOOKUP([id],Дети[id],Дети[пол])","v":"м"},{"$f":"LOOKUP([id],Дети[id],Дети[Дата рождения])","v":"1997-12-01"},"пистолет",43,5]
[268,{"$f":"LOOKUP([id],Дети[id],Дети[team_id])","v":14},{"$f":"LOOKUP([team_id],Команды[id],Команды[Коротко])","v":"Воскресенск"},{"$f":"LOOKUP([id],Дети[id],Дети[ФИО])","v":"Курков Антон Эдуардович"},{"$f":"LOOKUP([id],Дети[id],Дети[пол])","v":"м"},{"$f":"LOOKUP([id],Дети[id],Дети[Дата рождения])","v":"1998-04-17"},"пистолет",39,6]
[407,{"$f":"LOOKUP([id],Дети[id],Дети[team_id])","v":21},{"$f":"LOOKUP([team_id],Команды[id],Команды[Коротко])","v":"Ступино"},{"$f":"LOOKUP([id],Дети[id],Дети[ФИО])","v":"Куклин  Александр Николаевич "},{"$f":"LOOKUP([id],Дети[id],Дети[пол])","v":"м"},{"$f":"LOOKUP([id],Дети[id],Дети[Дата рождения])","v":"1997-12-02"},"пистолет",33,7]
[474,{"$f":"LOOKUP([id],Дети[id],Дети[team_id])","v":24},{"$f":"LOOKUP([team_id],Команды[id],Команды[Коротко])","v":"Пушкино"},{"$f":"LOOKUP([id],Дети[id],Дети[ФИО])","v":"Козицкий Сергей Сергеевич"},{"$f":"LOOKUP([id],Дети[id],Дети[пол])","v":"м"},{"$f":"LOOKUP([id],Дети[id],Дети[Дата рождения])","v":"1997-11-23"},"пистолет",31,8]
[297,{"$f":"LOOKUP([id],Дети[id],Дети[team_id])","v":15},{"$f":"LOOKUP([team_id],Команды[id],Команды[Коротко])","v":"Воронеж"},{"$f":"LOOKUP([id],Дети[id],Дети[ФИО])","v":"Хамидов Всеволод Александрович"},{"$f":"LOOKUP([id],Дети[id],Дети[пол])","v":"м"},{"$f":"LOOKUP([id],Дети[id],Дети[Дата рождения])","v":"1998-02-03"},"пистолет",30,9]
[232,{"$f":"LOOKUP([id],Дети[id],Дети[team_id])","v":12},{"$f":"LOOKUP([team_id],Команды[id],Команды[Коротко])","v":"Истра"},{"$f":"LOOKUP([id],Дети[id],Дети[ФИО])","v":"Трофимов Иван Александрович"},{"$f":"LOOKUP([id],Дети[id],Дети[пол])","v":"м"},{"$f":"LOOKUP([id],Дети[id],Дети[Дата рождения])","v":"1998-10-15"},"пистолет",30,10]
[318,{"$f":"LOOKUP([id],Дети[id],Дети[team_id])","v":16},{"$f":"LOOKUP([team_id],Команды[id],Команды[Коротко])","v":"Тверь"},{"$f":"LOOKUP([id],Дети[id],Дети[ФИО])","v":"Владимиров Дмитрий Сергеевич"},{"$f":"LOOKUP([id],Дети[id],Дети[пол])","v":"м"},{"$f":"LOOKUP([id],Дети[id],Дети[Дата рождения])","v":"1997-05-09"},"пистолет",30,11]
[328,{"$f":"LOOKUP([id],Дети[id],Дети[team_id])","v":17},{"$f":"LOOKUP([team_id],Команды[id],Команды[Коротко])","v":"Смоленск"},{"$f":"LOOKUP([id],Дети[id],Дети[ФИО])","v":"Молокоедов Дмитрий Владимирович"},{"$f":"LOOKUP([id],Дети[id],Дети[пол])","v":"м"},{"$f":"LOOKUP([id],Дети[id],Дети[Дата рождения])","v":"1998-07-11"},"пистолет",28,12]
[173,{"$f":"LOOKUP([id],Дети[id],Дети[team_id])","v":9},{"$f":"LOOKUP([team_id],Команды[id],Команды[Коротко])","v":"Курск"},{"$f":"LOOKUP([id],Дети[id],Дети[ФИО])","v":"Мосолов Валерий"},{"$f":"LOOKUP([id],Дети[id],Дети[пол])","v":"м"},{"$f":"LOOKUP([id],Дети[id],Дети[Дата рождения])","v":"1997-06-10"},"пистолет",24,13]
[431,{"$f":"LOOKUP([id],Дети[id],Дети[team_id])","v":22},{"$f":"LOOKUP([team_id],Команды[id],Команды[Коротко])","v":"Киров"},{"$f":"LOOKUP([id],Дети[id],Дети[ФИО])","v":"Бледных Виталий"},{"$f":"LOOKUP([id],Дети[id],Дети[пол])","v":"м"},{"$f":"LOOKUP([id],Дети[id],Дети[Дата рождения])","v":"1997-06-23"},"пистолет",24,14]
[123,{"$f":"LOOKUP([id],Дети[id],Дети[team_id])","v":7},{"$f":"LOOKUP([team_id],Команды[id],Команды[Коротко])","v":"Клин"},{"$f":"LOOKUP([id],Дети[id],Дети[ФИО])","v":"Соколов Никита Сергеевич"},{"$f":"LOOKUP([id],Дети[id],Дети[пол])","v":"м"},{"$f":"LOOKUP([id],Дети[id],Дети[Дата рождения])","v":"1998-10-10"},"пистолет",23,15]
[6,{"$f":"LOOKUP([id],Дети[id],Дети[team_id])","v":1},{"$f":"LOOKUP([team_id],Команды[id],Команды[Коротко])","v":"ОМОН"},{"$f":"LOOKUP([id],Дети[id],Дети[ФИО])","v":"Платонов Александр Александрович"},{"$f":"LOOKUP([id],Дети[id],Дети[пол])","v":"м"},{"$f":"LOOKUP([id],Дети[id],Дети[Дата рождения])","v":"1999-01-05"},"пистолет",22,16]
[371,{"$f":"LOOKUP([id],Дети[id],Дети[team_id])","v":19},{"$f":"LOOKUP([team_id],Команды[id],Команды[Коротко])","v":"Тамбов"},{"$f":"LOOKUP([id],Дети[id],Дети[ФИО])","v":"Куров Алексей"},{"$f":"LOOKUP([id],Дети[id],Дети[пол])","v":"м"},{"$f":"LOOKUP([id],Дети[id],Дети[Дата рождения])","v":"1997-05-12"},"пистолет",22,17]
[30,{"$f":"LOOKUP([id],Дети[id],Дети[team_id])","v":2},{"$f":"LOOKUP([team_id],Команды[id],Команды[Коротко])","v":"Липецк"},{"$f":"LOOKUP([id],Дети[id],Дети[ФИО])","v":"Феклин Алексей Юрьевич"},{"$f":"LOOKUP([id],Дети[id],Дети[пол])","v":"м"},{"$f":"LOOKUP([id],Дети[id],Дети[Дата рождения])","v":"1998-06-30"},"пистолет",15,18]
[389,{"$f":"LOOKUP([id],Дети[id],Дети[team_id])","v":20},{"$f":"LOOKUP([team_id],Команды[id],Команды[Коротко])","v":"Татарстан"},{"$f":"LOOKUP([id],Дети[id],Дети[ФИО])","v":"Шакиров Наиль Алмазович"},{"$f":"LOOKUP([id],Дети[id],Дети[пол])","v":"м"},{"$f":"LOOKUP([id],Дети[id],Дети[Дата рождения])","v":"1997-07-30"},"пистолет",14,19]
[246,{"$f":"LOOKUP([id],Дети[id],Дети[team_id])","v":13},{"$f":"LOOKUP([team_id],Команды[id],Команды[Коротко])","v":"Владимир"},{"$f":"LOOKUP([id],Дети[id],Дети[ФИО])","v":"Бобринев Иван Алексеевич"},{"$f":"LOOKUP([id],Дети[id],Дети[пол])","v":"м"},{"$f":"LOOKUP([id],Дети[id],Дети[Дата рождения])","v":"1998-01-14"},"пистолет",14,20]
[518,{"$f":"LOOKUP([id],Дети[id],Дети[team_id])","v":26},{"$f":"LOOKUP([team_id],Команды[id],Команды[Коротко])","v":"Олимп, Шатура"},{"$f":"LOOKUP([id],Дети[id],Дети[ФИО])","v":"Краснов Владислав Александрович"},{"$f":"LOOKUP([id],Дети[id],Дети[пол])","v":"м"},{"$f":"LOOKUP([id],Дети[id],Дети[Дата рождения])","v":"1997-08-09"},"пистолет",14,21]
[444,{"$f":"LOOKUP([id],Дети[id],Дети[team_id])","v":23},{"$f":"LOOKUP([team_id],Команды[id],Команды[Коротко])","v":"Иваново"},{"$f":"LOOKUP([id],Дети[id],Дети[ФИО])","v":"Назаров Антон Владимирович"},{"$f":"LOOKUP([id],Дети[id],Дети[пол])","v":"м"},{"$f":"LOOKUP([id],Дети[id],Дети[Дата рождения])","v":"1998-07-20"},"пистолет",11,22]
[82,{"$f":"LOOKUP([id],Дети[id],Дети[team_id])","v":5},{"$f":"LOOKUP([team_id],Команды[id],Команды[Коротко])","v":"Краснодар"},{"$f":"LOOKUP([id],Дети[id],Дети[ФИО])","v":"Сметанин Алекс Эдуардович"},{"$f":"LOOKUP([id],Дети[id],Дети[пол])","v":"м"},{"$f":"LOOKUP([id],Дети[id],Дети[Дата рождения])","v":"1997-02-13"},"пистолет",11,23]
[220,{"$f":"LOOKUP([id],Дети[id],Дети[team_id])","v":11},{"$f":"LOOKUP([team_id],Команды[id],Команды[Коротко])","v":"Москва"},{"$f":"LOOKUP([id],Дети[id],Дети[ФИО])","v":"Шутков Алексей"},{"$f":"LOOKUP([id],Дети[id],Дети[пол])","v":"м"},{"$f":"LOOKUP([id],Дети[id],Дети[Дата рождения])","v":"1998-06-16"},"пистолет",4,24]
[524,{"$f":"LOOKUP([id],Дети[id],Дети[team_id])","v":27},{"$f":"LOOKUP([team_id],Команды[id],Команды[Коротко])","v":"ОМСН"},{"$f":"LOOKUP([id],Дети[id],Дети[ФИО])","v":"Тимашков Максим Михайлович"},{"$f":"LOOKUP([id],Дети[id],Дети[пол])","v":"м"},{"$f":"LOOKUP([id],Дети[id],Дети[Дата рождения])","v":"1998-04-23"},"пистолет",4,25]
[145,{"$f":"LOOKUP([id],Дети[id],Дети[team_id])","v":8},{"$f":"LOOKUP([team_id],Команды[id],Команды[Коротко])","v":"Руза"},{"$f":"LOOKUP([id],Дети[id],Дети[ФИО])","v":"Сорокин Алексей"},{"$f":"LOOKUP([id],Дети[id],Дети[пол])","v":"м"},{"$f":"LOOKUP([id],Дети[id],Дети[Дата рождения])","v":"1998-01-28"},"пистолет",1,26]
[]
[]
[null,null,"Председатель оргкомитета                                  /Громов А.Г./"]

{"sheet":"стрельба-АК","index":7,"n_rows":32,"n_cols":7,"rows_kept":32,"cut":false,"hidden":false,"merged":[[0,2,0,5]]}
[null,null,"Протокол №5 (стрельба-АК)"]
[null,null,null,null,null,null,"5 июня 2011, 15:43"]
["id","team_id","Команда","ФИО","Дата рождения","Результат","Место"]
[540,{"$f":"LOOKUP([id],Дети[id],Дети[team_id])","v":27},{"$f":"LOOKUP([team_id],Команды[id],Команды[Коротко])","v":"ОМСН"},{"$f":"LOOKUP([id],Дети[id],Дети[ФИО])","v":"Целкова Валерия Дмитриевна"},{"$f":"LOOKUP([id],Дети[id],Дети[Дата рождения])","v":"1997-01-06"},78,1]
[421,{"$f":"LOOKUP([id],Дети[id],Дети[team_id])","v":22},{"$f":"LOOKUP([team_id],Команды[id],Команды[Коротко])","v":"Киров"},{"$f":"LOOKUP([id],Дети[id],Дети[ФИО])","v":"Безродных Елизавета"},{"$f":"LOOKUP([id],Дети[id],Дети[Дата рождения])","v":"1997-05-03"},77,2]
[220,{"$f":"LOOKUP([id],Дети[id],Дети[team_id])","v":11},{"$f":"LOOKUP([team_id],Команды[id],Команды[Коротко])","v":"Москва"},{"$f":"LOOKUP([id],Дети[id],Дети[ФИО])","v":"Шутков Алексей"},{"$f":"LOOKUP([id],Дети[id],Дети[Дата рождения])","v":"1998-06-16"},77,3]
[407,{"$f":"LOOKUP([id],Дети[id],Дети[team_id])","v":21},{"$f":"LOOKUP([team_id],Команды[id],Команды[Коротко])","v":"Ступино"},{"$f":"LOOKUP([id],Дети[id],Дети[ФИО])","v":"Куклин  Александр Николаевич "},{"$f":"LOOKUP([id],Дети[id],Дети[Дата рождения])","v":"1997-12-02"},74,4]
[105,{"$f":"LOOKUP([id],Дети[id],Дети[team_id])","v":6},{"$f":"LOOKUP([team_id],Команды[id],Команды[Коротко])","v":"Энергия, Шатура"},{"$f":"LOOKUP([id],Дети[id],Дети[ФИО])","v":"Щепкин Валерий Витальевич"},{"$f":"LOOKUP([id],Дети[id],Дети[Дата рождения])","v":"1997-04-18"},70,5]
[41,{"$f":"LOOKUP([id],Дети[id],Дети[team_id])","v":3},{"$f":"LOOKUP([team_id],Команды[id],Команды[Коротко])","v":"Дмитров"},{"$f":"LOOKUP([id],Дети[id],Дети[ФИО])","v":"Тагасов Семен Павлович"},{"$f":"LOOKUP([id],Дети[id],Дети[Дата рождения])","v":"1997-04-17"},68,6]
[319,{"$f":"LOOKUP([id],Дети[id],Дети[team_id])","v":16},{"$f":"LOOKUP([team_id],Команды[id],Команды[Коротко])","v":"Тверь"},{"$f":"LOOKUP([id],Дети[id],Дети[ФИО])","v":"Ханина Валерия Дмитриевна"},{"$f":"LOOKUP([id],Дети[id],Дети[Дата рождения])","v":"1998-03-26"},67,7]
[347,{"$f":"LOOKUP([id],Дети[id],Дети[team_id])","v":18},{"$f":"LOOKUP([team_id],Команды[id],Команды[Коротко])","v":"Одинцово"},{"$f":"LOOKUP([id],Дети[id],Дети[ФИО])","v":"Тюряков Андрей Александрович"},{"$f":"LOOKUP([id],Дети[id],Дети[Дата рождения])","v":"1997-12-05"},66,8]
[514,{"$f":"LOOKUP([id],Дети[id],Дети[team_id])","v":26},{"$f":"LOOKUP([team_id],Команды[id],Команды[Коротко])","v":"Олимп, Шатура"},{"$f":"LOOKUP([id],Дети[id],Дети[ФИО])","v":"Филиппов Матвей Сергеевич"},{"$f":"LOOKUP([id],Дети[id],Дети[Дата рождения])","v":"2000-01-06"},64,9]
[151,{"$f":"LOOKUP([id],Дети[id],Дети[team_id])","v":8},{"$f":"LOOKUP([team_id],Команды[id],Команды[Коротко])","v":"Руза"},{"$f":"LOOKUP([id],Дети[id],Дети[ФИО])","v":"Ковач Валерия"},{"$f":"LOOKUP([id],Дети[id],Дети[Дата рождения])","v":"1998-04-05"},64,10]
[82,{"$f":"LOOKUP([id],Дети[id],Дети[team_id])","v":5},{"$f":"LOOKUP([team_id],Команды[id],Команды[Коротко])","v":"Краснодар"},{"$f":"LOOKUP([id],Дети[id],Дети[ФИО])","v":"Сметанин Алекс Эдуардович"},{"$f":"LOOKUP([id],Дети[id],Дети[Дата рождения])","v":"1997-02-13"},59,11]
[127,{"$f":"LOOKUP([id],Дети[id],Дети[team_id])","v":7},{"$f":"LOOKUP([team_id],Команды[id],Команды[Коротко])","v":"Клин"},{"$f":"LOOKUP([id],Дети[id],Дети[ФИО])","v":"Козлов Федор Дмитриевич"},{"$f":"LOOKUP([id],Дети[id],Дети[Дата рождения])","v":"1998-05-15"},57,12]
[374,{"$f":"LOOKUP([id],Дети[id],Дети[team_id])","v":19},{"$f":"LOOKUP([team_id],Команды[id],Команды[Коротко])","v":"Тамбов"},{"$f":"LOOKUP([id],Дети[id],Дети[ФИО])","v":"Рябов Антон"},{"$f":"LOOKUP([id],Дети[id],Дети[Дата рождения])","v":"1997-01-28"},49,13]
[161,{"$f":"LOOKUP([id],Дети[id],Дети[team_id])","v":9},{"$f":"LOOKUP([team_id],Команды[id],Команды[Коротко])","v":"Курск"},{"$f":"LOOKUP([id],Дети[id],Дети[ФИО])","v":"Власов Денис"},{"$f":"LOOKUP([id],Дети[id],Дети[Дата рождения])","v":"1997-10-03"},31,14]
[392,{"$f":"LOOKUP([id],Дети[id],Дети[team_id])","v":20},{"$f":"LOOKUP([team_id],Команды[id],Команды[Коротко])","v":"Татарстан"},{"$f":"LOOKUP([id],Дети[id],Дети[ФИО])","v":"Чалая Наталия Валерьевна"},{"$f":"LOOKUP([id],Дети[id],Дети[Дата рождения])","v":"1997-06-13"},25,15]
[232,{"$f":"LOOKUP([id],Дети[id],Дети[team_id])","v":12},{"$f":"LOOKUP([team_id],Команды[id],Команды[Коротко])","v":"Истра"},{"$f":"LOOKUP([id],Дети[id],Дети[ФИО])","v":"Трофимов Иван Александрович"},{"$f":"LOOKUP([id],Дети[id],Дети[Дата рождения])","v":"1998-10-15"},24,16]
[5,{"$f":"LOOKUP([id],Дети[id],Дети[team_id])","v":1},{"$f":"LOOKUP([team_id],Команды[id],Команды[Коротко])","v":"ОМОН"},{"$f":"LOOKUP([id],Дети[id],Дети[ФИО])","v":"Заварихин Семен Александрович"},{"$f":"LOOKUP([id],Дети[id],Дети[Дата рождения])","v":"1997-12-16"},21,17]
[489,{"$f":"LOOKUP([id],Дети[id],Дети[team_id])","v":25},{"$f":"LOOKUP([team_id],Команды[id],Команды[Коротко])","v":"Ярославль"},{"$f":"LOOKUP([id],Дети[id],Дети[ФИО])","v":"Вьюшин Евгений Вячеславович"},{"$f":"LOOKUP([id],Дети[id],Дети[Дата рождения])","v":"1997-12-16"},19,18]
[322,{"$f":"LOOKUP([id],Дети[id],Дети[team_id])","v":17},{"$f":"LOOKUP([team_id],Команды[id],Команды[Коротко])","v":"Смоленск"},{"$f":"LOOKUP([id],Дети[id],Дети[ФИО])","v":"Путилин Захар Алексеевич"},{"$f":"LOOKUP([id],Дети[id],Дети[Дата рождения])","v":"1997-04-02"},15,19]
[253,{"$f":"LOOKUP([id],Дети[id],Дети[team_id])","v":13},{"$f":"LOOKUP([team_id],Команды[id],Команды[Коротко])","v":"Владимир"},{"$f":"LOOKUP([id],Дети[id],Дети[ФИО])","v":"Сухарников Александр Александрович"},{"$f":"LOOKUP([id],Дети[id],Дети[Дата рождения])","v":"1998-01-04"},14,20]
[463,{"$f":"LOOKUP([id],Дети[id],Дети[team_id])","v":24},{"$f":"LOOKUP([team_id],Команды[id],Команды[Коротко])","v":"Пушкино"},{"$f":"LOOKUP([id],Дети[id],Дети[ФИО])","v":"Жуков Вячеслав Викторович"},{"$f":"LOOKUP([id],Дети[id],Дети[Дата рождения])","v":"1997-07-16"},14,21]
[447,{"$f":"LOOKUP([id],Дети[id],Дети[team_id])","v":23},{"$f":"LOOKUP([team_id],Команды[id],Команды[Коротко])","v":"Иваново"},{"$f":"LOOKUP([id],Дети[id],Дети[ФИО])","v":"Данько Артем Александрович"},{"$f":"LOOKUP([id],Дети[id],Дети[Дата рождения])","v":"1997-09-27"},8,22]
[292,{"$f":"LOOKUP([id],Дети[id],Дети[team_id])","v":15},{"$f":"LOOKUP([team_id],Команды[id],Команды[Коротко])","v":"Воронеж"},{"$f":"LOOKUP([id],Дети[id],Дети[ФИО])","v":"Кальченко Никита Сергеевич"},{"$f":"LOOKUP([id],Дети[id],Дети[Дата рождения])","v":"1997-06-26"},7,23]
[186,{"$f":"LOOKUP([id],Дети[id],Дети[team_id])","v":10},{"$f":"LOOKUP([team_id],Команды[id],Команды[Коротко])","v":"Кашира"},{"$f":"LOOKUP([id],Дети[id],Дети[ФИО])","v":"Кузина Лидия Эдуардовна"},{"$f":"LOOKUP([id],Дети[id],Дети[Дата рождения])","v":"1998-11-21"},0,24]
[269,{"$f":"LOOKUP([id],Дети[id],Дети[team_id])","v":14},{"$f":"LOOKUP([team_id],Команды[id],Команды[Коротко])","v":"Воскресенск"},{"$f":"LOOKUP([id],Дети[id],Дети[ФИО])","v":"Мурашов Максим Александрович"},{"$f":"LOOKUP([id],Дети[id],Дети[Дата рождения])","v":"1999-02-23"},0,25]
[24,{"$f":"LOOKUP([id],Дети[id],Дети[team_id])","v":2},{"$f":"LOOKUP([team_id],Команды[id],Команды[Коротко])","v":"Липецк"},{"$f":"LOOKUP([id],Дети[id],Дети[ФИО])","v":"Матвиенко Даниил Николаевич"},{"$f":"LOOKUP([id],Дети[id],Дети[Дата рождения])","v":"1999-07-30"},0,26]
[]
[]
[null,null,"Председатель оргкомитета                                  /Громов А.Г./"]

{"sheet":"подтягивание","index":8,"n_rows":58,"n_cols":7,"rows_kept":58,"cut":false,"hidden":false,"merged":[[0,2,0,6]]}
[null,null,"Протокол №6 (подтягивание)"]
[null,null,null,null,null,null,"5 июня 2011, 13:59"]
["id","team_id","Команда","ФИО","Дата рождения","результат","Место"]
[399,{"$f":"LOOKUP([id],Дети[id],Дети[team_id])","v":20},{"$f":"LOOKUP([team_id],Команды[id],Команды[Коротко])","v":"Татарстан"},{"$f":"LOOKUP([id],Дети[id],Дети[ФИО])","v":"Идрисов Амир Рустамович"},{"$f":"LOOKUP([id],Дети[id],Дети[Дата рождения])","v":"1999-05-06"},44,1]
[388,{"$f":"LOOKUP([id],Дети[id],Дети[team_id])","v":20},{"$f":"LOOKUP([team_id],Команды[id],Команды[Коротко])","v":"Татарстан"},{"$f":"LOOKUP([id],Дети[id],Дети[ФИО])","v":"Паранин Николай Александрович"},{"$f":"LOOKUP([id],Дети[id],Дети[Дата рождения])","v":"2000-11-18"},38,2]
[361,{"$f":"LOOKUP([id],Дети[id],Дети[team_id])","v":19},{"$f":"LOOKUP([team_id],Команды[id],Команды[Коротко])","v":"Тамбов"},{"$f":"LOOKUP([id],Дети[id],Дети[ФИО])","v":"Михалев Константин"},{"$f":"LOOKUP([id],Дети[id],Дети[Дата рождения])","v":"1997-10-29"},25,3]
[317,{"$f":"LOOKUP([id],Дети[id],Дети[team_id])","v":16},{"$f":"LOOKUP([team_id],Команды[id],Команды[Коротко])","v":"Тверь"},{"$f":"LOOKUP([id],Дети[id],Дети[ФИО])","v":"Иванов Максим Сергеевич"},{"$f":"LOOKUP([id],Дети[id],Дети[Дата рождения])","v":"1997-08-14"},25,4]
[518,{"$f":"LOOKUP([id],Дети[id],Дети[team_id])","v":26},{"$f":"LOOKUP([team_id],Команды[id],Команды[Коротко])","v":"Олимп, Шатура"},{"$f":"LOOKUP([id],Дети[id],Дети[ФИО])","v":"Краснов Владислав Александрович"},{"$f":"LOOKUP([id],Дети[id],Дети[Дата рождения])","v":"1997-08-09"},25,5]
[512,{"$f":"LOOKUP([id],Дети[id],Дети[team_id])","v":26},{"$f":"LOOKUP([team_id],Команды[id],Команды[Коротко])","v":"Олимп, Шатура"},{"$f":"LOOKUP([id],Дети[id],Дети[ФИО])","v":"Шорин Илья павлович"},{"$f":"LOOKUP([id],Дети[id],Дети[Дата рождения])","v":"1997-07-11"},25,6]
[328,{"$f":"LOOKUP([id],Дети[id],Дети[team_id])","v":17},{"$f":"LOOKUP([team_id],Команды[id],Команды[Коротко])","v":"Смоленск"},{"$f":"LOOKUP([id],Дети[id],Дети[ФИО])","v":"Молокоедов Дмитрий Владимирович"},{"$f":"LOOKUP([id],Дети[id],Дети[Дата рождения])","v":"1998-07-11"},24,7]
[43,{"$f":"LOOKUP([id],Дети[id],Дети[team_id])","v":3},{"$f":"LOOKUP([team_id],Команды[id],Команды[Коротко])","v":"Дмитров"},{"$f":"LOOKUP([id],Дети[id],Дети[ФИО])","v":"Сарафанов Михаил Алекссевич"},{"$f":"LOOKUP([id],Дети[id],Дети[Дата рождения])","v":"1997-11-12"},24,8]
[81,{"$f":"LOOKUP([id],Дети[id],Дети[team_id])","v":5},{"$f":"LOOKUP([team_id],Команды[id],Команды[Коротко])","v":"Краснодар"},{"$f":"LOOKUP([id],Дети[id],Дети[ФИО])","v":"Ханануев Аким Дмитриевич"},{"$f":"LOOKUP([id],Дети[id],Дети[Дата рождения])","v":"1997-06-13"},23,9]
[302,{"$f":"LOOKUP([id],Дети[id],Дети[team_id])","v":16},{"$f":"LOOKUP([team_id],Команды[id],Команды[Коротко])","v":"Тверь"},{"$f":"LOOKUP([id],Дети[id],Дети[ФИО])","v":"Нестерович Станислав Константинович"},{"$f":"LOOKUP([id],Дети[id],Дети[Дата рождения])","v":"1997-05-18"},23,10]
[415,{"$f":"LOOKUP([id],Дети[id],Дети[team_id])","v":21},{"$f":"LOOKUP([team_id],Команды[id],Команды[Коротко])","v":"Ступино"},{"$f":"LOOKUP([id],Дети[id],Дети[ФИО])","v":"Валуев Кирилл Вячеславович"},{"$f":"LOOKUP([id],Дети[id],Дети[Дата рождения])","v":"1997-02-17"},23,11]
[375,{"$f":"LOOKUP([id],Дети[id],Дети[team_id])","v":19},{"$f":"LOOKUP([team_id],Команды[id],Команды[Коротко])","v":"Тамбов"},{"$f":"LOOKUP([id],Дети[id],Дети[ФИО])","v":"Пустограев Григорий"},{"$f":"LOOKUP([id],Дети[id],Дети[Дата рождения])","v":"1997-10-21"},22,12]
[103,{"$f":"LOOKUP([id],Дети[id],Дети[team_id])","v":6},{"$f":"LOOKUP([team_id],Команды[id],Команды[Коротко])","v":"Энергия, Шатура"},{"$f":"LOOKUP([id],Дети[id],Дети[ФИО])","v":"Забабуркин Константин Юрьевич"},{"$f":"LOOKUP([id],Дети[id],Дети[Дата рождения])","v":"1997-09-28"},21,13]
[241,{"$f":"LOOKUP([id],Дети[id],Дети[team_id])","v":13},{"$f":"LOOKUP([team_id],Команды[id],Команды[Коротко])","v":"Владимир"},{"$f":"LOOKUP([id],Дети[id],Дети[ФИО])","v":"Садаков Анатолий Сергеевич"},{"$f":"LOOKUP([id],Дети[id],Дети[Дата рождения])","v":"1999-05-19"},20,14]
[250,{"$f":"LOOKUP([id],Дети[id],Дети[team_id])","v":13},{"$f":"LOOKUP([team_id],Команды[id],Команды[Коротко])","v":"Владимир"},{"$f":"LOOKUP([id],Дети[id],Дети[ФИО])","v":"Моисеев Артем Владимирович"},{"$f":"LOOKUP([id],Дети[id],Дети[Дата рождения])","v":"1998-04-03"},20,15]
[497,{"$f":"LOOKUP([id],Дети[id],Дети[team_id])","v":25},{"$f":"LOOKUP([team_id],Команды[id],Команды[Коротко])","v":"Ярославль"},{"$f":"LOOKUP([id],Дети[id],Дети[ФИО])","v":"Салтыков Владимир"},{"$f":"LOOKUP([id],Дети[id],Дети[Дата рождения])","v":"1997-12-10"},20,16]
[323,{"$f":"LOOKUP([id],Дети[id],Дети[team_id])","v":17},{"$f":"LOOKUP([team_id],Команды[id],Команды[Коротко])","v":"Смоленск"},{"$f":"LOOKUP([id],Дети[id],Дети[ФИО])","v":"Останков Артем Александрович"},{"$f":"LOOKUP([id],Дети[id],Дети[Дата рождения])","v":"1997-11-27"},20,17]
[199,{"$f":"LOOKUP([id],Дети[id],Дети[team_id])","v":10},{"$f":"LOOKUP([team_id],Команды[id],Команды[Коротко])","v":"Кашира"},{"$f":"LOOKUP([id],Дети[id],Дети[ФИО])","v":"Комаров Дмитрий Александрович"},{"$f":"LOOKUP([id],Дети[id],Дети[Дата рождения])","v":"1998-11-15"},18,18]
[438,{"$f":"LOOKUP([id],Дети[id],Дети[team_id])","v":22},{"$f":"LOOKUP([team_id],Команды[id],Команды[Коротко])","v":"Киров"},{"$f":"LOOKUP([id],Дети[id],Дети[ФИО])","v":"Мовсесян Рофаэл"},{"$f":"LOOKUP([id],Дети[id],Дети[Дата рождения])","v":"1997-05-04"},18,19]
[239,{"$f":"LOOKUP([id],Дети[id],Дети[team_id])","v":12},{"$f":"LOOKUP([team_id],Команды[id],Команды[Коротко])","v":"Истра"},{"$f":"LOOKUP([id],Дети[id],Дети[ФИО])","v":"Пылаев Дмитрий Евгеньевич"},{"$f":"LOOKUP([id],Дети[id],Дети[Дата рождения])","v":"1999-06-16"},17,20]
[179,{"$f":"LOOKUP([id],Дети[id],Дети[team_id])","v":9},{"$f":"LOOKUP([team_id],Команды[id],Команды[Коротко])","v":"Курск"},{"$f":"LOOKUP([id],Дети[id],Дети[ФИО])","v":"Исаев Ахмед"},{"$f":"LOOKUP([id],Дети[id],Дети[Дата рождения])","v":"1997-01-22"},17,21]
[522,{"$f":"LOOKUP([id],Дети[id],Дети[team_id])","v":27},{"$f":"LOOKUP([team_id],Команды[id],Команды[Коротко])","v":"ОМСН"},{"$f":"LOOKUP([id],Дети[id],Дети[ФИО])","v":"Леваков Илья Владимирович"},{"$f":"LOOKUP([id],Дети[id],Дети[Дата рождения])","v":"1997-01-07"},17,22]
[42,{"$f":"LOOKUP([id],Дети[id],Дети[team_id])","v":3},{"$f":"LOOKUP([team_id],Команды[id],Команды[Коротко])","v":"Дмитров"},{"$f":"LOOKUP([id],Дети[id],Дети[ФИО])","v":"Севрюков Валерий Юрьевич"},{"$f":"LOOKUP([id],Дети[id],Дети[Дата рождения])","v":"1999-09-29"},16,23]
[88,{"$f":"LOOKUP([id],Дети[id],Дети[team_id])","v":5},{"$f":"LOOKUP([team_id],Команды[id],Команды[Коротко])","v":"Краснодар"},{"$f":"LOOKUP([id],Дети[id],Дети[ФИО])","v":"Черников Александр Владимирович"},{"$f":"LOOKUP([id],Дети[id],Дети[Дата рождения])","v":"1998-03-22"},16,24]
[435,{"$f":"LOOKUP([id],Дети[id],Дети[team_id])","v":22},{"$f":"LOOKUP([team_id],Команды[id],Команды[Коротко])","v":"Киров"},{"$f":"LOOKUP([id],Дети[id],Дети[ФИО])","v":"Медведев Никита"},{"$f":"LOOKUP([id],Дети[id],Дети[Дата рождения])","v":"1997-10-24"},16,25]
[141,{"$f":"LOOKUP([id],Дети[id],Дети[team_id])","v":8},{"$f":"LOOKUP([team_id],Команды[id],Команды[Коротко])","v":"Руза"},{"$f":"LOOKUP([id],Дети[id],Дети[ФИО])","v":"Кузьмин Максим"},{"$f":"LOOKUP([id],Дети[id],Дети[Дата рождения])","v":"1997-09-12"},16,26]
[19,{"$f":"LOOKUP([id],Дети[id],Дети[team_id])","v":1},{"$f":"LOOKUP([team_id],Команды[id],Команды[Коротко])","v":"ОМОН"},{"$f":"LOOKUP([id],Дети[id],Дети[ФИО])","v":"Амплеев Кирилл Олегович"},{"$f":"LOOKUP([id],Дети[id],Дети[Дата рождения])","v":"1998-06-05"},15,27]
[28,{"$f":"LOOKUP([id],Дети[id],Дети[team_id])","v":2},{"$f":"LOOKUP([team_id],Команды[id],Команды[Коротко])","v":"Липецк"},{"$f":"LOOKUP([id],Дети[id],Дети[ФИО])","v":"Шмыгалев Евгений Геннадьевич"},{"$f":"LOOKUP([id],Дети[id],Дети[Дата рождения])","v":"1998-05-03"},15,28]
[489,{"$f":"LOOKUP([id],Дети[id],Дети[team_id])","v":25},{"$f":"LOOKUP([team_id],Команды[id],Команды[Коротко])","v":"Ярославль"},{"$f":"LOOKUP([id],Дети[id],Дети[ФИО])","v":"Вьюшин Евгений Вячеславович"},{"$f":"LOOKUP([id],Дети[id],Дети[Дата рождения])","v":"1997-12-16"},15,29]
[283,{"$f":"LOOKUP([id],Дети[id],Дети[team_id])","v":15},{"$f":"LOOKUP([team_id],Команды[id],Команды[Коротко])","v":"Воронеж"},{"$f":"LOOKUP([id],Дети[id],Дети[ФИО])","v":"Долгалев Владислав Сергеевич"},{"$f":"LOOKUP([id],Дети[id],Дети[Дата рождения])","v":"1997-07-07"},15,30]
[476,{"$f":"LOOKUP([id],Дети[id],Дети[team_id])","v":24},{"$f":"LOOKUP([team_id],Команды[id],Команды[Коротко])","v":"Пушкино"},{"$f":"LOOKUP([id],Дети[id],Дети[ФИО])","v":"Вакарин Сергей Сергеевич"},{"$f":"LOOKUP([id],Дети[id],Дети[Дата рождения])","v":"1997-02-12"},15,31]
[30,{"$f":"LOOKUP([id],Дети[id],Дети[team_id])","v":2},{"$f":"LOOKUP([team_id],Команды[id],Команды[Коротко])","v":"Липецк"},{"$f":"LOOKUP([id],Дети[id],Дети[ФИО])","v":"Феклин Алексей Юрьевич"},{"$f":"LOOKUP([id],Дети[id],Дети[Дата рождения])","v":"1998-06-30"},14,32]
[357,{"$f":"LOOKUP([id],Дети[id],Дети[team_id])","v":18},{"$f":"LOOKUP([team_id],Команды[id],Команды[Коротко])","v":"Одинцово"},{"$f":"LOOKUP([id],Дети[id],Дети[ФИО])","v":"Суворкин Илья Константинович"},{"$f":"LOOKUP([id],Дети[id],Дети[Дата рождения])","v":"1997-06-07"},14,33]
[195,{"$f":"LOOKUP([id],Дети[id],Дети[team_id])","v":10},{"$f":"LOOKUP([team_id],Команды[id],Команды[Коротко])","v":"Кашира"},{"$f":"LOOKUP([id],Дети[id],Дети[ФИО])","v":"Пахомов Ярослав Николаевич"},{"$f":"LOOKUP([id],Дети[id],Дети[Дата рождения])","v":"1997-05-06"},14,34]
[236,{"$f":"LOOKUP([id],Дети[id],Дети[team_id])","v":12},{"$f":"LOOKUP([team_id],Команды[id],Команды[Коротко])","v":"Истра"},{"$f":"LOOKUP([id],Дети[id],Дети[ФИО])","v":"Талыбов Орхан"},{"$f":"LOOKUP([id],Дети[id],Дети[Дата рождения])","v":"1998-03-24"},13,35]
[205,{"$f":"LOOKUP([id],Дети[id],Дети[team_id])","v":11},{"$f":"LOOKUP([team_id],Команды[id],Команды[Коротко])","v":"Москва"},{"$f":"LOOKUP([id],Дети[id],Дети[ФИО])","v":"Гусев Даниил"},{"$f":"LOOKUP([id],Дети[id],Дети[Дата рождения])","v":"1998-01-08"},13,36]
[143,{"$f":"LOOKUP([id],Дети[id],Дети[team_id])","v":8},{"$f":"LOOKUP([team_id],Команды[id],Команды[Коротко])","v":"Руза"},{"$f":"LOOKUP([id],Дети[id],Дети[ФИО])","v":"Филимонов Александр"},{"$f":"LOOKUP([id],Дети[id],Дети[Дата рождения])","v":"1997-08-24"},13,37]
[177,{"$f":"LOOKUP([id],Дети[id],Дети[team_id])","v":9},{"$f":"LOOKUP([team_id],Команды[id],Команды[Коротко])","v":"Курск"},{"$f":"LOOKUP([id],Дети[id],Дети[ФИО])","v":"Дюкарев Игорь"},{"$f":"LOOKUP([id],Дети[id],Дети[Дата рождения])","v":"1997-06-25"},13,38]
[267,{"$f":"LOOKUP([id],Дети[id],Дети[team_id])","v":14},{"$f":"LOOKUP([team_id],Команды[id],Команды[Коротко])","v":"Воскресенск"},{"$f":"LOOKUP([id],Дети[id],Дети[ФИО])","v":"Бортников Александр Олегович"},{"$f":"LOOKUP([id],Дети[id],Дети[Дата рождения])","v":"1998-12-25"},12,39]
[265,{"$f":"LOOKUP([id],Дети[id],Дети[team_id])","v":14},{"$f":"LOOKUP([team_id],Команды[id],Команды[Коротко])","v":"Воскресенск"},{"$f":"LOOKUP([id],Дети[id],Дети[ФИО])","v":"Андреянченко Иван Александрович"},{"$f":"LOOKUP([id],Дети[id],Дети[Дата рождения])","v":"1998-07-03"},12,40]
[521,{"$f":"LOOKUP([id],Дети[id],Дети[team_id])","v":27},{"$f":"LOOKUP([team_id],Команды[id],Команды[Коротко])","v":"ОМСН"},{"$f":"LOOKUP([id],Дети[id],Дети[ФИО])","v":"Рожнов Степан Александрович"},{"$f":"LOOKUP([id],Дети[id],Дети[Дата рождения])","v":"1997-11-17"},12,41]
[214,{"$f":"LOOKUP([id],Дети[id],Дети[team_id])","v":11},{"$f":"LOOKUP([team_id],Команды[id],Команды[Коротко])","v":"Москва"},{"$f":"LOOKUP([id],Дети[id],Дети[ФИО])","v":"Огородников Богдан"},{"$f":"LOOKUP([id],Дети[id],Дети[Дата рождения])","v":"1997-07-12"},12,42]
[299,{"$f":"LOOKUP([id],Дети[id],Дети[team_id])","v":15},{"$f":"LOOKUP([team_id],Команды[id],Команды[Коротко])","v":"Воронеж"},{"$f":"LOOKUP([id],Дети[id],Дети[ФИО])","v":"Чумаков Евгений Андреевич"},{"$f":"LOOKUP([id],Дети[id],Дети[Дата рождения])","v":"2000-10-10"},11,43]
[455,{"$f":"LOOKUP([id],Дети[id],Дети[team_id])","v":23},{"$f":"LOOKUP([team_id],Команды[id],Команды[Коротко])","v":"Иваново"},{"$f":"LOOKUP([id],Дети[id],Дети[ФИО])","v":"Демичев Сергей Владимирович"},{"$f":"LOOKUP([id],Дети[id],Дети[Дата рождения])","v":"1997-09-01"},11,44]
[418,{"$f":"LOOKUP([id],Дети[id],Дети[team_id])","v":21},{"$f":"LOOKUP([team_id],Команды[id],Команды[Коротко])","v":"Ступино"},{"$f":"LOOKUP([id],Дети[id],Дети[ФИО])","v":"Добычин Антон Владиславович"},{"$f":"LOOKUP([id],Дети[id],Дети[Дата рождения])","v":"1997-07-10"},11,45]
[121,{"$f":"LOOKUP([id],Дети[id],Дети[team_id])","v":7},{"$f":"LOOKUP([team_id],Команды[id],Команды[Коротко])","v":"Клин"},{"$f":"LOOKUP([id],Дети[id],Дети[ФИО])","v":"Сергеев Павел Вячеславович"},{"$f":"LOOKUP([id],Дети[id],Дети[Дата рождения])","v":"1998-01-17"},10,46]
[105,{"$f":"LOOKUP([id],Дети[id],Дети[team_id])","v":6},{"$f":"LOOKUP([team_id],Команды[id],Команды[Коротко])","v":"Энергия, Шатура"},{"$f":"LOOKUP([id],Дети[id],Дети[ФИО])","v":"Щепкин Валерий Витальевич"},{"$f":"LOOKUP([id],Дети[id],Дети[Дата рождения])","v":"1997-04-18"},10,47]
[453,{"$f":"LOOKUP([id],Дети[id],Дети[team_id])","v":23},{"$f":"LOOKUP([team_id],Команды[id],Команды[Коротко])","v":"Иваново"},{"$f":"LOOKUP([id],Дети[id],Дети[ФИО])","v":"Муратов Владислав Александрович"},{"$f":"LOOKUP([id],Дети[id],Дети[Дата рождения])","v":"1997-09-02"},9,48]
[342,{"$f":"LOOKUP([id],Дети[id],Дети[team_id])","v":18},{"$f":"LOOKUP([team_id],Команды[id],Команды[Коротко])","v":"Одинцово"},{"$f":"LOOKUP([id],Дети[id],Дети[ФИО])","v":"Граб Федор Васильевич"},{"$f":"LOOKUP([id],Дети[id],Дети[Дата рождения])","v":"1997-03-04"},8,49]
[5,{"$f":"LOOKUP([id],Дети[id],Дети[team_id])","v":1},{"$f":"LOOKUP([team_id],Команды[id],Команды[Коротко])","v":"ОМОН"},{"$f":"LOOKUP([id],Дети[id],Дети[ФИО])","v":"Заварихин Семен Александрович"},{"$f":"LOOKUP([id],Дети[id],Дети[Дата рождения])","v":"1997-12-16"},4,50]
[468,{"$f":"LOOKUP([id],Дети[id],Дети[team_id])","v":24},{"$f":"LOOKUP([team_id],Команды[id],Команды[Коротко])","v":"Пушкино"},{"$f":"LOOKUP([id],Дети[id],Дети[ФИО])","v":"Афанасьев Александр Борисович"},{"$f":"LOOKUP([id],Дети[id],Дети[Дата рождения])","v":"1997-06-11"},3,51]
[129,{"$f":"LOOKUP([id],Дети[id],Дети[team_id])","v":7},{"$f":"LOOKUP([team_id],Команды[id],Команды[Коротко])","v":"Клин"},{"$f":"LOOKUP([id],Дети[id],Дети[ФИО])","v":"Быков Дмитрий Игорьевич"},{"$f":"LOOKUP([id],Дети[id],Дети[Дата рождения])","v":"1997-01-26"},3,52]
[]
[]
[null,null,"Председатель оргкомитета                                  /Громов А.Г./"]

{"sheet":"сборка разборка АК","index":9,"n_rows":58,"n_cols":12,"rows_kept":58,"cut":false,"hidden":false,"merged":[[0,2,0,11]]}
[null,null,"Протокол №7 (сборка/разборка АК)"]
[null,null,null,null,null,null,null,null,null,null,null,"4 июня 2011, 17:25"]
["id","team_id","Команда","ФИО","Пол","Дата рождения","время разб","штраф разб","время сб","штраф сб","Сумма","Место"]
[316,{"$f":"LOOKUP([id],Дети[id],Дети[team_id])","v":16},{"$f":"LOOKUP([team_id],Команды[id],Команды[Коротко])","v":"Тверь"},{"$f":"LOOKUP([id],Дети[id],Дети[ФИО])","v":"Пустынникова Ирина Евгеньевна"},{"$f":"LOOKUP([id],Дети[id],Дети[пол])","v":"д"},{"$f":"LOOKUP([id],Дети[id],Дети[Дата рождения])","v":"1997-05-27"},"00:00:10.280",null,"00:00:19.500",null,{"$f":"сборка_разборка_АК[[#This Row],[время разб]]+сборка_разборка_АК[[#This Row],[штраф разб]]+сборка_разборка_АК[[#This Row],[время сб]]+сборка_разборка_АК[[#This Row],[штраф сб]]","v":"00:00:29.780"},1]
[403,{"$f":"LOOKUP([id],Дети[id],Дети[team_id])","v":21},{"$f":"LOOKUP([team_id],Команды[id],Команды[Коротко])","v":"Ступино"},{"$f":"LOOKUP([id],Дети[id],Дети[ФИО])","v":"Беляева Мария Михайловна"},{"$f":"LOOKUP([id],Дети[id],Дети[пол])","v":"д"},{"$f":"LOOKUP([id],Дети[id],Дети[Дата рождения])","v":"1997-02-18"},"00:00:12.610",null,"00:00:23.510",null,{"$f":"сборка_разборка_АК[[#This Row],[время разб]]+сборка_разборка_АК[[#This Row],[штраф разб]]+сборка_разборка_АК[[#This Row],[время сб]]+сборка_разборка_АК[[#This Row],[штраф сб]]","v":"00:00:36.120"},2]
[286,{"$f":"LOOKUP([id],Дети[id],Дети[team_id])","v":15},{"$f":"LOOKUP([team_id],Команды[id],Команды[Коротко])","v":"Воронеж"},{"$f":"LOOKUP([id],Дети[id],Дети[ФИО])","v":"Величко Мария Александровна"},{"$f":"LOOKUP([id],Дети[id],Дети[пол])","v":"д"},{"$f":"LOOKUP([id],Дети[id],Дети[Дата рождения])","v":"1997-06-04"},"00:00:12.490",null,"00:00:24.300",null,{"$f":"сборка_разборка_АК[[#This Row],[время разб]]+сборка_разборка_АК[[#This Row],[штраф разб]]+сборка_разборка_АК[[#This Row],[время сб]]+сборка_разборка_АК[[#This Row],[штраф сб]]","v":"00:00:36.790"},3]
[336,{"$f":"LOOKUP([id],Дети[id],Дети[team_id])","v":17},{"$f":"LOOKUP([team_id],Команды[id],Команды[Коротко])","v":"Смоленск"},{"$f":"LOOKUP([id],Дети[id],Дети[ФИО])","v":"Петроченкова Марина Евгеньевна"},{"$f":"LOOKUP([id],Дети[id],Дети[пол])","v":"д"},{"$f":"LOOKUP([id],Дети[id],Дети[Дата рождения])","v":"1997-05-08"},"00:00:12.160",null,"00:00:34.150",null,{"$f":"сборка_разборка_АК[[#This Row],[время разб]]+сборка_разборка_АК[[#This Row],[штраф разб]]+сборка_разборка_АК[[#This Row],[время сб]]+сборка_разборка_АК[[#This Row],[штраф сб]]","v":"00:00:46.310"},4]
[442,{"$f":"LOOKUP([id],Дети[id],Дети[team_id])","v":23},{"$f":"LOOKUP([team_id],Команды[id],Команды[Коротко])","v":"Иваново"},{"$f":"LOOKUP([id],Дети[id],Дети[ФИО])","v":"Киселева Анастасия Андреевна"},{"$f":"LOOKUP([id],Дети[id],Дети[пол])","v":"д"},{"$f":"LOOKUP([id],Дети[id],Дети[Дата рождения])","v":"1997-03-14"},"00:00:15.960",null,"00:00:35.910",null,{"$f":"сборка_разборка_АК[[#This Row],[время разб]]+сборка_разборка_АК[[#This Row],[штраф разб]]+сборка_разборка_АК[[#This Row],[время сб]]+сборка_разборка_АК[[#This Row],[штраф сб]]","v":"00:00:51.870"},5]
[421,{"$f":"LOOKUP([id],Дети[id],Дети[team_id])","v":22},{"$f":"LOOKUP([team_id],Команды[id],Команды[Коротко])","v":"Киров"},{"$f":"LOOKUP([id],Дети[id],Дети[ФИО])","v":"Безродных Елизавета"},{"$f":"LOOKUP([id],Дети[id],Дети[пол])","v":"д"},{"$f":"LOOKUP([id],Дети[id],Дети[Дата рождения])","v":"1997-05-03"},"00:00:11.360",null,"00:00:40.540",null,{"$f":"сборка_разборка_АК[[#This Row],[время разб]]+сборка_разборка_АК[[#This Row],[штраф разб]]+сборка_разборка_АК[[#This Row],[время сб]]+сборка_разборка_АК[[#This Row],[штраф сб]]","v":"00:00:51.900"},6]
[493,{"$f":"LOOKUP([id],Дети[id],Дети[team_id])","v":25},{"$f":"LOOKUP([team_id],Команды[id],Команды[Коротко])","v":"Ярославль"},{"$f":"LOOKUP([id],Дети[id],Дети[ФИО])","v":"Аббуталипова Яна Исмаиловна"},{"$f":"LOOKUP([id],Дети[id],Дети[пол])","v":"д"},{"$f":"LOOKUP([id],Дети[id],Дети[Дата рождения])","v":"1999-01-27"},"00:00:13.670",null,"00:00:38.970",null,{"$f":"сборка_разборка_АК[[#This Row],[время разб]]+сборка_разборка_АК[[#This Row],[штраф разб]]+сборка_разборка_АК[[#This Row],[время сб]]+сборка_разборка_АК[[#This Row],[штраф сб]]","v":"00:00:52.640"},7]
[540,{"$f":"LOOKUP([id],Дети[id],Дети[team_id])","v":27},{"$f":"LOOKUP([team_id],Команды[id],Команды[Коротко])","v":"ОМСН"},{"$f":"LOOKUP([id],Дети[id],Дети[ФИО])","v":"Целкова Валерия Дмитриевна"},{"$f":"LOOKUP([id],Дети[id],Дети[пол])","v":"д"},{"$f":"LOOKUP([id],Дети[id],Дети[Дата рождения])","v":"1997-01-06"},"00:00:15.160","00:00:10","00:00:33.470",null,{"$f":"сборка_разборка_АК[[#This Row],[время разб]]+сборка_разборка_АК[[#This Row],[штраф разб]]+сборка_разборка_АК[[#This Row],[время сб]]+сборка_разборка_АК[[#This Row],[штраф сб]]","v":"00:00:58.630"},8]
[51,{"$f":"LOOKUP([id],Дети[id],Дети[team_id])","v":3},{"$f":"LOOKUP([team_id],Команды[id],Команды[Коротко])","v":"Дмитров"},{"$f":"LOOKUP([id],Дети[id],Дети[ФИО])","v":"Кулакова Милена Германовна"},{"$f":"LOOKUP([id],Дети[id],Дети[пол])","v":"д"},{"$f":"LOOKUP([id],Дети[id],Дети[Дата рождения])","v":"1998-10-19"},"00:00:31.430",null,"00:00:28.580",null,{"$f":"сборка_разборка_АК[[#This Row],[время разб]]+сборка_разборка_АК[[#This Row],[штраф разб]]+сборка_разборка_АК[[#This Row],[время сб]]+сборка_разборка_АК[[#This Row],[штраф сб]]","v":"00:01:00.010"},9]
[226,{"$f":"LOOKUP([id],Дети[id],Дети[team_id])","v":12},{"$f":"LOOKUP([team_id],Команды[id],Команды[Коротко])","v":"Истра"},{"$f":"LOOKUP([id],Дети[id],Дети[ФИО])","v":"Емельянова Алена Михайловна"},{"$f":"LOOKUP([id],Дети[id],Дети[пол])","v":"д"},{"$f":"LOOKUP([id],Дети[id],Дети[Дата рождения])","v":"1998-07-15"},"00:00:18.160",null,"00:00:42.120",null,{"$f":"сборка_разборка_АК[[#This Row],[время разб]]+сборка_разборка_АК[[#This Row],[штраф разб]]+сборка_разборка_АК[[#This Row],[время сб]]+сборка_разборка_АК[[#This Row],[штраф сб]]","v":"00:01:00.280"},10]
[216,{"$f":"LOOKUP([id],Дети[id],Дети[team_id])","v":11},{"$f":"LOOKUP([team_id],Команды[id],Команды[Коротко])","v":"Москва"},{"$f":"LOOKUP([id],Дети[id],Дети[ФИО])","v":"Сысоева Александра"},{"$f":"LOOKUP([id],Дети[id],Дети[пол])","v":"д"},{"$f":"LOOKUP([id],Дети[id],Дети[Дата рождения])","v":"1999-03-07"},"00:00:23.470",null,"00:00:27.670","00:00:10",{"$f":"сборка_разборка_АК[[#This Row],[время разб]]+сборка_разборка_АК[[#This Row],[штраф разб]]+сборка_разборка_АК[[#This Row],[время сб]]+сборка_разборка_АК[[#This Row],[штраф сб]]","v":"00:01:01.140"},11]
[247,{"$f":"LOOKUP([id],Дети[id],Дети[team_id])","v":13},{"$f":"LOOKUP([team_id],Команды[id],Команды[Коротко])","v":"Владимир"},{"$f":"LOOKUP([id],Дети[id],Дети[ФИО])","v":"Бисерова Елизавета Ивановна"},{"$f":"LOOKUP([id],Дети[id],Дети[пол])","v":"д"},{"$f":"LOOKUP([id],Дети[id],Дети[Дата рождения])","v":"1997-05-24"},"00:00:20.020",null,"00:00:41.940",null,{"$f":"сборка_разборка_АК[[#This Row],[время разб]]+сборка_разборка_АК[[#This Row],[штраф разб]]+сборка_разборка_АК[[#This Row],[время сб]]+сборка_разборка_АК[[#This Row],[штраф сб]]","v":"00:01:01.960"},12]
[167,{"$f":"LOOKUP([id],Дети[id],Дети[team_id])","v":9},{"$f":"LOOKUP([team_id],Команды[id],Команды[Коротко])","v":"Курск"},{"$f":"LOOKUP([id],Дети[id],Дети[ФИО])","v":"Сташевская Татьяна"},{"$f":"LOOKUP([id],Дети[id],Дети[пол])","v":"д"},{"$f":"LOOKUP([id],Дети[id],Дети[Дата рождения])","v":"1997-05-06"},"00:00:16.280",null,"00:00:49.880",null,{"$f":"сборка_разборка_АК[[#This Row],[время разб]]+сборка_разборка_АК[[#This Row],[штраф разб]]+сборка_разборка_АК[[#This Row],[время сб]]+сборка_разборка_АК[[#This Row],[штраф сб]]","v":"00:01:06.160"},13]
[274,{"$f":"LOOKUP([id],Дети[id],Дети[team_id])","v":14},{"$f":"LOOKUP([team_id],Команды[id],Команды[Коротко])","v":"Воскресенск"},{"$f":"LOOKUP([id],Дети[id],Дети[ФИО])","v":"Волкова Мария Александровна"},{"$f":"LOOKUP([id],Дети[id],Дети[пол])","v":"д"},{"$f":"LOOKUP([id],Дети[id],Дети[Дата рождения])","v":"1998-08-07"},"00:00:18.450",null,"00:00:38.470","00:00:10",{"$f":"сборка_разборка_АК[[#This Row],[время разб]]+сборка_разборка_АК[[#This Row],[штраф разб]]+сборка_разборка_АК[[#This Row],[время сб]]+сборка_разборка_АК[[#This Row],[штраф сб]]","v":"00:01:06.920"},14]
[151,{"$f":"LOOKUP([id],Дети[id],Дети[team_id])","v":8},{"$f":"LOOKUP([team_id],Команды[id],Команды[Коротко])","v":"Руза"},{"$f":"LOOKUP([id],Дети[id],Дети[ФИО])","v":"Ковач Валерия"},{"$f":"LOOKUP([id],Дети[id],Дети[пол])","v":"д"},{"$f":"LOOKUP([id],Дети[id],Дети[Дата рождения])","v":"1998-04-05"},"00:00:22.600",null,"00:00:49.520",null,{"$f":"сборка_разборка_АК[[#This Row],[время разб]]+сборка_разборка_АК[[#This Row],[штраф разб]]+сборка_разборка_АК[[#This Row],[время сб]]+сборка_разборка_АК[[#This Row],[штраф сб]]","v":"00:01:12.120"},15]
[29,{"$f":"LOOKUP([id],Дети[id],Дети[team_id])","v":2},{"$f":"LOOKUP([team_id],Команды[id],Команды[Коротко])","v":"Липецк"},{"$f":"LOOKUP([id],Дети[id],Дети[ФИО])","v":"Ерохина Евгения Андреевна"},{"$f":"LOOKUP([id],Дети[id],Дети[пол])","v":"д"},{"$f":"LOOKUP([id],Дети[id],Дети[Дата рождения])","v":"1997-01-15"},"00:00:17.160","00:00:10","00:00:35.360","00:00:10",{"$f":"сборка_разборка_АК[[#This Row],[время разб]]+сборка_разборка_АК[[#This Row],[штраф разб]]+сборка_разборка_АК[[#This Row],[время сб]]+сборка_разборка_АК[[#This Row],[штраф сб]]","v":"00:01:12.520"},16]
[188,{"$f":"LOOKUP([id],Дети[id],Дети[team_id])","v":10},{"$f":"LOOKUP([team_id],Команды[id],Команды[Коротко])","v":"Кашира"},{"$f":"LOOKUP([id],Дети[id],Дети[ФИО])","v":"Афанасьева Ольга Александровна"},{"$f":"LOOKUP([id],Дети[id],Дети[пол])","v":"д"},{"$f":"LOOKUP([id],Дети[id],Дети[Дата рождения])","v":"1997-02-08"},"00:00:31.290",null,"00:00:47.110",null,{"$f":"сборка_разборка_АК[[#This Row],[время разб]]+сборка_разборка_АК[[#This Row],[штраф разб]]+сборка_разборка_АК[[#This Row],[время сб]]+сборка_разборка_АК[[#This Row],[штраф сб]]","v":"00:01:18.400"},17]
[132,{"$f":"LOOKUP([id],Дети[id],Дети[team_id])","v":7},{"$f":"LOOKUP([team_id],Команды[id],Команды[Коротко])","v":"Клин"},{"$f":"LOOKUP([id],Дети[id],Дети[ФИО])","v":"Волкова Анна Сергеевна"},{"$f":"LOOKUP([id],Дети[id],Дети[пол])","v":"д"},{"$f":"LOOKUP([id],Дети[id],Дети[Дата рождения])","v":"1997-04-21"},"00:00:30.220",null,"00:00:48.790",null,{"$f":"сборка_разборка_АК[[#This Row],[время разб]]+сборка_разборка_АК[[#This Row],[штраф разб]]+сборка_разборка_АК[[#This Row],[время сб]]+сборка_разборка_АК[[#This Row],[штраф сб]]","v":"00:01:19.010"},18]
[393,{"$f":"LOOKUP([id],Дети[id],Дети[team_id])","v":20},{"$f":"LOOKUP([team_id],Команды[id],Команды[Коротко])","v":"Татарстан"},{"$f":"LOOKUP([id],Дети[id],Дети[ФИО])","v":"Паранина Александра Владимировна"},{"$f":"LOOKUP([id],Дети[id],Дети[пол])","v":"д"},{"$f":"LOOKUP([id],Дети[id],Дети[Дата рождения])","v":"1997-11-02"},"00:00:14.100","00:00:10","00:00:56.300",null,{"$f":"сборка_разборка_АК[[#This Row],[время разб]]+сборка_разборка_АК[[#This Row],[штраф разб]]+сборка_разборка_АК[[#This Row],[время сб]]+сборка_разборка_АК[[#This Row],[штраф сб]]","v":"00:01:20.400"},19]
[348,{"$f":"LOOKUP([id],Дети[id],Дети[team_id])","v":18},{"$f":"LOOKUP([team_id],Команды[id],Команды[Коротко])","v":"Одинцово"},{"$f":"LOOKUP([id],Дети[id],Дети[ФИО])","v":"Еремичева Мирия Руслановна"},{"$f":"LOOKUP([id],Дети[id],Дети[пол])","v":"д"},{"$f":"LOOKUP([id],Дети[id],Дети[Дата рождения])","v":"1998-08-10"},"00:00:49.850",null,"00:00:43.220",null,{"$f":"сборка_разборка_АК[[#This Row],[время разб]]+сборка_разборка_АК[[#This Row],[штраф разб]]+сборка_разборка_АК[[#This Row],[время сб]]+сборка_разборка_АК[[#This Row],[штраф сб]]","v":"00:01:33.070"},20]
[508,{"$f":"LOOKUP([id],Дети[id],Дети[team_id])","v":26},{"$f":"LOOKUP([team_id],Команды[id],Команды[Коротко])","v":"Олимп, Шатура"},{"$f":"LOOKUP([id],Дети[id],Дети[ФИО])","v":"Чабанова Кристина Васильевна"},{"$f":"LOOKUP([id],Дети[id],Дети[пол])","v":"д"},{"$f":"LOOKUP([id],Дети[id],Дети[Дата рождения])","v":"1998-01-15"},"00:00:23.880",null,"00:01:10.740","00:00:10",{"$f":"сборка_разборка_АК[[#This Row],[время разб]]+сборка_разборка_АК[[#This Row],[штраф разб]]+сборка_разборка_АК[[#This Row],[время сб]]+сборка_разборка_АК[[#This Row],[штраф сб]]","v":"00:01:44.620"},21]
[377,{"$f":"LOOKUP([id],Дети[id],Дети[team_id])","v":19},{"$f":"LOOKUP([team_id],Команды[id],Команды[Коротко])","v":"Тамбов"},{"$f":"LOOKUP([id],Дети[id],Дети[ФИО])","v":"Черемисина Ксения"},{"$f":"LOOKUP([id],Дети[id],Дети[пол])","v":"д"},{"$f":"LOOKUP([id],Дети[id],Дети[Дата рождения])","v":"1997-09-29"},"00:00:11.580","00:00:20","00:01:20.470","00:00:10",{"$f":"сборка_разборка_АК[[#This Row],[время разб]]+сборка_разборка_АК[[#This Row],[штраф разб]]+сборка_разборка_АК[[#This Row],[время сб]]+сборка_разборка_АК[[#This Row],[штраф сб]]","v":"00:02:02.050"},22]
[116,{"$f":"LOOKUP([id],Дети[id],Дети[team_id])","v":6},{"$f":"LOOKUP([team_id],Команды[id],Команды[Коротко])","v":"Энергия, Шатура"},{"$f":"LOOKUP([id],Дети[id],Дети[ФИО])","v":"Ионова Светлана Олеговна"},{"$f":"LOOKUP([id],Дети[id],Дети[пол])","v":"д"},{"$f":"LOOKUP([id],Дети[id],Дети[Дата рождения])","v":"1997-09-23"},"00:00:19.400",null,"00:01:46.040","00:00:20",{"$f":"сборка_разборка_АК[[#This Row],[время разб]]+сборка_разборка_АК[[#This Row],[штраф разб]]+сборка_разборка_АК[[#This Row],[время сб]]+сборка_разборка_АК[[#This Row],[штраф сб]]","v":"00:02:25.440"},23]
[16,{"$f":"LOOKUP([id],Дети[id],Дети[team_id])","v":1},{"$f":"LOOKUP([team_id],Команды[id],Команды[Коротко])","v":"ОМОН"},{"$f":"LOOKUP([id],Дети[id],Дети[ФИО])","v":"Копытова Варвара Андреевна"},{"$f":"LOOKUP([id],Дети[id],Дети[пол])","v":"д"},{"$f":"LOOKUP([id],Дети[id],Дети[Дата рождения])","v":"2000-08-30"},"00:00:54.460","00:00:10","00:01:14.730","00:00:10",{"$f":"сборка_разборка_АК[[#This Row],[время разб]]+сборка_разборка_АК[[#This Row],[штраф разб]]+сборка_разборка_АК[[#This Row],[время сб]]+сборка_разборка_АК[[#This Row],[штраф сб]]","v":"00:02:29.190"},24]
[91,{"$f":"LOOKUP([id],Дети[id],Дети[team_id])","v":5},{"$f":"LOOKUP([team_id],Команды[id],Команды[Коротко])","v":"Краснодар"},{"$f":"LOOKUP([id],Дети[id],Дети[ФИО])","v":"Григорьева Вероника Александровна"},{"$f":"LOOKUP([id],Дети[id],Дети[пол])","v":"д"},{"$f":"LOOKUP([id],Дети[id],Дети[Дата рождения])","v":"1998-04-13"},"00:01:08.120",null,"00:02:32.180","00:00:10",{"$f":"сборка_разборка_АК[[#This Row],[время разб]]+сборка_разборка_АК[[#This Row],[штраф разб]]+сборка_разборка_АК[[#This Row],[время сб]]+сборка_разборка_АК[[#This Row],[штраф сб]]","v":"00:03:50.300"},25]
[471,{"$f":"LOOKUP([id],Дети[id],Дети[team_id])","v":24},{"$f":"LOOKUP([team_id],Команды[id],Команды[Коротко])","v":"Пушкино"},{"$f":"LOOKUP([id],Дети[id],Дети[ФИО])","v":"Юшкова Алина Александровна"},{"$f":"LOOKUP([id],Дети[id],Дети[пол])","v":"д"},{"$f":"LOOKUP([id],Дети[id],Дети[Дата рождения])","v":"1997-02-26"},"00:00:48.400","00:00:10","00:03:25.860","00:00:10",{"$f":"сборка_разборка_АК[[#This Row],[время разб]]+сборка_разборка_АК[[#This Row],[штраф разб]]+сборка_разборка_АК[[#This Row],[время сб]]+сборка_разборка_АК[[#This Row],[штраф сб]]","v":"00:04:34.260"},26]
[253,{"$f":"LOOKUP([id],Дети[id],Дети[team_id])","v":13},{"$f":"LOOKUP([team_id],Команды[id],Команды[Коротко])","v":"Владимир"},{"$f":"LOOKUP([id],Дети[id],Дети[ФИО])","v":"Сухарников Александр Александрович"},{"$f":"LOOKUP([id],Дети[id],Дети[пол])","v":"м"},{"$f":"LOOKUP([id],Дети[id],Дети[Дата рождения])","v":"1998-01-04"},"00:00:13.700",null,"00:00:21.280",null,{"$f":"сборка_разборка_АК[[#This Row],[время разб]]+сборка_разборка_АК[[#This Row],[штраф разб]]+сборка_разборка_АК[[#This Row],[время сб]]+сборка_разборка_АК[[#This Row],[штраф сб]]","v":"00:00:34.980"},1]
[220,{"$f":"LOOKUP([id],Дети[id],Дети[team_id])","v":11},{"$f":"LOOKUP([team_id],Команды[id],Команды[Коротко])","v":"Москва"},{"$f":"LOOKUP([id],Дети[id],Дети[ФИО])","v":"Шутков Алексей"},{"$f":"LOOKUP([id],Дети[id],Дети[пол])","v":"м"},{"$f":"LOOKUP([id],Дети[id],Дети[Дата рождения])","v":"1998-06-16"},"00:00:14.710",null,"00:00:20.610",null,{"$f":"сборка_разборка_АК[[#This Row],[время разб]]+сборка_разборка_АК[[#This Row],[штраф разб]]+сборка_разборка_АК[[#This Row],[время сб]]+сборка_разборка_АК[[#This Row],[штраф сб]]","v":"00:00:35.320"},2]
[313,{"$f":"LOOKUP([id],Дети[id],Дети[team_id])","v":16},{"$f":"LOOKUP([team_id],Команды[id],Команды[Коротко])","v":"Тверь"},{"$f":"LOOKUP([id],Дети[id],Дети[ФИО])","v":"Лаврентьев Олег Вадимович"},{"$f":"LOOKUP([id],Дети[id],Дети[пол])","v":"м"},{"$f":"LOOKUP([id],Дети[id],Дети[Дата рождения])","v":"1997-09-17"},"00:00:13.370",null,"00:00:22.150",null,{"$f":"сборка_разборка_АК[[#This Row],[время разб]]+сборка_разборка_АК[[#This Row],[штраф разб]]+сборка_разборка_АК[[#This Row],[время сб]]+сборка_разборка_АК[[#This Row],[штраф сб]]","v":"00:00:35.520"},3]
[228,{"$f":"LOOKUP([id],Дети[id],Дети[team_id])","v":12},{"$f":"LOOKUP([team_id],Команды[id],Команды[Коротко])","v":"Истра"},{"$f":"LOOKUP([id],Дети[id],Дети[ФИО])","v":"Арчаков Николай Владимирович"},{"$f":"LOOKUP([id],Дети[id],Дети[пол])","v":"м"},{"$f":"LOOKUP([id],Дети[id],Дети[Дата рождения])","v":"1997-05-25"},"00:00:09.100",null,"00:00:23.050","00:00:10",{"$f":"сборка_разборка_АК[[#This Row],[время разб]]+сборка_разборка_АК[[#This Row],[штраф разб]]+сборка_разборка_АК[[#This Row],[время сб]]+сборка_разборка_АК[[#This Row],[штраф сб]]","v":"00:00:42.150"},4]
[291,{"$f":"LOOKUP([id],Дети[id],Дети[team_id])","v":15},{"$f":"LOOKUP([team_id],Команды[id],Команды[Коротко])","v":"Воронеж"},{"$f":"LOOKUP([id],Дети[id],Дети[ФИО])","v":"Самхорадзе Коба Кабаевич"},{"$f":"LOOKUP([id],Дети[id],Дети[пол])","v":"м"},{"$f":"LOOKUP([id],Дети[id],Дети[Дата рождения])","v":"1997-03-19"},"00:00:09.960","00:00:10","00:00:12.500","00:00:10",{"$f":"сборка_разборка_АК[[#This Row],[время разб]]+сборка_разборка_АК[[#This Row],[штраф разб]]+сборка_разборка_АК[[#This Row],[время сб]]+сборка_разборка_АК[[#This Row],[штраф сб]]","v":"00:00:42.460"},5]
[520,{"$f":"LOOKUP([id],Дети[id],Дети[team_id])","v":26},{"$f":"LOOKUP([team_id],Команды[id],Команды[Коротко])","v":"Олимп, Шатура"},{"$f":"LOOKUP([id],Дети[id],Дети[ФИО])","v":"Дубенец Евгений Эдуардович"},{"$f":"LOOKUP([id],Дети[id],Дети[пол])","v":"м"},{"$f":"LOOKUP([id],Дети[id],Дети[Дата рождения])","v":"1997-10-09"},"00:00:18.110",null,"00:00:25.990",null,{"$f":"сборка_разборка_АК[[#This Row],[время разб]]+сборка_разборка_АК[[#This Row],[штраф разб]]+сборка_разборка_АК[[#This Row],[время сб]]+сборка_разборка_АК[[#This Row],[штраф сб]]","v":"00:00:44.100"},6]
[445,{"$f":"LOOKUP([id],Дети[id],Дети[team_id])","v":23},{"$f":"LOOKUP([team_id],Команды[id],Команды[Коротко])","v":"Иваново"},{"$f":"LOOKUP([id],Дети[id],Дети[ФИО])","v":"Исаков Ярослав Олегович"},{"$f":"LOOKUP([id],Дети[id],Дети[пол])","v":"м"},{"$f":"LOOKUP([id],Дети[id],Дети[Дата рождения])","v":"1997-10-29"},"00:00:15.060",null,"00:00:29.240",null,{"$f":"сборка_разборка_АК[[#This Row],[время разб]]+сборка_разборка_АК[[#This Row],[штраф разб]]+сборка_разборка_АК[[#This Row],[время сб]]+сборка_разборка_АК[[#This Row],[штраф сб]]","v":"00:00:44.300"},7]
[331,{"$f":"LOOKUP([id],Дети[id],Дети[team_id])","v":17},{"$f":"LOOKUP([team_id],Команды[id],Команды[Коротко])","v":"Смоленск"},{"$f":"LOOKUP([id],Дети[id],Дети[ФИО])","v":"Трущенков Кирилл Геннадьевич"},{"$f":"LOOKUP([id],Дети[id],Дети[пол])","v":"м"},{"$f":"LOOKUP([id],Дети[id],Дети[Дата рождения])","v":"1997-01-31"},"00:00:11.440",null,"00:00:24.640","00:00:10",{"$f":"сборка_разборка_АК[[#This Row],[время разб]]+сборка_разборка_АК[[#This Row],[штраф разб]]+сборка_разборка_АК[[#This Row],[время сб]]+сборка_разборка_АК[[#This Row],[штраф сб]]","v":"00:00:46.080"},8]
[411,{"$f":"LOOKUP([id],Дети[id],Дети[team_id])","v":21},{"$f":"LOOKUP([team_id],Команды[id],Команды[Коротко])","v":"Ступино"},{"$f":"LOOKUP([id],Дети[id],Дети[ФИО])","v":"Конаков Денис Олегович"},{"$f":"LOOKUP([id],Дети[id],Дети[пол])","v":"м"},{"$f":"LOOKUP([id],Дети[id],Дети[Дата рождения])","v":"1997-02-17"},"00:00:16.730",null,"00:00:21.520","00:00:10",{"$f":"сборка_разборка_АК[[#This Row],[время разб]]+сборка_разборка_АК[[#This Row],[штраф разб]]+сборка_разборка_АК[[#This Row],[время сб]]+сборка_разборка_АК[[#This Row],[штраф сб]]","v":"00:00:48.250"},9]
[146,{"$f":"LOOKUP([id],Дети[id],Дети[team_id])","v":8},{"$f":"LOOKUP([team_id],Команды[id],Команды[Коротко])","v":"Руза"},{"$f":"LOOKUP([id],Дети[id],Дети[ФИО])","v":"Ганичев Николай"},{"$f":"LOOKUP([id],Дети[id],Дети[пол])","v":"м"},{"$f":"LOOKUP([id],Дети[id],Дети[Дата рождения])","v":"1997-12-19"},"00:00:19.330",null,"00:00:31.410",null,{"$f":"сборка_разборка_АК[[#This Row],[время разб]]+сборка_разборка_АК[[#This Row],[штраф разб]]+сборка_разборка_АК[[#This Row],[время сб]]+сборка_разборка_АК[[#This Row],[штраф сб]]","v":"00:00:50.740"},10]
[41,{"$f":"LOOKUP([id],Дети[id],Дети[team_id])","v":3},{"$f":"LOOKUP([team_id],Команды[id],Команды[Коротко])","v":"Дмитров"},{"$f":"LOOKUP([id],Дети[id],Дети[ФИО])","v":"Тагасов Семен Павлович"},{"$f":"LOOKUP([id],Дети[id],Дети[пол])","v":"м"},{"$f":"LOOKUP([id],Дети[id],Дети[Дата рождения])","v":"1997-04-17"},"00:00:15.570",null,"00:00:28.330","00:00:10",{"$f":"сборка_разборка_АК[[#This Row],[время разб]]+сборка_разборка_АК[[#This Row],[штраф разб]]+сборка_разборка_АК[[#This Row],[время сб]]+сборка_разборка_АК[[#This Row],[штраф сб]]","v":"00:00:53.900"},11]
[104,{"$f":"LOOKUP([id],Дети[id],Дети[team_id])","v":6},{"$f":"LOOKUP([team_id],Команды[id],Команды[Коротко])","v":"Энергия, Шатура"},{"$f":"LOOKUP([id],Дети[id],Дети[ФИО])","v":"Аристархов Георгий Алексеевич"},{"$f":"LOOKUP([id],Дети[id],Дети[пол])","v":"м"},{"$f":"LOOKUP([id],Дети[id],Дети[Дата рождения])","v":"1997-04-14"},"00:00:17.890",null,"00:00:26.480","00:00:10",{"$f":"сборка_разборка_АК[[#This Row],[время разб]]+сборка_разборка_АК[[#This Row],[штраф разб]]+сборка_разборка_АК[[#This Row],[время сб]]+сборка_разборка_АК[[#This Row],[штраф сб]]","v":"00:00:54.370"},12]
[193,{"$f":"LOOKUP([id],Дети[id],Дети[team_id])","v":10},{"$f":"LOOKUP([team_id],Команды[id],Команды[Коротко])","v":"Кашира"},{"$f":"LOOKUP([id],Дети[id],Дети[ФИО])","v":"Фомичёв Виктор Андреевич"},{"$f":"LOOKUP([id],Дети[id],Дети[пол])","v":"м"},{"$f":"LOOKUP([id],Дети[id],Дети[Дата рождения])","v":"1997-10-11"},"00:00:19.350",null,"00:00:26.150","00:00:10",{"$f":"сборка_разборка_АК[[#This Row],[время разб]]+сборка_разборка_АК[[#This Row],[штраф разб]]+сборка_разборка_АК[[#This Row],[время сб]]+сборка_разборка_АК[[#This Row],[штраф сб]]","v":"00:00:55.500"},13]
[376,{"$f":"LOOKUP([id],Дети[id],Дети[team_id])","v":19},{"$f":"LOOKUP([team_id],Команды[id],Команды[Коротко])","v":"Тамбов"},{"$f":"LOOKUP([id],Дети[id],Дети[ФИО])","v":"Крюченков Никита"},{"$f":"LOOKUP([id],Дети[id],Дети[пол])","v":"м"},{"$f":"LOOKUP([id],Дети[id],Дети[Дата рождения])","v":"1997-09-29"},"00:00:20.480",null,"00:00:41.620",null,{"$f":"сборка_разборка_АК[[#This Row],[время разб]]+сборка_разборка_АК[[#This Row],[штраф разб]]+сборка_разборка_АК[[#This Row],[время сб]]+сборка_разборка_АК[[#This Row],[штраф сб]]","v":"00:01:02.100"},14]
[82,{"$f":"LOOKUP([id],Дети[id],Дети[team_id])","v":5},{"$f":"LOOKUP([team_id],Команды[id],Команды[Коротко])","v":"Краснодар"},{"$f":"LOOKUP([id],Дети[id],Дети[ФИО])","v":"Сметанин Алекс Эдуардович"},{"$f":"LOOKUP([id],Дети[id],Дети[пол])","v":"м"},{"$f":"LOOKUP([id],Дети[id],Дети[Дата рождения])","v":"1997-02-13"},"00:00:15.030","00:00:10","00:00:27.910","00:00:10",{"$f":"сборка_разборка_АК[[#This Row],[время разб]]+сборка_разборка_АК[[#This Row],[штраф разб]]+сборка_разборка_АК[[#This Row],[время сб]]+сборка_разборка_АК[[#This Row],[штраф сб]]","v":"00:01:02.940"},15]
[481,{"$f":"LOOKUP([id],Дети[id],Дети[team_id])","v":25},{"$f":"LOOKUP([team_id],Команды[id],Команды[Коротко])","v":"Ярославль"},{"$f":"LOOKUP([id],Дети[id],Дети[ФИО])","v":"Румянцев Артем Николаевич"},{"$f":"LOOKUP([id],Дети[id],Дети[пол])","v":"м"},{"$f":"LOOKUP([id],Дети[id],Дети[Дата рождения])","v":"1997-01-20"},"00:00:14.880","00:00:10","00:00:34.910","00:00:10",{"$f":"сборка_разборка_АК[[#This Row],[время разб]]+сборка_разборка_АК[[#This Row],[штраф разб]]+сборка_разборка_АК[[#This Row],[время сб]]+сборка_разборка_АК[[#This Row],[штраф сб]]","v":"00:01:09.790"},16]
[5,{"$f":"LOOKUP([id],Дети[id],Дети[team_id])","v":1},{"$f":"LOOKUP([team_id],Команды[id],Команды[Коротко])","v":"ОМОН"},{"$f":"LOOKUP([id],Дети[id],Дети[ФИО])","v":"Заварихин Семен Александрович"},{"$f":"LOOKUP([id],Дети[id],Дети[пол])","v":"м"},{"$f":"LOOKUP([id],Дети[id],Дети[Дата рождения])","v":"1997-12-16"},"00:00:21.880",null,"00:00:48.390",null,{"$f":"сборка_разборка_АК[[#This Row],[время разб]]+сборка_разборка_АК[[#This Row],[штраф разб]]+сборка_разборка_АК[[#This Row],[время сб]]+сборка_разборка_АК[[#This Row],[штраф сб]]","v":"00:01:10.270"},17]
[27,{"$f":"LOOKUP([id],Дети[id],Дети[team_id])","v":2},{"$f":"LOOKUP([team_id],Команды[id],Команды[Коротко])","v":"Липецк"},{"$f":"LOOKUP([id],Дети[id],Дети[ФИО])","v":"Филатов Павел Юрьевич"},{"$f":"LOOKUP([id],Дети[id],Дети[пол])","v":"м"},{"$f":"LOOKUP([id],Дети[id],Дети[Дата рождения])","v":"1998-06-21"},"00:00:38.840",null,"00:00:35.780",null,{"$f":"сборка_разборка_АК[[#This Row],[время разб]]+сборка_разборка_АК[[#This Row],[штраф разб]]+сборка_разборка_АК[[#This Row],[время сб]]+сборка_разборка_АК[[#This Row],[штраф сб]]","v":"00:01:14.620"},18]
[522,{"$f":"LOOKUP([id],Дети[id],Дети[team_id])","v":27},{"$f":"LOOKUP([team_id],Команды[id],Команды[Коротко])","v":"ОМСН"},{"$f":"LOOKUP([id],Дети[id],Дети[ФИО])","v":"Леваков Илья Владимирович"},{"$f":"LOOKUP([id],Дети[id],Дети[пол])","v":"м"},{"$f":"LOOKUP([id],Дети[id],Дети[Дата рождения])","v":"1997-01-07"},"00:00:14.070","00:00:10","00:00:35.470","00:00:20",{"$f":"сборка_разборка_АК[[#This Row],[время разб]]+сборка_разборка_АК[[#This Row],[штраф разб]]+сборка_разборка_АК[[#This Row],[время сб]]+сборка_разборка_АК[[#This Row],[штраф сб]]","v":"00:01:19.540"},19]
[129,{"$f":"LOOKUP([id],Дети[id],Дети[team_id])","v":7},{"$f":"LOOKUP([team_id],Команды[id],Команды[Коротко])","v":"Клин"},{"$f":"LOOKUP([id],Дети[id],Дети[ФИО])","v":"Быков Дмитрий Игорьевич"},{"$f":"LOOKUP([id],Дети[id],Дети[пол])","v":"м"},{"$f":"LOOKUP([id],Дети[id],Дети[Дата рождения])","v":"1997-01-26"},"00:00:18.730",null,"00:00:55.420","00:00:10",{"$f":"сборка_разборка_АК[[#This Row],[время разб]]+сборка_разборка_АК[[#This Row],[штраф разб]]+сборка_разборка_АК[[#This Row],[время сб]]+сборка_разборка_АК[[#This Row],[штраф сб]]","v":"00:01:24.150"},20]
[389,{"$f":"LOOKUP([id],Дети[id],Дети[team_id])","v":20},{"$f":"LOOKUP([team_id],Команды[id],Команды[Коротко])","v":"Татарстан"},{"$f":"LOOKUP([id],Дети[id],Дети[ФИО])","v":"Шакиров Наиль Алмазович"},{"$f":"LOOKUP([id],Дети[id],Дети[пол])","v":"м"},{"$f":"LOOKUP([id],Дети[id],Дети[Дата рождения])","v":"1997-07-30"},"00:00:19.850","00:00:10","00:00:40.700","00:00:20",{"$f":"сборка_разборка_АК[[#This Row],[время разб]]+сборка_разборка_АК[[#This Row],[штраф разб]]+сборка_разборка_АК[[#This Row],[время сб]]+сборка_разборка_АК[[#This Row],[штраф сб]]","v":"00:01:30.550"},21]
[434,{"$f":"LOOKUP([id],Дети[id],Дети[team_id])","v":22},{"$f":"LOOKUP([team_id],Команды[id],Команды[Коротко])","v":"Киров"},{"$f":"LOOKUP([id],Дети[id],Дети[ФИО])","v":"Дорофеев Александр"},{"$f":"LOOKUP([id],Дети[id],Дети[пол])","v":"м"},{"$f":"LOOKUP([id],Дети[id],Дети[Дата рождения])","v":"1997-11-17"},"00:00:33.320","00:00:10","00:00:37.810","00:00:10",{"$f":"сборка_разборка_АК[[#This Row],[время разб]]+сборка_разборка_АК[[#This Row],[штраф разб]]+сборка_разборка_АК[[#This Row],[время сб]]+сборка_разборка_АК[[#This Row],[штраф сб]]","v":"00:01:31.130"},22]
[271,{"$f":"LOOKUP([id],Дети[id],Дети[team_id])","v":14},{"$f":"LOOKUP([team_id],Команды[id],Команды[Коротко])","v":"Воскресенск"},{"$f":"LOOKUP([id],Дети[id],Дети[ФИО])","v":"Титков Алексей Михайлович"},{"$f":"LOOKUP([id],Дети[id],Дети[пол])","v":"м"},{"$f":"LOOKUP([id],Дети[id],Дети[Дата рождения])","v":"1998-11-29"},"00:00:30.300",null,"00:01:45.300","00:00:10",{"$f":"сборка_разборка_АК[[#This Row],[время разб]]+сборка_разборка_АК[[#This Row],[штраф разб]]+сборка_разборка_АК[[#This Row],[время сб]]+сборка_разборка_АК[[#This Row],[штраф сб]]","v":"00:02:25.600"},23]
[341,{"$f":"LOOKUP([id],Дети[id],Дети[team_id])","v":18},{"$f":"LOOKUP([team_id],Команды[id],Команды[Коротко])","v":"Одинцово"},{"$f":"LOOKUP([id],Дети[id],Дети[ФИО])","v":"Акимов Олег Денисович"},{"$f":"LOOKUP([id],Дети[id],Дети[пол])","v":"м"},{"$f":"LOOKUP([id],Дети[id],Дети[Дата рождения])","v":"1999-07-21"},"00:00:41.290","00:00:10","00:01:36.580","00:00:10",{"$f":"сборка_разборка_АК[[#This Row],[время разб]]+сборка_разборка_АК[[#This Row],[штраф разб]]+сборка_разборка_АК[[#This Row],[время сб]]+сборка_разборка_АК[[#This Row],[штраф сб]]","v":"00:02:37.870"},24]
[174,{"$f":"LOOKUP([id],Дети[id],Дети[team_id])","v":9},{"$f":"LOOKUP([team_id],Команды[id],Команды[Коротко])","v":"Курск"},{"$f":"LOOKUP([id],Дети[id],Дети[ФИО])","v":"Агафонов Алексей"},{"$f":"LOOKUP([id],Дети[id],Дети[пол])","v":"м"},{"$f":"LOOKUP([id],Дети[id],Дети[Дата рождения])","v":"1997-08-04"},"00:00:59.980","00:00:10","00:01:23.900","00:00:20",{"$f":"сборка_разборка_АК[[#This Row],[время разб]]+сборка_разборка_АК[[#This Row],[штраф разб]]+сборка_разборка_АК[[#This Row],[время сб]]+сборка_разборка_АК[[#This Row],[штраф сб]]","v":"00:02:53.880"},25]
[467,{"$f":"LOOKUP([id],Дети[id],Дети[team_id])","v":24},{"$f":"LOOKUP([team_id],Команды[id],Команды[Коротко])","v":"Пушкино"},{"$f":"LOOKUP([id],Дети[id],Дети[ФИО])","v":"Рябчиков Владислав Игоревич"},{"$f":"LOOKUP([id],Дети[id],Дети[пол])","v":"м"},{"$f":"LOOKUP([id],Дети[id],Дети[Дата рождения])","v":"1997-03-21"},"00:02:06.010","00:00:10","00:00:47.090","00:00:20",{"$f":"сборка_разборка_АК[[#This Row],[время разб]]+сборка_разборка_АК[[#This Row],[штраф разб]]+сборка_разборка_АК[[#This Row],[время сб]]+сборка_разборка_АК[[#This Row],[штраф сб]]","v":"00:03:23.100"},26]
[]
[]
[null,null,"Председатель оргкомитета                                  /Громов А.Г./"]

{"sheet":"полоса воен","index":10,"n_rows":58,"n_cols":8,"rows_kept":58,"cut":false,"hidden":false,"merged":[[0,2,0,7]]}
[null,null,"Протокол №8 (военизированая полоса )"]
[null,null,null,null,null,null,null,"4 июня 2011, 15:03"]
["id","team_id","Команда","ФИО","Дата рождения","Пол","Время","Место"]
[214,{"$f":"LOOKUP([id],Дети[id],Дети[team_id])","v":11},{"$f":"LOOKUP([team_id],Команды[id],Команды[Коротко])","v":"Москва"},{"$f":"LOOKUP([id],Дети[id],Дети[ФИО])","v":"Огородников Богдан"},{"$f":"LOOKUP([id],Дети[id],Дети[Дата рождения])","v":"1997-07-12"},{"$f":"LOOKUP([id],Дети[id],Дети[пол])","v":"м"},"00:00:35.030",1]
[97,{"$f":"LOOKUP([id],Дети[id],Дети[team_id])","v":5},{"$f":"LOOKUP([team_id],Команды[id],Команды[Коротко])","v":"Краснодар"},{"$f":"LOOKUP([id],Дети[id],Дети[ФИО])","v":"Адлер Александр Владимирович"},{"$f":"LOOKUP([id],Дети[id],Дети[Дата рождения])","v":"1997-04-04"},{"$f":"LOOKUP([id],Дети[id],Дети[пол])","v":"м"},"00:00:35.330",2]
[81,{"$f":"LOOKUP([id],Дети[id],Дети[team_id])","v":5},{"$f":"LOOKUP([team_id],Команды[id],Команды[Коротко])","v":"Краснодар"},{"$f":"LOOKUP([id],Дети[id],Дети[ФИО])","v":"Ханануев Аким Дмитриевич"},{"$f":"LOOKUP([id],Дети[id],Дети[Дата рождения])","v":"1997-06-13"},{"$f":"LOOKUP([id],Дети[id],Дети[пол])","v":"м"},"00:00:36.040",3]
[205,{"$f":"LOOKUP([id],Дети[id],Дети[team_id])","v":11},{"$f":"LOOKUP([team_id],Команды[id],Команды[Коротко])","v":"Москва"},{"$f":"LOOKUP([id],Дети[id],Дети[ФИО])","v":"Гусев Даниил"},{"$f":"LOOKUP([id],Дети[id],Дети[Дата рождения])","v":"1998-01-08"},{"$f":"LOOKUP([id],Дети[id],Дети[пол])","v":"м"},"00:00:36.080",4]
[144,{"$f":"LOOKUP([id],Дети[id],Дети[team_id])","v":8},{"$f":"LOOKUP([team_id],Команды[id],Команды[Коротко])","v":"Руза"},{"$f":"LOOKUP([id],Дети[id],Дети[ФИО])","v":"Волнистов Сергей"},{"$f":"LOOKUP([id],Дети[id],Дети[Дата рождения])","v":"1997-03-20"},{"$f":"LOOKUP([id],Дети[id],Дети[пол])","v":"м"},"00:00:36.860",5]
[476,{"$f":"LOOKUP([id],Дети[id],Дети[team_id])","v":24},{"$f":"LOOKUP([team_id],Команды[id],Команды[Коротко])","v":"Пушкино"},{"$f":"LOOKUP([id],Дети[id],Дети[ФИО])","v":"Вакарин Сергей Сергеевич"},{"$f":"LOOKUP([id],Дети[id],Дети[Дата рождения])","v":"1997-02-12"},{"$f":"LOOKUP([id],Дети[id],Дети[пол])","v":"м"},"00:00:37.160",6]
[283,{"$f":"LOOKUP([id],Дети[id],Дети[team_id])","v":15},{"$f":"LOOKUP([team_id],Команды[id],Команды[Коротко])","v":"Воронеж"},{"$f":"LOOKUP([id],Дети[id],Дети[ФИО])","v":"Долгалев Владислав Сергеевич"},{"$f":"LOOKUP([id],Дети[id],Дети[Дата рождения])","v":"1997-07-07"},{"$f":"LOOKUP([id],Дети[id],Дети[пол])","v":"м"},"00:00:37.230",7]
[438,{"$f":"LOOKUP([id],Дети[id],Дети[team_id])","v":22},{"$f":"LOOKUP([team_id],Команды[id],Команды[Коротко])","v":"Киров"},{"$f":"LOOKUP([id],Дети[id],Дети[ФИО])","v":"Мовсесян Рофаэл"},{"$f":"LOOKUP([id],Дети[id],Дети[Дата рождения])","v":"1997-05-04"},{"$f":"LOOKUP([id],Дети[id],Дети[пол])","v":"м"},"00:00:37.300",8]
[245,{"$f":"LOOKUP([id],Дети[id],Дети[team_id])","v":13},{"$f":"LOOKUP([team_id],Команды[id],Команды[Коротко])","v":"Владимир"},{"$f":"LOOKUP([id],Дети[id],Дети[ФИО])","v":"Петров Арслан Михайлович"},{"$f":"LOOKUP([id],Дети[id],Дети[Дата рождения])","v":"1997-01-05"},{"$f":"LOOKUP([id],Дети[id],Дети[пол])","v":"м"},"00:00:37.310",9]
[436,{"$f":"LOOKUP([id],Дети[id],Дети[team_id])","v":22},{"$f":"LOOKUP([team_id],Команды[id],Команды[Коротко])","v":"Киров"},{"$f":"LOOKUP([id],Дети[id],Дети[ФИО])","v":"Филип Никита"},{"$f":"LOOKUP([id],Дети[id],Дети[Дата рождения])","v":"1998-02-14"},{"$f":"LOOKUP([id],Дети[id],Дети[пол])","v":"м"},"00:00:37.320",10]
[381,{"$f":"LOOKUP([id],Дети[id],Дети[team_id])","v":20},{"$f":"LOOKUP([team_id],Команды[id],Команды[Коротко])","v":"Татарстан"},{"$f":"LOOKUP([id],Дети[id],Дети[ФИО])","v":"Петров Евгений Александрович"},{"$f":"LOOKUP([id],Дети[id],Дети[Дата рождения])","v":"1997-02-14"},{"$f":"LOOKUP([id],Дети[id],Дети[пол])","v":"м"},"00:00:37.370",11]
[253,{"$f":"LOOKUP([id],Дети[id],Дети[team_id])","v":13},{"$f":"LOOKUP([team_id],Команды[id],Команды[Коротко])","v":"Владимир"},{"$f":"LOOKUP([id],Дети[id],Дети[ФИО])","v":"Сухарников Александр Александрович"},{"$f":"LOOKUP([id],Дети[id],Дети[Дата рождения])","v":"1998-01-04"},{"$f":"LOOKUP([id],Дети[id],Дети[пол])","v":"м"},"00:00:37.390",12]
[364,{"$f":"LOOKUP([id],Дети[id],Дети[team_id])","v":19},{"$f":"LOOKUP([team_id],Команды[id],Команды[Коротко])","v":"Тамбов"},{"$f":"LOOKUP([id],Дети[id],Дети[ФИО])","v":"Чербаев Денис"},{"$f":"LOOKUP([id],Дети[id],Дети[Дата рождения])","v":"1997-05-22"},{"$f":"LOOKUP([id],Дети[id],Дети[пол])","v":"м"},"00:00:37.960",13]
[321,{"$f":"LOOKUP([id],Дети[id],Дети[team_id])","v":17},{"$f":"LOOKUP([team_id],Команды[id],Команды[Коротко])","v":"Смоленск"},{"$f":"LOOKUP([id],Дети[id],Дети[ФИО])","v":"Гультяев Илья Алексеевич"},{"$f":"LOOKUP([id],Дети[id],Дети[Дата рождения])","v":"1997-10-29"},{"$f":"LOOKUP([id],Дети[id],Дети[пол])","v":"м"},"00:00:38.010",14]
[267,{"$f":"LOOKUP([id],Дети[id],Дети[team_id])","v":14},{"$f":"LOOKUP([team_id],Команды[id],Команды[Коротко])","v":"Воскресенск"},{"$f":"LOOKUP([id],Дети[id],Дети[ФИО])","v":"Бортников Александр Олегович"},{"$f":"LOOKUP([id],Дети[id],Дети[Дата рождения])","v":"1998-12-25"},{"$f":"LOOKUP([id],Дети[id],Дети[пол])","v":"м"},"00:00:38.080",15]
[486,{"$f":"LOOKUP([id],Дети[id],Дети[team_id])","v":25},{"$f":"LOOKUP([team_id],Команды[id],Команды[Коротко])","v":"Ярославль"},{"$f":"LOOKUP([id],Дети[id],Дети[ФИО])","v":"Никитин Данил Сергеевич"},{"$f":"LOOKUP([id],Дети[id],Дети[Дата рождения])","v":"1999-05-08"},{"$f":"LOOKUP([id],Дети[id],Дети[пол])","v":"м"},"00:00:38.390",16]
[511,{"$f":"LOOKUP([id],Дети[id],Дети[team_id])","v":26},{"$f":"LOOKUP([team_id],Команды[id],Команды[Коротко])","v":"Олимп, Шатура"},{"$f":"LOOKUP([id],Дети[id],Дети[ФИО])","v":"Рогачев Виктор Вадимович"},{"$f":"LOOKUP([id],Дети[id],Дети[Дата рождения])","v":"1998-02-09"},{"$f":"LOOKUP([id],Дети[id],Дети[пол])","v":"м"},"00:00:38.420",17]
[180,{"$f":"LOOKUP([id],Дети[id],Дети[team_id])","v":9},{"$f":"LOOKUP([team_id],Команды[id],Команды[Коротко])","v":"Курск"},{"$f":"LOOKUP([id],Дети[id],Дети[ФИО])","v":"Силенин Александр"},{"$f":"LOOKUP([id],Дети[id],Дети[Дата рождения])","v":"1997-04-22"},{"$f":"LOOKUP([id],Дети[id],Дети[пол])","v":"м"},"00:00:38.460",18]
[374,{"$f":"LOOKUP([id],Дети[id],Дети[team_id])","v":19},{"$f":"LOOKUP([team_id],Команды[id],Команды[Коротко])","v":"Тамбов"},{"$f":"LOOKUP([id],Дети[id],Дети[ФИО])","v":"Рябов Антон"},{"$f":"LOOKUP([id],Дети[id],Дети[Дата рождения])","v":"1997-01-28"},{"$f":"LOOKUP([id],Дети[id],Дети[пол])","v":"м"},"00:00:38.870",19]
[317,{"$f":"LOOKUP([id],Дети[id],Дети[team_id])","v":16},{"$f":"LOOKUP([team_id],Команды[id],Команды[Коротко])","v":"Тверь"},{"$f":"LOOKUP([id],Дети[id],Дети[ФИО])","v":"Иванов Максим Сергеевич"},{"$f":"LOOKUP([id],Дети[id],Дети[Дата рождения])","v":"1997-08-14"},{"$f":"LOOKUP([id],Дети[id],Дети[пол])","v":"м"},"00:00:38.890",20]
[383,{"$f":"LOOKUP([id],Дети[id],Дети[team_id])","v":20},{"$f":"LOOKUP([team_id],Команды[id],Команды[Коротко])","v":"Татарстан"},{"$f":"LOOKUP([id],Дети[id],Дети[ФИО])","v":"Хасанов Руслан Рамилевич"},{"$f":"LOOKUP([id],Дети[id],Дети[Дата рождения])","v":"1997-02-23"},{"$f":"LOOKUP([id],Дети[id],Дети[пол])","v":"м"},"00:00:38.900",21]
[105,{"$f":"LOOKUP([id],Дети[id],Дети[team_id])","v":6},{"$f":"LOOKUP([team_id],Команды[id],Команды[Коротко])","v":"Энергия, Шатура"},{"$f":"LOOKUP([id],Дети[id],Дети[ФИО])","v":"Щепкин Валерий Витальевич"},{"$f":"LOOKUP([id],Дети[id],Дети[Дата рождения])","v":"1997-04-18"},{"$f":"LOOKUP([id],Дети[id],Дети[пол])","v":"м"},"00:00:38.910",22]
[320,{"$f":"LOOKUP([id],Дети[id],Дети[team_id])","v":16},{"$f":"LOOKUP([team_id],Команды[id],Команды[Коротко])","v":"Тверь"},{"$f":"LOOKUP([id],Дети[id],Дети[ФИО])","v":"Гамоюн Даниил Сергеевич"},{"$f":"LOOKUP([id],Дети[id],Дети[Дата рождения])","v":"1999-02-09"},{"$f":"LOOKUP([id],Дети[id],Дети[пол])","v":"м"},"00:00:39.060",23]
[322,{"$f":"LOOKUP([id],Дети[id],Дети[team_id])","v":17},{"$f":"LOOKUP([team_id],Команды[id],Команды[Коротко])","v":"Смоленск"},{"$f":"LOOKUP([id],Дети[id],Дети[ФИО])","v":"Путилин Захар Алексеевич"},{"$f":"LOOKUP([id],Дети[id],Дети[Дата рождения])","v":"1997-04-02"},{"$f":"LOOKUP([id],Дети[id],Дети[пол])","v":"м"},"00:00:39.330",24]
[103,{"$f":"LOOKUP([id],Дети[id],Дети[team_id])","v":6},{"$f":"LOOKUP([team_id],Команды[id],Команды[Коротко])","v":"Энергия, Шатура"},{"$f":"LOOKUP([id],Дети[id],Дети[ФИО])","v":"Забабуркин Константин Юрьевич"},{"$f":"LOOKUP([id],Дети[id],Дети[Дата рождения])","v":"1997-09-28"},{"$f":"LOOKUP([id],Дети[id],Дети[пол])","v":"м"},"00:00:39.480",25]
[484,{"$f":"LOOKUP([id],Дети[id],Дети[team_id])","v":25},{"$f":"LOOKUP([team_id],Команды[id],Команды[Коротко])","v":"Ярославль"},{"$f":"LOOKUP([id],Дети[id],Дети[ФИО])","v":"Заварухин Алексей"},{"$f":"LOOKUP([id],Дети[id],Дети[Дата рождения])","v":"1997-11-28"},{"$f":"LOOKUP([id],Дети[id],Дети[пол])","v":"м"},"00:00:39.590",26]
[411,{"$f":"LOOKUP([id],Дети[id],Дети[team_id])","v":21},{"$f":"LOOKUP([team_id],Команды[id],Команды[Коротко])","v":"Ступино"},{"$f":"LOOKUP([id],Дети[id],Дети[ФИО])","v":"Конаков Денис Олегович"},{"$f":"LOOKUP([id],Дети[id],Дети[Дата рождения])","v":"1997-02-17"},{"$f":"LOOKUP([id],Дети[id],Дети[пол])","v":"м"},"00:00:39.660",27]
[507,{"$f":"LOOKUP([id],Дети[id],Дети[team_id])","v":26},{"$f":"LOOKUP([team_id],Команды[id],Команды[Коротко])","v":"Олимп, Шатура"},{"$f":"LOOKUP([id],Дети[id],Дети[ФИО])","v":"Майорский Владислав Альбертович"},{"$f":"LOOKUP([id],Дети[id],Дети[Дата рождения])","v":"1997-09-01"},{"$f":"LOOKUP([id],Дети[id],Дети[пол])","v":"м"},"00:00:40.010",28]
[161,{"$f":"LOOKUP([id],Дети[id],Дети[team_id])","v":9},{"$f":"LOOKUP([team_id],Команды[id],Команды[Коротко])","v":"Курск"},{"$f":"LOOKUP([id],Дети[id],Дети[ФИО])","v":"Власов Денис"},{"$f":"LOOKUP([id],Дети[id],Дети[Дата рождения])","v":"1997-10-03"},{"$f":"LOOKUP([id],Дети[id],Дети[пол])","v":"м"},"00:00:40.350",29]
[42,{"$f":"LOOKUP([id],Дети[id],Дети[team_id])","v":3},{"$f":"LOOKUP([team_id],Команды[id],Команды[Коротко])","v":"Дмитров"},{"$f":"LOOKUP([id],Дети[id],Дети[ФИО])","v":"Севрюков Валерий Юрьевич"},{"$f":"LOOKUP([id],Дети[id],Дети[Дата рождения])","v":"1999-09-29"},{"$f":"LOOKUP([id],Дети[id],Дети[пол])","v":"м"},"00:00:41.180",30]
[418,{"$f":"LOOKUP([id],Дети[id],Дети[team_id])","v":21},{"$f":"LOOKUP([team_id],Команды[id],Команды[Коротко])","v":"Ступино"},{"$f":"LOOKUP([id],Дети[id],Дети[ФИО])","v":"Добычин Антон Владиславович"},{"$f":"LOOKUP([id],Дети[id],Дети[Дата рождения])","v":"1997-07-10"},{"$f":"LOOKUP([id],Дети[id],Дети[пол])","v":"м"},"00:00:41.390",31]
[445,{"$f":"LOOKUP([id],Дети[id],Дети[team_id])","v":23},{"$f":"LOOKUP([team_id],Команды[id],Команды[Коротко])","v":"Иваново"},{"$f":"LOOKUP([id],Дети[id],Дети[ФИО])","v":"Исаков Ярослав Олегович"},{"$f":"LOOKUP([id],Дети[id],Дети[Дата рождения])","v":"1997-10-29"},{"$f":"LOOKUP([id],Дети[id],Дети[пол])","v":"м"},"00:00:41.450",32]
[143,{"$f":"LOOKUP([id],Дети[id],Дети[team_id])","v":8},{"$f":"LOOKUP([team_id],Команды[id],Команды[Коротко])","v":"Руза"},{"$f":"LOOKUP([id],Дети[id],Дети[ФИО])","v":"Филимонов Александр"},{"$f":"LOOKUP([id],Дети[id],Дети[Дата рождения])","v":"1997-08-24"},{"$f":"LOOKUP([id],Дети[id],Дети[пол])","v":"м"},"00:00:41.670",33]
[28,{"$f":"LOOKUP([id],Дети[id],Дети[team_id])","v":2},{"$f":"LOOKUP([team_id],Команды[id],Команды[Коротко])","v":"Липецк"},{"$f":"LOOKUP([id],Дети[id],Дети[ФИО])","v":"Шмыгалев Евгений Геннадьевич"},{"$f":"LOOKUP([id],Дети[id],Дети[Дата рождения])","v":"1998-05-03"},{"$f":"LOOKUP([id],Дети[id],Дети[пол])","v":"м"},"00:00:42.890",34]
[121,{"$f":"LOOKUP([id],Дети[id],Дети[team_id])","v":7},{"$f":"LOOKUP([team_id],Команды[id],Команды[Коротко])","v":"Клин"},{"$f":"LOOKUP([id],Дети[id],Дети[ФИО])","v":"Сергеев Павел Вячеславович"},{"$f":"LOOKUP([id],Дети[id],Дети[Дата рождения])","v":"1998-01-17"},{"$f":"LOOKUP([id],Дети[id],Дети[пол])","v":"м"},"00:00:42.970",35]
[194,{"$f":"LOOKUP([id],Дети[id],Дети[team_id])","v":10},{"$f":"LOOKUP([team_id],Команды[id],Команды[Коротко])","v":"Кашира"},{"$f":"LOOKUP([id],Дети[id],Дети[ФИО])","v":"Толкачёв Сергей Алексеевич"},{"$f":"LOOKUP([id],Дети[id],Дети[Дата рождения])","v":"1998-07-17"},{"$f":"LOOKUP([id],Дети[id],Дети[пол])","v":"м"},"00:00:43.250",36]
[454,{"$f":"LOOKUP([id],Дети[id],Дети[team_id])","v":23},{"$f":"LOOKUP([team_id],Команды[id],Команды[Коротко])","v":"Иваново"},{"$f":"LOOKUP([id],Дети[id],Дети[ФИО])","v":"Ликин Максим Сергеевич"},{"$f":"LOOKUP([id],Дети[id],Дети[Дата рождения])","v":"1999-12-07"},{"$f":"LOOKUP([id],Дети[id],Дети[пол])","v":"м"},"00:00:43.470",37]
[470,{"$f":"LOOKUP([id],Дети[id],Дети[team_id])","v":24},{"$f":"LOOKUP([team_id],Команды[id],Команды[Коротко])","v":"Пушкино"},{"$f":"LOOKUP([id],Дети[id],Дети[ФИО])","v":"Айнутдинов Камиль Борисович"},{"$f":"LOOKUP([id],Дети[id],Дети[Дата рождения])","v":"1997-02-22"},{"$f":"LOOKUP([id],Дети[id],Дети[пол])","v":"м"},"00:00:43.870",38]
[11,{"$f":"LOOKUP([id],Дети[id],Дети[team_id])","v":1},{"$f":"LOOKUP([team_id],Команды[id],Команды[Коротко])","v":"ОМОН"},{"$f":"LOOKUP([id],Дети[id],Дети[ФИО])","v":"Архипов Сергей Алексеевич"},{"$f":"LOOKUP([id],Дети[id],Дети[Дата рождения])","v":"1999-06-17"},{"$f":"LOOKUP([id],Дети[id],Дети[пол])","v":"м"},"00:00:44.260",39]
[357,{"$f":"LOOKUP([id],Дети[id],Дети[team_id])","v":18},{"$f":"LOOKUP([team_id],Команды[id],Команды[Коротко])","v":"Одинцово"},{"$f":"LOOKUP([id],Дети[id],Дети[ФИО])","v":"Суворкин Илья Константинович"},{"$f":"LOOKUP([id],Дети[id],Дети[Дата рождения])","v":"1997-06-07"},{"$f":"LOOKUP([id],Дети[id],Дети[пол])","v":"м"},"00:00:44.360",40]
[345,{"$f":"LOOKUP([id],Дети[id],Дети[team_id])","v":18},{"$f":"LOOKUP([team_id],Команды[id],Команды[Коротко])","v":"Одинцово"},{"$f":"LOOKUP([id],Дети[id],Дети[ФИО])","v":"Шабалин Артем Филиппович"},{"$f":"LOOKUP([id],Дети[id],Дети[Дата рождения])","v":"1997-08-04"},{"$f":"LOOKUP([id],Дети[id],Дети[пол])","v":"м"},"00:00:44.370",41]
[522,{"$f":"LOOKUP([id],Дети[id],Дети[team_id])","v":27},{"$f":"LOOKUP([team_id],Команды[id],Команды[Коротко])","v":"ОМСН"},{"$f":"LOOKUP([id],Дети[id],Дети[ФИО])","v":"Леваков Илья Владимирович"},{"$f":"LOOKUP([id],Дети[id],Дети[Дата рождения])","v":"1997-01-07"},{"$f":"LOOKUP([id],Дети[id],Дети[пол])","v":"м"},"00:00:44.510",42]
[200,{"$f":"LOOKUP([id],Дети[id],Дети[team_id])","v":10},{"$f":"LOOKUP([team_id],Команды[id],Команды[Коротко])","v":"Кашира"},{"$f":"LOOKUP([id],Дети[id],Дети[ФИО])","v":"Леонов Михаил Михайлович"},{"$f":"LOOKUP([id],Дети[id],Дети[Дата рождения])","v":"1997-06-03"},{"$f":"LOOKUP([id],Дети[id],Дети[пол])","v":"м"},"00:00:44.660",43]
[266,{"$f":"LOOKUP([id],Дети[id],Дети[team_id])","v":14},{"$f":"LOOKUP([team_id],Команды[id],Команды[Коротко])","v":"Воскресенск"},{"$f":"LOOKUP([id],Дети[id],Дети[ФИО])","v":"Бондалетов Николай Алексеевич"},{"$f":"LOOKUP([id],Дети[id],Дети[Дата рождения])","v":"1999-02-17"},{"$f":"LOOKUP([id],Дети[id],Дети[пол])","v":"м"},"00:00:44.810",44]
[521,{"$f":"LOOKUP([id],Дети[id],Дети[team_id])","v":27},{"$f":"LOOKUP([team_id],Команды[id],Команды[Коротко])","v":"ОМСН"},{"$f":"LOOKUP([id],Дети[id],Дети[ФИО])","v":"Рожнов Степан Александрович"},{"$f":"LOOKUP([id],Дети[id],Дети[Дата рождения])","v":"1997-11-17"},{"$f":"LOOKUP([id],Дети[id],Дети[пол])","v":"м"},"00:00:44.950",45]
[230,{"$f":"LOOKUP([id],Дети[id],Дети[team_id])","v":12},{"$f":"LOOKUP([team_id],Команды[id],Команды[Коротко])","v":"Истра"},{"$f":"LOOKUP([id],Дети[id],Дети[ФИО])","v":"Трушин Алексей Дмитриевич"},{"$f":"LOOKUP([id],Дети[id],Дети[Дата рождения])","v":"1997-08-22"},{"$f":"LOOKUP([id],Дети[id],Дети[пол])","v":"м"},"00:00:45.060",46]
[50,{"$f":"LOOKUP([id],Дети[id],Дети[team_id])","v":3},{"$f":"LOOKUP([team_id],Команды[id],Команды[Коротко])","v":"Дмитров"},{"$f":"LOOKUP([id],Дети[id],Дети[ФИО])","v":"Сехниашвили Василий Георгиевич"},{"$f":"LOOKUP([id],Дети[id],Дети[Дата рождения])","v":"1999-09-09"},{"$f":"LOOKUP([id],Дети[id],Дети[пол])","v":"м"},"00:00:45.600",47]
[292,{"$f":"LOOKUP([id],Дети[id],Дети[team_id])","v":15},{"$f":"LOOKUP([team_id],Команды[id],Команды[Коротко])","v":"Воронеж"},{"$f":"LOOKUP([id],Дети[id],Дети[ФИО])","v":"Кальченко Никита Сергеевич"},{"$f":"LOOKUP([id],Дети[id],Дети[Дата рождения])","v":"1997-06-26"},{"$f":"LOOKUP([id],Дети[id],Дети[пол])","v":"м"},"00:00:45.760",48]
[6,{"$f":"LOOKUP([id],Дети[id],Дети[team_id])","v":1},{"$f":"LOOKUP([team_id],Команды[id],Команды[Коротко])","v":"ОМОН"},{"$f":"LOOKUP([id],Дети[id],Дети[ФИО])","v":"Платонов Александр Александрович"},{"$f":"LOOKUP([id],Дети[id],Дети[Дата рождения])","v":"1999-01-05"},{"$f":"LOOKUP([id],Дети[id],Дети[пол])","v":"м"},"00:00:45.890",49]
[30,{"$f":"LOOKUP([id],Дети[id],Дети[team_id])","v":2},{"$f":"LOOKUP([team_id],Команды[id],Команды[Коротко])","v":"Липецк"},{"$f":"LOOKUP([id],Дети[id],Дети[ФИО])","v":"Феклин Алексей Юрьевич"},{"$f":"LOOKUP([id],Дети[id],Дети[Дата рождения])","v":"1998-06-30"},{"$f":"LOOKUP([id],Дети[id],Дети[пол])","v":"м"},"00:00:48.430",50]
[123,{"$f":"LOOKUP([id],Дети[id],Дети[team_id])","v":7},{"$f":"LOOKUP([team_id],Команды[id],Команды[Коротко])","v":"Клин"},{"$f":"LOOKUP([id],Дети[id],Дети[ФИО])","v":"Соколов Никита Сергеевич"},{"$f":"LOOKUP([id],Дети[id],Дети[Дата рождения])","v":"1998-10-10"},{"$f":"LOOKUP([id],Дети[id],Дети[пол])","v":"м"},"00:00:49.240",51]
[227,{"$f":"LOOKUP([id],Дети[id],Дети[team_id])","v":12},{"$f":"LOOKUP([team_id],Команды[id],Команды[Коротко])","v":"Истра"},{"$f":"LOOKUP([id],Дети[id],Дети[ФИО])","v":"Бунаев Александр Денисович"},{"$f":"LOOKUP([id],Дети[id],Дети[Дата рождения])","v":"1997-09-13"},{"$f":"LOOKUP([id],Дети[id],Дети[пол])","v":"м"},"00:00:49.450",52]
[]
[]
[null,null,"Председатель оргкомитета                                  /Громов А.Г./"]

{"sheet":"полоса Штурм","index":11,"n_rows":110,"n_cols":8,"rows_kept":110,"cut":false,"hidden":false,"merged":[[0,2,0,7]]}
[null,null,"Протокол №9 (полоса Штурм)"]
[null,null,null,null,null,null,null,"5 июня 2011, 13:02"]
["id","team_id","Команда","ФИО","Дата рождения","Пол","Время","Место"]
[399,{"$f":"LOOKUP([id],Дети[id],Дети[team_id])","v":20},{"$f":"LOOKUP([team_id],Команды[id],Команды[Коротко])","v":"Татарстан"},{"$f":"LOOKUP([id],Дети[id],Дети[ФИО])","v":"Идрисов Амир Рустамович"},{"$f":"LOOKUP([id],Дети[id],Дети[Дата рождения])","v":"1999-05-06"},{"$f":"LOOKUP([id],Дети[id],Дети[пол])","v":"м"},"00:00:15.560",1]
[518,{"$f":"LOOKUP([id],Дети[id],Дети[team_id])","v":26},{"$f":"LOOKUP([team_id],Команды[id],Команды[Коротко])","v":"Олимп, Шатура"},{"$f":"LOOKUP([id],Дети[id],Дети[ФИО])","v":"Краснов Владислав Александрович"},{"$f":"LOOKUP([id],Дети[id],Дети[Дата рождения])","v":"1997-08-09"},{"$f":"LOOKUP([id],Дети[id],Дети[пол])","v":"м"},"00:00:15.700",2]
[325,{"$f":"LOOKUP([id],Дети[id],Дети[team_id])","v":17},{"$f":"LOOKUP([team_id],Команды[id],Команды[Коротко])","v":"Смоленск"},{"$f":"LOOKUP([id],Дети[id],Дети[ФИО])","v":"Сухинин Артур Алексеевич"},{"$f":"LOOKUP([id],Дети[id],Дети[Дата рождения])","v":"1997-04-28"},{"$f":"LOOKUP([id],Дети[id],Дети[пол])","v":"м"},"00:00:15.960",3]
[267,{"$f":"LOOKUP([id],Дети[id],Дети[team_id])","v":14},{"$f":"LOOKUP([team_id],Команды[id],Команды[Коротко])","v":"Воскресенск"},{"$f":"LOOKUP([id],Дети[id],Дети[ФИО])","v":"Бортников Александр Олегович"},{"$f":"LOOKUP([id],Дети[id],Дети[Дата рождения])","v":"1998-12-25"},{"$f":"LOOKUP([id],Дети[id],Дети[пол])","v":"м"},"00:00:16.030",4]
[43,{"$f":"LOOKUP([id],Дети[id],Дети[team_id])","v":3},{"$f":"LOOKUP([team_id],Команды[id],Команды[Коротко])","v":"Дмитров"},{"$f":"LOOKUP([id],Дети[id],Дети[ФИО])","v":"Сарафанов Михаил Алекссевич"},{"$f":"LOOKUP([id],Дети[id],Дети[Дата рождения])","v":"1997-11-12"},{"$f":"LOOKUP([id],Дети[id],Дети[пол])","v":"м"},"00:00:16.080",5]
[81,{"$f":"LOOKUP([id],Дети[id],Дети[team_id])","v":5},{"$f":"LOOKUP([team_id],Команды[id],Команды[Коротко])","v":"Краснодар"},{"$f":"LOOKUP([id],Дети[id],Дети[ФИО])","v":"Ханануев Аким Дмитриевич"},{"$f":"LOOKUP([id],Дети[id],Дети[Дата рождения])","v":"1997-06-13"},{"$f":"LOOKUP([id],Дети[id],Дети[пол])","v":"м"},"00:00:16.600",6]
[143,{"$f":"LOOKUP([id],Дети[id],Дети[team_id])","v":8},{"$f":"LOOKUP([team_id],Команды[id],Команды[Коротко])","v":"Руза"},{"$f":"LOOKUP([id],Дети[id],Дети[ФИО])","v":"Филимонов Александр"},{"$f":"LOOKUP([id],Дети[id],Дети[Дата рождения])","v":"1997-08-24"},{"$f":"LOOKUP([id],Дети[id],Дети[пол])","v":"м"},"00:00:16.650",7]
[438,{"$f":"LOOKUP([id],Дети[id],Дети[team_id])","v":22},{"$f":"LOOKUP([team_id],Команды[id],Команды[Коротко])","v":"Киров"},{"$f":"LOOKUP([id],Дети[id],Дети[ФИО])","v":"Мовсесян Рофаэл"},{"$f":"LOOKUP([id],Дети[id],Дети[Дата рождения])","v":"1997-05-04"},{"$f":"LOOKUP([id],Дети[id],Дети[пол])","v":"м"},"00:00:16.910",8]
[176,{"$f":"LOOKUP([id],Дети[id],Дети[team_id])","v":9},{"$f":"LOOKUP([team_id],Команды[id],Команды[Коротко])","v":"Курск"},{"$f":"LOOKUP([id],Дети[id],Дети[ФИО])","v":"Старосельцев Александр"},{"$f":"LOOKUP([id],Дети[id],Дети[Дата рождения])","v":"1997-11-03"},{"$f":"LOOKUP([id],Дети[id],Дети[пол])","v":"м"},"00:00:17.070",9]
[175,{"$f":"LOOKUP([id],Дети[id],Дети[team_id])","v":9},{"$f":"LOOKUP([team_id],Команды[id],Команды[Коротко])","v":"Курск"},{"$f":"LOOKUP([id],Дети[id],Дети[ФИО])","v":"Безугольников Михаил"},{"$f":"LOOKUP([id],Дети[id],Дети[Дата рождения])","v":"1997-04-07"},{"$f":"LOOKUP([id],Дети[id],Дети[пол])","v":"м"},"00:00:18.040",10]
[486,{"$f":"LOOKUP([id],Дети[id],Дети[team_id])","v":25},{"$f":"LOOKUP([team_id],Команды[id],Команды[Коротко])","v":"Ярославль"},{"$f":"LOOKUP([id],Дети[id],Дети[ФИО])","v":"Никитин Данил Сергеевич"},{"$f":"LOOKUP([id],Дети[id],Дети[Дата рождения])","v":"1999-05-08"},{"$f":"LOOKUP([id],Дети[id],Дети[пол])","v":"м"},"00:00:18.190",11]
[388,{"$f":"LOOKUP([id],Дети[id],Дети[team_id])","v":20},{"$f":"LOOKUP([team_id],Команды[id],Команды[Коротко])","v":"Татарстан"},{"$f":"LOOKUP([id],Дети[id],Дети[ФИО])","v":"Паранин Николай Александрович"},{"$f":"LOOKUP([id],Дети[id],Дети[Дата рождения])","v":"2000-11-18"},{"$f":"LOOKUP([id],Дети[id],Дети[пол])","v":"м"},"00:00:18.300",12]
[369,{"$f":"LOOKUP([id],Дети[id],Дети[team_id])","v":19},{"$f":"LOOKUP([team_id],Команды[id],Команды[Коротко])","v":"Тамбов"},{"$f":"LOOKUP([id],Дети[id],Дети[ФИО])","v":"Кобрин Александр"},{"$f":"LOOKUP([id],Дети[id],Дети[Дата рождения])","v":"1997-05-28"},{"$f":"LOOKUP([id],Дети[id],Дети[пол])","v":"м"},"00:00:18.580",13]
[241,{"$f":"LOOKUP([id],Дети[id],Дети[team_id])","v":13},{"$f":"LOOKUP([team_id],Команды[id],Команды[Коротко])","v":"Владимир"},{"$f":"LOOKUP([id],Дети[id],Дети[ФИО])","v":"Садаков Анатолий Сергеевич"},{"$f":"LOOKUP([id],Дети[id],Дети[Дата рождения])","v":"1999-05-19"},{"$f":"LOOKUP([id],Дети[id],Дети[пол])","v":"м"},"00:00:18.710",14]
[263,{"$f":"LOOKUP([id],Дети[id],Дети[team_id])","v":14},{"$f":"LOOKUP([team_id],Команды[id],Команды[Коротко])","v":"Воскресенск"},{"$f":"LOOKUP([id],Дети[id],Дети[ФИО])","v":"Степанов Евгений Александрович"},{"$f":"LOOKUP([id],Дети[id],Дети[Дата рождения])","v":"1997-04-17"},{"$f":"LOOKUP([id],Дети[id],Дети[пол])","v":"м"},"00:00:18.850",15]
[330,{"$f":"LOOKUP([id],Дети[id],Дети[team_id])","v":17},{"$f":"LOOKUP([team_id],Команды[id],Команды[Коротко])","v":"Смоленск"},{"$f":"LOOKUP([id],Дети[id],Дети[ФИО])","v":"Колесник Николай Александрович"},{"$f":"LOOKUP([id],Дети[id],Дети[Дата рождения])","v":"1998-04-08"},{"$f":"LOOKUP([id],Дети[id],Дети[пол])","v":"м"},"00:00:18.870",16]
[243,{"$f":"LOOKUP([id],Дети[id],Дети[team_id])","v":13},{"$f":"LOOKUP([team_id],Команды[id],Команды[Коротко])","v":"Владимир"},{"$f":"LOOKUP([id],Дети[id],Дети[ФИО])","v":"Седов Владимир Алексеевич"},{"$f":"LOOKUP([id],Дети[id],Дети[Дата рождения])","v":"1997-02-05"},{"$f":"LOOKUP([id],Дети[id],Дети[пол])","v":"м"},"00:00:19.130",17]
[217,{"$f":"LOOKUP([id],Дети[id],Дети[team_id])","v":11},{"$f":"LOOKUP([team_id],Команды[id],Команды[Коротко])","v":"Москва"},{"$f":"LOOKUP([id],Дети[id],Дети[ФИО])","v":"Щербенко Олег"},{"$f":"LOOKUP([id],Дети[id],Дети[Дата рождения])","v":"1998-11-11"},{"$f":"LOOKUP([id],Дети[id],Дети[пол])","v":"м"},"00:00:19.140",18]
[152,{"$f":"LOOKUP([id],Дети[id],Дети[team_id])","v":8},{"$f":"LOOKUP([team_id],Команды[id],Команды[Коротко])","v":"Руза"},{"$f":"LOOKUP([id],Дети[id],Дети[ФИО])","v":"Сребный Андрей"},{"$f":"LOOKUP([id],Дети[id],Дети[Дата рождения])","v":"1998-11-27"},{"$f":"LOOKUP([id],Дети[id],Дети[пол])","v":"м"},"00:00:19.320",19]
[283,{"$f":"LOOKUP([id],Дети[id],Дети[team_id])","v":15},{"$f":"LOOKUP([team_id],Команды[id],Команды[Коротко])","v":"Воронеж"},{"$f":"LOOKUP([id],Дети[id],Дети[ФИО])","v":"Долгалев Владислав Сергеевич"},{"$f":"LOOKUP([id],Дети[id],Дети[Дата рождения])","v":"1997-07-07"},{"$f":"LOOKUP([id],Дети[id],Дети[пол])","v":"м"},"00:00:19.760",20]
[320,{"$f":"LOOKUP([id],Дети[id],Дети[team_id])","v":16},{"$f":"LOOKUP([team_id],Команды[id],Команды[Коротко])","v":"Тверь"},{"$f":"LOOKUP([id],Дети[id],Дети[ФИО])","v":"Гамоюн Даниил Сергеевич"},{"$f":"LOOKUP([id],Дети[id],Дети[Дата рождения])","v":"1999-02-09"},{"$f":"LOOKUP([id],Дети[id],Дети[пол])","v":"м"},"00:00:19.870",21]
[292,{"$f":"LOOKUP([id],Дети[id],Дети[team_id])","v":15},{"$f":"LOOKUP([team_id],Команды[id],Команды[Коротко])","v":"Воронеж"},{"$f":"LOOKUP([id],Дети[id],Дети[ФИО])","v":"Кальченко Никита Сергеевич"},{"$f":"LOOKUP([id],Дети[id],Дети[Дата рождения])","v":"1997-06-26"},{"$f":"LOOKUP([id],Дети[id],Дети[пол])","v":"м"},"00:00:20.200",22]
[517,{"$f":"LOOKUP([id],Дети[id],Дети[team_id])","v":26},{"$f":"LOOKUP([team_id],Команды[id],Команды[Коротко])","v":"Олимп, Шатура"},{"$f":"LOOKUP([id],Дети[id],Дети[ФИО])","v":"Кузнецов Алексей Алексеевич"},{"$f":"LOOKUP([id],Дети[id],Дети[Дата рождения])","v":"1998-03-18"},{"$f":"LOOKUP([id],Дети[id],Дети[пол])","v":"м"},"00:00:20.560",23]
[363,{"$f":"LOOKUP([id],Дети[id],Дети[team_id])","v":19},{"$f":"LOOKUP([team_id],Команды[id],Команды[Коротко])","v":"Тамбов"},{"$f":"LOOKUP([id],Дети[id],Дети[ФИО])","v":"Винник Павел"},{"$f":"LOOKUP([id],Дети[id],Дети[Дата рождения])","v":"1997-07-28"},{"$f":"LOOKUP([id],Дети[id],Дети[пол])","v":"м"},"00:00:20.630",24]
[412,{"$f":"LOOKUP([id],Дети[id],Дети[team_id])","v":21},{"$f":"LOOKUP([team_id],Команды[id],Команды[Коротко])","v":"Ступино"},{"$f":"LOOKUP([id],Дети[id],Дети[ФИО])","v":"Волков  Иван Федорович"},{"$f":"LOOKUP([id],Дети[id],Дети[Дата рождения])","v":"1997-04-04"},{"$f":"LOOKUP([id],Дети[id],Дети[пол])","v":"м"},"00:00:20.910",25]
[317,{"$f":"LOOKUP([id],Дети[id],Дети[team_id])","v":16},{"$f":"LOOKUP([team_id],Команды[id],Команды[Коротко])","v":"Тверь"},{"$f":"LOOKUP([id],Дети[id],Дети[ФИО])","v":"Иванов Максим Сергеевич"},{"$f":"LOOKUP([id],Дети[id],Дети[Дата рождения])","v":"1997-08-14"},{"$f":"LOOKUP([id],Дети[id],Дети[пол])","v":"м"},"00:00:22.010",26]
[25,{"$f":"LOOKUP([id],Дети[id],Дети[team_id])","v":2},{"$f":"LOOKUP([team_id],Команды[id],Команды[Коротко])","v":"Липецк"},{"$f":"LOOKUP([id],Дети[id],Дети[ФИО])","v":"Кузин Александр Владимирович"},{"$f":"LOOKUP([id],Дети[id],Дети[Дата рождения])","v":"1998-06-21"},{"$f":"LOOKUP([id],Дети[id],Дети[пол])","v":"м"},"00:00:22.440",27]
[47,{"$f":"LOOKUP([id],Дети[id],Дети[team_id])","v":3},{"$f":"LOOKUP([team_id],Команды[id],Команды[Коротко])","v":"Дмитров"},{"$f":"LOOKUP([id],Дети[id],Дети[ФИО])","v":"Цигану Денис Николаевич"},{"$f":"LOOKUP([id],Дети[id],Дети[Дата рождения])","v":"1998-08-29"},{"$f":"LOOKUP([id],Дети[id],Дети[пол])","v":"м"},"00:00:22.640",28]
[107,{"$f":"LOOKUP([id],Дети[id],Дети[team_id])","v":6},{"$f":"LOOKUP([team_id],Команды[id],Команды[Коротко])","v":"Энергия, Шатура"},{"$f":"LOOKUP([id],Дети[id],Дети[ФИО])","v":"Чадаев Дмитрий Вадимович"},{"$f":"LOOKUP([id],Дети[id],Дети[Дата рождения])","v":"1997-08-21"},{"$f":"LOOKUP([id],Дети[id],Дети[пол])","v":"м"},"00:00:22.900",29]
[97,{"$f":"LOOKUP([id],Дети[id],Дети[team_id])","v":5},{"$f":"LOOKUP([team_id],Команды[id],Команды[Коротко])","v":"Краснодар"},{"$f":"LOOKUP([id],Дети[id],Дети[ФИО])","v":"Адлер Александр Владимирович"},{"$f":"LOOKUP([id],Дети[id],Дети[Дата рождения])","v":"1997-04-04"},{"$f":"LOOKUP([id],Дети[id],Дети[пол])","v":"м"},"00:00:23.070",30]
[105,{"$f":"LOOKUP([id],Дети[id],Дети[team_id])","v":6},{"$f":"LOOKUP([team_id],Команды[id],Команды[Коротко])","v":"Энергия, Шатура"},{"$f":"LOOKUP([id],Дети[id],Дети[ФИО])","v":"Щепкин Валерий Витальевич"},{"$f":"LOOKUP([id],Дети[id],Дети[Дата рождения])","v":"1997-04-18"},{"$f":"LOOKUP([id],Дети[id],Дети[пол])","v":"м"},"00:00:23.210",31]
[539,{"$f":"LOOKUP([id],Дети[id],Дети[team_id])","v":27},{"$f":"LOOKUP([team_id],Команды[id],Команды[Коротко])","v":"ОМСН"},{"$f":"LOOKUP([id],Дети[id],Дети[ФИО])","v":"Власенко Григорий Юрьевич"},{"$f":"LOOKUP([id],Дети[id],Дети[Дата рождения])","v":"1997-02-12"},{"$f":"LOOKUP([id],Дети[id],Дети[пол])","v":"м"},"00:00:23.330",32]
[225,{"$f":"LOOKUP([id],Дети[id],Дети[team_id])","v":12},{"$f":"LOOKUP([team_id],Команды[id],Команды[Коротко])","v":"Истра"},{"$f":"LOOKUP([id],Дети[id],Дети[ФИО])","v":"Горичев Илья Максимович"},{"$f":"LOOKUP([id],Дети[id],Дети[Дата рождения])","v":"2000-06-19"},{"$f":"LOOKUP([id],Дети[id],Дети[пол])","v":"м"},"00:00:23.430",33]
[470,{"$f":"LOOKUP([id],Дети[id],Дети[team_id])","v":24},{"$f":"LOOKUP([team_id],Команды[id],Команды[Коротко])","v":"Пушкино"},{"$f":"LOOKUP([id],Дети[id],Дети[ФИО])","v":"Айнутдинов Камиль Борисович"},{"$f":"LOOKUP([id],Дети[id],Дети[Дата рождения])","v":"1997-02-22"},{"$f":"LOOKUP([id],Дети[id],Дети[пол])","v":"м"},"00:00:23.510",34]
[436,{"$f":"LOOKUP([id],Дети[id],Дети[team_id])","v":22},{"$f":"LOOKUP([team_id],Команды[id],Команды[Коротко])","v":"Киров"},{"$f":"LOOKUP([id],Дети[id],Дети[ФИО])","v":"Филип Никита"},{"$f":"LOOKUP([id],Дети[id],Дети[Дата рождения])","v":"1998-02-14"},{"$f":"LOOKUP([id],Дети[id],Дети[пол])","v":"м"},"00:00:23.800",35]
[453,{"$f":"LOOKUP([id],Дети[id],Дети[team_id])","v":23},{"$f":"LOOKUP([team_id],Команды[id],Команды[Коротко])","v":"Иваново"},{"$f":"LOOKUP([id],Дети[id],Дети[ФИО])","v":"Муратов Владислав Александрович"},{"$f":"LOOKUP([id],Дети[id],Дети[Дата рождения])","v":"1997-09-02"},{"$f":"LOOKUP([id],Дети[id],Дети[пол])","v":"м"},"00:00:24.350",36]
[197,{"$f":"LOOKUP([id],Дети[id],Дети[team_id])","v":10},{"$f":"LOOKUP([team_id],Команды[id],Команды[Коротко])","v":"Кашира"},{"$f":"LOOKUP([id],Дети[id],Дети[ФИО])","v":"Денисов Илья Игоревич"},{"$f":"LOOKUP([id],Дети[id],Дети[Дата рождения])","v":"1998-12-03"},{"$f":"LOOKUP([id],Дети[id],Дети[пол])","v":"м"},"00:00:24.430",37]
[487,{"$f":"LOOKUP([id],Дети[id],Дети[team_id])","v":25},{"$f":"LOOKUP([team_id],Команды[id],Команды[Коротко])","v":"Ярославль"},{"$f":"LOOKUP([id],Дети[id],Дети[ФИО])","v":"Моторнов Денис Алексеевич"},{"$f":"LOOKUP([id],Дети[id],Дети[Дата рождения])","v":"1999-03-24"},{"$f":"LOOKUP([id],Дети[id],Дети[пол])","v":"м"},"00:00:26.170",38]
[239,{"$f":"LOOKUP([id],Дети[id],Дети[team_id])","v":12},{"$f":"LOOKUP([team_id],Команды[id],Команды[Коротко])","v":"Истра"},{"$f":"LOOKUP([id],Дети[id],Дети[ФИО])","v":"Пылаев Дмитрий Евгеньевич"},{"$f":"LOOKUP([id],Дети[id],Дети[Дата рождения])","v":"1999-06-16"},{"$f":"LOOKUP([id],Дети[id],Дети[пол])","v":"м"},"00:00:26.470",39]
[2,{"$f":"LOOKUP([id],Дети[id],Дети[team_id])","v":1},{"$f":"LOOKUP([team_id],Команды[id],Команды[Коротко])","v":"ОМОН"},{"$f":"LOOKUP([id],Дети[id],Дети[ФИО])","v":"Шеин Сергей Дмитриевич"},{"$f":"LOOKUP([id],Дети[id],Дети[Дата рождения])","v":"2000-05-29"},{"$f":"LOOKUP([id],Дети[id],Дети[пол])","v":"м"},"00:00:26.800",40]
[522,{"$f":"LOOKUP([id],Дети[id],Дети[team_id])","v":27},{"$f":"LOOKUP([team_id],Команды[id],Команды[Коротко])","v":"ОМСН"},{"$f":"LOOKUP([id],Дети[id],Дети[ФИО])","v":"Леваков Илья Владимирович"},{"$f":"LOOKUP([id],Дети[id],Дети[Дата рождения])","v":"1997-01-07"},{"$f":"LOOKUP([id],Дети[id],Дети[пол])","v":"м"},"00:00:27.090",41]
[212,{"$f":"LOOKUP([id],Дети[id],Дети[team_id])","v":11},{"$f":"LOOKUP([team_id],Команды[id],Команды[Коротко])","v":"Москва"},{"$f":"LOOKUP([id],Дети[id],Дети[ФИО])","v":"Оганисян Гайк"},{"$f":"LOOKUP([id],Дети[id],Дети[Дата рождения])","v":"1997-10-04"},{"$f":"LOOKUP([id],Дети[id],Дети[пол])","v":"м"},"00:00:28.460",42]
[125,{"$f":"LOOKUP([id],Дети[id],Дети[team_id])","v":7},{"$f":"LOOKUP([team_id],Команды[id],Команды[Коротко])","v":"Клин"},{"$f":"LOOKUP([id],Дети[id],Дети[ФИО])","v":"Данков Алексей Сергеевич"},{"$f":"LOOKUP([id],Дети[id],Дети[Дата рождения])","v":"1998-03-27"},{"$f":"LOOKUP([id],Дети[id],Дети[пол])","v":"м"},"00:00:29.740",43]
[27,{"$f":"LOOKUP([id],Дети[id],Дети[team_id])","v":2},{"$f":"LOOKUP([team_id],Команды[id],Команды[Коротко])","v":"Липецк"},{"$f":"LOOKUP([id],Дети[id],Дети[ФИО])","v":"Филатов Павел Юрьевич"},{"$f":"LOOKUP([id],Дети[id],Дети[Дата рождения])","v":"1998-06-21"},{"$f":"LOOKUP([id],Дети[id],Дети[пол])","v":"м"},"00:00:29.750",44]
[447,{"$f":"LOOKUP([id],Дети[id],Дети[team_id])","v":23},{"$f":"LOOKUP([team_id],Команды[id],Команды[Коротко])","v":"Иваново"},{"$f":"LOOKUP([id],Дети[id],Дети[ФИО])","v":"Данько Артем Александрович"},{"$f":"LOOKUP([id],Дети[id],Дети[Дата рождения])","v":"1997-09-27"},{"$f":"LOOKUP([id],Дети[id],Дети[пол])","v":"м"},"00:00:30.920",45]
[404,{"$f":"LOOKUP([id],Дети[id],Дети[team_id])","v":21},{"$f":"LOOKUP([team_id],Команды[id],Команды[Коротко])","v":"Ступино"},{"$f":"LOOKUP([id],Дети[id],Дети[ФИО])","v":"Ненашев Виктор Сергеевич"},{"$f":"LOOKUP([id],Дети[id],Дети[Дата рождения])","v":"1997-01-06"},{"$f":"LOOKUP([id],Дети[id],Дети[пол])","v":"м"},"00:00:31.990",46]
[353,{"$f":"LOOKUP([id],Дети[id],Дети[team_id])","v":18},{"$f":"LOOKUP([team_id],Команды[id],Команды[Коротко])","v":"Одинцово"},{"$f":"LOOKUP([id],Дети[id],Дети[ФИО])","v":"Горьков Егор Сергеевич"},{"$f":"LOOKUP([id],Дети[id],Дети[Дата рождения])","v":"1999-10-06"},{"$f":"LOOKUP([id],Дети[id],Дети[пол])","v":"м"},"00:00:35.040",47]
[352,{"$f":"LOOKUP([id],Дети[id],Дети[team_id])","v":18},{"$f":"LOOKUP([team_id],Команды[id],Команды[Коротко])","v":"Одинцово"},{"$f":"LOOKUP([id],Дети[id],Дети[ФИО])","v":"Алексеенко Андрей Юрьевич"},{"$f":"LOOKUP([id],Дети[id],Дети[Дата рождения])","v":"1998-06-23"},{"$f":"LOOKUP([id],Дети[id],Дети[пол])","v":"м"},"00:00:35.440",48]
[4,{"$f":"LOOKUP([id],Дети[id],Дети[team_id])","v":1},{"$f":"LOOKUP([team_id],Команды[id],Команды[Коротко])","v":"ОМОН"},{"$f":"LOOKUP([id],Дети[id],Дети[ФИО])","v":"Юрасов Николай Сергеевич"},{"$f":"LOOKUP([id],Дети[id],Дети[Дата рождения])","v":"2000-05-29"},{"$f":"LOOKUP([id],Дети[id],Дети[пол])","v":"м"},"00:00:37.300",49]
[196,{"$f":"LOOKUP([id],Дети[id],Дети[team_id])","v":10},{"$f":"LOOKUP([team_id],Команды[id],Команды[Коротко])","v":"Кашира"},{"$f":"LOOKUP([id],Дети[id],Дети[ФИО])","v":"Гусев Сергей Евгеньевич"},{"$f":"LOOKUP([id],Дети[id],Дети[Дата рождения])","v":"1998-08-09"},{"$f":"LOOKUP([id],Дети[id],Дети[пол])","v":"м"},"00:00:37.600",50]
[474,{"$f":"LOOKUP([id],Дети[id],Дети[team_id])","v":24},{"$f":"LOOKUP([team_id],Команды[id],Команды[Коротко])","v":"Пушкино"},{"$f":"LOOKUP([id],Дети[id],Дети[ФИО])","v":"Козицкий Сергей Сергеевич"},{"$f":"LOOKUP([id],Дети[id],Дети[Дата рождения])","v":"1997-11-23"},{"$f":"LOOKUP([id],Дети[id],Дети[пол])","v":"м"},"00:00:48.490",51]
[128,{"$f":"LOOKUP([id],Дети[id],Дети[team_id])","v":7},{"$f":"LOOKUP([team_id],Команды[id],Команды[Коротко])","v":"Клин"},{"$f":"LOOKUP([id],Дети[id],Дети[ФИО])","v":"Долбиков Дмитрий Михайлович"},{"$f":"LOOKUP([id],Дети[id],Дети[Дата рождения])","v":"1997-08-22"},{"$f":"LOOKUP([id],Дети[id],Дети[пол])","v":"м"},"00:00:56.820",52]
[237,{"$f":"LOOKUP([id],Дети[id],Дети[team_id])","v":12},{"$f":"LOOKUP([team_id],Команды[id],Команды[Коротко])","v":"Истра"},{"$f":"LOOKUP([id],Дети[id],Дети[ФИО])","v":"Петровская Евгения Владимирона"},{"$f":"LOOKUP([id],Дети[id],Дети[Дата рождения])","v":"1998-03-01"},{"$f":"LOOKUP([id],Дети[id],Дети[пол])","v":"д"},"00:00:17.030",1]
[324,{"$f":"LOOKUP([id],Дети[id],Дети[team_id])","v":17},{"$f":"LOOKUP([team_id],Команды[id],Команды[Коротко])","v":"Смоленск"},{"$f":"LOOKUP([id],Дети[id],Дети[ФИО])","v":"Дедова Дарья Юрьевна"},{"$f":"LOOKUP([id],Дети[id],Дети[Дата рождения])","v":"1997-06-08"},{"$f":"LOOKUP([id],Дети[id],Дети[пол])","v":"д"},"00:00:17.180",2]
[312,{"$f":"LOOKUP([id],Дети[id],Дети[team_id])","v":16},{"$f":"LOOKUP([team_id],Команды[id],Команды[Коротко])","v":"Тверь"},{"$f":"LOOKUP([id],Дети[id],Дети[ФИО])","v":"Ли Оливия"},{"$f":"LOOKUP([id],Дети[id],Дети[Дата рождения])","v":"1998-09-10"},{"$f":"LOOKUP([id],Дети[id],Дети[пол])","v":"д"},"00:00:19.100",3]
[340,{"$f":"LOOKUP([id],Дети[id],Дети[team_id])","v":17},{"$f":"LOOKUP([team_id],Команды[id],Команды[Коротко])","v":"Смоленск"},{"$f":"LOOKUP([id],Дети[id],Дети[ФИО])","v":"Курсакова Дарья Сергеевна"},{"$f":"LOOKUP([id],Дети[id],Дети[Дата рождения])","v":"1999-04-01"},{"$f":"LOOKUP([id],Дети[id],Дети[пол])","v":"д"},"00:00:19.200",4]
[26,{"$f":"LOOKUP([id],Дети[id],Дети[team_id])","v":2},{"$f":"LOOKUP([team_id],Команды[id],Команды[Коротко])","v":"Липецк"},{"$f":"LOOKUP([id],Дети[id],Дети[ФИО])","v":"Бабкина Людмила Алексеевна"},{"$f":"LOOKUP([id],Дети[id],Дети[Дата рождения])","v":"1997-10-27"},{"$f":"LOOKUP([id],Дети[id],Дети[пол])","v":"д"},"00:00:19.250",5]
[362,{"$f":"LOOKUP([id],Дети[id],Дети[team_id])","v":19},{"$f":"LOOKUP([team_id],Команды[id],Команды[Коротко])","v":"Тамбов"},{"$f":"LOOKUP([id],Дети[id],Дети[ФИО])","v":"Шишкина Дарья"},{"$f":"LOOKUP([id],Дети[id],Дети[Дата рождения])","v":"1997-11-11"},{"$f":"LOOKUP([id],Дети[id],Дети[пол])","v":"д"},"00:00:19.260",6]
[133,{"$f":"LOOKUP([id],Дети[id],Дети[team_id])","v":7},{"$f":"LOOKUP([team_id],Команды[id],Команды[Коротко])","v":"Клин"},{"$f":"LOOKUP([id],Дети[id],Дети[ФИО])","v":"Черникова Дарья Андреевна"},{"$f":"LOOKUP([id],Дети[id],Дети[Дата рождения])","v":"1997-07-28"},{"$f":"LOOKUP([id],Дети[id],Дети[пол])","v":"д"},"00:00:19.420",7]
[491,{"$f":"LOOKUP([id],Дети[id],Дети[team_id])","v":25},{"$f":"LOOKUP([team_id],Команды[id],Команды[Коротко])","v":"Ярославль"},{"$f":"LOOKUP([id],Дети[id],Дети[ФИО])","v":"Зыкова Ирина Андреевна"},{"$f":"LOOKUP([id],Дети[id],Дети[Дата рождения])","v":"1998-10-05"},{"$f":"LOOKUP([id],Дети[id],Дети[пол])","v":"д"},"00:00:20.430",8]
[509,{"$f":"LOOKUP([id],Дети[id],Дети[team_id])","v":26},{"$f":"LOOKUP([team_id],Команды[id],Команды[Коротко])","v":"Олимп, Шатура"},{"$f":"LOOKUP([id],Дети[id],Дети[ФИО])","v":"Кожина Светлана Викторовна"},{"$f":"LOOKUP([id],Дети[id],Дети[Дата рождения])","v":"1998-01-03"},{"$f":"LOOKUP([id],Дети[id],Дети[пол])","v":"д"},"00:00:21.170",9]
[282,{"$f":"LOOKUP([id],Дети[id],Дети[team_id])","v":15},{"$f":"LOOKUP([team_id],Команды[id],Команды[Коротко])","v":"Воронеж"},{"$f":"LOOKUP([id],Дети[id],Дети[ФИО])","v":"Богданова Кристина Сергеевна"},{"$f":"LOOKUP([id],Дети[id],Дети[Дата рождения])","v":"1997-01-16"},{"$f":"LOOKUP([id],Дети[id],Дети[пол])","v":"д"},"00:00:21.330",10]
[167,{"$f":"LOOKUP([id],Дети[id],Дети[team_id])","v":9},{"$f":"LOOKUP([team_id],Команды[id],Команды[Коротко])","v":"Курск"},{"$f":"LOOKUP([id],Дети[id],Дети[ФИО])","v":"Сташевская Татьяна"},{"$f":"LOOKUP([id],Дети[id],Дети[Дата рождения])","v":"1997-05-06"},{"$f":"LOOKUP([id],Дети[id],Дети[пол])","v":"д"},"00:00:21.400",11]
[395,{"$f":"LOOKUP([id],Дети[id],Дети[team_id])","v":20},{"$f":"LOOKUP([team_id],Команды[id],Команды[Коротко])","v":"Татарстан"},{"$f":"LOOKUP([id],Дети[id],Дети[ФИО])","v":"Гимадеева Алина Фаридовна"},{"$f":"LOOKUP([id],Дети[id],Дети[Дата рождения])","v":"1997-02-27"},{"$f":"LOOKUP([id],Дети[id],Дети[пол])","v":"д"},"00:00:21.710",12]
[209,{"$f":"LOOKUP([id],Дети[id],Дети[team_id])","v":11},{"$f":"LOOKUP([team_id],Команды[id],Команды[Коротко])","v":"Москва"},{"$f":"LOOKUP([id],Дети[id],Дети[ФИО])","v":"Кохраидзе Алина"},{"$f":"LOOKUP([id],Дети[id],Дети[Дата рождения])","v":"2000-06-20"},{"$f":"LOOKUP([id],Дети[id],Дети[пол])","v":"д"},"00:00:22.270",13]
[309,{"$f":"LOOKUP([id],Дети[id],Дети[team_id])","v":16},{"$f":"LOOKUP([team_id],Команды[id],Команды[Коротко])","v":"Тверь"},{"$f":"LOOKUP([id],Дети[id],Дети[ФИО])","v":"Прусова Анастасия Андреевна"},{"$f":"LOOKUP([id],Дети[id],Дети[Дата рождения])","v":"1997-12-19"},{"$f":"LOOKUP([id],Дети[id],Дети[пол])","v":"д"},"00:00:22.340",14]
[164,{"$f":"LOOKUP([id],Дети[id],Дети[team_id])","v":9},{"$f":"LOOKUP([team_id],Команды[id],Команды[Коротко])","v":"Курск"},{"$f":"LOOKUP([id],Дети[id],Дети[ФИО])","v":"Башкатова Татьяна"},{"$f":"LOOKUP([id],Дети[id],Дети[Дата рождения])","v":"1997-09-20"},{"$f":"LOOKUP([id],Дети[id],Дети[пол])","v":"д"},"00:00:23.040",15]
[53,{"$f":"LOOKUP([id],Дети[id],Дети[team_id])","v":3},{"$f":"LOOKUP([team_id],Команды[id],Команды[Коротко])","v":"Дмитров"},{"$f":"LOOKUP([id],Дети[id],Дети[ФИО])","v":"Коровайко Марита Дмитриевна"},{"$f":"LOOKUP([id],Дети[id],Дети[Дата рождения])","v":"1998-07-22"},{"$f":"LOOKUP([id],Дети[id],Дети[пол])","v":"д"},"00:00:24.410",16]
[396,{"$f":"LOOKUP([id],Дети[id],Дети[team_id])","v":20},{"$f":"LOOKUP([team_id],Команды[id],Команды[Коротко])","v":"Татарстан"},{"$f":"LOOKUP([id],Дети[id],Дети[ФИО])","v":"Бешенцева Анастасия Юрьевна"},{"$f":"LOOKUP([id],Дети[id],Дети[Дата рождения])","v":"1997-02-04"},{"$f":"LOOKUP([id],Дети[id],Дети[пол])","v":"д"},"00:00:25.060",17]
[99,{"$f":"LOOKUP([id],Дети[id],Дети[team_id])","v":5},{"$f":"LOOKUP([team_id],Команды[id],Команды[Коротко])","v":"Краснодар"},{"$f":"LOOKUP([id],Дети[id],Дети[ФИО])","v":"Чернышева Алена Анатольевна"},{"$f":"LOOKUP([id],Дети[id],Дети[Дата рождения])","v":"1997-07-15"},{"$f":"LOOKUP([id],Дети[id],Дети[пол])","v":"д"},"00:00:25.070",18]
[423,{"$f":"LOOKUP([id],Дети[id],Дети[team_id])","v":22},{"$f":"LOOKUP([team_id],Команды[id],Команды[Коротко])","v":"Киров"},{"$f":"LOOKUP([id],Дети[id],Дети[ФИО])","v":"Бырканова Яна"},{"$f":"LOOKUP([id],Дети[id],Дети[Дата рождения])","v":"1997-07-24"},{"$f":"LOOKUP([id],Дети[id],Дети[пол])","v":"д"},"00:00:25.150",19]
[256,{"$f":"LOOKUP([id],Дети[id],Дети[team_id])","v":13},{"$f":"LOOKUP([team_id],Команды[id],Команды[Коротко])","v":"Владимир"},{"$f":"LOOKUP([id],Дети[id],Дети[ФИО])","v":"Орлова Ирина Андреевна"},{"$f":"LOOKUP([id],Дети[id],Дети[Дата рождения])","v":"1997-01-17"},{"$f":"LOOKUP([id],Дети[id],Дети[пол])","v":"д"},"00:00:25.150",20]
[460,{"$f":"LOOKUP([id],Дети[id],Дети[team_id])","v":23},{"$f":"LOOKUP([team_id],Команды[id],Команды[Коротко])","v":"Иваново"},{"$f":"LOOKUP([id],Дети[id],Дети[ФИО])","v":"Колпакова Надежда Михайловна"},{"$f":"LOOKUP([id],Дети[id],Дети[Дата рождения])","v":"2000-01-25"},{"$f":"LOOKUP([id],Дети[id],Дети[пол])","v":"д"},"00:00:25.300",21]
[234,{"$f":"LOOKUP([id],Дети[id],Дети[team_id])","v":12},{"$f":"LOOKUP([team_id],Команды[id],Команды[Коротко])","v":"Истра"},{"$f":"LOOKUP([id],Дети[id],Дети[ФИО])","v":"Копцева Анна Сергеевна"},{"$f":"LOOKUP([id],Дети[id],Дети[Дата рождения])","v":"1998-07-08"},{"$f":"LOOKUP([id],Дети[id],Дети[пол])","v":"д"},"00:00:25.800",22]
[471,{"$f":"LOOKUP([id],Дети[id],Дети[team_id])","v":24},{"$f":"LOOKUP([team_id],Команды[id],Команды[Коротко])","v":"Пушкино"},{"$f":"LOOKUP([id],Дети[id],Дети[ФИО])","v":"Юшкова Алина Александровна"},{"$f":"LOOKUP([id],Дети[id],Дети[Дата рождения])","v":"1997-02-26"},{"$f":"LOOKUP([id],Дети[id],Дети[пол])","v":"д"},"00:00:26.010",23]
[462,{"$f":"LOOKUP([id],Дети[id],Дети[team_id])","v":24},{"$f":"LOOKUP([team_id],Команды[id],Команды[Коротко])","v":"Пушкино"},{"$f":"LOOKUP([id],Дети[id],Дети[ФИО])","v":"Бобожанова Кумринисо Солоховна"},{"$f":"LOOKUP([id],Дети[id],Дети[Дата рождения])","v":"1997-10-24"},{"$f":"LOOKUP([id],Дети[id],Дети[пол])","v":"д"},"00:00:26.060",24]
[284,{"$f":"LOOKUP([id],Дети[id],Дети[team_id])","v":15},{"$f":"LOOKUP([team_id],Команды[id],Команды[Коротко])","v":"Воронеж"},{"$f":"LOOKUP([id],Дети[id],Дети[ФИО])","v":"Бубликова Марина Александровна"},{"$f":"LOOKUP([id],Дети[id],Дети[Дата рождения])","v":"1997-11-20"},{"$f":"LOOKUP([id],Дети[id],Дети[пол])","v":"д"},"00:00:26.360",25]
[358,{"$f":"LOOKUP([id],Дети[id],Дети[team_id])","v":18},{"$f":"LOOKUP([team_id],Команды[id],Команды[Коротко])","v":"Одинцово"},{"$f":"LOOKUP([id],Дети[id],Дети[ФИО])","v":"Гутынина Надежда Сергеевна"},{"$f":"LOOKUP([id],Дети[id],Дети[Дата рождения])","v":"1999-10-06"},{"$f":"LOOKUP([id],Дети[id],Дети[пол])","v":"д"},"00:00:26.500",26]
[184,{"$f":"LOOKUP([id],Дети[id],Дети[team_id])","v":10},{"$f":"LOOKUP([team_id],Команды[id],Команды[Коротко])","v":"Кашира"},{"$f":"LOOKUP([id],Дети[id],Дети[ФИО])","v":"Леонгард Анна Анатольевна"},{"$f":"LOOKUP([id],Дети[id],Дети[Дата рождения])","v":"1998-08-13"},{"$f":"LOOKUP([id],Дети[id],Дети[пол])","v":"д"},"00:00:26.710",27]
[346,{"$f":"LOOKUP([id],Дети[id],Дети[team_id])","v":18},{"$f":"LOOKUP([team_id],Команды[id],Команды[Коротко])","v":"Одинцово"},{"$f":"LOOKUP([id],Дети[id],Дети[ФИО])","v":"Жильцова Виктория Константиновна"},{"$f":"LOOKUP([id],Дети[id],Дети[Дата рождения])","v":"1999-07-06"},{"$f":"LOOKUP([id],Дети[id],Дети[пол])","v":"д"},"00:00:27.360",28]
[52,{"$f":"LOOKUP([id],Дети[id],Дети[team_id])","v":3},{"$f":"LOOKUP([team_id],Команды[id],Команды[Коротко])","v":"Дмитров"},{"$f":"LOOKUP([id],Дети[id],Дети[ФИО])","v":"Руженцева Дарья Дмитриевна"},{"$f":"LOOKUP([id],Дети[id],Дети[Дата рождения])","v":"1999-01-11"},{"$f":"LOOKUP([id],Дети[id],Дети[пол])","v":"д"},"00:00:27.420",29]
[14,{"$f":"LOOKUP([id],Дети[id],Дети[team_id])","v":1},{"$f":"LOOKUP([team_id],Команды[id],Команды[Коротко])","v":"ОМОН"},{"$f":"LOOKUP([id],Дети[id],Дети[ФИО])","v":"Крашенинникова Анна Андреевна"},{"$f":"LOOKUP([id],Дети[id],Дети[Дата рождения])","v":"1997-11-03"},{"$f":"LOOKUP([id],Дети[id],Дети[пол])","v":"д"},"00:00:27.860",30]
[510,{"$f":"LOOKUP([id],Дети[id],Дети[team_id])","v":26},{"$f":"LOOKUP([team_id],Команды[id],Команды[Коротко])","v":"Олимп, Шатура"},{"$f":"LOOKUP([id],Дети[id],Дети[ФИО])","v":"Фролова Юлия Васильевна"},{"$f":"LOOKUP([id],Дети[id],Дети[Дата рождения])","v":"1997-05-19"},{"$f":"LOOKUP([id],Дети[id],Дети[пол])","v":"д"},"00:00:28.900",31]
[111,{"$f":"LOOKUP([id],Дети[id],Дети[team_id])","v":6},{"$f":"LOOKUP([team_id],Команды[id],Команды[Коротко])","v":"Энергия, Шатура"},{"$f":"LOOKUP([id],Дети[id],Дети[ФИО])","v":"Нестерова Валерия Евгеньевна"},{"$f":"LOOKUP([id],Дети[id],Дети[Дата рождения])","v":"1997-07-11"},{"$f":"LOOKUP([id],Дети[id],Дети[пол])","v":"д"},"00:00:29.380",32]
[15,{"$f":"LOOKUP([id],Дети[id],Дети[team_id])","v":1},{"$f":"LOOKUP([team_id],Команды[id],Команды[Коротко])","v":"ОМОН"},{"$f":"LOOKUP([id],Дети[id],Дети[ФИО])","v":"Уварова Екатерина Андреевна"},{"$f":"LOOKUP([id],Дети[id],Дети[Дата рождения])","v":"1997-04-30"},{"$f":"LOOKUP([id],Дети[id],Дети[пол])","v":"д"},"00:00:29.400",33]
[277,{"$f":"LOOKUP([id],Дети[id],Дети[team_id])","v":14},{"$f":"LOOKUP([team_id],Команды[id],Команды[Коротко])","v":"Воскресенск"},{"$f":"LOOKUP([id],Дети[id],Дети[ФИО])","v":"Николаева Юлия Вячеславовна"},{"$f":"LOOKUP([id],Дети[id],Дети[Дата рождения])","v":"1998-10-08"},{"$f":"LOOKUP([id],Дети[id],Дети[пол])","v":"д"},"00:00:29.530",34]
[211,{"$f":"LOOKUP([id],Дети[id],Дети[team_id])","v":11},{"$f":"LOOKUP([team_id],Команды[id],Команды[Коротко])","v":"Москва"},{"$f":"LOOKUP([id],Дети[id],Дети[ФИО])","v":"Кожаева Екатерина"},{"$f":"LOOKUP([id],Дети[id],Дети[Дата рождения])","v":"1997-12-03"},{"$f":"LOOKUP([id],Дети[id],Дети[пол])","v":"д"},"00:00:29.750",35]
[429,{"$f":"LOOKUP([id],Дети[id],Дети[team_id])","v":22},{"$f":"LOOKUP([team_id],Команды[id],Команды[Коротко])","v":"Киров"},{"$f":"LOOKUP([id],Дети[id],Дети[ФИО])","v":"Корманова Валерия"},{"$f":"LOOKUP([id],Дети[id],Дети[Дата рождения])","v":"1998-12-23"},{"$f":"LOOKUP([id],Дети[id],Дети[пол])","v":"д"},"00:00:30.060",36]
[280,{"$f":"LOOKUP([id],Дети[id],Дети[team_id])","v":14},{"$f":"LOOKUP([team_id],Команды[id],Команды[Коротко])","v":"Воскресенск"},{"$f":"LOOKUP([id],Дети[id],Дети[ФИО])","v":"Прокопишина Любовь Григорьевна"},{"$f":"LOOKUP([id],Дети[id],Дети[Дата рождения])","v":"1998-06-17"},{"$f":"LOOKUP([id],Дети[id],Дети[пол])","v":"д"},"00:00:30.180",37]
[116,{"$f":"LOOKUP([id],Дети[id],Дети[team_id])","v":6},{"$f":"LOOKUP([team_id],Команды[id],Команды[Коротко])","v":"Энергия, Шатура"},{"$f":"LOOKUP([id],Дети[id],Дети[ФИО])","v":"Ионова Светлана Олеговна"},{"$f":"LOOKUP([id],Дети[id],Дети[Дата рождения])","v":"1997-09-23"},{"$f":"LOOKUP([id],Дети[id],Дети[пол])","v":"д"},"00:00:31.990",38]
[131,{"$f":"LOOKUP([id],Дети[id],Дети[team_id])","v":7},{"$f":"LOOKUP([team_id],Команды[id],Команды[Коротко])","v":"Клин"},{"$f":"LOOKUP([id],Дети[id],Дети[ФИО])","v":"Мешкова Виктория Алексеевна"},{"$f":"LOOKUP([id],Дети[id],Дети[Дата рождения])","v":"1998-02-02"},{"$f":"LOOKUP([id],Дети[id],Дети[пол])","v":"д"},"00:00:32.240",39]
[156,{"$f":"LOOKUP([id],Дети[id],Дети[team_id])","v":8},{"$f":"LOOKUP([team_id],Команды[id],Команды[Коротко])","v":"Руза"},{"$f":"LOOKUP([id],Дети[id],Дети[ФИО])","v":"Дмитроченко Светлана"},{"$f":"LOOKUP([id],Дети[id],Дети[Дата рождения])","v":"1997-05-07"},{"$f":"LOOKUP([id],Дети[id],Дети[пол])","v":"д"},"00:00:33.140",40]
[448,{"$f":"LOOKUP([id],Дети[id],Дети[team_id])","v":23},{"$f":"LOOKUP([team_id],Команды[id],Команды[Коротко])","v":"Иваново"},{"$f":"LOOKUP([id],Дети[id],Дети[ФИО])","v":"Орлова Виктория Андреевна"},{"$f":"LOOKUP([id],Дети[id],Дети[Дата рождения])","v":"1997-09-01"},{"$f":"LOOKUP([id],Дети[id],Дети[пол])","v":"д"},"00:00:33.180",41]
[91,{"$f":"LOOKUP([id],Дети[id],Дети[team_id])","v":5},{"$f":"LOOKUP([team_id],Команды[id],Команды[Коротко])","v":"Краснодар"},{"$f":"LOOKUP([id],Дети[id],Дети[ФИО])","v":"Григорьева Вероника Александровна"},{"$f":"LOOKUP([id],Дети[id],Дети[Дата рождения])","v":"1998-04-13"},{"$f":"LOOKUP([id],Дети[id],Дети[пол])","v":"д"},"00:00:33.280",42]
[35,{"$f":"LOOKUP([id],Дети[id],Дети[team_id])","v":2},{"$f":"LOOKUP([team_id],Команды[id],Команды[Коротко])","v":"Липецк"},{"$f":"LOOKUP([id],Дети[id],Дети[ФИО])","v":"Пашенцева Екатерина Сергеевна"},{"$f":"LOOKUP([id],Дети[id],Дети[Дата рождения])","v":"1998-01-30"},{"$f":"LOOKUP([id],Дети[id],Дети[пол])","v":"д"},"00:00:33.780",43]
[403,{"$f":"LOOKUP([id],Дети[id],Дети[team_id])","v":21},{"$f":"LOOKUP([team_id],Команды[id],Команды[Коротко])","v":"Ступино"},{"$f":"LOOKUP([id],Дети[id],Дети[ФИО])","v":"Беляева Мария Михайловна"},{"$f":"LOOKUP([id],Дети[id],Дети[Дата рождения])","v":"1997-02-18"},{"$f":"LOOKUP([id],Дети[id],Дети[пол])","v":"д"},"00:00:34.160",44]
[368,{"$f":"LOOKUP([id],Дети[id],Дети[team_id])","v":19},{"$f":"LOOKUP([team_id],Команды[id],Команды[Коротко])","v":"Тамбов"},{"$f":"LOOKUP([id],Дети[id],Дети[ФИО])","v":"Сафронова Дарья"},{"$f":"LOOKUP([id],Дети[id],Дети[Дата рождения])","v":"1997-11-27"},{"$f":"LOOKUP([id],Дети[id],Дети[пол])","v":"д"},"00:00:35.980",45]
[499,{"$f":"LOOKUP([id],Дети[id],Дети[team_id])","v":25},{"$f":"LOOKUP([team_id],Команды[id],Команды[Коротко])","v":"Ярославль"},{"$f":"LOOKUP([id],Дети[id],Дети[ФИО])","v":"Курбатова Татьяна Андреевна"},{"$f":"LOOKUP([id],Дети[id],Дети[Дата рождения])","v":"1998-01-27"},{"$f":"LOOKUP([id],Дети[id],Дети[пол])","v":"д"},"00:00:36.660",46]
[187,{"$f":"LOOKUP([id],Дети[id],Дети[team_id])","v":10},{"$f":"LOOKUP([team_id],Команды[id],Команды[Коротко])","v":"Кашира"},{"$f":"LOOKUP([id],Дети[id],Дети[ФИО])","v":"Куликова Александра Сергеевна"},{"$f":"LOOKUP([id],Дети[id],Дети[Дата рождения])","v":"1998-07-14"},{"$f":"LOOKUP([id],Дети[id],Дети[пол])","v":"д"},"00:00:37.470",47]
[405,{"$f":"LOOKUP([id],Дети[id],Дети[team_id])","v":21},{"$f":"LOOKUP([team_id],Команды[id],Команды[Коротко])","v":"Ступино"},{"$f":"LOOKUP([id],Дети[id],Дети[ФИО])","v":"Карпова Дарья Алексеевна"},{"$f":"LOOKUP([id],Дети[id],Дети[Дата рождения])","v":"1999-01-09"},{"$f":"LOOKUP([id],Дети[id],Дети[пол])","v":"д"},"00:00:38.600",48]
[532,{"$f":"LOOKUP([id],Дети[id],Дети[team_id])","v":27},{"$f":"LOOKUP([team_id],Команды[id],Команды[Коротко])","v":"ОМСН"},{"$f":"LOOKUP([id],Дети[id],Дети[ФИО])","v":"Малькова Анастасия Витальевна"},{"$f":"LOOKUP([id],Дети[id],Дети[Дата рождения])","v":"1997-04-24"},{"$f":"LOOKUP([id],Дети[id],Дети[пол])","v":"д"},"00:00:39.210",49]
[151,{"$f":"LOOKUP([id],Дети[id],Дети[team_id])","v":8},{"$f":"LOOKUP([team_id],Команды[id],Команды[Коротко])","v":"Руза"},{"$f":"LOOKUP([id],Дети[id],Дети[ФИО])","v":"Ковач Валерия"},{"$f":"LOOKUP([id],Дети[id],Дети[Дата рождения])","v":"1998-04-05"},{"$f":"LOOKUP([id],Дети[id],Дети[пол])","v":"д"},"00:00:39.430",50]
[252,{"$f":"LOOKUP([id],Дети[id],Дети[team_id])","v":13},{"$f":"LOOKUP([team_id],Команды[id],Команды[Коротко])","v":"Владимир"},{"$f":"LOOKUP([id],Дети[id],Дети[ФИО])","v":"Мамбетова Бахте Гул Уразбаевна"},{"$f":"LOOKUP([id],Дети[id],Дети[Дата рождения])","v":"1998-07-20"},{"$f":"LOOKUP([id],Дети[id],Дети[пол])","v":"д"},"00:00:49.570",51]
[535,{"$f":"LOOKUP([id],Дети[id],Дети[team_id])","v":27},{"$f":"LOOKUP([team_id],Команды[id],Команды[Коротко])","v":"ОМСН"},{"$f":"LOOKUP([id],Дети[id],Дети[ФИО])","v":"Преснякова Карина Александровна"},{"$f":"LOOKUP([id],Дети[id],Дети[Дата рождения])","v":"1997-06-03"},{"$f":"LOOKUP([id],Дети[id],Дети[пол])","v":"д"},"00:01:07",52]
[]
[]
[null,null,"Председатель оргкомитета                                  /Громов А.Г./"]

{"sheet":"ролики","index":12,"n_rows":32,"n_cols":9,"rows_kept":32,"cut":false,"hidden":false,"merged":[[0,2,0,6]]}
[null,null,"Протокол №10 (ролики)"]
[null,null,null,null,null,null,null,null,"4 июня 2011, 15:28"]
["id","team_id","Команда","ФИО","Дата рождения","время","штраф","Сумма","Место"]
[185,{"$f":"LOOKUP([id],Дети[id],Дети[team_id])","v":10},{"$f":"LOOKUP([team_id],Команды[id],Команды[Коротко])","v":"Кашира"},{"$f":"LOOKUP([id],Дети[id],Дети[ФИО])","v":"Кочкина Ольга Вячеславовна"},{"$f":"LOOKUP([id],Дети[id],Дети[Дата рождения])","v":"1999-08-17"},"00:00:24.300",null,{"$f":"ролики[[#This Row],[время]]+ролики[[#This Row],[штраф]]","v":"00:00:24.300"},1]
[312,{"$f":"LOOKUP([id],Дети[id],Дети[team_id])","v":16},{"$f":"LOOKUP([team_id],Команды[id],Команды[Коротко])","v":"Тверь"},{"$f":"LOOKUP([id],Дети[id],Дети[ФИО])","v":"Ли Оливия"},{"$f":"LOOKUP([id],Дети[id],Дети[Дата рождения])","v":"1998-09-10"},"00:00:25.100",null,{"$f":"ролики[[#This Row],[время]]+ролики[[#This Row],[штраф]]","v":"00:00:25.100"},2]
[176,{"$f":"LOOKUP([id],Дети[id],Дети[team_id])","v":9},{"$f":"LOOKUP([team_id],Команды[id],Команды[Коротко])","v":"Курск"},{"$f":"LOOKUP([id],Дети[id],Дети[ФИО])","v":"Старосельцев Александр"},{"$f":"LOOKUP([id],Дети[id],Дети[Дата рождения])","v":"1997-11-03"},"00:00:29.890",null,{"$f":"ролики[[#This Row],[время]]+ролики[[#This Row],[штраф]]","v":"00:00:29.890"},3]
[229,{"$f":"LOOKUP([id],Дети[id],Дети[team_id])","v":12},{"$f":"LOOKUP([team_id],Команды[id],Команды[Коротко])","v":"Истра"},{"$f":"LOOKUP([id],Дети[id],Дети[ФИО])","v":"Мазов Алексей Дмитриевич"},{"$f":"LOOKUP([id],Дети[id],Дети[Дата рождения])","v":"1997-05-30"},"00:00:30.070",null,{"$f":"ролики[[#This Row],[время]]+ролики[[#This Row],[штраф]]","v":"00:00:30.070"},4]
[521,{"$f":"LOOKUP([id],Дети[id],Дети[team_id])","v":27},{"$f":"LOOKUP([team_id],Команды[id],Команды[Коротко])","v":"ОМСН"},{"$f":"LOOKUP([id],Дети[id],Дети[ФИО])","v":"Рожнов Степан Александрович"},{"$f":"LOOKUP([id],Дети[id],Дети[Дата рождения])","v":"1997-11-17"},"00:00:31.690",null,{"$f":"ролики[[#This Row],[время]]+ролики[[#This Row],[штраф]]","v":"00:00:31.690"},5]
[433,{"$f":"LOOKUP([id],Дети[id],Дети[team_id])","v":22},{"$f":"LOOKUP([team_id],Команды[id],Команды[Коротко])","v":"Киров"},{"$f":"LOOKUP([id],Дети[id],Дети[ФИО])","v":"Созин Станислав"},{"$f":"LOOKUP([id],Дети[id],Дети[Дата рождения])","v":"1997-11-03"},"00:00:32.930",null,{"$f":"ролики[[#This Row],[время]]+ролики[[#This Row],[штраф]]","v":"00:00:32.930"},6]
[51,{"$f":"LOOKUP([id],Дети[id],Дети[team_id])","v":3},{"$f":"LOOKUP([team_id],Команды[id],Команды[Коротко])","v":"Дмитров"},{"$f":"LOOKUP([id],Дети[id],Дети[ФИО])","v":"Кулакова Милена Германовна"},{"$f":"LOOKUP([id],Дети[id],Дети[Дата рождения])","v":"1998-10-19"},"00:00:33.910",null,{"$f":"ролики[[#This Row],[время]]+ролики[[#This Row],[штраф]]","v":"00:00:33.910"},7]
[205,{"$f":"LOOKUP([id],Дети[id],Дети[team_id])","v":11},{"$f":"LOOKUP([team_id],Команды[id],Команды[Коротко])","v":"Москва"},{"$f":"LOOKUP([id],Дети[id],Дети[ФИО])","v":"Гусев Даниил"},{"$f":"LOOKUP([id],Дети[id],Дети[Дата рождения])","v":"1998-01-08"},"00:00:28.960","00:00:05",{"$f":"ролики[[#This Row],[время]]+ролики[[#This Row],[штраф]]","v":"00:00:33.960"},8]
[83,{"$f":"LOOKUP([id],Дети[id],Дети[team_id])","v":5},{"$f":"LOOKUP([team_id],Команды[id],Команды[Коротко])","v":"Краснодар"},{"$f":"LOOKUP([id],Дети[id],Дети[ФИО])","v":"Кисляков Александр Александрович"},{"$f":"LOOKUP([id],Дети[id],Дети[Дата рождения])","v":"1997-11-06"},"00:00:36.020",null,{"$f":"ролики[[#This Row],[время]]+ролики[[#This Row],[штраф]]","v":"00:00:36.020"},9]
[354,{"$f":"LOOKUP([id],Дети[id],Дети[team_id])","v":18},{"$f":"LOOKUP([team_id],Команды[id],Команды[Коротко])","v":"Одинцово"},{"$f":"LOOKUP([id],Дети[id],Дети[ФИО])","v":"Игнатов Никита Владиславович"},{"$f":"LOOKUP([id],Дети[id],Дети[Дата рождения])","v":"1997-04-17"},"00:00:32.430","00:00:05",{"$f":"ролики[[#This Row],[время]]+ролики[[#This Row],[штраф]]","v":"00:00:37.430"},10]
[245,{"$f":"LOOKUP([id],Дети[id],Дети[team_id])","v":13},{"$f":"LOOKUP([team_id],Команды[id],Команды[Коротко])","v":"Владимир"},{"$f":"LOOKUP([id],Дети[id],Дети[ФИО])","v":"Петров Арслан Михайлович"},{"$f":"LOOKUP([id],Дети[id],Дети[Дата рождения])","v":"1997-01-05"},"00:00:33.140","00:00:05",{"$f":"ролики[[#This Row],[время]]+ролики[[#This Row],[штраф]]","v":"00:00:38.140"},11]
[156,{"$f":"LOOKUP([id],Дети[id],Дети[team_id])","v":8},{"$f":"LOOKUP([team_id],Команды[id],Команды[Коротко])","v":"Руза"},{"$f":"LOOKUP([id],Дети[id],Дети[ФИО])","v":"Дмитроченко Светлана"},{"$f":"LOOKUP([id],Дети[id],Дети[Дата рождения])","v":"1997-05-07"},"00:00:38.940",null,{"$f":"ролики[[#This Row],[время]]+ролики[[#This Row],[штраф]]","v":"00:00:38.940"},12]
[294,{"$f":"LOOKUP([id],Дети[id],Дети[team_id])","v":15},{"$f":"LOOKUP([team_id],Команды[id],Команды[Коротко])","v":"Воронеж"},{"$f":"LOOKUP([id],Дети[id],Дети[ФИО])","v":"Шегунова Наталия"},{"$f":"LOOKUP([id],Дети[id],Дети[Дата рождения])","v":"1998-05-12"},"00:00:38.950",null,{"$f":"ролики[[#This Row],[время]]+ролики[[#This Row],[штраф]]","v":"00:00:38.950"},13]
[463,{"$f":"LOOKUP([id],Дети[id],Дети[team_id])","v":24},{"$f":"LOOKUP([team_id],Команды[id],Команды[Коротко])","v":"Пушкино"},{"$f":"LOOKUP([id],Дети[id],Дети[ФИО])","v":"Жуков Вячеслав Викторович"},{"$f":"LOOKUP([id],Дети[id],Дети[Дата рождения])","v":"1997-07-16"},"00:00:34.240","00:00:05",{"$f":"ролики[[#This Row],[время]]+ролики[[#This Row],[штраф]]","v":"00:00:39.240"},14]
[127,{"$f":"LOOKUP([id],Дети[id],Дети[team_id])","v":7},{"$f":"LOOKUP([team_id],Команды[id],Команды[Коротко])","v":"Клин"},{"$f":"LOOKUP([id],Дети[id],Дети[ФИО])","v":"Козлов Федор Дмитриевич"},{"$f":"LOOKUP([id],Дети[id],Дети[Дата рождения])","v":"1998-05-15"},"00:00:34.300","00:00:05",{"$f":"ролики[[#This Row],[время]]+ролики[[#This Row],[штраф]]","v":"00:00:39.300"},15]
[324,{"$f":"LOOKUP([id],Дети[id],Дети[team_id])","v":17},{"$f":"LOOKUP([team_id],Команды[id],Команды[Коротко])","v":"Смоленск"},{"$f":"LOOKUP([id],Дети[id],Дети[ФИО])","v":"Дедова Дарья Юрьевна"},{"$f":"LOOKUP([id],Дети[id],Дети[Дата рождения])","v":"1997-06-08"},"00:00:35.610","00:00:05",{"$f":"ролики[[#This Row],[время]]+ролики[[#This Row],[штраф]]","v":"00:00:40.610"},16]
[40,{"$f":"LOOKUP([id],Дети[id],Дети[team_id])","v":2},{"$f":"LOOKUP([team_id],Команды[id],Команды[Коротко])","v":"Липецк"},{"$f":"LOOKUP([id],Дети[id],Дети[ФИО])","v":"Руднева Софья Дмитриевна"},{"$f":"LOOKUP([id],Дети[id],Дети[Дата рождения])","v":"1998-12-30"},"00:00:41.160",null,{"$f":"ролики[[#This Row],[время]]+ролики[[#This Row],[штраф]]","v":"00:00:41.160"},17]
[384,{"$f":"LOOKUP([id],Дети[id],Дети[team_id])","v":20},{"$f":"LOOKUP([team_id],Команды[id],Команды[Коротко])","v":"Татарстан"},{"$f":"LOOKUP([id],Дети[id],Дети[ФИО])","v":"Кварталов Евгений Евгеньевич"},{"$f":"LOOKUP([id],Дети[id],Дети[Дата рождения])","v":"1997-08-30"},"00:00:32.960","00:00:10",{"$f":"ролики[[#This Row],[время]]+ролики[[#This Row],[штраф]]","v":"00:00:42.960"},18]
[495,{"$f":"LOOKUP([id],Дети[id],Дети[team_id])","v":25},{"$f":"LOOKUP([team_id],Команды[id],Команды[Коротко])","v":"Ярославль"},{"$f":"LOOKUP([id],Дети[id],Дети[ФИО])","v":"Веселов Влад"},{"$f":"LOOKUP([id],Дети[id],Дети[Дата рождения])","v":"1998-04-08"},"00:00:38.030","00:00:05",{"$f":"ролики[[#This Row],[время]]+ролики[[#This Row],[штраф]]","v":"00:00:43.030"},19]
[509,{"$f":"LOOKUP([id],Дети[id],Дети[team_id])","v":26},{"$f":"LOOKUP([team_id],Команды[id],Команды[Коротко])","v":"Олимп, Шатура"},{"$f":"LOOKUP([id],Дети[id],Дети[ФИО])","v":"Кожина Светлана Викторовна"},{"$f":"LOOKUP([id],Дети[id],Дети[Дата рождения])","v":"1998-01-03"},"00:00:38.350","00:00:05",{"$f":"ролики[[#This Row],[время]]+ролики[[#This Row],[штраф]]","v":"00:00:43.350"},20]
[410,{"$f":"LOOKUP([id],Дети[id],Дети[team_id])","v":21},{"$f":"LOOKUP([team_id],Команды[id],Команды[Коротко])","v":"Ступино"},{"$f":"LOOKUP([id],Дети[id],Дети[ФИО])","v":"Ерыгин Виталий Сергеевич"},{"$f":"LOOKUP([id],Дети[id],Дети[Дата рождения])","v":"1997-05-25"},"00:00:33.860","00:00:10",{"$f":"ролики[[#This Row],[время]]+ролики[[#This Row],[штраф]]","v":"00:00:43.860"},21]
[11,{"$f":"LOOKUP([id],Дети[id],Дети[team_id])","v":1},{"$f":"LOOKUP([team_id],Команды[id],Команды[Коротко])","v":"ОМОН"},{"$f":"LOOKUP([id],Дети[id],Дети[ФИО])","v":"Архипов Сергей Алексеевич"},{"$f":"LOOKUP([id],Дети[id],Дети[Дата рождения])","v":"1999-06-17"},"00:00:43.980",null,{"$f":"ролики[[#This Row],[время]]+ролики[[#This Row],[штраф]]","v":"00:00:43.980"},22]
[273,{"$f":"LOOKUP([id],Дети[id],Дети[team_id])","v":14},{"$f":"LOOKUP([team_id],Команды[id],Команды[Коротко])","v":"Воскресенск"},{"$f":"LOOKUP([id],Дети[id],Дети[ФИО])","v":"Борисова Кристина Алексеевна"},{"$f":"LOOKUP([id],Дети[id],Дети[Дата рождения])","v":"1998-03-18"},"00:00:34.820","00:00:10",{"$f":"ролики[[#This Row],[время]]+ролики[[#This Row],[штраф]]","v":"00:00:44.820"},23]
[104,{"$f":"LOOKUP([id],Дети[id],Дети[team_id])","v":6},{"$f":"LOOKUP([team_id],Команды[id],Команды[Коротко])","v":"Энергия, Шатура"},{"$f":"LOOKUP([id],Дети[id],Дети[ФИО])","v":"Аристархов Георгий Алексеевич"},{"$f":"LOOKUP([id],Дети[id],Дети[Дата рождения])","v":"1997-04-14"},"00:00:41.920","00:00:05",{"$f":"ролики[[#This Row],[время]]+ролики[[#This Row],[штраф]]","v":"00:00:46.920"},24]
[368,{"$f":"LOOKUP([id],Дети[id],Дети[team_id])","v":19},{"$f":"LOOKUP([team_id],Команды[id],Команды[Коротко])","v":"Тамбов"},{"$f":"LOOKUP([id],Дети[id],Дети[ФИО])","v":"Сафронова Дарья"},{"$f":"LOOKUP([id],Дети[id],Дети[Дата рождения])","v":"1997-11-27"},"00:00:42.100","00:00:10",{"$f":"ролики[[#This Row],[время]]+ролики[[#This Row],[штраф]]","v":"00:00:52.100"},25]
[443,{"$f":"LOOKUP([id],Дети[id],Дети[team_id])","v":23},{"$f":"LOOKUP([team_id],Команды[id],Команды[Коротко])","v":"Иваново"},{"$f":"LOOKUP([id],Дети[id],Дети[ФИО])","v":"Среднев Егор Васильевич"},{"$f":"LOOKUP([id],Дети[id],Дети[Дата рождения])","v":"1999-04-27"},"00:00:47.550","00:00:05",{"$f":"ролики[[#This Row],[время]]+ролики[[#This Row],[штраф]]","v":"00:00:52.550"},26]
[]
[]
[null,null,"Председатель оргкомитета                                  /Громов А.Г./"]

{"sheet":"стрельба-лук","index":13,"n_rows":58,"n_cols":8,"rows_kept":58,"cut":false,"hidden":false,"merged":[[0,2,0,7]]}
[null,null,"Протокол №11 (стрельба-лук)"]
[null,null,null,null,null,null,null,"4 июня 2011, 15:57"]
["id","team_id","Команда","ФИО","Пол","Дата рождения","результат","Место"]
[394,{"$f":"LOOKUP([id],Дети[id],Дети[team_id])","v":20},{"$f":"LOOKUP([team_id],Команды[id],Команды[Коротко])","v":"Татарстан"},{"$f":"LOOKUP([id],Дети[id],Дети[ФИО])","v":"Орешникова Дарья Андреевна"},{"$f":"LOOKUP([id],Дети[id],Дети[пол])","v":"д"},{"$f":"LOOKUP([id],Дети[id],Дети[Дата рождения])","v":"1999-07-27"},45,1]
[346,{"$f":"LOOKUP([id],Дети[id],Дети[team_id])","v":18},{"$f":"LOOKUP([team_id],Команды[id],Команды[Коротко])","v":"Одинцово"},{"$f":"LOOKUP([id],Дети[id],Дети[ФИО])","v":"Жильцова Виктория Константиновна"},{"$f":"LOOKUP([id],Дети[id],Дети[пол])","v":"д"},{"$f":"LOOKUP([id],Дети[id],Дети[Дата рождения])","v":"1999-07-06"},34,2]
[286,{"$f":"LOOKUP([id],Дети[id],Дети[team_id])","v":15},{"$f":"LOOKUP([team_id],Команды[id],Команды[Коротко])","v":"Воронеж"},{"$f":"LOOKUP([id],Дети[id],Дети[ФИО])","v":"Величко Мария Александровна"},{"$f":"LOOKUP([id],Дети[id],Дети[пол])","v":"д"},{"$f":"LOOKUP([id],Дети[id],Дети[Дата рождения])","v":"1997-06-04"},33,3]
[305,{"$f":"LOOKUP([id],Дети[id],Дети[team_id])","v":16},{"$f":"LOOKUP([team_id],Команды[id],Команды[Коротко])","v":"Тверь"},{"$f":"LOOKUP([id],Дети[id],Дети[ФИО])","v":"Лебедева Анастасия Юрьевна"},{"$f":"LOOKUP([id],Дети[id],Дети[пол])","v":"д"},{"$f":"LOOKUP([id],Дети[id],Дети[Дата рождения])","v":"1997-03-19"},32,4]
[335,{"$f":"LOOKUP([id],Дети[id],Дети[team_id])","v":17},{"$f":"LOOKUP([team_id],Команды[id],Команды[Коротко])","v":"Смоленск"},{"$f":"LOOKUP([id],Дети[id],Дети[ФИО])","v":"Боданогова Ирина Анастасовна"},{"$f":"LOOKUP([id],Дети[id],Дети[пол])","v":"д"},{"$f":"LOOKUP([id],Дети[id],Дети[Дата рождения])","v":"1998-07-25"},29,5]
[254,{"$f":"LOOKUP([id],Дети[id],Дети[team_id])","v":13},{"$f":"LOOKUP([team_id],Команды[id],Команды[Коротко])","v":"Владимир"},{"$f":"LOOKUP([id],Дети[id],Дети[ФИО])","v":"Орлова Татьяна Сергеевна"},{"$f":"LOOKUP([id],Дети[id],Дети[пол])","v":"д"},{"$f":"LOOKUP([id],Дети[id],Дети[Дата рождения])","v":"1997-12-09"},25,6]
[148,{"$f":"LOOKUP([id],Дети[id],Дети[team_id])","v":8},{"$f":"LOOKUP([team_id],Команды[id],Команды[Коротко])","v":"Руза"},{"$f":"LOOKUP([id],Дети[id],Дети[ФИО])","v":"Мирошниченко Юлия"},{"$f":"LOOKUP([id],Дети[id],Дети[пол])","v":"д"},{"$f":"LOOKUP([id],Дети[id],Дети[Дата рождения])","v":"1998-08-28"},24,7]
[540,{"$f":"LOOKUP([id],Дети[id],Дети[team_id])","v":27},{"$f":"LOOKUP([team_id],Команды[id],Команды[Коротко])","v":"ОМСН"},{"$f":"LOOKUP([id],Дети[id],Дети[ФИО])","v":"Целкова Валерия Дмитриевна"},{"$f":"LOOKUP([id],Дети[id],Дети[пол])","v":"д"},{"$f":"LOOKUP([id],Дети[id],Дети[Дата рождения])","v":"1997-01-06"},20,8]
[224,{"$f":"LOOKUP([id],Дети[id],Дети[team_id])","v":12},{"$f":"LOOKUP([team_id],Команды[id],Команды[Коротко])","v":"Истра"},{"$f":"LOOKUP([id],Дети[id],Дети[ФИО])","v":"Кузнецова Татьяна Алексеевна"},{"$f":"LOOKUP([id],Дети[id],Дети[пол])","v":"д"},{"$f":"LOOKUP([id],Дети[id],Дети[Дата рождения])","v":"1997-02-16"},18,9]
[421,{"$f":"LOOKUP([id],Дети[id],Дети[team_id])","v":22},{"$f":"LOOKUP([team_id],Команды[id],Команды[Коротко])","v":"Киров"},{"$f":"LOOKUP([id],Дети[id],Дети[ФИО])","v":"Безродных Елизавета"},{"$f":"LOOKUP([id],Дети[id],Дети[пол])","v":"д"},{"$f":"LOOKUP([id],Дети[id],Дети[Дата рождения])","v":"1997-05-03"},17,10]
[114,{"$f":"LOOKUP([id],Дети[id],Дети[team_id])","v":6},{"$f":"LOOKUP([team_id],Команды[id],Команды[Коротко])","v":"Энергия, Шатура"},{"$f":"LOOKUP([id],Дети[id],Дети[ФИО])","v":"Бурканова Юлия Владимировна"},{"$f":"LOOKUP([id],Дети[id],Дети[пол])","v":"д"},{"$f":"LOOKUP([id],Дети[id],Дети[Дата рождения])","v":"1997-03-21"},14,11]
[39,{"$f":"LOOKUP([id],Дети[id],Дети[team_id])","v":2},{"$f":"LOOKUP([team_id],Команды[id],Команды[Коротко])","v":"Липецк"},{"$f":"LOOKUP([id],Дети[id],Дети[ФИО])","v":"Королькова Валерия Викторовна"},{"$f":"LOOKUP([id],Дети[id],Дети[пол])","v":"д"},{"$f":"LOOKUP([id],Дети[id],Дети[Дата рождения])","v":"1998-05-23"},11,12]
[201,{"$f":"LOOKUP([id],Дети[id],Дети[team_id])","v":11},{"$f":"LOOKUP([team_id],Команды[id],Команды[Коротко])","v":"Москва"},{"$f":"LOOKUP([id],Дети[id],Дети[ФИО])","v":"Алипова Мария"},{"$f":"LOOKUP([id],Дети[id],Дети[пол])","v":"д"},{"$f":"LOOKUP([id],Дети[id],Дети[Дата рождения])","v":"1997-12-21"},11,13]
[165,{"$f":"LOOKUP([id],Дети[id],Дети[team_id])","v":9},{"$f":"LOOKUP([team_id],Команды[id],Команды[Коротко])","v":"Курск"},{"$f":"LOOKUP([id],Дети[id],Дети[ФИО])","v":"Гильмутдинова Диана"},{"$f":"LOOKUP([id],Дети[id],Дети[пол])","v":"д"},{"$f":"LOOKUP([id],Дети[id],Дети[Дата рождения])","v":"1998-10-11"},10,14]
[18,{"$f":"LOOKUP([id],Дети[id],Дети[team_id])","v":1},{"$f":"LOOKUP([team_id],Команды[id],Команды[Коротко])","v":"ОМОН"},{"$f":"LOOKUP([id],Дети[id],Дети[ФИО])","v":"Евтюхова Анастасия Евгеньевна"},{"$f":"LOOKUP([id],Дети[id],Дети[пол])","v":"д"},{"$f":"LOOKUP([id],Дети[id],Дети[Дата рождения])","v":"1998-02-26"},10,15]
[448,{"$f":"LOOKUP([id],Дети[id],Дети[team_id])","v":23},{"$f":"LOOKUP([team_id],Команды[id],Команды[Коротко])","v":"Иваново"},{"$f":"LOOKUP([id],Дети[id],Дети[ФИО])","v":"Орлова Виктория Андреевна"},{"$f":"LOOKUP([id],Дети[id],Дети[пол])","v":"д"},{"$f":"LOOKUP([id],Дети[id],Дети[Дата рождения])","v":"1997-09-01"},10,16]
[492,{"$f":"LOOKUP([id],Дети[id],Дети[team_id])","v":25},{"$f":"LOOKUP([team_id],Команды[id],Команды[Коротко])","v":"Ярославль"},{"$f":"LOOKUP([id],Дети[id],Дети[ФИО])","v":"Грушина Ирина Валерьевна"},{"$f":"LOOKUP([id],Дети[id],Дети[пол])","v":"д"},{"$f":"LOOKUP([id],Дети[id],Дети[Дата рождения])","v":"1998-06-11"},9,17]
[461,{"$f":"LOOKUP([id],Дети[id],Дети[team_id])","v":24},{"$f":"LOOKUP([team_id],Команды[id],Команды[Коротко])","v":"Пушкино"},{"$f":"LOOKUP([id],Дети[id],Дети[ФИО])","v":"Боталова Валерия Алексеевна"},{"$f":"LOOKUP([id],Дети[id],Дети[пол])","v":"д"},{"$f":"LOOKUP([id],Дети[id],Дети[Дата рождения])","v":"1997-08-07"},9,18]
[367,{"$f":"LOOKUP([id],Дети[id],Дети[team_id])","v":19},{"$f":"LOOKUP([team_id],Команды[id],Команды[Коротко])","v":"Тамбов"},{"$f":"LOOKUP([id],Дети[id],Дети[ФИО])","v":"Трушкина Наталия"},{"$f":"LOOKUP([id],Дети[id],Дети[пол])","v":"д"},{"$f":"LOOKUP([id],Дети[id],Дети[Дата рождения])","v":"1998-01-10"},7,19]
[139,{"$f":"LOOKUP([id],Дети[id],Дети[team_id])","v":7},{"$f":"LOOKUP([team_id],Команды[id],Команды[Коротко])","v":"Клин"},{"$f":"LOOKUP([id],Дети[id],Дети[ФИО])","v":"Дрегалина Алина Сергеевна"},{"$f":"LOOKUP([id],Дети[id],Дети[пол])","v":"д"},{"$f":"LOOKUP([id],Дети[id],Дети[Дата рождения])","v":"1998-02-20"},6,20]
[510,{"$f":"LOOKUP([id],Дети[id],Дети[team_id])","v":26},{"$f":"LOOKUP([team_id],Команды[id],Команды[Коротко])","v":"Олимп, Шатура"},{"$f":"LOOKUP([id],Дети[id],Дети[ФИО])","v":"Фролова Юлия Васильевна"},{"$f":"LOOKUP([id],Дети[id],Дети[пол])","v":"д"},{"$f":"LOOKUP([id],Дети[id],Дети[Дата рождения])","v":"1997-05-19"},6,21]
[52,{"$f":"LOOKUP([id],Дети[id],Дети[team_id])","v":3},{"$f":"LOOKUP([team_id],Команды[id],Команды[Коротко])","v":"Дмитров"},{"$f":"LOOKUP([id],Дети[id],Дети[ФИО])","v":"Руженцева Дарья Дмитриевна"},{"$f":"LOOKUP([id],Дети[id],Дети[пол])","v":"д"},{"$f":"LOOKUP([id],Дети[id],Дети[Дата рождения])","v":"1999-01-11"},5,22]
[276,{"$f":"LOOKUP([id],Дети[id],Дети[team_id])","v":14},{"$f":"LOOKUP([team_id],Команды[id],Команды[Коротко])","v":"Воскресенск"},{"$f":"LOOKUP([id],Дети[id],Дети[ФИО])","v":"Кудряшова Анна Александровна"},{"$f":"LOOKUP([id],Дети[id],Дети[пол])","v":"д"},{"$f":"LOOKUP([id],Дети[id],Дети[Дата рождения])","v":"1998-08-07"},3,23]
[91,{"$f":"LOOKUP([id],Дети[id],Дети[team_id])","v":5},{"$f":"LOOKUP([team_id],Команды[id],Команды[Коротко])","v":"Краснодар"},{"$f":"LOOKUP([id],Дети[id],Дети[ФИО])","v":"Григорьева Вероника Александровна"},{"$f":"LOOKUP([id],Дети[id],Дети[пол])","v":"д"},{"$f":"LOOKUP([id],Дети[id],Дети[Дата рождения])","v":"1998-04-13"},2,24]
[182,{"$f":"LOOKUP([id],Дети[id],Дети[team_id])","v":10},{"$f":"LOOKUP([team_id],Команды[id],Команды[Коротко])","v":"Кашира"},{"$f":"LOOKUP([id],Дети[id],Дети[ФИО])","v":"Белянина Виктория Игоревна"},{"$f":"LOOKUP([id],Дети[id],Дети[пол])","v":"д"},{"$f":"LOOKUP([id],Дети[id],Дети[Дата рождения])","v":"1998-05-26"},1,25]
[414,{"$f":"LOOKUP([id],Дети[id],Дети[team_id])","v":21},{"$f":"LOOKUP([team_id],Команды[id],Команды[Коротко])","v":"Ступино"},{"$f":"LOOKUP([id],Дети[id],Дети[ФИО])","v":"Чебуракова Анастасия Олеговна"},{"$f":"LOOKUP([id],Дети[id],Дети[пол])","v":"д"},{"$f":"LOOKUP([id],Дети[id],Дети[Дата рождения])","v":"1997-02-22"},0,26]
[385,{"$f":"LOOKUP([id],Дети[id],Дети[team_id])","v":20},{"$f":"LOOKUP([team_id],Команды[id],Команды[Коротко])","v":"Татарстан"},{"$f":"LOOKUP([id],Дети[id],Дети[ФИО])","v":"Хамидуллин Тимур Маратович"},{"$f":"LOOKUP([id],Дети[id],Дети[пол])","v":"м"},{"$f":"LOOKUP([id],Дети[id],Дети[Дата рождения])","v":"1997-12-11"},59,1]
[175,{"$f":"LOOKUP([id],Дети[id],Дети[team_id])","v":9},{"$f":"LOOKUP([team_id],Команды[id],Команды[Коротко])","v":"Курск"},{"$f":"LOOKUP([id],Дети[id],Дети[ФИО])","v":"Безугольников Михаил"},{"$f":"LOOKUP([id],Дети[id],Дети[пол])","v":"м"},{"$f":"LOOKUP([id],Дети[id],Дети[Дата рождения])","v":"1997-04-07"},48,2]
[431,{"$f":"LOOKUP([id],Дети[id],Дети[team_id])","v":22},{"$f":"LOOKUP([team_id],Команды[id],Команды[Коротко])","v":"Киров"},{"$f":"LOOKUP([id],Дети[id],Дети[ФИО])","v":"Бледных Виталий"},{"$f":"LOOKUP([id],Дети[id],Дети[пол])","v":"м"},{"$f":"LOOKUP([id],Дети[id],Дети[Дата рождения])","v":"1997-06-23"},43,3]
[57,{"$f":"LOOKUP([id],Дети[id],Дети[team_id])","v":3},{"$f":"LOOKUP([team_id],Команды[id],Команды[Коротко])","v":"Дмитров"},{"$f":"LOOKUP([id],Дети[id],Дети[ФИО])","v":"Мозалев Никита Павлович"},{"$f":"LOOKUP([id],Дети[id],Дети[пол])","v":"м"},{"$f":"LOOKUP([id],Дети[id],Дети[Дата рождения])","v":"1998-08-18"},38,4]
[253,{"$f":"LOOKUP([id],Дети[id],Дети[team_id])","v":13},{"$f":"LOOKUP([team_id],Команды[id],Команды[Коротко])","v":"Владимир"},{"$f":"LOOKUP([id],Дети[id],Дети[ФИО])","v":"Сухарников Александр Александрович"},{"$f":"LOOKUP([id],Дети[id],Дети[пол])","v":"м"},{"$f":"LOOKUP([id],Дети[id],Дети[Дата рождения])","v":"1998-01-04"},37,5]
[289,{"$f":"LOOKUP([id],Дети[id],Дети[team_id])","v":15},{"$f":"LOOKUP([team_id],Команды[id],Команды[Коротко])","v":"Воронеж"},{"$f":"LOOKUP([id],Дети[id],Дети[ФИО])","v":"Гончаров Александр Сергеевич"},{"$f":"LOOKUP([id],Дети[id],Дети[пол])","v":"м"},{"$f":"LOOKUP([id],Дети[id],Дети[Дата рождения])","v":"1997-12-03"},37,6]
[482,{"$f":"LOOKUP([id],Дети[id],Дети[team_id])","v":25},{"$f":"LOOKUP([team_id],Команды[id],Команды[Коротко])","v":"Ярославль"},{"$f":"LOOKUP([id],Дети[id],Дети[ФИО])","v":"Соболев Сергей Олегович"},{"$f":"LOOKUP([id],Дети[id],Дети[пол])","v":"м"},{"$f":"LOOKUP([id],Дети[id],Дети[Дата рождения])","v":"1997-06-25"},35,7]
[521,{"$f":"LOOKUP([id],Дети[id],Дети[team_id])","v":27},{"$f":"LOOKUP([team_id],Команды[id],Команды[Коротко])","v":"ОМСН"},{"$f":"LOOKUP([id],Дети[id],Дети[ФИО])","v":"Рожнов Степан Александрович"},{"$f":"LOOKUP([id],Дети[id],Дети[пол])","v":"м"},{"$f":"LOOKUP([id],Дети[id],Дети[Дата рождения])","v":"1997-11-17"},31,8]
[191,{"$f":"LOOKUP([id],Дети[id],Дети[team_id])","v":10},{"$f":"LOOKUP([team_id],Команды[id],Команды[Коротко])","v":"Кашира"},{"$f":"LOOKUP([id],Дети[id],Дети[ФИО])","v":"Федотов Александр Юрьевич"},{"$f":"LOOKUP([id],Дети[id],Дети[пол])","v":"м"},{"$f":"LOOKUP([id],Дети[id],Дети[Дата рождения])","v":"1998-06-27"},25,9]
[97,{"$f":"LOOKUP([id],Дети[id],Дети[team_id])","v":5},{"$f":"LOOKUP([team_id],Команды[id],Команды[Коротко])","v":"Краснодар"},{"$f":"LOOKUP([id],Дети[id],Дети[ФИО])","v":"Адлер Александр Владимирович"},{"$f":"LOOKUP([id],Дети[id],Дети[пол])","v":"м"},{"$f":"LOOKUP([id],Дети[id],Дети[Дата рождения])","v":"1997-04-04"},25,10]
[380,{"$f":"LOOKUP([id],Дети[id],Дети[team_id])","v":19},{"$f":"LOOKUP([team_id],Команды[id],Команды[Коротко])","v":"Тамбов"},{"$f":"LOOKUP([id],Дети[id],Дети[ФИО])","v":"Буданцев Артем"},{"$f":"LOOKUP([id],Дети[id],Дети[пол])","v":"м"},{"$f":"LOOKUP([id],Дети[id],Дети[Дата рождения])","v":"1997-03-03"},24,11]
[34,{"$f":"LOOKUP([id],Дети[id],Дети[team_id])","v":2},{"$f":"LOOKUP([team_id],Команды[id],Команды[Коротко])","v":"Липецк"},{"$f":"LOOKUP([id],Дети[id],Дети[ФИО])","v":"Фролов Александр Евгеньевич"},{"$f":"LOOKUP([id],Дети[id],Дети[пол])","v":"м"},{"$f":"LOOKUP([id],Дети[id],Дети[Дата рождения])","v":"2000-06-11"},21,12]
[344,{"$f":"LOOKUP([id],Дети[id],Дети[team_id])","v":18},{"$f":"LOOKUP([team_id],Команды[id],Команды[Коротко])","v":"Одинцово"},{"$f":"LOOKUP([id],Дети[id],Дети[ФИО])","v":"Гынилов Базыр Баирович"},{"$f":"LOOKUP([id],Дети[id],Дети[пол])","v":"м"},{"$f":"LOOKUP([id],Дети[id],Дети[Дата рождения])","v":"1998-02-07"},21,13]
[125,{"$f":"LOOKUP([id],Дети[id],Дети[team_id])","v":7},{"$f":"LOOKUP([team_id],Команды[id],Команды[Коротко])","v":"Клин"},{"$f":"LOOKUP([id],Дети[id],Дети[ФИО])","v":"Данков Алексей Сергеевич"},{"$f":"LOOKUP([id],Дети[id],Дети[пол])","v":"м"},{"$f":"LOOKUP([id],Дети[id],Дети[Дата рождения])","v":"1998-03-27"},20,14]
[321,{"$f":"LOOKUP([id],Дети[id],Дети[team_id])","v":17},{"$f":"LOOKUP([team_id],Команды[id],Команды[Коротко])","v":"Смоленск"},{"$f":"LOOKUP([id],Дети[id],Дети[ФИО])","v":"Гультяев Илья Алексеевич"},{"$f":"LOOKUP([id],Дети[id],Дети[пол])","v":"м"},{"$f":"LOOKUP([id],Дети[id],Дети[Дата рождения])","v":"1997-10-29"},20,15]
[270,{"$f":"LOOKUP([id],Дети[id],Дети[team_id])","v":14},{"$f":"LOOKUP([team_id],Команды[id],Команды[Коротко])","v":"Воскресенск"},{"$f":"LOOKUP([id],Дети[id],Дети[ФИО])","v":"Проскуряков Михаил Алексеевич"},{"$f":"LOOKUP([id],Дети[id],Дети[пол])","v":"м"},{"$f":"LOOKUP([id],Дети[id],Дети[Дата рождения])","v":"1998-04-24"},17,16]
[419,{"$f":"LOOKUP([id],Дети[id],Дети[team_id])","v":21},{"$f":"LOOKUP([team_id],Команды[id],Команды[Коротко])","v":"Ступино"},{"$f":"LOOKUP([id],Дети[id],Дети[ФИО])","v":"Локтионов Даниил Евгеньевич"},{"$f":"LOOKUP([id],Дети[id],Дети[пол])","v":"м"},{"$f":"LOOKUP([id],Дети[id],Дети[Дата рождения])","v":"1997-01-08"},17,17]
[7,{"$f":"LOOKUP([id],Дети[id],Дети[team_id])","v":1},{"$f":"LOOKUP([team_id],Команды[id],Команды[Коротко])","v":"ОМОН"},{"$f":"LOOKUP([id],Дети[id],Дети[ФИО])","v":"Великанов Александр Сергеевич"},{"$f":"LOOKUP([id],Дети[id],Дети[пол])","v":"м"},{"$f":"LOOKUP([id],Дети[id],Дети[Дата рождения])","v":"1997-08-20"},15,18]
[444,{"$f":"LOOKUP([id],Дети[id],Дети[team_id])","v":23},{"$f":"LOOKUP([team_id],Команды[id],Команды[Коротко])","v":"Иваново"},{"$f":"LOOKUP([id],Дети[id],Дети[ФИО])","v":"Назаров Антон Владимирович"},{"$f":"LOOKUP([id],Дети[id],Дети[пол])","v":"м"},{"$f":"LOOKUP([id],Дети[id],Дети[Дата рождения])","v":"1998-07-20"},13,19]
[106,{"$f":"LOOKUP([id],Дети[id],Дети[team_id])","v":6},{"$f":"LOOKUP([team_id],Команды[id],Команды[Коротко])","v":"Энергия, Шатура"},{"$f":"LOOKUP([id],Дети[id],Дети[ФИО])","v":"Давыдов Георгий Витальевич"},{"$f":"LOOKUP([id],Дети[id],Дети[пол])","v":"м"},{"$f":"LOOKUP([id],Дети[id],Дети[Дата рождения])","v":"1997-10-12"},13,20]
[507,{"$f":"LOOKUP([id],Дети[id],Дети[team_id])","v":26},{"$f":"LOOKUP([team_id],Команды[id],Команды[Коротко])","v":"Олимп, Шатура"},{"$f":"LOOKUP([id],Дети[id],Дети[ФИО])","v":"Майорский Владислав Альбертович"},{"$f":"LOOKUP([id],Дети[id],Дети[пол])","v":"м"},{"$f":"LOOKUP([id],Дети[id],Дети[Дата рождения])","v":"1997-09-01"},13,21]
[147,{"$f":"LOOKUP([id],Дети[id],Дети[team_id])","v":8},{"$f":"LOOKUP([team_id],Команды[id],Команды[Коротко])","v":"Руза"},{"$f":"LOOKUP([id],Дети[id],Дети[ФИО])","v":"Ченкивский Андрей"},{"$f":"LOOKUP([id],Дети[id],Дети[пол])","v":"м"},{"$f":"LOOKUP([id],Дети[id],Дети[Дата рождения])","v":"1997-11-06"},9,22]
[225,{"$f":"LOOKUP([id],Дети[id],Дети[team_id])","v":12},{"$f":"LOOKUP([team_id],Команды[id],Команды[Коротко])","v":"Истра"},{"$f":"LOOKUP([id],Дети[id],Дети[ФИО])","v":"Горичев Илья Максимович"},{"$f":"LOOKUP([id],Дети[id],Дети[пол])","v":"м"},{"$f":"LOOKUP([id],Дети[id],Дети[Дата рождения])","v":"2000-06-19"},5,23]
[314,{"$f":"LOOKUP([id],Дети[id],Дети[team_id])","v":16},{"$f":"LOOKUP([team_id],Команды[id],Команды[Коротко])","v":"Тверь"},{"$f":"LOOKUP([id],Дети[id],Дети[ФИО])","v":"Помозов Алексей Александрович"},{"$f":"LOOKUP([id],Дети[id],Дети[пол])","v":"м"},{"$f":"LOOKUP([id],Дети[id],Дети[Дата рождения])","v":"1999-12-30"},5,24]
[467,{"$f":"LOOKUP([id],Дети[id],Дети[team_id])","v":24},{"$f":"LOOKUP([team_id],Команды[id],Команды[Коротко])","v":"Пушкино"},{"$f":"LOOKUP([id],Дети[id],Дети[ФИО])","v":"Рябчиков Владислав Игоревич"},{"$f":"LOOKUP([id],Дети[id],Дети[пол])","v":"м"},{"$f":"LOOKUP([id],Дети[id],Дети[Дата рождения])","v":"1997-03-21"},4,25]
[218,{"$f":"LOOKUP([id],Дети[id],Дети[team_id])","v":11},{"$f":"LOOKUP([team_id],Команды[id],Команды[Коротко])","v":"Москва"},{"$f":"LOOKUP([id],Дети[id],Дети[ФИО])","v":"Сыч Глеб"},{"$f":"LOOKUP([id],Дети[id],Дети[пол])","v":"м"},{"$f":"LOOKUP([id],Дети[id],Дети[Дата рождения])","v":"1999-09-13"},3,26]
[]
[]
[null,null,"Председатель оргкомитета                                  /Громов А.Г./"]

{"sheet":"ПДД","index":14,"n_rows":32,"n_cols":11,"rows_kept":32,"cut":false,"hidden":false,"merged":[[0,2,0,7]]}
[null,null,"Протокол №12 (ПДД)"]
[null,null,null,null,null,null,null,null,null,null,"5 июня 2011, 12:09"]
["id","team_id","Команда","ФИО","пол","Дата рождения","время","штраф","неверн. Отв.","Сумма","Место"]
[31,{"$f":"LOOKUP([id],Дети[id],Дети[team_id])","v":2},{"$f":"LOOKUP([team_id],Команды[id],Команды[Коротко])","v":"Липецк"},{"$f":"LOOKUP([id],Дети[id],Дети[ФИО])","v":"Савин Иван Александрович"},{"$f":"LOOKUP([id],Дети[id],Дети[пол])","v":"м"},{"$f":"LOOKUP([id],Дети[id],Дети[Дата рождения])","v":"1997-01-11"},"00:03:58",{"$f":"[неверн. Отв.]*TIMEVALUE(\"0:00:30\")","v":"00:01:00"},2,{"$f":"[время]+[штраф]","v":"00:04:58"},1]
[454,{"$f":"LOOKUP([id],Дети[id],Дети[team_id])","v":23},{"$f":"LOOKUP([team_id],Команды[id],Команды[Коротко])","v":"Иваново"},{"$f":"LOOKUP([id],Дети[id],Дети[ФИО])","v":"Ликин Максим Сергеевич"},{"$f":"LOOKUP([id],Дети[id],Дети[пол])","v":"м"},{"$f":"LOOKUP([id],Дети[id],Дети[Дата рождения])","v":"1999-12-07"},"00:04:36",{"$f":"[неверн. Отв.]*TIMEVALUE(\"0:00:30\")","v":"00:01:00"},2,{"$f":"[время]+[штраф]","v":"00:05:36"},2]
[289,{"$f":"LOOKUP([id],Дети[id],Дети[team_id])","v":15},{"$f":"LOOKUP([team_id],Команды[id],Команды[Коротко])","v":"Воронеж"},{"$f":"LOOKUP([id],Дети[id],Дети[ФИО])","v":"Гончаров Александр Сергеевич"},{"$f":"LOOKUP([id],Дети[id],Дети[пол])","v":"м"},{"$f":"LOOKUP([id],Дети[id],Дети[Дата рождения])","v":"1997-12-03"},"00:05:21",{"$f":"[неверн. Отв.]*TIMEVALUE(\"0:00:30\")","v":"00:01:30"},3,{"$f":"[время]+[штраф]","v":"00:06:51"},3]
[167,{"$f":"LOOKUP([id],Дети[id],Дети[team_id])","v":9},{"$f":"LOOKUP([team_id],Команды[id],Команды[Коротко])","v":"Курск"},{"$f":"LOOKUP([id],Дети[id],Дети[ФИО])","v":"Сташевская Татьяна"},{"$f":"LOOKUP([id],Дети[id],Дети[пол])","v":"д"},{"$f":"LOOKUP([id],Дети[id],Дети[Дата рождения])","v":"1997-05-06"},"00:08:47",{"$f":"[неверн. Отв.]*TIMEVALUE(\"0:00:30\")","v":"00:01:30"},3,{"$f":"[время]+[штраф]","v":"00:10:17"},4]
[494,{"$f":"LOOKUP([id],Дети[id],Дети[team_id])","v":25},{"$f":"LOOKUP([team_id],Команды[id],Команды[Коротко])","v":"Ярославль"},{"$f":"LOOKUP([id],Дети[id],Дети[ФИО])","v":"Муратова Любовь Сергеевна"},{"$f":"LOOKUP([id],Дети[id],Дети[пол])","v":"д"},{"$f":"LOOKUP([id],Дети[id],Дети[Дата рождения])","v":"1998-08-24"},"00:07:52",{"$f":"[неверн. Отв.]*TIMEVALUE(\"0:00:30\")","v":"00:02:30"},5,{"$f":"[время]+[штраф]","v":"00:10:22"},5]
[398,{"$f":"LOOKUP([id],Дети[id],Дети[team_id])","v":20},{"$f":"LOOKUP([team_id],Команды[id],Команды[Коротко])","v":"Татарстан"},{"$f":"LOOKUP([id],Дети[id],Дети[ФИО])","v":"Галиуллина Лиана Рафисовна"},{"$f":"LOOKUP([id],Дети[id],Дети[пол])","v":"д"},{"$f":"LOOKUP([id],Дети[id],Дети[Дата рождения])","v":"1998-07-07"},"00:05:05",{"$f":"[неверн. Отв.]*TIMEVALUE(\"0:00:30\")","v":"00:03:00"},6,{"$f":"[время]+[штраф]","v":"00:08:05"},11]
[353,{"$f":"LOOKUP([id],Дети[id],Дети[team_id])","v":18},{"$f":"LOOKUP([team_id],Команды[id],Команды[Коротко])","v":"Одинцово"},{"$f":"LOOKUP([id],Дети[id],Дети[ФИО])","v":"Горьков Егор Сергеевич"},{"$f":"LOOKUP([id],Дети[id],Дети[пол])","v":"м"},{"$f":"LOOKUP([id],Дети[id],Дети[Дата рождения])","v":"1999-10-06"},"00:05:42",{"$f":"[неверн. Отв.]*TIMEVALUE(\"0:00:30\")","v":"00:03:30"},7,{"$f":"[время]+[штраф]","v":"00:09:12"},11]
[192,{"$f":"LOOKUP([id],Дети[id],Дети[team_id])","v":10},{"$f":"LOOKUP([team_id],Команды[id],Команды[Коротко])","v":"Кашира"},{"$f":"LOOKUP([id],Дети[id],Дети[ФИО])","v":"Жариков Евгений Михайлович"},{"$f":"LOOKUP([id],Дети[id],Дети[пол])","v":"м"},{"$f":"LOOKUP([id],Дети[id],Дети[Дата рождения])","v":"1998-01-16"},"00:06:28",{"$f":"[неверн. Отв.]*TIMEVALUE(\"0:00:30\")","v":"00:03:00"},6,{"$f":"[время]+[штраф]","v":"00:09:28"},11]
[540,{"$f":"LOOKUP([id],Дети[id],Дети[team_id])","v":27},{"$f":"LOOKUP([team_id],Команды[id],Команды[Коротко])","v":"ОМСН"},{"$f":"LOOKUP([id],Дети[id],Дети[ФИО])","v":"Целкова Валерия Дмитриевна"},{"$f":"LOOKUP([id],Дети[id],Дети[пол])","v":"д"},{"$f":"LOOKUP([id],Дети[id],Дети[Дата рождения])","v":"1997-01-06"},"00:05:33",{"$f":"[неверн. Отв.]*TIMEVALUE(\"0:00:30\")","v":"00:04:00"},8,{"$f":"[время]+[штраф]","v":"00:09:33"},11]
[145,{"$f":"LOOKUP([id],Дети[id],Дети[team_id])","v":8},{"$f":"LOOKUP([team_id],Команды[id],Команды[Коротко])","v":"Руза"},{"$f":"LOOKUP([id],Дети[id],Дети[ФИО])","v":"Сорокин Алексей"},{"$f":"LOOKUP([id],Дети[id],Дети[пол])","v":"м"},{"$f":"LOOKUP([id],Дети[id],Дети[Дата рождения])","v":"1998-01-28"},"00:07:21",{"$f":"[неверн. Отв.]*TIMEVALUE(\"0:00:30\")","v":"00:03:30"},7,{"$f":"[время]+[штраф]","v":"00:10:51"},11]
[479,{"$f":"LOOKUP([id],Дети[id],Дети[team_id])","v":24},{"$f":"LOOKUP([team_id],Команды[id],Команды[Коротко])","v":"Пушкино"},{"$f":"LOOKUP([id],Дети[id],Дети[ФИО])","v":"Сабенина Светлана Вячеславовна"},{"$f":"LOOKUP([id],Дети[id],Дети[пол])","v":"д"},{"$f":"LOOKUP([id],Дети[id],Дети[Дата рождения])","v":"1997-02-08"},"00:08:48",{"$f":"[неверн. Отв.]*TIMEVALUE(\"0:00:30\")","v":"00:04:00"},8,{"$f":"[время]+[штраф]","v":"00:12:48"},11]
[264,{"$f":"LOOKUP([id],Дети[id],Дети[team_id])","v":14},{"$f":"LOOKUP([team_id],Команды[id],Команды[Коротко])","v":"Воскресенск"},{"$f":"LOOKUP([id],Дети[id],Дети[ФИО])","v":"Портная Дарья Сергеевна"},{"$f":"LOOKUP([id],Дети[id],Дети[пол])","v":"д"},{"$f":"LOOKUP([id],Дети[id],Дети[Дата рождения])","v":"1998-08-17"},"00:09:17",{"$f":"[неверн. Отв.]*TIMEVALUE(\"0:00:30\")","v":"00:04:00"},8,{"$f":"[время]+[штраф]","v":"00:13:17"},11]
[220,{"$f":"LOOKUP([id],Дети[id],Дети[team_id])","v":11},{"$f":"LOOKUP([team_id],Команды[id],Команды[Коротко])","v":"Москва"},{"$f":"LOOKUP([id],Дети[id],Дети[ФИО])","v":"Шутков Алексей"},{"$f":"LOOKUP([id],Дети[id],Дети[пол])","v":"м"},{"$f":"LOOKUP([id],Дети[id],Дети[Дата рождения])","v":"1998-06-16"},"00:09:22",{"$f":"[неверн. Отв.]*TIMEVALUE(\"0:00:30\")","v":"00:04:00"},8,{"$f":"[время]+[штраф]","v":"00:13:22"},11]
[419,{"$f":"LOOKUP([id],Дети[id],Дети[team_id])","v":21},{"$f":"LOOKUP([team_id],Команды[id],Команды[Коротко])","v":"Ступино"},{"$f":"LOOKUP([id],Дети[id],Дети[ФИО])","v":"Локтионов Даниил Евгеньевич"},{"$f":"LOOKUP([id],Дети[id],Дети[пол])","v":"м"},{"$f":"LOOKUP([id],Дети[id],Дети[Дата рождения])","v":"1997-01-08"},"00:07:28",{"$f":"[неверн. Отв.]*TIMEVALUE(\"0:00:30\")","v":"00:06:00"},12,{"$f":"[время]+[штраф]","v":"00:13:28"},11]
[437,{"$f":"LOOKUP([id],Дети[id],Дети[team_id])","v":22},{"$f":"LOOKUP([team_id],Команды[id],Команды[Коротко])","v":"Киров"},{"$f":"LOOKUP([id],Дети[id],Дети[ФИО])","v":"Сидоров Даниил"},{"$f":"LOOKUP([id],Дети[id],Дети[пол])","v":"м"},{"$f":"LOOKUP([id],Дети[id],Дети[Дата рождения])","v":"1999-04-06"},"00:09:43",{"$f":"[неверн. Отв.]*TIMEVALUE(\"0:00:30\")","v":"00:04:00"},8,{"$f":"[время]+[штраф]","v":"00:13:43"},11]
[92,{"$f":"LOOKUP([id],Дети[id],Дети[team_id])","v":5},{"$f":"LOOKUP([team_id],Команды[id],Команды[Коротко])","v":"Краснодар"},{"$f":"LOOKUP([id],Дети[id],Дети[ФИО])","v":"Якименко Инна Юрьевна"},{"$f":"LOOKUP([id],Дети[id],Дети[пол])","v":"д"},{"$f":"LOOKUP([id],Дети[id],Дети[Дата рождения])","v":"1997-06-22"},"00:07:22",{"$f":"[неверн. Отв.]*TIMEVALUE(\"0:00:30\")","v":"00:06:30"},13,{"$f":"[время]+[штраф]","v":"00:13:52"},11]
[329,{"$f":"LOOKUP([id],Дети[id],Дети[team_id])","v":17},{"$f":"LOOKUP([team_id],Команды[id],Команды[Коротко])","v":"Смоленск"},{"$f":"LOOKUP([id],Дети[id],Дети[ФИО])","v":"Васильев Виталий Сергеевич"},{"$f":"LOOKUP([id],Дети[id],Дети[пол])","v":"м"},{"$f":"LOOKUP([id],Дети[id],Дети[Дата рождения])","v":"1998-03-10"},"00:07:15",{"$f":"[неверн. Отв.]*TIMEVALUE(\"0:00:30\")","v":"00:08:00"},16,{"$f":"[время]+[штраф]","v":"00:15:15"},11]
[244,{"$f":"LOOKUP([id],Дети[id],Дети[team_id])","v":13},{"$f":"LOOKUP([team_id],Команды[id],Команды[Коротко])","v":"Владимир"},{"$f":"LOOKUP([id],Дети[id],Дети[ФИО])","v":"Слепов Денис Игоревич"},{"$f":"LOOKUP([id],Дети[id],Дети[пол])","v":"м"},{"$f":"LOOKUP([id],Дети[id],Дети[Дата рождения])","v":"1997-01-31"},"00:11:21",{"$f":"[неверн. Отв.]*TIMEVALUE(\"0:00:30\")","v":"00:05:00"},10,{"$f":"[время]+[штраф]","v":"00:16:21"},11]
[224,{"$f":"LOOKUP([id],Дети[id],Дети[team_id])","v":12},{"$f":"LOOKUP([team_id],Команды[id],Команды[Коротко])","v":"Истра"},{"$f":"LOOKUP([id],Дети[id],Дети[ФИО])","v":"Кузнецова Татьяна Алексеевна"},{"$f":"LOOKUP([id],Дети[id],Дети[пол])","v":"д"},{"$f":"LOOKUP([id],Дети[id],Дети[Дата рождения])","v":"1997-02-16"},"00:10:51",{"$f":"[неверн. Отв.]*TIMEVALUE(\"0:00:30\")","v":"00:07:00"},14,{"$f":"[время]+[штраф]","v":"00:17:51"},11]
[378,{"$f":"LOOKUP([id],Дети[id],Дети[team_id])","v":19},{"$f":"LOOKUP([team_id],Команды[id],Команды[Коротко])","v":"Тамбов"},{"$f":"LOOKUP([id],Дети[id],Дети[ФИО])","v":"Шарапов Станислав"},{"$f":"LOOKUP([id],Дети[id],Дети[пол])","v":"м"},{"$f":"LOOKUP([id],Дети[id],Дети[Дата рождения])","v":"1999-03-14"},"00:15:08",{"$f":"[неверн. Отв.]*TIMEVALUE(\"0:00:30\")","v":"00:03:00"},6,{"$f":"[время]+[штраф]","v":"00:18:08"},11]
[303,{"$f":"LOOKUP([id],Дети[id],Дети[team_id])","v":16},{"$f":"LOOKUP([team_id],Команды[id],Команды[Коротко])","v":"Тверь"},{"$f":"LOOKUP([id],Дети[id],Дети[ФИО])","v":"Телешев Алексей Игоревич"},{"$f":"LOOKUP([id],Дети[id],Дети[пол])","v":"м"},{"$f":"LOOKUP([id],Дети[id],Дети[Дата рождения])","v":"1999-01-13"},"00:13:23",{"$f":"[неверн. Отв.]*TIMEVALUE(\"0:00:30\")","v":"00:05:00"},10,{"$f":"[время]+[штраф]","v":"00:18:23"},11]
[106,{"$f":"LOOKUP([id],Дети[id],Дети[team_id])","v":6},{"$f":"LOOKUP([team_id],Команды[id],Команды[Коротко])","v":"Энергия, Шатура"},{"$f":"LOOKUP([id],Дети[id],Дети[ФИО])","v":"Давыдов Георгий Витальевич"},{"$f":"LOOKUP([id],Дети[id],Дети[пол])","v":"м"},{"$f":"LOOKUP([id],Дети[id],Дети[Дата рождения])","v":"1997-10-12"},"00:10:48",{"$f":"[неверн. Отв.]*TIMEVALUE(\"0:00:30\")","v":"00:08:30"},17,{"$f":"[время]+[штраф]","v":"00:19:18"},11]
[514,{"$f":"LOOKUP([id],Дети[id],Дети[team_id])","v":26},{"$f":"LOOKUP([team_id],Команды[id],Команды[Коротко])","v":"Олимп, Шатура"},{"$f":"LOOKUP([id],Дети[id],Дети[ФИО])","v":"Филиппов Матвей Сергеевич"},{"$f":"LOOKUP([id],Дети[id],Дети[пол])","v":"м"},{"$f":"LOOKUP([id],Дети[id],Дети[Дата рождения])","v":"2000-01-06"},"00:16:15",{"$f":"[неверн. Отв.]*TIMEVALUE(\"0:00:30\")","v":"00:04:30"},9,{"$f":"[время]+[штраф]","v":"00:20:45"},11]
[139,{"$f":"LOOKUP([id],Дети[id],Дети[team_id])","v":7},{"$f":"LOOKUP([team_id],Команды[id],Команды[Коротко])","v":"Клин"},{"$f":"LOOKUP([id],Дети[id],Дети[ФИО])","v":"Дрегалина Алина Сергеевна"},{"$f":"LOOKUP([id],Дети[id],Дети[пол])","v":"д"},{"$f":"LOOKUP([id],Дети[id],Дети[Дата рождения])","v":"1998-02-20"},"00:14:21",{"$f":"[неверн. Отв.]*TIMEVALUE(\"0:00:30\")","v":"00:06:30"},13,{"$f":"[время]+[штраф]","v":"00:20:51"},11]
[51,{"$f":"LOOKUP([id],Дети[id],Дети[team_id])","v":3},{"$f":"LOOKUP([team_id],Команды[id],Команды[Коротко])","v":"Дмитров"},{"$f":"LOOKUP([id],Дети[id],Дети[ФИО])","v":"Кулакова Милена Германовна"},{"$f":"LOOKUP([id],Дети[id],Дети[пол])","v":"д"},{"$f":"LOOKUP([id],Дети[id],Дети[Дата рождения])","v":"1998-10-19"},"00:17:46",{"$f":"[неверн. Отв.]*TIMEVALUE(\"0:00:30\")","v":"00:04:30"},9,{"$f":"[время]+[штраф]","v":"00:22:16"},11]
[14,{"$f":"LOOKUP([id],Дети[id],Дети[team_id])","v":1},{"$f":"LOOKUP([team_id],Команды[id],Команды[Коротко])","v":"ОМОН"},{"$f":"LOOKUP([id],Дети[id],Дети[ФИО])","v":"Крашенинникова Анна Андреевна"},{"$f":"LOOKUP([id],Дети[id],Дети[пол])","v":"д"},{"$f":"LOOKUP([id],Дети[id],Дети[Дата рождения])","v":"1997-11-03"},"00:16:11",{"$f":"[неверн. Отв.]*TIMEVALUE(\"0:00:30\")","v":"00:07:00"},14,{"$f":"[время]+[штраф]","v":"00:23:11"},11]
[]
[]
[null,null,"Председатель оргкомитета                                  /Громов А.Г./"]

{"sheet":"рисунок","index":15,"n_rows":9,"n_cols":6,"rows_kept":9,"cut":false,"hidden":false,"merged":[[0,2,0,5]]}
[null,null,"Протокол №13 (Рисунок)"]
[null,null,null,null,null,"5 июня 2011, 15:41"]
["id","team_id","Команда","ФИО","Дата рождения","Место"]
[203,{"$f":"LOOKUP([id],Дети[id],Дети[team_id])","v":11},{"$f":"LOOKUP([team_id],Команды[id],Команды[Коротко])","v":"Москва"},{"$f":"LOOKUP([id],Дети[id],Дети[ФИО])","v":"Васюченко Елизавета"},{"$f":"LOOKUP([id],Дети[id],Дети[Дата рождения])","v":"1997-04-16"},1]
[33,{"$f":"LOOKUP([id],Дети[id],Дети[team_id])","v":2},{"$f":"LOOKUP([team_id],Команды[id],Команды[Коротко])","v":"Липецк"},{"$f":"LOOKUP([id],Дети[id],Дети[ФИО])","v":"Исаев Максим Михайлович"},{"$f":"LOOKUP([id],Дети[id],Дети[Дата рождения])","v":"1997-07-20"},2]
[114,{"$f":"LOOKUP([id],Дети[id],Дети[team_id])","v":6},{"$f":"LOOKUP([team_id],Команды[id],Команды[Коротко])","v":"Энергия, Шатура"},{"$f":"LOOKUP([id],Дети[id],Дети[ФИО])","v":"Бурканова Юлия Владимировна"},{"$f":"LOOKUP([id],Дети[id],Дети[Дата рождения])","v":"1997-03-21"},3]
[]
[]
[null,null,"Председатель оргкомитета                                  /Громов А.Г./"]

{"sheet":"плавание","index":16,"n_rows":87,"n_cols":10,"rows_kept":87,"cut":false,"hidden":false,"merged":[[0,2,0,9]]}
[null,null,"Протокол №14 (плавание)"]
[null,null,null,null,null,null,null,null,null,"4 июня 2011, 14:29"]
["id","team_id","Команда","ФИО","Пол","Дата рождения","штраф","тип","Время","Место"]
[150,{"$f":"LOOKUP([id],Дети[id],Дети[team_id])","v":8},{"$f":"LOOKUP([team_id],Команды[id],Команды[Коротко])","v":"Руза"},{"$f":"LOOKUP([id],Дети[id],Дети[ФИО])","v":"Кузнецов Виталий"},{"$f":"LOOKUP([id],Дети[id],Дети[пол])","v":"м"},{"$f":"LOOKUP([id],Дети[id],Дети[Дата рождения])","v":"1998-02-05"},null,"100в/с","00:01:03.220",1]
[386,{"$f":"LOOKUP([id],Дети[id],Дети[team_id])","v":20},{"$f":"LOOKUP([team_id],Команды[id],Команды[Коротко])","v":"Татарстан"},{"$f":"LOOKUP([id],Дети[id],Дети[ФИО])","v":"Волков Данил Дмитриевич"},{"$f":"LOOKUP([id],Дети[id],Дети[пол])","v":"м"},{"$f":"LOOKUP([id],Дети[id],Дети[Дата рождения])","v":"1997-04-28"},null,"100в/с","00:01:03.230",2]
[178,{"$f":"LOOKUP([id],Дети[id],Дети[team_id])","v":9},{"$f":"LOOKUP([team_id],Команды[id],Команды[Коротко])","v":"Курск"},{"$f":"LOOKUP([id],Дети[id],Дети[ФИО])","v":"Стебленко Владислав"},{"$f":"LOOKUP([id],Дети[id],Дети[пол])","v":"м"},{"$f":"LOOKUP([id],Дети[id],Дети[Дата рождения])","v":"1997-04-01"},null,"100в/с","00:01:03.860",3]
[439,{"$f":"LOOKUP([id],Дети[id],Дети[team_id])","v":22},{"$f":"LOOKUP([team_id],Команды[id],Команды[Коротко])","v":"Киров"},{"$f":"LOOKUP([id],Дети[id],Дети[ФИО])","v":"Калетин Никита"},{"$f":"LOOKUP([id],Дети[id],Дети[пол])","v":"м"},{"$f":"LOOKUP([id],Дети[id],Дети[Дата рождения])","v":"1997-07-26"},null,"100в/с","00:01:06.360",4]
[366,{"$f":"LOOKUP([id],Дети[id],Дети[team_id])","v":19},{"$f":"LOOKUP([team_id],Команды[id],Команды[Коротко])","v":"Тамбов"},{"$f":"LOOKUP([id],Дети[id],Дети[ФИО])","v":"Самородов Владислав"},{"$f":"LOOKUP([id],Дети[id],Дети[пол])","v":"м"},{"$f":"LOOKUP([id],Дети[id],Дети[Дата рождения])","v":"1997-01-05"},null,"100в/с","00:01:07.170",5]
[415,{"$f":"LOOKUP([id],Дети[id],Дети[team_id])","v":21},{"$f":"LOOKUP([team_id],Команды[id],Команды[Коротко])","v":"Ступино"},{"$f":"LOOKUP([id],Дети[id],Дети[ФИО])","v":"Валуев Кирилл Вячеславович"},{"$f":"LOOKUP([id],Дети[id],Дети[пол])","v":"м"},{"$f":"LOOKUP([id],Дети[id],Дети[Дата рождения])","v":"1997-02-17"},null,"100в/с","00:01:07.550",6]
[295,{"$f":"LOOKUP([id],Дети[id],Дети[team_id])","v":15},{"$f":"LOOKUP([team_id],Команды[id],Команды[Коротко])","v":"Воронеж"},{"$f":"LOOKUP([id],Дети[id],Дети[ФИО])","v":"Пехов Виталий Дмитриевич"},{"$f":"LOOKUP([id],Дети[id],Дети[пол])","v":"м"},{"$f":"LOOKUP([id],Дети[id],Дети[Дата рождения])","v":"1998-02-02"},null,"100в/с","00:01:08.850",7]
[214,{"$f":"LOOKUP([id],Дети[id],Дети[team_id])","v":11},{"$f":"LOOKUP([team_id],Команды[id],Команды[Коротко])","v":"Москва"},{"$f":"LOOKUP([id],Дети[id],Дети[ФИО])","v":"Огородников Богдан"},{"$f":"LOOKUP([id],Дети[id],Дети[пол])","v":"м"},{"$f":"LOOKUP([id],Дети[id],Дети[Дата рождения])","v":"1997-07-12"},null,"100в/с","00:01:09.130",8]
[null,5,{"$f":"LOOKUP([team_id],Команды[id],Команды[Коротко])","v":"Краснодар"},"Гедминас Николай","м","2000-05-22",null,"100в/с","00:01:13.920",9]
[null,null,"лично","Рыженков Женя","м","2001-05-05",null,"100в/с","00:01:15.670","в/з"]
[104,{"$f":"LOOKUP([id],Дети[id],Дети[team_id])","v":6},{"$f":"LOOKUP([team_id],Команды[id],Команды[Коротко])","v":"Энергия, Шатура"},{"$f":"LOOKUP([id],Дети[id],Дети[ФИО])","v":"Аристархов Георгий Алексеевич"},{"$f":"LOOKUP([id],Дети[id],Дети[пол])","v":"м"},{"$f":"LOOKUP([id],Дети[id],Дети[Дата рождения])","v":"1997-04-14"},null,"100в/с","00:01:16.790",10]
[44,{"$f":"LOOKUP([id],Дети[id],Дети[team_id])","v":3},{"$f":"LOOKUP([team_id],Команды[id],Команды[Коротко])","v":"Дмитров"},{"$f":"LOOKUP([id],Дети[id],Дети[ФИО])","v":"Платонов Александр Сергеевич"},{"$f":"LOOKUP([id],Дети[id],Дети[пол])","v":"м"},{"$f":"LOOKUP([id],Дети[id],Дети[Дата рождения])","v":"2000-05-15"},null,"100в/с","00:01:18.640",11]
[21,{"$f":"LOOKUP([id],Дети[id],Дети[team_id])","v":2},{"$f":"LOOKUP([team_id],Команды[id],Команды[Коротко])","v":"Липецк"},{"$f":"LOOKUP([id],Дети[id],Дети[ФИО])","v":"Бибиков Вадим Викторович"},{"$f":"LOOKUP([id],Дети[id],Дети[пол])","v":"м"},{"$f":"LOOKUP([id],Дети[id],Дети[Дата рождения])","v":"1997-05-20"},null,"100в/с","00:01:21.850",12]
[327,{"$f":"LOOKUP([id],Дети[id],Дети[team_id])","v":17},{"$f":"LOOKUP([team_id],Команды[id],Команды[Коротко])","v":"Смоленск"},{"$f":"LOOKUP([id],Дети[id],Дети[ФИО])","v":"Мозальков Олег Михайлович"},{"$f":"LOOKUP([id],Дети[id],Дети[пол])","v":"м"},{"$f":"LOOKUP([id],Дети[id],Дети[Дата рождения])","v":"1998-12-28"},null,"100в/с","00:01:22.810",13]
[313,{"$f":"LOOKUP([id],Дети[id],Дети[team_id])","v":16},{"$f":"LOOKUP([team_id],Команды[id],Команды[Коротко])","v":"Тверь"},{"$f":"LOOKUP([id],Дети[id],Дети[ФИО])","v":"Лаврентьев Олег Вадимович"},{"$f":"LOOKUP([id],Дети[id],Дети[пол])","v":"м"},{"$f":"LOOKUP([id],Дети[id],Дети[Дата рождения])","v":"1997-09-17"},null,"100в/с","00:01:22.820",14]
[121,{"$f":"LOOKUP([id],Дети[id],Дети[team_id])","v":7},{"$f":"LOOKUP([team_id],Команды[id],Команды[Коротко])","v":"Клин"},{"$f":"LOOKUP([id],Дети[id],Дети[ФИО])","v":"Сергеев Павел Вячеславович"},{"$f":"LOOKUP([id],Дети[id],Дети[пол])","v":"м"},{"$f":"LOOKUP([id],Дети[id],Дети[Дата рождения])","v":"1998-01-17"},null,"100в/с","00:01:45.660",15]
[483,{"$f":"LOOKUP([id],Дети[id],Дети[team_id])","v":25},{"$f":"LOOKUP([team_id],Команды[id],Команды[Коротко])","v":"Ярославль"},{"$f":"LOOKUP([id],Дети[id],Дети[ФИО])","v":"Фомичев Родион"},{"$f":"LOOKUP([id],Дети[id],Дети[пол])","v":"м"},{"$f":"LOOKUP([id],Дети[id],Дети[Дата рождения])","v":"1997-12-01"},null,"100в/с","00:01:53.480",16]
[512,{"$f":"LOOKUP([id],Дети[id],Дети[team_id])","v":26},{"$f":"LOOKUP([team_id],Команды[id],Команды[Коротко])","v":"Олимп, Шатура"},{"$f":"LOOKUP([id],Дети[id],Дети[ФИО])","v":"Шорин Илья павлович"},{"$f":"LOOKUP([id],Дети[id],Дети[пол])","v":"м"},{"$f":"LOOKUP([id],Дети[id],Дети[Дата рождения])","v":"1997-07-11"},null,"100в/с","00:01:55.100",17]
[521,{"$f":"LOOKUP([id],Дети[id],Дети[team_id])","v":27},{"$f":"LOOKUP([team_id],Команды[id],Команды[Коротко])","v":"ОМСН"},{"$f":"LOOKUP([id],Дети[id],Дети[ФИО])","v":"Рожнов Степан Александрович"},{"$f":"LOOKUP([id],Дети[id],Дети[пол])","v":"м"},{"$f":"LOOKUP([id],Дети[id],Дети[Дата рождения])","v":"1997-11-17"},null,"100в/с","00:01:55.450",18]
[265,{"$f":"LOOKUP([id],Дети[id],Дети[team_id])","v":14},{"$f":"LOOKUP([team_id],Команды[id],Команды[Коротко])","v":"Воскресенск"},{"$f":"LOOKUP([id],Дети[id],Дети[ФИО])","v":"Андреянченко Иван Александрович"},{"$f":"LOOKUP([id],Дети[id],Дети[пол])","v":"м"},{"$f":"LOOKUP([id],Дети[id],Дети[Дата рождения])","v":"1998-07-03"},null,"100в/с","00:01:59.820",19]
[463,{"$f":"LOOKUP([id],Дети[id],Дети[team_id])","v":24},{"$f":"LOOKUP([team_id],Команды[id],Команды[Коротко])","v":"Пушкино"},{"$f":"LOOKUP([id],Дети[id],Дети[ФИО])","v":"Жуков Вячеслав Викторович"},{"$f":"LOOKUP([id],Дети[id],Дети[пол])","v":"м"},{"$f":"LOOKUP([id],Дети[id],Дети[Дата рождения])","v":"1997-07-16"},null,"100в/с","00:02:03.230",20]
[342,{"$f":"LOOKUP([id],Дети[id],Дети[team_id])","v":18},{"$f":"LOOKUP([team_id],Команды[id],Команды[Коротко])","v":"Одинцово"},{"$f":"LOOKUP([id],Дети[id],Дети[ФИО])","v":"Граб Федор Васильевич"},{"$f":"LOOKUP([id],Дети[id],Дети[пол])","v":"м"},{"$f":"LOOKUP([id],Дети[id],Дети[Дата рождения])","v":"1997-03-04"},null,"100в/с","00:02:06.230",21]
[null,null,"лично","Аукин Саша","м",null,null,"100в/с","00:02:11.760","в/з"]
[249,{"$f":"LOOKUP([id],Дети[id],Дети[team_id])","v":13},{"$f":"LOOKUP([team_id],Команды[id],Команды[Коротко])","v":"Владимир"},{"$f":"LOOKUP([id],Дети[id],Дети[ФИО])","v":"Феофанов Петр Игоревич"},{"$f":"LOOKUP([id],Дети[id],Дети[пол])","v":"м"},{"$f":"LOOKUP([id],Дети[id],Дети[Дата рождения])","v":"1997-03-31"},null,"100в/с","00:02:15.230",22]
[3,{"$f":"LOOKUP([id],Дети[id],Дети[team_id])","v":1},{"$f":"LOOKUP([team_id],Команды[id],Команды[Коротко])","v":"ОМОН"},{"$f":"LOOKUP([id],Дети[id],Дети[ФИО])","v":"Дугин Федор Васильевич"},{"$f":"LOOKUP([id],Дети[id],Дети[пол])","v":"м"},{"$f":"LOOKUP([id],Дети[id],Дети[Дата рождения])","v":"1998-02-18"},null,"100в/с","00:02:17.020",23]
[198,{"$f":"LOOKUP([id],Дети[id],Дети[team_id])","v":10},{"$f":"LOOKUP([team_id],Команды[id],Команды[Коротко])","v":"Кашира"},{"$f":"LOOKUP([id],Дети[id],Дети[ФИО])","v":"Белехов Виталий Дмитриевич"},{"$f":"LOOKUP([id],Дети[id],Дети[пол])","v":"м"},{"$f":"LOOKUP([id],Дети[id],Дети[Дата рождения])","v":"1997-09-20"},null,"100в/с","00:02:29.610",24]
[457,{"$f":"LOOKUP([id],Дети[id],Дети[team_id])","v":23},{"$f":"LOOKUP([team_id],Команды[id],Команды[Коротко])","v":"Иваново"},{"$f":"LOOKUP([id],Дети[id],Дети[ФИО])","v":"Кушинский Алексей Викторович"},{"$f":"LOOKUP([id],Дети[id],Дети[пол])","v":"м"},{"$f":"LOOKUP([id],Дети[id],Дети[Дата рождения])","v":"2000-03-03"},null,"100в/с","00:03:04.360",25]
[236,{"$f":"LOOKUP([id],Дети[id],Дети[team_id])","v":12},{"$f":"LOOKUP([team_id],Команды[id],Команды[Коротко])","v":"Истра"},{"$f":"LOOKUP([id],Дети[id],Дети[ФИО])","v":"Талыбов Орхан"},{"$f":"LOOKUP([id],Дети[id],Дети[пол])","v":"м"},{"$f":"LOOKUP([id],Дети[id],Дети[Дата рождения])","v":"1998-03-24"},null,"100в/с","00:10:00",26]
[null,8,{"$f":"LOOKUP([team_id],Команды[id],Команды[Коротко])","v":"Руза"},null,null,null,null,"2х50в/с","00:00:58.260",1]
[null,20,{"$f":"LOOKUP([team_id],Команды[id],Команды[Коротко])","v":"Татарстан"},null,null,null,null,"2х50в/с","00:00:58.890",2]
[null,22,{"$f":"LOOKUP([team_id],Команды[id],Команды[Коротко])","v":"Киров"},null,null,null,null,"2х50в/с","00:01:02.400",3]
[null,9,{"$f":"LOOKUP([team_id],Команды[id],Команды[Коротко])","v":"Курск"},null,null,null,null,"2х50в/с","00:01:06.520",4]
[null,19,{"$f":"LOOKUP([team_id],Команды[id],Команды[Коротко])","v":"Тамбов"},null,null,null,null,"2х50в/с","00:01:07.170",5]
[null,21,{"$f":"LOOKUP([team_id],Команды[id],Команды[Коротко])","v":"Ступино"},null,null,null,null,"2х50в/с","00:01:08.050",6]
[null,15,{"$f":"LOOKUP([team_id],Команды[id],Команды[Коротко])","v":"Воронеж"},null,null,null,null,"2х50в/с","00:01:09.720",7]
[null,11,{"$f":"LOOKUP([team_id],Команды[id],Команды[Коротко])","v":"Москва"},null,null,null,null,"2х50в/с","00:01:10.990",8]
[null,6,{"$f":"LOOKUP([team_id],Команды[id],Команды[Коротко])","v":"Энергия, Шатура"},null,null,null,null,"2х50в/с","00:01:11.830",9]
[null,2,{"$f":"LOOKUP([team_id],Команды[id],Команды[Коротко])","v":"Липецк"},null,null,null,null,"2х50в/с","00:01:12.090",10]
[null,17,{"$f":"LOOKUP([team_id],Команды[id],Команды[Коротко])","v":"Смоленск"},null,null,null,null,"2х50в/с","00:01:15.860",11]
[null,16,{"$f":"LOOKUP([team_id],Команды[id],Команды[Коротко])","v":"Тверь"},null,null,null,null,"2х50в/с","00:01:16.770",12]
[null,null,"лично","Рыженков Женя","м","2001-05-05",null,"2х50в/с","00:01:18.040","в/з"]
[null,3,{"$f":"LOOKUP([team_id],Команды[id],Команды[Коротко])","v":"Дмитров"},null,null,null,null,"2х50в/с","00:01:21.940",13]
[null,26,{"$f":"LOOKUP([team_id],Команды[id],Команды[Коротко])","v":"Олимп, Шатура"},null,null,null,null,"2х50в/с","00:01:35.230",14]
[null,13,{"$f":"LOOKUP([team_id],Команды[id],Команды[Коротко])","v":"Владимир"},null,null,null,null,"2х50в/с","00:01:37.870",15]
[null,10,{"$f":"LOOKUP([team_id],Команды[id],Команды[Коротко])","v":"Кашира"},null,null,null,null,"2х50в/с","00:01:38.770",16]
[null,1,{"$f":"LOOKUP([team_id],Команды[id],Команды[Коротко])","v":"ОМОН"},null,null,null,null,"2х50в/с","00:01:46.070",17]
[null,27,{"$f":"LOOKUP([team_id],Команды[id],Команды[Коротко])","v":"ОМСН"},null,null,null,null,"2х50в/с","00:01:55.160",18]
[null,25,{"$f":"LOOKUP([team_id],Команды[id],Команды[Коротко])","v":"Ярославль"},null,null,null,null,"2х50в/с","00:01:57.570",19]
[null,14,{"$f":"LOOKUP([team_id],Команды[id],Команды[Коротко])","v":"Воскресенск"},null,null,null,null,"2х50в/с","00:01:59.810",20]
[null,23,{"$f":"LOOKUP([team_id],Команды[id],Команды[Коротко])","v":"Иваново"},null,null,null,null,"2х50в/с","00:02:06.340",21]
[null,5,{"$f":"LOOKUP([team_id],Команды[id],Команды[Коротко])","v":"Краснодар"},null,null,null,null,"2х50в/с","00:02:09.810",22]
[null,7,{"$f":"LOOKUP([team_id],Команды[id],Команды[Коротко])","v":"Клин"},null,null,null,null,"2х50в/с","00:02:11.720",23]
[null,24,{"$f":"LOOKUP([team_id],Команды[id],Команды[Коротко])","v":"Пушкино"},null,null,null,null,"2х50в/с","00:02:21.320",24]
[null,18,{"$f":"LOOKUP([team_id],Команды[id],Команды[Коротко])","v":"Одинцово"},null,null,null,null,"2х50в/с","00:02:22.690",25]
[null,12,{"$f":"LOOKUP([team_id],Команды[id],Команды[Коротко])","v":"Истра"},null,null,null,null,"2х50в/с","00:10:00",26]
[160,{"$f":"LOOKUP([id],Дети[id],Дети[team_id])","v":8},{"$f":"LOOKUP([team_id],Команды[id],Команды[Коротко])","v":"Руза"},{"$f":"LOOKUP([id],Дети[id],Дети[ФИО])","v":"Безбородова Дарья"},{"$f":"LOOKUP([id],Дети[id],Дети[пол])","v":"д"},{"$f":"LOOKUP([id],Дети[id],Дети[Дата рождения])","v":"1997-09-18"},null,"50в/с","00:00:29.040",1]
[395,{"$f":"LOOKUP([id],Дети[id],Дети[team_id])","v":20},{"$f":"LOOKUP([team_id],Команды[id],Команды[Коротко])","v":"Татарстан"},{"$f":"LOOKUP([id],Дети[id],Дети[ФИО])","v":"Гимадеева Алина Фаридовна"},{"$f":"LOOKUP([id],Дети[id],Дети[пол])","v":"д"},{"$f":"LOOKUP([id],Дети[id],Дети[Дата рождения])","v":"1997-02-27"},null,"50в/с","00:00:29.510",2]
[426,{"$f":"LOOKUP([id],Дети[id],Дети[team_id])","v":22},{"$f":"LOOKUP([team_id],Команды[id],Команды[Коротко])","v":"Киров"},{"$f":"LOOKUP([id],Дети[id],Дети[ФИО])","v":"Елгешина Елизавета"},{"$f":"LOOKUP([id],Дети[id],Дети[пол])","v":"д"},{"$f":"LOOKUP([id],Дети[id],Дети[Дата рождения])","v":"1997-05-07"},null,"50в/с","00:00:30.660",3]
[370,{"$f":"LOOKUP([id],Дети[id],Дети[team_id])","v":19},{"$f":"LOOKUP([team_id],Команды[id],Команды[Коротко])","v":"Тамбов"},{"$f":"LOOKUP([id],Дети[id],Дети[ФИО])","v":"Захарова Наталия"},{"$f":"LOOKUP([id],Дети[id],Дети[пол])","v":"д"},{"$f":"LOOKUP([id],Дети[id],Дети[Дата рождения])","v":"1998-05-19"},null,"50в/с","00:00:34.120",4]
[114,{"$f":"LOOKUP([id],Дети[id],Дети[team_id])","v":6},{"$f":"LOOKUP([team_id],Команды[id],Команды[Коротко])","v":"Энергия, Шатура"},{"$f":"LOOKUP([id],Дети[id],Дети[ФИО])","v":"Бурканова Юлия Владимировна"},{"$f":"LOOKUP([id],Дети[id],Дети[пол])","v":"д"},{"$f":"LOOKUP([id],Дети[id],Дети[Дата рождения])","v":"1997-03-21"},null,"50в/с","00:00:34.710",5]
[172,{"$f":"LOOKUP([id],Дети[id],Дети[team_id])","v":9},{"$f":"LOOKUP([team_id],Команды[id],Команды[Коротко])","v":"Курск"},{"$f":"LOOKUP([id],Дети[id],Дети[ФИО])","v":"Вертакова Анастасия"},{"$f":"LOOKUP([id],Дети[id],Дети[пол])","v":"д"},{"$f":"LOOKUP([id],Дети[id],Дети[Дата рождения])","v":"1997-03-28"},null,"50в/с","00:00:35.210",6]
[26,{"$f":"LOOKUP([id],Дети[id],Дети[team_id])","v":2},{"$f":"LOOKUP([team_id],Команды[id],Команды[Коротко])","v":"Липецк"},{"$f":"LOOKUP([id],Дети[id],Дети[ФИО])","v":"Бабкина Людмила Алексеевна"},{"$f":"LOOKUP([id],Дети[id],Дети[пол])","v":"д"},{"$f":"LOOKUP([id],Дети[id],Дети[Дата рождения])","v":"1997-10-27"},null,"50в/с","00:00:35.540",7]
[416,{"$f":"LOOKUP([id],Дети[id],Дети[team_id])","v":21},{"$f":"LOOKUP([team_id],Команды[id],Команды[Коротко])","v":"Ступино"},{"$f":"LOOKUP([id],Дети[id],Дети[ФИО])","v":"Китова Екатерина Владимировна"},{"$f":"LOOKUP([id],Дети[id],Дети[пол])","v":"д"},{"$f":"LOOKUP([id],Дети[id],Дети[Дата рождения])","v":"1997-01-29"},null,"50в/с","00:00:36.150",8]
[332,{"$f":"LOOKUP([id],Дети[id],Дети[team_id])","v":17},{"$f":"LOOKUP([team_id],Команды[id],Команды[Коротко])","v":"Смоленск"},{"$f":"LOOKUP([id],Дети[id],Дети[ФИО])","v":"Горбунова Анастасия Николаевна"},{"$f":"LOOKUP([id],Дети[id],Дети[пол])","v":"д"},{"$f":"LOOKUP([id],Дети[id],Дети[Дата рождения])","v":"2000-04-08"},null,"50в/с","00:00:36.840",9]
[288,{"$f":"LOOKUP([id],Дети[id],Дети[team_id])","v":15},{"$f":"LOOKUP([team_id],Команды[id],Команды[Коротко])","v":"Воронеж"},{"$f":"LOOKUP([id],Дети[id],Дети[ФИО])","v":"Якшина Евгения Валерьевна"},{"$f":"LOOKUP([id],Дети[id],Дети[пол])","v":"д"},{"$f":"LOOKUP([id],Дети[id],Дети[Дата рождения])","v":"1998-07-29"},null,"50в/с","00:00:37.790",10]
[211,{"$f":"LOOKUP([id],Дети[id],Дети[team_id])","v":11},{"$f":"LOOKUP([team_id],Команды[id],Команды[Коротко])","v":"Москва"},{"$f":"LOOKUP([id],Дети[id],Дети[ФИО])","v":"Кожаева Екатерина"},{"$f":"LOOKUP([id],Дети[id],Дети[пол])","v":"д"},{"$f":"LOOKUP([id],Дети[id],Дети[Дата рождения])","v":"1997-12-03"},null,"50в/с","00:00:38.190",11]
[460,{"$f":"LOOKUP([id],Дети[id],Дети[team_id])","v":23},{"$f":"LOOKUP([team_id],Команды[id],Команды[Коротко])","v":"Иваново"},{"$f":"LOOKUP([id],Дети[id],Дети[ФИО])","v":"Колпакова Надежда Михайловна"},{"$f":"LOOKUP([id],Дети[id],Дети[пол])","v":"д"},{"$f":"LOOKUP([id],Дети[id],Дети[Дата рождения])","v":"2000-01-25"},null,"50в/с","00:00:40.330",12]
[59,{"$f":"LOOKUP([id],Дети[id],Дети[team_id])","v":3},{"$f":"LOOKUP([team_id],Команды[id],Команды[Коротко])","v":"Дмитров"},{"$f":"LOOKUP([id],Дети[id],Дети[ФИО])","v":"Коныжева Софья Константиновна"},{"$f":"LOOKUP([id],Дети[id],Дети[пол])","v":"д"},{"$f":"LOOKUP([id],Дети[id],Дети[Дата рождения])","v":"1998-01-03"},null,"50в/с","00:00:41.200",13]
[312,{"$f":"LOOKUP([id],Дети[id],Дети[team_id])","v":16},{"$f":"LOOKUP([team_id],Команды[id],Команды[Коротко])","v":"Тверь"},{"$f":"LOOKUP([id],Дети[id],Дети[ФИО])","v":"Ли Оливия"},{"$f":"LOOKUP([id],Дети[id],Дети[пол])","v":"д"},{"$f":"LOOKUP([id],Дети[id],Дети[Дата рождения])","v":"1998-09-10"},null,"50в/с","00:00:41.850",14]
[189,{"$f":"LOOKUP([id],Дети[id],Дети[team_id])","v":10},{"$f":"LOOKUP([team_id],Команды[id],Команды[Коротко])","v":"Кашира"},{"$f":"LOOKUP([id],Дети[id],Дети[ФИО])","v":"Ильина Александра Сергеевна"},{"$f":"LOOKUP([id],Дети[id],Дети[пол])","v":"д"},{"$f":"LOOKUP([id],Дети[id],Дети[Дата рождения])","v":"1997-07-29"},null,"50в/с","00:00:42.070",15]
[505,{"$f":"LOOKUP([id],Дети[id],Дети[team_id])","v":26},{"$f":"LOOKUP([team_id],Команды[id],Команды[Коротко])","v":"Олимп, Шатура"},{"$f":"LOOKUP([id],Дети[id],Дети[ФИО])","v":"Давыдова Анастасия Сергеевна"},{"$f":"LOOKUP([id],Дети[id],Дети[пол])","v":"д"},{"$f":"LOOKUP([id],Дети[id],Дети[Дата рождения])","v":"1998-06-24"},null,"50в/с","00:00:42.860",16]
[256,{"$f":"LOOKUP([id],Дети[id],Дети[team_id])","v":13},{"$f":"LOOKUP([team_id],Команды[id],Команды[Коротко])","v":"Владимир"},{"$f":"LOOKUP([id],Дети[id],Дети[ФИО])","v":"Орлова Ирина Андреевна"},{"$f":"LOOKUP([id],Дети[id],Дети[пол])","v":"д"},{"$f":"LOOKUP([id],Дети[id],Дети[Дата рождения])","v":"1997-01-17"},null,"50в/с","00:00:45.510",17]
[17,{"$f":"LOOKUP([id],Дети[id],Дети[team_id])","v":1},{"$f":"LOOKUP([team_id],Команды[id],Команды[Коротко])","v":"ОМОН"},{"$f":"LOOKUP([id],Дети[id],Дети[ФИО])","v":"Зарх Елизавета Дмитриевна"},{"$f":"LOOKUP([id],Дети[id],Дети[пол])","v":"д"},{"$f":"LOOKUP([id],Дети[id],Дети[Дата рождения])","v":"1997-11-08"},null,"50в/с","00:00:51.290",18]
[240,{"$f":"LOOKUP([id],Дети[id],Дети[team_id])","v":12},{"$f":"LOOKUP([team_id],Команды[id],Команды[Коротко])","v":"Истра"},{"$f":"LOOKUP([id],Дети[id],Дети[ФИО])","v":"Туровская Анна Владимирона"},{"$f":"LOOKUP([id],Дети[id],Дети[пол])","v":"д"},{"$f":"LOOKUP([id],Дети[id],Дети[Дата рождения])","v":"1997-08-22"},null,"50в/с","00:00:57.260",19]
[530,{"$f":"LOOKUP([id],Дети[id],Дети[team_id])","v":27},{"$f":"LOOKUP([team_id],Команды[id],Команды[Коротко])","v":"ОМСН"},{"$f":"LOOKUP([id],Дети[id],Дети[ФИО])","v":"Новикова Елизавета Владимировна"},{"$f":"LOOKUP([id],Дети[id],Дети[пол])","v":"д"},{"$f":"LOOKUP([id],Дети[id],Дети[Дата рождения])","v":"1998-03-04"},null,"50в/с","00:01:04.450",20]
[278,{"$f":"LOOKUP([id],Дети[id],Дети[team_id])","v":14},{"$f":"LOOKUP([team_id],Команды[id],Команды[Коротко])","v":"Воскресенск"},{"$f":"LOOKUP([id],Дети[id],Дети[ФИО])","v":"Пищухина Маргарита Сергеевна"},{"$f":"LOOKUP([id],Дети[id],Дети[пол])","v":"д"},{"$f":"LOOKUP([id],Дети[id],Дети[Дата рождения])","v":"1998-09-02"},null,"50в/с","00:01:07.160",21]
[498,{"$f":"LOOKUP([id],Дети[id],Дети[team_id])","v":25},{"$f":"LOOKUP([team_id],Команды[id],Команды[Коротко])","v":"Ярославль"},{"$f":"LOOKUP([id],Дети[id],Дети[ФИО])","v":"Фирсова Алина Сергеевна"},{"$f":"LOOKUP([id],Дети[id],Дети[пол])","v":"д"},{"$f":"LOOKUP([id],Дети[id],Дети[Дата рождения])","v":"1997-12-24"},null,"50в/с","00:01:11.100",22]
[464,{"$f":"LOOKUP([id],Дети[id],Дети[team_id])","v":24},{"$f":"LOOKUP([team_id],Команды[id],Команды[Коротко])","v":"Пушкино"},{"$f":"LOOKUP([id],Дети[id],Дети[ФИО])","v":"Соколова Оксана Анатольевна"},{"$f":"LOOKUP([id],Дети[id],Дети[пол])","v":"д"},{"$f":"LOOKUP([id],Дети[id],Дети[Дата рождения])","v":"1997-09-18"},null,"50в/с","00:01:21.220",23]
[95,{"$f":"LOOKUP([id],Дети[id],Дети[team_id])","v":5},{"$f":"LOOKUP([team_id],Команды[id],Команды[Коротко])","v":"Краснодар"},{"$f":"LOOKUP([id],Дети[id],Дети[ФИО])","v":"Мельникова Екатерина Викторовна"},{"$f":"LOOKUP([id],Дети[id],Дети[пол])","v":"д"},{"$f":"LOOKUP([id],Дети[id],Дети[Дата рождения])","v":"2001-01-30"},null,"50в/с","00:01:22.240",24]
[351,{"$f":"LOOKUP([id],Дети[id],Дети[team_id])","v":18},{"$f":"LOOKUP([team_id],Команды[id],Команды[Коротко])","v":"Одинцово"},{"$f":"LOOKUP([id],Дети[id],Дети[ФИО])","v":"Грек София Павловна"},{"$f":"LOOKUP([id],Дети[id],Дети[пол])","v":"д"},{"$f":"LOOKUP([id],Дети[id],Дети[Дата рождения])","v":"1998-10-05"},null,"50в/с","00:01:24.440",25]
[132,{"$f":"LOOKUP([id],Дети[id],Дети[team_id])","v":7},{"$f":"LOOKUP([team_id],Команды[id],Команды[Коротко])","v":"Клин"},{"$f":"LOOKUP([id],Дети[id],Дети[ФИО])","v":"Волкова Анна Сергеевна"},{"$f":"LOOKUP([id],Дети[id],Дети[пол])","v":"д"},{"$f":"LOOKUP([id],Дети[id],Дети[Дата рождения])","v":"1997-04-21"},null,"50в/с","00:01:26.770",26]
[]
[]
[null,null,"Председатель оргкомитета                                  /Громов А.Г./"]

{"sheet":"ориентирование","index":17,"n_rows":33,"n_cols":10,"rows_kept":33,"cut":false,"hidden":false,"merged":[[0,2,0,9]]}
[null,null,"Протокол №15 (ориентирование)"]
[null,null,null,null,null,null,null,null,null,"5 июня 2011, 14:27"]
["id","team_id","Команда","ФИО","пол","Дата рождения","время","штраф","Сумма","Место"]
[315,{"$f":"LOOKUP([id],Дети[id],Дети[team_id])","v":16},{"$f":"LOOKUP([team_id],Команды[id],Команды[Коротко])","v":"Тверь"},{"$f":"LOOKUP([id],Дети[id],Дети[ФИО])","v":"Кулаченко Ярослав Евгеньевич"},{"$f":"LOOKUP([id],Дети[id],Дети[пол])","v":"м"},{"$f":"LOOKUP([id],Дети[id],Дети[Дата рождения])","v":"1997-04-06"},1.1504629629629559E-2,0,{"$f":"ориентирование[[#This Row],[время]]+ориентирование[[#This Row],[штраф]]","v":1.1504629629629559E-2},1]
[365,{"$f":"LOOKUP([id],Дети[id],Дети[team_id])","v":19},{"$f":"LOOKUP([team_id],Команды[id],Команды[Коротко])","v":"Тамбов"},{"$f":"LOOKUP([id],Дети[id],Дети[ФИО])","v":"Рюмин Илья"},{"$f":"LOOKUP([id],Дети[id],Дети[пол])","v":"м"},{"$f":"LOOKUP([id],Дети[id],Дети[Дата рождения])","v":"1997-07-25"},1.194444444444448E-2,0,{"$f":"ориентирование[[#This Row],[время]]+ориентирование[[#This Row],[штраф]]","v":1.194444444444448E-2},2]
[84,{"$f":"LOOKUP([id],Дети[id],Дети[team_id])","v":5},{"$f":"LOOKUP([team_id],Команды[id],Команды[Коротко])","v":"Краснодар"},{"$f":"LOOKUP([id],Дети[id],Дети[ФИО])","v":"Галимов Юрий Андреевич"},{"$f":"LOOKUP([id],Дети[id],Дети[пол])","v":"м"},{"$f":"LOOKUP([id],Дети[id],Дети[Дата рождения])","v":"1997-08-20"},1.2349537037037006E-2,0,{"$f":"ориентирование[[#This Row],[время]]+ориентирование[[#This Row],[штраф]]","v":1.2349537037037006E-2},3]
[390,{"$f":"LOOKUP([id],Дети[id],Дети[team_id])","v":20},{"$f":"LOOKUP([team_id],Команды[id],Команды[Коротко])","v":"Татарстан"},{"$f":"LOOKUP([id],Дети[id],Дети[ФИО])","v":"Мищенко Елизавета Владимировна"},{"$f":"LOOKUP([id],Дети[id],Дети[пол])","v":"д"},{"$f":"LOOKUP([id],Дети[id],Дети[Дата рождения])","v":"1997-01-21"},1.2847222222222232E-2,0,{"$f":"ориентирование[[#This Row],[время]]+ориентирование[[#This Row],[штраф]]","v":1.2847222222222232E-2},4]
[228,{"$f":"LOOKUP([id],Дети[id],Дети[team_id])","v":12},{"$f":"LOOKUP([team_id],Команды[id],Команды[Коротко])","v":"Истра"},{"$f":"LOOKUP([id],Дети[id],Дети[ФИО])","v":"Арчаков Николай Владимирович"},{"$f":"LOOKUP([id],Дети[id],Дети[пол])","v":"м"},{"$f":"LOOKUP([id],Дети[id],Дети[Дата рождения])","v":"1997-05-25"},1.3194444444444453E-2,0,{"$f":"ориентирование[[#This Row],[время]]+ориентирование[[#This Row],[штраф]]","v":1.3194444444444453E-2},5]
[326,{"$f":"LOOKUP([id],Дети[id],Дети[team_id])","v":17},{"$f":"LOOKUP([team_id],Команды[id],Команды[Коротко])","v":"Смоленск"},{"$f":"LOOKUP([id],Дети[id],Дети[ФИО])","v":"Белов Алексей Александрович"},{"$f":"LOOKUP([id],Дети[id],Дети[пол])","v":"м"},{"$f":"LOOKUP([id],Дети[id],Дети[Дата рождения])","v":"1998-12-27"},1.3784722222222157E-2,0,{"$f":"ориентирование[[#This Row],[время]]+ориентирование[[#This Row],[штраф]]","v":1.3784722222222157E-2},6]
[418,{"$f":"LOOKUP([id],Дети[id],Дети[team_id])","v":21},{"$f":"LOOKUP([team_id],Команды[id],Команды[Коротко])","v":"Ступино"},{"$f":"LOOKUP([id],Дети[id],Дети[ФИО])","v":"Добычин Антон Владиславович"},{"$f":"LOOKUP([id],Дети[id],Дети[пол])","v":"м"},{"$f":"LOOKUP([id],Дети[id],Дети[Дата рождения])","v":"1997-07-10"},1.3888888888888895E-2,0,{"$f":"ориентирование[[#This Row],[время]]+ориентирование[[#This Row],[штраф]]","v":1.3888888888888895E-2},7]
[129,{"$f":"LOOKUP([id],Дети[id],Дети[team_id])","v":7},{"$f":"LOOKUP([team_id],Команды[id],Команды[Коротко])","v":"Клин"},{"$f":"LOOKUP([id],Дети[id],Дети[ФИО])","v":"Быков Дмитрий Игорьевич"},{"$f":"LOOKUP([id],Дети[id],Дети[пол])","v":"м"},{"$f":"LOOKUP([id],Дети[id],Дети[Дата рождения])","v":"1997-01-26"},1.40393518518519E-2,0,{"$f":"ориентирование[[#This Row],[время]]+ориентирование[[#This Row],[штраф]]","v":1.40393518518519E-2},8]
[427,{"$f":"LOOKUP([id],Дети[id],Дети[team_id])","v":22},{"$f":"LOOKUP([team_id],Команды[id],Команды[Коротко])","v":"Киров"},{"$f":"LOOKUP([id],Дети[id],Дети[ФИО])","v":"Бельтюков Кирилл"},{"$f":"LOOKUP([id],Дети[id],Дети[пол])","v":"м"},{"$f":"LOOKUP([id],Дети[id],Дети[Дата рождения])","v":"1997-12-05"},1.4236111111111116E-2,0,{"$f":"ориентирование[[#This Row],[время]]+ориентирование[[#This Row],[штраф]]","v":1.4236111111111116E-2},9]
[187,{"$f":"LOOKUP([id],Дети[id],Дети[team_id])","v":10},{"$f":"LOOKUP([team_id],Команды[id],Команды[Коротко])","v":"Кашира"},{"$f":"LOOKUP([id],Дети[id],Дети[ФИО])","v":"Куликова Александра Сергеевна"},{"$f":"LOOKUP([id],Дети[id],Дети[пол])","v":"д"},{"$f":"LOOKUP([id],Дети[id],Дети[Дата рождения])","v":"1998-07-14"},1.432870370370376E-2,0,{"$f":"ориентирование[[#This Row],[время]]+ориентирование[[#This Row],[штраф]]","v":1.432870370370376E-2},10]
[445,{"$f":"LOOKUP([id],Дети[id],Дети[team_id])","v":23},{"$f":"LOOKUP([team_id],Команды[id],Команды[Коротко])","v":"Иваново"},{"$f":"LOOKUP([id],Дети[id],Дети[ФИО])","v":"Исаков Ярослав Олегович"},{"$f":"LOOKUP([id],Дети[id],Дети[пол])","v":"м"},{"$f":"LOOKUP([id],Дети[id],Дети[Дата рождения])","v":"1997-10-29"},1.4340277777777743E-2,0,{"$f":"ориентирование[[#This Row],[время]]+ориентирование[[#This Row],[штраф]]","v":1.4340277777777743E-2},11]
[5,{"$f":"LOOKUP([id],Дети[id],Дети[team_id])","v":1},{"$f":"LOOKUP([team_id],Команды[id],Команды[Коротко])","v":"ОМОН"},{"$f":"LOOKUP([id],Дети[id],Дети[ФИО])","v":"Заварихин Семен Александрович"},{"$f":"LOOKUP([id],Дети[id],Дети[пол])","v":"м"},{"$f":"LOOKUP([id],Дети[id],Дети[Дата рождения])","v":"1997-12-16"},1.4664351851851887E-2,0,{"$f":"ориентирование[[#This Row],[время]]+ориентирование[[#This Row],[штраф]]","v":1.4664351851851887E-2},12]
[106,{"$f":"LOOKUP([id],Дети[id],Дети[team_id])","v":6},{"$f":"LOOKUP([team_id],Команды[id],Команды[Коротко])","v":"Энергия, Шатура"},{"$f":"LOOKUP([id],Дети[id],Дети[ФИО])","v":"Давыдов Георгий Витальевич"},{"$f":"LOOKUP([id],Дети[id],Дети[пол])","v":"м"},{"$f":"LOOKUP([id],Дети[id],Дети[Дата рождения])","v":"1997-10-12"},1.5011574074074108E-2,0,{"$f":"ориентирование[[#This Row],[время]]+ориентирование[[#This Row],[штраф]]","v":1.5011574074074108E-2},13]
[539,{"$f":"LOOKUP([id],Дети[id],Дети[team_id])","v":27},{"$f":"LOOKUP([team_id],Команды[id],Команды[Коротко])","v":"ОМСН"},{"$f":"LOOKUP([id],Дети[id],Дети[ФИО])","v":"Власенко Григорий Юрьевич"},{"$f":"LOOKUP([id],Дети[id],Дети[пол])","v":"м"},{"$f":"LOOKUP([id],Дети[id],Дети[Дата рождения])","v":"1997-02-12"},1.5162037037037002E-2,0,{"$f":"ориентирование[[#This Row],[время]]+ориентирование[[#This Row],[штраф]]","v":1.5162037037037002E-2},14]
[274,{"$f":"LOOKUP([id],Дети[id],Дети[team_id])","v":14},{"$f":"LOOKUP([team_id],Команды[id],Команды[Коротко])","v":"Воскресенск"},{"$f":"LOOKUP([id],Дети[id],Дети[ФИО])","v":"Волкова Мария Александровна"},{"$f":"LOOKUP([id],Дети[id],Дети[пол])","v":"д"},{"$f":"LOOKUP([id],Дети[id],Дети[Дата рождения])","v":"1998-08-07"},1.5868055555555538E-2,0,{"$f":"ориентирование[[#This Row],[время]]+ориентирование[[#This Row],[штраф]]","v":1.5868055555555538E-2},15]
[144,{"$f":"LOOKUP([id],Дети[id],Дети[team_id])","v":8},{"$f":"LOOKUP([team_id],Команды[id],Команды[Коротко])","v":"Руза"},{"$f":"LOOKUP([id],Дети[id],Дети[ФИО])","v":"Волнистов Сергей"},{"$f":"LOOKUP([id],Дети[id],Дети[пол])","v":"м"},{"$f":"LOOKUP([id],Дети[id],Дети[Дата рождения])","v":"1997-03-20"},1.7060185185185095E-2,0,{"$f":"ориентирование[[#This Row],[время]]+ориентирование[[#This Row],[штраф]]","v":1.7060185185185095E-2},16]
[467,{"$f":"LOOKUP([id],Дети[id],Дети[team_id])","v":24},{"$f":"LOOKUP([team_id],Команды[id],Команды[Коротко])","v":"Пушкино"},{"$f":"LOOKUP([id],Дети[id],Дети[ФИО])","v":"Рябчиков Владислав Игоревич"},{"$f":"LOOKUP([id],Дети[id],Дети[пол])","v":"м"},{"$f":"LOOKUP([id],Дети[id],Дети[Дата рождения])","v":"1997-03-21"},1.6041666666666621E-2,1.3888888888888889E-3,{"$f":"ориентирование[[#This Row],[время]]+ориентирование[[#This Row],[штраф]]","v":1.7430555555555508E-2},17]
[22,{"$f":"LOOKUP([id],Дети[id],Дети[team_id])","v":2},{"$f":"LOOKUP([team_id],Команды[id],Команды[Коротко])","v":"Липецк"},{"$f":"LOOKUP([id],Дети[id],Дети[ФИО])","v":"Боганова Анастасия Александровна"},{"$f":"LOOKUP([id],Дети[id],Дети[пол])","v":"д"},{"$f":"LOOKUP([id],Дети[id],Дети[Дата рождения])","v":"1998-05-21"},1.8090277777777775E-2,0,{"$f":"ориентирование[[#This Row],[время]]+ориентирование[[#This Row],[штраф]]","v":1.8090277777777775E-2},18]
[248,{"$f":"LOOKUP([id],Дети[id],Дети[team_id])","v":13},{"$f":"LOOKUP([team_id],Команды[id],Команды[Коротко])","v":"Владимир"},{"$f":"LOOKUP([id],Дети[id],Дети[ФИО])","v":"Желобов Иван Алексеевич"},{"$f":"LOOKUP([id],Дети[id],Дети[пол])","v":"м"},{"$f":"LOOKUP([id],Дети[id],Дети[Дата рождения])","v":"1998-01-03"},1.8171296296296324E-2,0,{"$f":"ориентирование[[#This Row],[время]]+ориентирование[[#This Row],[штраф]]","v":1.8171296296296324E-2},19]
[284,{"$f":"LOOKUP([id],Дети[id],Дети[team_id])","v":15},{"$f":"LOOKUP([team_id],Команды[id],Команды[Коротко])","v":"Воронеж"},{"$f":"LOOKUP([id],Дети[id],Дети[ФИО])","v":"Бубликова Марина Александровна"},{"$f":"LOOKUP([id],Дети[id],Дети[пол])","v":"д"},{"$f":"LOOKUP([id],Дети[id],Дети[Дата рождения])","v":"1997-11-20"},1.8541666666666679E-2,0,{"$f":"ориентирование[[#This Row],[время]]+ориентирование[[#This Row],[штраф]]","v":1.8541666666666679E-2},20]
[208,{"$f":"LOOKUP([id],Дети[id],Дети[team_id])","v":11},{"$f":"LOOKUP([team_id],Команды[id],Команды[Коротко])","v":"Москва"},{"$f":"LOOKUP([id],Дети[id],Дети[ФИО])","v":"Кизилов Алексей"},{"$f":"LOOKUP([id],Дети[id],Дети[пол])","v":"м"},{"$f":"LOOKUP([id],Дети[id],Дети[Дата рождения])","v":"1998-03-05"},1.975694444444448E-2,0,{"$f":"ориентирование[[#This Row],[время]]+ориентирование[[#This Row],[штраф]]","v":1.975694444444448E-2},21]
[485,{"$f":"LOOKUP([id],Дети[id],Дети[team_id])","v":25},{"$f":"LOOKUP([team_id],Команды[id],Команды[Коротко])","v":"Ярославль"},{"$f":"LOOKUP([id],Дети[id],Дети[ФИО])","v":"Антропова Валерия"},{"$f":"LOOKUP([id],Дети[id],Дети[пол])","v":"д"},{"$f":"LOOKUP([id],Дети[id],Дети[Дата рождения])","v":"1998-02-02"},2.0972222222222225E-2,0,{"$f":"ориентирование[[#This Row],[время]]+ориентирование[[#This Row],[штраф]]","v":2.0972222222222225E-2},22]
[516,{"$f":"LOOKUP([id],Дети[id],Дети[team_id])","v":26},{"$f":"LOOKUP([team_id],Команды[id],Команды[Коротко])","v":"Олимп, Шатура"},{"$f":"LOOKUP([id],Дети[id],Дети[ФИО])","v":"Крутова Татьяна Вячеславовна"},{"$f":"LOOKUP([id],Дети[id],Дети[пол])","v":"д"},{"$f":"LOOKUP([id],Дети[id],Дети[Дата рождения])","v":"1999-01-19"},2.3344907407407411E-2,0,{"$f":"ориентирование[[#This Row],[время]]+ориентирование[[#This Row],[штраф]]","v":2.3344907407407411E-2},23]
[17,null,"ОМОН",{"$f":"LOOKUP([id],Дети[id],Дети[ФИО])","v":"Зарх Елизавета Дмитриевна"},{"$f":"LOOKUP([id],Дети[id],Дети[пол])","v":"д"},{"$f":"LOOKUP([id],Дети[id],Дети[Дата рождения])","v":"1997-11-08"},2.6145833333333368E-2,0,{"$f":"ориентирование[[#This Row],[время]]+ориентирование[[#This Row],[штраф]]","v":2.6145833333333368E-2},"в/з"]
[348,{"$f":"LOOKUP([id],Дети[id],Дети[team_id])","v":18},{"$f":"LOOKUP([team_id],Команды[id],Команды[Коротко])","v":"Одинцово"},{"$f":"LOOKUP([id],Дети[id],Дети[ФИО])","v":"Еремичева Мирия Руслановна"},{"$f":"LOOKUP([id],Дети[id],Дети[пол])","v":"д"},{"$f":"LOOKUP([id],Дети[id],Дети[Дата рождения])","v":"1998-08-10"},2.7824074074074057E-2,0,{"$f":"ориентирование[[#This Row],[время]]+ориентирование[[#This Row],[штраф]]","v":2.7824074074074057E-2},24]
[168,{"$f":"LOOKUP([id],Дети[id],Дети[team_id])","v":9},{"$f":"LOOKUP([team_id],Команды[id],Команды[Коротко])","v":"Курск"},{"$f":"LOOKUP([id],Дети[id],Дети[ФИО])","v":"Авдеева Анна"},{"$f":"LOOKUP([id],Дети[id],Дети[пол])","v":"д"},{"$f":"LOOKUP([id],Дети[id],Дети[Дата рождения])","v":"1998-06-20"},4.2037037037036984E-2,0,{"$f":"ориентирование[[#This Row],[время]]+ориентирование[[#This Row],[штраф]]","v":4.2037037037036984E-2},25]
[59,{"$f":"LOOKUP([id],Дети[id],Дети[team_id])","v":3},{"$f":"LOOKUP([team_id],Команды[id],Команды[Коротко])","v":"Дмитров"},{"$f":"LOOKUP([id],Дети[id],Дети[ФИО])","v":"Коныжева Софья Константиновна"},{"$f":"LOOKUP([id],Дети[id],Дети[пол])","v":"д"},{"$f":"LOOKUP([id],Дети[id],Дети[Дата рождения])","v":"1998-01-03"},1.5011574074074108E-2,1.0006944444444446,{"$f":"ориентирование[[#This Row],[время]]+ориентирование[[#This Row],[штраф]]","v":1.0157060185185187},26]
[]
[]
[null,null,"Председатель оргкомитета                                  /Громов А.Г./"]

{"sheet":"Эстафета","index":18,"n_rows":32,"n_cols":7,"rows_kept":32,"cut":false,"hidden":false,"merged":[[0,2,0,6]]}
[null,null,"Протокол №16 (Эстафета)"]
[null,null,null,null,null,null,"5 июня 2011, 17:06"]
["team_id","Жеребьевка","Команда","время","штраф","Сумма","Место"]
[13,17,{"$f":"LOOKUP([team_id],Команды[id],Команды[Коротко])","v":"Владимир"},"00:04:08.370","00:00:15",{"$f":"Эстафета[[#This Row],[время]]+Эстафета[[#This Row],[штраф]]","v":"00:04:23.370"},1]
[20,22,{"$f":"LOOKUP([team_id],Команды[id],Команды[Коротко])","v":"Татарстан"},"00:04:40.750",null,{"$f":"Эстафета[[#This Row],[время]]+Эстафета[[#This Row],[штраф]]","v":"00:04:40.750"},2]
[3,19,{"$f":"LOOKUP([team_id],Команды[id],Команды[Коротко])","v":"Дмитров"},"00:04:43.820",null,{"$f":"Эстафета[[#This Row],[время]]+Эстафета[[#This Row],[штраф]]","v":"00:04:43.820"},3]
[21,24,{"$f":"LOOKUP([team_id],Команды[id],Команды[Коротко])","v":"Ступино"},"00:04:44.940",null,{"$f":"Эстафета[[#This Row],[время]]+Эстафета[[#This Row],[штраф]]","v":"00:04:44.940"},4]
[11,4,{"$f":"LOOKUP([team_id],Команды[id],Команды[Коротко])","v":"Москва"},"00:04:46.520",null,{"$f":"Эстафета[[#This Row],[время]]+Эстафета[[#This Row],[штраф]]","v":"00:04:46.520"},5]
[16,20,{"$f":"LOOKUP([team_id],Команды[id],Команды[Коротко])","v":"Тверь"},"00:04:51.980",null,{"$f":"Эстафета[[#This Row],[время]]+Эстафета[[#This Row],[штраф]]","v":"00:04:51.980"},6]
[9,12,{"$f":"LOOKUP([team_id],Команды[id],Команды[Коротко])","v":"Курск"},"00:04:38.010","00:00:15",{"$f":"Эстафета[[#This Row],[время]]+Эстафета[[#This Row],[штраф]]","v":"00:04:53.010"},7]
[10,21,{"$f":"LOOKUP([team_id],Команды[id],Команды[Коротко])","v":"Кашира"},"00:04:54.670",null,{"$f":"Эстафета[[#This Row],[время]]+Эстафета[[#This Row],[штраф]]","v":"00:04:54.670"},8]
[17,8,{"$f":"LOOKUP([team_id],Команды[id],Команды[Коротко])","v":"Смоленск"},"00:04:55.520",null,{"$f":"Эстафета[[#This Row],[время]]+Эстафета[[#This Row],[штраф]]","v":"00:04:55.520"},9]
[15,9,{"$f":"LOOKUP([team_id],Команды[id],Команды[Коротко])","v":"Воронеж"},"00:04:58.400",null,{"$f":"Эстафета[[#This Row],[время]]+Эстафета[[#This Row],[штраф]]","v":"00:04:58.400"},10]
[12,13,{"$f":"LOOKUP([team_id],Команды[id],Команды[Коротко])","v":"Истра"},"00:04:45.190","00:00:15",{"$f":"Эстафета[[#This Row],[время]]+Эстафета[[#This Row],[штраф]]","v":"00:05:00.190"},11]
[22,3,{"$f":"LOOKUP([team_id],Команды[id],Команды[Коротко])","v":"Киров"},"00:04:52.820","00:00:10",{"$f":"Эстафета[[#This Row],[время]]+Эстафета[[#This Row],[штраф]]","v":"00:05:02.820"},12]
[25,18,{"$f":"LOOKUP([team_id],Команды[id],Команды[Коротко])","v":"Ярославль"},"00:04:54.820","00:00:10",{"$f":"Эстафета[[#This Row],[время]]+Эстафета[[#This Row],[штраф]]","v":"00:05:04.820"},13]
[19,15,{"$f":"LOOKUP([team_id],Команды[id],Команды[Коротко])","v":"Тамбов"},"00:04:45.340","00:00:20",{"$f":"Эстафета[[#This Row],[время]]+Эстафета[[#This Row],[штраф]]","v":"00:05:05.340"},14]
[26,16,{"$f":"LOOKUP([team_id],Команды[id],Команды[Коротко])","v":"Олимп, Шатура"},"00:04:46.070","00:00:20",{"$f":"Эстафета[[#This Row],[время]]+Эстафета[[#This Row],[штраф]]","v":"00:05:06.070"},15]
[2,5,{"$f":"LOOKUP([team_id],Команды[id],Команды[Коротко])","v":"Липецк"},"00:04:57.590","00:00:15",{"$f":"Эстафета[[#This Row],[время]]+Эстафета[[#This Row],[штраф]]","v":"00:05:12.590"},16]
[27,1,{"$f":"LOOKUP([team_id],Команды[id],Команды[Коротко])","v":"ОМСН"},"00:05:18.010",null,{"$f":"Эстафета[[#This Row],[время]]+Эстафета[[#This Row],[штраф]]","v":"00:05:18.010"},17]
[5,2,{"$f":"LOOKUP([team_id],Команды[id],Команды[Коротко])","v":"Краснодар"},"00:04:53.700","00:00:30",{"$f":"Эстафета[[#This Row],[время]]+Эстафета[[#This Row],[штраф]]","v":"00:05:23.700"},18]
[8,6,{"$f":"LOOKUP([team_id],Команды[id],Команды[Коротко])","v":"Руза"},"00:05:12.650","00:00:20",{"$f":"Эстафета[[#This Row],[время]]+Эстафета[[#This Row],[штраф]]","v":"00:05:32.650"},19]
[14,10,{"$f":"LOOKUP([team_id],Команды[id],Команды[Коротко])","v":"Воскресенск"},"00:05:22.790","00:00:10",{"$f":"Эстафета[[#This Row],[время]]+Эстафета[[#This Row],[штраф]]","v":"00:05:32.790"},20]
[1,23,{"$f":"LOOKUP([team_id],Команды[id],Команды[Коротко])","v":"ОМОН"},"00:05:33.800",null,{"$f":"Эстафета[[#This Row],[время]]+Эстафета[[#This Row],[штраф]]","v":"00:05:33.800"},21]
[23,11,{"$f":"LOOKUP([team_id],Команды[id],Команды[Коротко])","v":"Иваново"},"00:05:32.220","00:00:15",{"$f":"Эстафета[[#This Row],[время]]+Эстафета[[#This Row],[штраф]]","v":"00:05:47.220"},22]
[6,26,{"$f":"LOOKUP([team_id],Команды[id],Команды[Коротко])","v":"Энергия, Шатура"},"00:06:17.090",null,{"$f":"Эстафета[[#This Row],[время]]+Эстафета[[#This Row],[штраф]]","v":"00:06:17.090"},23]
[24,7,{"$f":"LOOKUP([team_id],Команды[id],Команды[Коротко])","v":"Пушкино"},"00:06:30.320",null,{"$f":"Эстафета[[#This Row],[время]]+Эстафета[[#This Row],[штраф]]","v":"00:06:30.320"},24]
[18,14,{"$f":"LOOKUP([team_id],Команды[id],Команды[Коротко])","v":"Одинцово"},"00:06:38.440","00:00:10",{"$f":"Эстафета[[#This Row],[время]]+Эстафета[[#This Row],[штраф]]","v":"00:06:48.440"},25]
[7,25,{"$f":"LOOKUP([team_id],Команды[id],Команды[Коротко])","v":"Клин"},"00:06:39.030","00:00:10",{"$f":"Эстафета[[#This Row],[время]]+Эстафета[[#This Row],[штраф]]","v":"00:06:49.030"},26]
[]
[]
[null,null,"Председатель оргкомитета                                  /Громов А.Г./"]